Workbook

Sheet Introduction
B2: The HHD Profiler uses half-hourly kWh data to provide:
B3: – a 7 day chart of 24 hour kW power demand profiles
B4: – colour maps of kW power demand for a month or a year
B5: – monthly kWh consumption charts for one, two or three years.
B6: It uses data for one or more supplies (up to six) selectable from kWh data sets in tabs HHDa to HHDf.
B8: You can:
B9: – click buttons to shift charts forwards or backwards in time by one week, four weeks, or 52 weeks,
B10: – use the automatic chart maximum kW, or fix the maximum for comparing different periods - see the box at Week cell M15,
B11: – simply select the HHD set for charting see Week tab cell R20.
B12: Only the yellow cells should normally be changed.
B14: You will need kWh data (for one set or up to six sets) to paste in from a half-hourly spreadsheet or csv file with one row per day - such as obtainable from electricity suppliers. The data can be for any period from a week to a year or many years.
B16: The profiler has simple macros that must be enabled to use the time-shift and chart-maximum buttons. The profiler can be used without enabling the macros: edit the chart start date (Week cell A3) and if necessary adjust the chart maximum manually.
B18: Use of this profiler is subject to the conditions shown below.
B25: Copyright © John W Field. Permission is hereby granted, free of charge, to any person obtaining a copy of this software and associated documentation files (the “Software”), to deal in the Software without restriction, including without limitation the rights to use, copy, modify, merge, publish, distribute, sublicense, and/or sell copies of the Software, and to permit persons to whom the Software is furnished to do so, subject to the following conditions:
B26: The above copyright notice and this permission notice shall be included in all copies or substantial portions of the Software.
B27: The software is provided “as is”, without warranty of any kind, express or implied, including but not limited to the warranties of merchantability, fitness for a particular purpose and noninfringement. In no event shall the authors or copyright holders be liable for any claim, damages or other liability, whether in an action of contract, tort or otherwise, arising from, out of or in connection with the software or the use or other dealings in the software.

Sheet Week
A2: Set the chart date here or shift the chart week using buttons | H2: 7 day dates | I2: Day | J2: Row | K2: Month | L2: Chart time: | M2: =IF(AND(LEFT(R36)="Y",K9>=K4,K3>=4,K9<=10),"DST","ST") -> ST | N2: =IF(M2="ST",0,1/24) -> 00:00:00 | O2: =N2+1/48 -> 00:30:00 | P2: =O2+1/48 -> 01:00:00 | Q2: 01:30:00 | R2: 02:00:00 | S2: 02:30:00 | T2: 03:00:00 | U2: 03:30:00 | V2: 04:00:00 | W2: 04:30:00 | X2: 05:00:00 | Y2: 05:30:00 | Z2: 06:00:00 | AA2: 06:30:00 | AB2: 07:00:00 | AC2: 07:30:00 | AD2: 08:00:00 | AE2: 08:30:00 | AF2: 09:00:00 | AG2: 09:30:00 | AH2: 10:00:00 | AI2: 10:30:00 | AJ2: 11:00:00 | AK2: 11:30:00 | AL2: 12:00:00 | AM2: 12:30:00 | AN2: 13:00:00 | AO2: 13:30:00 | AP2: 14:00:00 | AQ2: 14:30:00 | AR2: 15:00:00 | AS2: 15:30:00 | AT2: 16:00:00 | AU2: 16:30:00 | AV2: 17:00:00 | AW2: 17:30:00 | AX2: 18:00:00 | AY2: 18:30:00 | AZ2: 19:00:00 | BA2: 19:30:00 | BB2: 20:00:00 | BC2: 20:30:00 | BD2: 21:00:00 | BE2: 21:30:00 | BF2: 22:00:00 | BG2: 22:30:00 | BH2: 23:00:00 | BI2: 23:30:00
A3: 2023-02-06 | H3: =A3-WEEKDAY(A3,2)+1 -> 2023-02-06 | I3: =WEEKDAY(H3,2) -> 1 | J3: =H3-HHD!$A$6+6 -> 772 | K3: =MONTH(H3) -> 2 | M3: Mon | N3: =2*INDEX(HHD!$C:$AX,$J3,COLUMN()-13) -> 52.6 | O3: =2*INDEX(HHD!$C:$AX,$J3,COLUMN()-13) -> 48.2 | P3: =2*INDEX(HHD!$C:$AX,$J3,COLUMN()-13) -> 55.8 | Q3: =2*INDEX(HHD!$C:$AX,$J3,COLUMN()-13) -> 54.2 | R3: =2*INDEX(HHD!$C:$AX,$J3,COLUMN()-13) -> 53.4 | S3: =2*INDEX(HHD!$C:$AX,$J3,COLUMN()-13) -> 49.2 | T3: =2*INDEX(HHD!$C:$AX,$J3,COLUMN()-13) -> 58.4 | U3: =2*INDEX(HHD!$C:$AX,$J3,COLUMN()-13) -> 57.6 | V3: =2*INDEX(HHD!$C:$AX,$J3,COLUMN()-13) -> 47.4 | W3: =2*INDEX(HHD!$C:$AX,$J3,COLUMN()-13) -> 54.2 | X3: =2*INDEX(HHD!$C:$AX,$J3,COLUMN()-13) -> 52.8 | Y3: =2*INDEX(HHD!$C:$AX,$J3,COLUMN()-13) -> 53 | Z3: =2*INDEX(HHD!$C:$AX,$J3,COLUMN()-13) -> 51.2 | AA3: =2*INDEX(HHD!$C:$AX,$J3,COLUMN()-13) -> 61.8 | AB3: =2*INDEX(HHD!$C:$AX,$J3,COLUMN()-13) -> 91.6 | AC3: =2*INDEX(HHD!$C:$AX,$J3,COLUMN()-13) -> 131.2 | AD3: =2*INDEX(HHD!$C:$AX,$J3,COLUMN()-13) -> 125.4 | AE3: =2*INDEX(HHD!$C:$AX,$J3,COLUMN()-13) -> 145.2 | AF3: =2*INDEX(HHD!$C:$AX,$J3,COLUMN()-13) -> 151 | AG3: =2*INDEX(HHD!$C:$AX,$J3,COLUMN()-13) -> 159.6 | AH3: =2*INDEX(HHD!$C:$AX,$J3,COLUMN()-13) -> 181.6 | AI3: =2*INDEX(HHD!$C:$AX,$J3,COLUMN()-13) -> 202.4 | AJ3: =2*INDEX(HHD!$C:$AX,$J3,COLUMN()-13) -> 179 | AK3: =2*INDEX(HHD!$C:$AX,$J3,COLUMN()-13) -> 180.2 | AL3: =2*INDEX(HHD!$C:$AX,$J3,COLUMN()-13) -> 162.4 | AM3: =2*INDEX(HHD!$C:$AX,$J3,COLUMN()-13) -> 157 | AN3: =2*INDEX(HHD!$C:$AX,$J3,COLUMN()-13) -> 170.6 | AO3: =2*INDEX(HHD!$C:$AX,$J3,COLUMN()-13) -> 155.6 | AP3: =2*INDEX(HHD!$C:$AX,$J3,COLUMN()-13) -> 151.8 | AQ3: =2*INDEX(HHD!$C:$AX,$J3,COLUMN()-13) -> 155.8 | AR3: =2*INDEX(HHD!$C:$AX,$J3,COLUMN()-13) -> 153 | AS3: =2*INDEX(HHD!$C:$AX,$J3,COLUMN()-13) -> 125.4 | AT3: =2*INDEX(HHD!$C:$AX,$J3,COLUMN()-13) -> 131.2 | AU3: =2*INDEX(HHD!$C:$AX,$J3,COLUMN()-13) -> 106.6 | AV3: =2*INDEX(HHD!$C:$AX,$J3,COLUMN()-13) -> 70.2 | AW3: =2*INDEX(HHD!$C:$AX,$J3,COLUMN()-13) -> 59.2 | AX3: =2*INDEX(HHD!$C:$AX,$J3,COLUMN()-13) -> 61.8 | AY3: =2*INDEX(HHD!$C:$AX,$J3,COLUMN()-13) -> 61.2 | AZ3: =2*INDEX(HHD!$C:$AX,$J3,COLUMN()-13) -> 57.6 | BA3: =2*INDEX(HHD!$C:$AX,$J3,COLUMN()-13) -> 54.6 | BB3: =2*INDEX(HHD!$C:$AX,$J3,COLUMN()-13) -> 59 | BC3: =2*INDEX(HHD!$C:$AX,$J3,COLUMN()-13) -> 57.8 | BD3: =2*INDEX(HHD!$C:$AX,$J3,COLUMN()-13) -> 55.6 | BE3: =2*INDEX(HHD!$C:$AX,$J3,COLUMN()-13) -> 55 | BF3: =2*INDEX(HHD!$C:$AX,$J3,COLUMN()-13) -> 46.8 | BG3: =2*INDEX(HHD!$C:$AX,$J3,COLUMN()-13) -> 51 | BH3: =2*INDEX(HHD!$C:$AX,$J3,COLUMN()-13) -> 43.8 | BI3: =2*INDEX(HHD!$C:$AX,$J3,COLUMN()-13) -> 46.4
H4: =H3+1 -> 2023-02-07 | I4: =WEEKDAY(H4,2) -> 2 | J4: =H4-HHD!$A$6+6 -> 773 | K4: =MONTH(H4) -> 2 | M4: Tue | N4: =2*INDEX(HHD!$C:$AX,$J4,COLUMN()-13) -> 51 | O4: =2*INDEX(HHD!$C:$AX,$J4,COLUMN()-13) -> 46.8 | P4: =2*INDEX(HHD!$C:$AX,$J4,COLUMN()-13) -> 51.2 | Q4: =2*INDEX(HHD!$C:$AX,$J4,COLUMN()-13) -> 54.4 | R4: =2*INDEX(HHD!$C:$AX,$J4,COLUMN()-13) -> 53.2 | S4: =2*INDEX(HHD!$C:$AX,$J4,COLUMN()-13) -> 52.2 | T4: =2*INDEX(HHD!$C:$AX,$J4,COLUMN()-13) -> 52.2 | U4: =2*INDEX(HHD!$C:$AX,$J4,COLUMN()-13) -> 55.6 | V4: =2*INDEX(HHD!$C:$AX,$J4,COLUMN()-13) -> 54.4 | W4: =2*INDEX(HHD!$C:$AX,$J4,COLUMN()-13) -> 60.8 | X4: =2*INDEX(HHD!$C:$AX,$J4,COLUMN()-13) -> 50 | Y4: =2*INDEX(HHD!$C:$AX,$J4,COLUMN()-13) -> 59.2 | Z4: =2*INDEX(HHD!$C:$AX,$J4,COLUMN()-13) -> 57 | AA4: =2*INDEX(HHD!$C:$AX,$J4,COLUMN()-13) -> 61.8 | AB4: =2*INDEX(HHD!$C:$AX,$J4,COLUMN()-13) -> 126.4 | AC4: =2*INDEX(HHD!$C:$AX,$J4,COLUMN()-13) -> 116.8 | AD4: =2*INDEX(HHD!$C:$AX,$J4,COLUMN()-13) -> 150.2 | AE4: =2*INDEX(HHD!$C:$AX,$J4,COLUMN()-13) -> 155.2 | AF4: =2*INDEX(HHD!$C:$AX,$J4,COLUMN()-13) -> 152 | AG4: =2*INDEX(HHD!$C:$AX,$J4,COLUMN()-13) -> 171.2 | AH4: =2*INDEX(HHD!$C:$AX,$J4,COLUMN()-13) -> 189 | AI4: =2*INDEX(HHD!$C:$AX,$J4,COLUMN()-13) -> 167.2 | AJ4: =2*INDEX(HHD!$C:$AX,$J4,COLUMN()-13) -> 183.2 | AK4: =2*INDEX(HHD!$C:$AX,$J4,COLUMN()-13) -> 161.6 | AL4: =2*INDEX(HHD!$C:$AX,$J4,COLUMN()-13) -> 180.4 | AM4: =2*INDEX(HHD!$C:$AX,$J4,COLUMN()-13) -> 165.6 | AN4: =2*INDEX(HHD!$C:$AX,$J4,COLUMN()-13) -> 160 | AO4: =2*INDEX(HHD!$C:$AX,$J4,COLUMN()-13) -> 157.6 | AP4: =2*INDEX(HHD!$C:$AX,$J4,COLUMN()-13) -> 149.2 | AQ4: =2*INDEX(HHD!$C:$AX,$J4,COLUMN()-13) -> 134.6 | AR4: =2*INDEX(HHD!$C:$AX,$J4,COLUMN()-13) -> 154 | AS4: =2*INDEX(HHD!$C:$AX,$J4,COLUMN()-13) -> 128 | AT4: =2*INDEX(HHD!$C:$AX,$J4,COLUMN()-13) -> 134 | AU4: =2*INDEX(HHD!$C:$AX,$J4,COLUMN()-13) -> 119.4 | AV4: =2*INDEX(HHD!$C:$AX,$J4,COLUMN()-13) -> 86 | AW4: =2*INDEX(HHD!$C:$AX,$J4,COLUMN()-13) -> 77.6 | AX4: =2*INDEX(HHD!$C:$AX,$J4,COLUMN()-13) -> 69.8 | AY4: =2*INDEX(HHD!$C:$AX,$J4,COLUMN()-13) -> 64 | AZ4: =2*INDEX(HHD!$C:$AX,$J4,COLUMN()-13) -> 60.2 | BA4: =2*INDEX(HHD!$C:$AX,$J4,COLUMN()-13) -> 56.4 | BB4: =2*INDEX(HHD!$C:$AX,$J4,COLUMN()-13) -> 55 | BC4: =2*INDEX(HHD!$C:$AX,$J4,COLUMN()-13) -> 55.6 | BD4: =2*INDEX(HHD!$C:$AX,$J4,COLUMN()-13) -> 57.4 | BE4: =2*INDEX(HHD!$C:$AX,$J4,COLUMN()-13) -> 52.2 | BF4: =2*INDEX(HHD!$C:$AX,$J4,COLUMN()-13) -> 46.8 | BG4: =2*INDEX(HHD!$C:$AX,$J4,COLUMN()-13) -> 54 | BH4: =2*INDEX(HHD!$C:$AX,$J4,COLUMN()-13) -> 48 | BI4: =2*INDEX(HHD!$C:$AX,$J4,COLUMN()-13) -> 52.6
A5: Shift 1 week | H5: =H4+1 -> 2023-02-08 | I5: 3 | J5: =H5-HHD!$A$6+6 -> 774 | K5: 2 | M5: Wed | N5: =2*INDEX(HHD!$C:$AX,$J5,COLUMN()-13) -> 47 | O5: =2*INDEX(HHD!$C:$AX,$J5,COLUMN()-13) -> 47.2 | P5: =2*INDEX(HHD!$C:$AX,$J5,COLUMN()-13) -> 54 | Q5: =2*INDEX(HHD!$C:$AX,$J5,COLUMN()-13) -> 53.6 | R5: =2*INDEX(HHD!$C:$AX,$J5,COLUMN()-13) -> 46.8 | S5: =2*INDEX(HHD!$C:$AX,$J5,COLUMN()-13) -> 46.4 | T5: =2*INDEX(HHD!$C:$AX,$J5,COLUMN()-13) -> 50.2 | U5: =2*INDEX(HHD!$C:$AX,$J5,COLUMN()-13) -> 55 | V5: =2*INDEX(HHD!$C:$AX,$J5,COLUMN()-13) -> 51.2 | W5: =2*INDEX(HHD!$C:$AX,$J5,COLUMN()-13) -> 59.2 | X5: =2*INDEX(HHD!$C:$AX,$J5,COLUMN()-13) -> 51.6 | Y5: =2*INDEX(HHD!$C:$AX,$J5,COLUMN()-13) -> 53.6 | Z5: =2*INDEX(HHD!$C:$AX,$J5,COLUMN()-13) -> 57.2 | AA5: =2*INDEX(HHD!$C:$AX,$J5,COLUMN()-13) -> 65.6 | AB5: =2*INDEX(HHD!$C:$AX,$J5,COLUMN()-13) -> 95 | AC5: =2*INDEX(HHD!$C:$AX,$J5,COLUMN()-13) -> 111.4 | AD5: =2*INDEX(HHD!$C:$AX,$J5,COLUMN()-13) -> 130.8 | AE5: =2*INDEX(HHD!$C:$AX,$J5,COLUMN()-13) -> 164 | AF5: =2*INDEX(HHD!$C:$AX,$J5,COLUMN()-13) -> 153.8 | AG5: =2*INDEX(HHD!$C:$AX,$J5,COLUMN()-13) -> 180.4 | AH5: =2*INDEX(HHD!$C:$AX,$J5,COLUMN()-13) -> 171.2 | AI5: =2*INDEX(HHD!$C:$AX,$J5,COLUMN()-13) -> 175.2 | AJ5: =2*INDEX(HHD!$C:$AX,$J5,COLUMN()-13) -> 182.8 | AK5: =2*INDEX(HHD!$C:$AX,$J5,COLUMN()-13) -> 176.8 | AL5: =2*INDEX(HHD!$C:$AX,$J5,COLUMN()-13) -> 166.6 | AM5: =2*INDEX(HHD!$C:$AX,$J5,COLUMN()-13) -> 175 | AN5: =2*INDEX(HHD!$C:$AX,$J5,COLUMN()-13) -> 182.2 | AO5: =2*INDEX(HHD!$C:$AX,$J5,COLUMN()-13) -> 169.4 | AP5: =2*INDEX(HHD!$C:$AX,$J5,COLUMN()-13) -> 180.2 | AQ5: =2*INDEX(HHD!$C:$AX,$J5,COLUMN()-13) -> 177.2 | AR5: =2*INDEX(HHD!$C:$AX,$J5,COLUMN()-13) -> 138 | AS5: =2*INDEX(HHD!$C:$AX,$J5,COLUMN()-13) -> 136 | AT5: =2*INDEX(HHD!$C:$AX,$J5,COLUMN()-13) -> 135.6 | AU5: =2*INDEX(HHD!$C:$AX,$J5,COLUMN()-13) -> 112.8 | AV5: =2*INDEX(HHD!$C:$AX,$J5,COLUMN()-13) -> 85.4 | AW5: =2*INDEX(HHD!$C:$AX,$J5,COLUMN()-13) -> 61.2 | AX5: =2*INDEX(HHD!$C:$AX,$J5,COLUMN()-13) -> 60.4 | AY5: =2*INDEX(HHD!$C:$AX,$J5,COLUMN()-13) -> 57.4 | AZ5: =2*INDEX(HHD!$C:$AX,$J5,COLUMN()-13) -> 61.6 | BA5: =2*INDEX(HHD!$C:$AX,$J5,COLUMN()-13) -> 55.2 | BB5: =2*INDEX(HHD!$C:$AX,$J5,COLUMN()-13) -> 61.6 | BC5: =2*INDEX(HHD!$C:$AX,$J5,COLUMN()-13) -> 60.2 | BD5: =2*INDEX(HHD!$C:$AX,$J5,COLUMN()-13) -> 58.2 | BE5: =2*INDEX(HHD!$C:$AX,$J5,COLUMN()-13) -> 50.2 | BF5: =2*INDEX(HHD!$C:$AX,$J5,COLUMN()-13) -> 45.4 | BG5: =2*INDEX(HHD!$C:$AX,$J5,COLUMN()-13) -> 55.6 | BH5: =2*INDEX(HHD!$C:$AX,$J5,COLUMN()-13) -> 50.6 | BI5: =2*INDEX(HHD!$C:$AX,$J5,COLUMN()-13) -> 49
H6: 2023-02-09 | I6: 4 | J6: =H6-HHD!$A$6+6 -> 775 | K6: 2 | M6: Thu | N6: =2*INDEX(HHD!$C:$AX,$J6,COLUMN()-13) -> 44.8 | O6: =2*INDEX(HHD!$C:$AX,$J6,COLUMN()-13) -> 54.4 | P6: =2*INDEX(HHD!$C:$AX,$J6,COLUMN()-13) -> 51 | Q6: =2*INDEX(HHD!$C:$AX,$J6,COLUMN()-13) -> 52.4 | R6: =2*INDEX(HHD!$C:$AX,$J6,COLUMN()-13) -> 52.8 | S6: =2*INDEX(HHD!$C:$AX,$J6,COLUMN()-13) -> 46.6 | T6: =2*INDEX(HHD!$C:$AX,$J6,COLUMN()-13) -> 53 | U6: =2*INDEX(HHD!$C:$AX,$J6,COLUMN()-13) -> 48.8 | V6: =2*INDEX(HHD!$C:$AX,$J6,COLUMN()-13) -> 50.8 | W6: =2*INDEX(HHD!$C:$AX,$J6,COLUMN()-13) -> 56 | X6: =2*INDEX(HHD!$C:$AX,$J6,COLUMN()-13) -> 53.2 | Y6: =2*INDEX(HHD!$C:$AX,$J6,COLUMN()-13) -> 53.4 | Z6: =2*INDEX(HHD!$C:$AX,$J6,COLUMN()-13) -> 58 | AA6: =2*INDEX(HHD!$C:$AX,$J6,COLUMN()-13) -> 84 | AB6: =2*INDEX(HHD!$C:$AX,$J6,COLUMN()-13) -> 91.4 | AC6: =2*INDEX(HHD!$C:$AX,$J6,COLUMN()-13) -> 106 | AD6: =2*INDEX(HHD!$C:$AX,$J6,COLUMN()-13) -> 141.4 | AE6: =2*INDEX(HHD!$C:$AX,$J6,COLUMN()-13) -> 161.6 | AF6: =2*INDEX(HHD!$C:$AX,$J6,COLUMN()-13) -> 154.6 | AG6: =2*INDEX(HHD!$C:$AX,$J6,COLUMN()-13) -> 178 | AH6: =2*INDEX(HHD!$C:$AX,$J6,COLUMN()-13) -> 172 | AI6: =2*INDEX(HHD!$C:$AX,$J6,COLUMN()-13) -> 187.6 | AJ6: =2*INDEX(HHD!$C:$AX,$J6,COLUMN()-13) -> 159 | AK6: =2*INDEX(HHD!$C:$AX,$J6,COLUMN()-13) -> 187 | AL6: =2*INDEX(HHD!$C:$AX,$J6,COLUMN()-13) -> 174 | AM6: =2*INDEX(HHD!$C:$AX,$J6,COLUMN()-13) -> 172 | AN6: =2*INDEX(HHD!$C:$AX,$J6,COLUMN()-13) -> 173.8 | AO6: =2*INDEX(HHD!$C:$AX,$J6,COLUMN()-13) -> 162.6 | AP6: =2*INDEX(HHD!$C:$AX,$J6,COLUMN()-13) -> 158.6 | AQ6: =2*INDEX(HHD!$C:$AX,$J6,COLUMN()-13) -> 151.6 | AR6: =2*INDEX(HHD!$C:$AX,$J6,COLUMN()-13) -> 159.2 | AS6: =2*INDEX(HHD!$C:$AX,$J6,COLUMN()-13) -> 141.2 | AT6: =2*INDEX(HHD!$C:$AX,$J6,COLUMN()-13) -> 155.8 | AU6: =2*INDEX(HHD!$C:$AX,$J6,COLUMN()-13) -> 121.2 | AV6: =2*INDEX(HHD!$C:$AX,$J6,COLUMN()-13) -> 71.6 | AW6: =2*INDEX(HHD!$C:$AX,$J6,COLUMN()-13) -> 61.8 | AX6: =2*INDEX(HHD!$C:$AX,$J6,COLUMN()-13) -> 59.6 | AY6: =2*INDEX(HHD!$C:$AX,$J6,COLUMN()-13) -> 60 | AZ6: =2*INDEX(HHD!$C:$AX,$J6,COLUMN()-13) -> 55.4 | BA6: =2*INDEX(HHD!$C:$AX,$J6,COLUMN()-13) -> 56 | BB6: =2*INDEX(HHD!$C:$AX,$J6,COLUMN()-13) -> 61.2 | BC6: =2*INDEX(HHD!$C:$AX,$J6,COLUMN()-13) -> 56.6 | BD6: =2*INDEX(HHD!$C:$AX,$J6,COLUMN()-13) -> 58 | BE6: =2*INDEX(HHD!$C:$AX,$J6,COLUMN()-13) -> 49.2 | BF6: =2*INDEX(HHD!$C:$AX,$J6,COLUMN()-13) -> 49.2 | BG6: =2*INDEX(HHD!$C:$AX,$J6,COLUMN()-13) -> 46.4 | BH6: =2*INDEX(HHD!$C:$AX,$J6,COLUMN()-13) -> 50.8 | BI6: =2*INDEX(HHD!$C:$AX,$J6,COLUMN()-13) -> 45.8
A7: Shift 4 weeks | H7: 2023-02-10 | I7: 5 | J7: =H7-HHD!$A$6+6 -> 776 | K7: 2 | M7: Fri | N7: =2*INDEX(HHD!$C:$AX,$J7,COLUMN()-13) -> 44.8 | O7: =2*INDEX(HHD!$C:$AX,$J7,COLUMN()-13) -> 50.8 | P7: =2*INDEX(HHD!$C:$AX,$J7,COLUMN()-13) -> 50 | Q7: =2*INDEX(HHD!$C:$AX,$J7,COLUMN()-13) -> 46.8 | R7: =2*INDEX(HHD!$C:$AX,$J7,COLUMN()-13) -> 49 | S7: =2*INDEX(HHD!$C:$AX,$J7,COLUMN()-13) -> 47.2 | T7: =2*INDEX(HHD!$C:$AX,$J7,COLUMN()-13) -> 50.4 | U7: =2*INDEX(HHD!$C:$AX,$J7,COLUMN()-13) -> 46.6 | V7: =2*INDEX(HHD!$C:$AX,$J7,COLUMN()-13) -> 48.2 | W7: =2*INDEX(HHD!$C:$AX,$J7,COLUMN()-13) -> 56 | X7: =2*INDEX(HHD!$C:$AX,$J7,COLUMN()-13) -> 53 | Y7: =2*INDEX(HHD!$C:$AX,$J7,COLUMN()-13) -> 57.6 | Z7: =2*INDEX(HHD!$C:$AX,$J7,COLUMN()-13) -> 50.8 | AA7: =2*INDEX(HHD!$C:$AX,$J7,COLUMN()-13) -> 71 | AB7: =2*INDEX(HHD!$C:$AX,$J7,COLUMN()-13) -> 94.4 | AC7: =2*INDEX(HHD!$C:$AX,$J7,COLUMN()-13) -> 133.8 | AD7: =2*INDEX(HHD!$C:$AX,$J7,COLUMN()-13) -> 148.4 | AE7: =2*INDEX(HHD!$C:$AX,$J7,COLUMN()-13) -> 178.8 | AF7: =2*INDEX(HHD!$C:$AX,$J7,COLUMN()-13) -> 165.4 | AG7: =2*INDEX(HHD!$C:$AX,$J7,COLUMN()-13) -> 173 | AH7: =2*INDEX(HHD!$C:$AX,$J7,COLUMN()-13) -> 158.2 | AI7: =2*INDEX(HHD!$C:$AX,$J7,COLUMN()-13) -> 163.6 | AJ7: =2*INDEX(HHD!$C:$AX,$J7,COLUMN()-13) -> 174 | AK7: =2*INDEX(HHD!$C:$AX,$J7,COLUMN()-13) -> 173.6 | AL7: =2*INDEX(HHD!$C:$AX,$J7,COLUMN()-13) -> 164 | AM7: =2*INDEX(HHD!$C:$AX,$J7,COLUMN()-13) -> 195.8 | AN7: =2*INDEX(HHD!$C:$AX,$J7,COLUMN()-13) -> 169.8 | AO7: =2*INDEX(HHD!$C:$AX,$J7,COLUMN()-13) -> 173.8 | AP7: =2*INDEX(HHD!$C:$AX,$J7,COLUMN()-13) -> 144.8 | AQ7: =2*INDEX(HHD!$C:$AX,$J7,COLUMN()-13) -> 158.6 | AR7: =2*INDEX(HHD!$C:$AX,$J7,COLUMN()-13) -> 159 | AS7: =2*INDEX(HHD!$C:$AX,$J7,COLUMN()-13) -> 161.8 | AT7: =2*INDEX(HHD!$C:$AX,$J7,COLUMN()-13) -> 156.2 | AU7: =2*INDEX(HHD!$C:$AX,$J7,COLUMN()-13) -> 129 | AV7: =2*INDEX(HHD!$C:$AX,$J7,COLUMN()-13) -> 92 | AW7: =2*INDEX(HHD!$C:$AX,$J7,COLUMN()-13) -> 65.2 | AX7: =2*INDEX(HHD!$C:$AX,$J7,COLUMN()-13) -> 65.8 | AY7: =2*INDEX(HHD!$C:$AX,$J7,COLUMN()-13) -> 66.6 | AZ7: =2*INDEX(HHD!$C:$AX,$J7,COLUMN()-13) -> 66.4 | BA7: =2*INDEX(HHD!$C:$AX,$J7,COLUMN()-13) -> 66 | BB7: =2*INDEX(HHD!$C:$AX,$J7,COLUMN()-13) -> 55.6 | BC7: =2*INDEX(HHD!$C:$AX,$J7,COLUMN()-13) -> 56.2 | BD7: =2*INDEX(HHD!$C:$AX,$J7,COLUMN()-13) -> 58.4 | BE7: =2*INDEX(HHD!$C:$AX,$J7,COLUMN()-13) -> 52 | BF7: =2*INDEX(HHD!$C:$AX,$J7,COLUMN()-13) -> 47.8 | BG7: =2*INDEX(HHD!$C:$AX,$J7,COLUMN()-13) -> 54.6 | BH7: =2*INDEX(HHD!$C:$AX,$J7,COLUMN()-13) -> 53.6 | BI7: =2*INDEX(HHD!$C:$AX,$J7,COLUMN()-13) -> 50.6
H8: 2023-02-11 | I8: 6 | J8: =H8-HHD!$A$6+6 -> 777 | K8: 2 | M8: Sat | N8: =2*INDEX(HHD!$C:$AX,$J8,COLUMN()-13) -> 49.2 | O8: =2*INDEX(HHD!$C:$AX,$J8,COLUMN()-13) -> 48.4 | P8: =2*INDEX(HHD!$C:$AX,$J8,COLUMN()-13) -> 54.6 | Q8: =2*INDEX(HHD!$C:$AX,$J8,COLUMN()-13) -> 45.8 | R8: =2*INDEX(HHD!$C:$AX,$J8,COLUMN()-13) -> 51.4 | S8: =2*INDEX(HHD!$C:$AX,$J8,COLUMN()-13) -> 45.2 | T8: =2*INDEX(HHD!$C:$AX,$J8,COLUMN()-13) -> 53 | U8: =2*INDEX(HHD!$C:$AX,$J8,COLUMN()-13) -> 54 | V8: =2*INDEX(HHD!$C:$AX,$J8,COLUMN()-13) -> 46.4 | W8: =2*INDEX(HHD!$C:$AX,$J8,COLUMN()-13) -> 50.4 | X8: =2*INDEX(HHD!$C:$AX,$J8,COLUMN()-13) -> 48.6 | Y8: =2*INDEX(HHD!$C:$AX,$J8,COLUMN()-13) -> 50.8 | Z8: =2*INDEX(HHD!$C:$AX,$J8,COLUMN()-13) -> 48.6 | AA8: =2*INDEX(HHD!$C:$AX,$J8,COLUMN()-13) -> 55 | AB8: =2*INDEX(HHD!$C:$AX,$J8,COLUMN()-13) -> 84.8 | AC8: =2*INDEX(HHD!$C:$AX,$J8,COLUMN()-13) -> 102.2 | AD8: =2*INDEX(HHD!$C:$AX,$J8,COLUMN()-13) -> 153 | AE8: =2*INDEX(HHD!$C:$AX,$J8,COLUMN()-13) -> 140.2 | AF8: =2*INDEX(HHD!$C:$AX,$J8,COLUMN()-13) -> 141.4 | AG8: =2*INDEX(HHD!$C:$AX,$J8,COLUMN()-13) -> 151.2 | AH8: =2*INDEX(HHD!$C:$AX,$J8,COLUMN()-13) -> 170.2 | AI8: =2*INDEX(HHD!$C:$AX,$J8,COLUMN()-13) -> 188.4 | AJ8: =2*INDEX(HHD!$C:$AX,$J8,COLUMN()-13) -> 184.6 | AK8: =2*INDEX(HHD!$C:$AX,$J8,COLUMN()-13) -> 154.6 | AL8: =2*INDEX(HHD!$C:$AX,$J8,COLUMN()-13) -> 177.2 | AM8: =2*INDEX(HHD!$C:$AX,$J8,COLUMN()-13) -> 164.2 | AN8: =2*INDEX(HHD!$C:$AX,$J8,COLUMN()-13) -> 179.8 | AO8: =2*INDEX(HHD!$C:$AX,$J8,COLUMN()-13) -> 158.2 | AP8: =2*INDEX(HHD!$C:$AX,$J8,COLUMN()-13) -> 167.2 | AQ8: =2*INDEX(HHD!$C:$AX,$J8,COLUMN()-13) -> 165.2 | AR8: =2*INDEX(HHD!$C:$AX,$J8,COLUMN()-13) -> 142.4 | AS8: =2*INDEX(HHD!$C:$AX,$J8,COLUMN()-13) -> 153.8 | AT8: =2*INDEX(HHD!$C:$AX,$J8,COLUMN()-13) -> 130.6 | AU8: =2*INDEX(HHD!$C:$AX,$J8,COLUMN()-13) -> 128.8 | AV8: =2*INDEX(HHD!$C:$AX,$J8,COLUMN()-13) -> 76.2 | AW8: =2*INDEX(HHD!$C:$AX,$J8,COLUMN()-13) -> 63.6 | AX8: =2*INDEX(HHD!$C:$AX,$J8,COLUMN()-13) -> 60.8 | AY8: =2*INDEX(HHD!$C:$AX,$J8,COLUMN()-13) -> 64.6 | AZ8: =2*INDEX(HHD!$C:$AX,$J8,COLUMN()-13) -> 64.2 | BA8: =2*INDEX(HHD!$C:$AX,$J8,COLUMN()-13) -> 67 | BB8: =2*INDEX(HHD!$C:$AX,$J8,COLUMN()-13) -> 63 | BC8: =2*INDEX(HHD!$C:$AX,$J8,COLUMN()-13) -> 57.2 | BD8: =2*INDEX(HHD!$C:$AX,$J8,COLUMN()-13) -> 60.4 | BE8: =2*INDEX(HHD!$C:$AX,$J8,COLUMN()-13) -> 53 | BF8: =2*INDEX(HHD!$C:$AX,$J8,COLUMN()-13) -> 56 | BG8: =2*INDEX(HHD!$C:$AX,$J8,COLUMN()-13) -> 48.2 | BH8: =2*INDEX(HHD!$C:$AX,$J8,COLUMN()-13) -> 50.6 | BI8: =2*INDEX(HHD!$C:$AX,$J8,COLUMN()-13) -> 48
A9: Shift 52 weeks | H9: 2023-02-12 | I9: 7 | J9: =H9-HHD!$A$6+6 -> 778 | K9: 2 | M9: Sun | N9: =2*INDEX(HHD!$C:$AX,$J9,COLUMN()-13) -> 49.2 | O9: =2*INDEX(HHD!$C:$AX,$J9,COLUMN()-13) -> 55.2 | P9: =2*INDEX(HHD!$C:$AX,$J9,COLUMN()-13) -> 54.4 | Q9: =2*INDEX(HHD!$C:$AX,$J9,COLUMN()-13) -> 47.2 | R9: =2*INDEX(HHD!$C:$AX,$J9,COLUMN()-13) -> 49.4 | S9: =2*INDEX(HHD!$C:$AX,$J9,COLUMN()-13) -> 48.6 | T9: =2*INDEX(HHD!$C:$AX,$J9,COLUMN()-13) -> 50.4 | U9: =2*INDEX(HHD!$C:$AX,$J9,COLUMN()-13) -> 51.2 | V9: =2*INDEX(HHD!$C:$AX,$J9,COLUMN()-13) -> 51.6 | W9: =2*INDEX(HHD!$C:$AX,$J9,COLUMN()-13) -> 52.2 | X9: =2*INDEX(HHD!$C:$AX,$J9,COLUMN()-13) -> 49.6 | Y9: =2*INDEX(HHD!$C:$AX,$J9,COLUMN()-13) -> 47.2 | Z9: =2*INDEX(HHD!$C:$AX,$J9,COLUMN()-13) -> 57.2 | AA9: =2*INDEX(HHD!$C:$AX,$J9,COLUMN()-13) -> 51.8 | AB9: =2*INDEX(HHD!$C:$AX,$J9,COLUMN()-13) -> 59.2 | AC9: =2*INDEX(HHD!$C:$AX,$J9,COLUMN()-13) -> 73.8 | AD9: =2*INDEX(HHD!$C:$AX,$J9,COLUMN()-13) -> 96.4 | AE9: =2*INDEX(HHD!$C:$AX,$J9,COLUMN()-13) -> 127.4 | AF9: =2*INDEX(HHD!$C:$AX,$J9,COLUMN()-13) -> 132.2 | AG9: =2*INDEX(HHD!$C:$AX,$J9,COLUMN()-13) -> 137.4 | AH9: =2*INDEX(HHD!$C:$AX,$J9,COLUMN()-13) -> 127.8 | AI9: =2*INDEX(HHD!$C:$AX,$J9,COLUMN()-13) -> 159 | AJ9: =2*INDEX(HHD!$C:$AX,$J9,COLUMN()-13) -> 176.2 | AK9: =2*INDEX(HHD!$C:$AX,$J9,COLUMN()-13) -> 152.2 | AL9: =2*INDEX(HHD!$C:$AX,$J9,COLUMN()-13) -> 151.4 | AM9: =2*INDEX(HHD!$C:$AX,$J9,COLUMN()-13) -> 160.6 | AN9: =2*INDEX(HHD!$C:$AX,$J9,COLUMN()-13) -> 158.8 | AO9: =2*INDEX(HHD!$C:$AX,$J9,COLUMN()-13) -> 171.8 | AP9: =2*INDEX(HHD!$C:$AX,$J9,COLUMN()-13) -> 162 | AQ9: =2*INDEX(HHD!$C:$AX,$J9,COLUMN()-13) -> 175.4 | AR9: =2*INDEX(HHD!$C:$AX,$J9,COLUMN()-13) -> 157.4 | AS9: =2*INDEX(HHD!$C:$AX,$J9,COLUMN()-13) -> 156.2 | AT9: =2*INDEX(HHD!$C:$AX,$J9,COLUMN()-13) -> 143.8 | AU9: =2*INDEX(HHD!$C:$AX,$J9,COLUMN()-13) -> 101.8 | AV9: =2*INDEX(HHD!$C:$AX,$J9,COLUMN()-13) -> 86.8 | AW9: =2*INDEX(HHD!$C:$AX,$J9,COLUMN()-13) -> 70.4 | AX9: =2*INDEX(HHD!$C:$AX,$J9,COLUMN()-13) -> 64 | AY9: =2*INDEX(HHD!$C:$AX,$J9,COLUMN()-13) -> 67.8 | AZ9: =2*INDEX(HHD!$C:$AX,$J9,COLUMN()-13) -> 61.4 | BA9: =2*INDEX(HHD!$C:$AX,$J9,COLUMN()-13) -> 69.2 | BB9: =2*INDEX(HHD!$C:$AX,$J9,COLUMN()-13) -> 65.4 | BC9: =2*INDEX(HHD!$C:$AX,$J9,COLUMN()-13) -> 63 | BD9: =2*INDEX(HHD!$C:$AX,$J9,COLUMN()-13) -> 63.8 | BE9: =2*INDEX(HHD!$C:$AX,$J9,COLUMN()-13) -> 61 | BF9: =2*INDEX(HHD!$C:$AX,$J9,COLUMN()-13) -> 57.2 | BG9: =2*INDEX(HHD!$C:$AX,$J9,COLUMN()-13) -> 53 | BH9: =2*INDEX(HHD!$C:$AX,$J9,COLUMN()-13) -> 57.6 | BI9: =2*INDEX(HHD!$C:$AX,$J9,COLUMN()-13) -> 53.2
L10: Standard Time (eg GMT) | M10: ST | N10: 00:00:00 | O10: 00:30:00 | P10: 01:00:00 | Q10: 01:30:00 | R10: 02:00:00 | S10: 02:30:00 | T10: 03:00:00 | U10: 03:30:00 | V10: 04:00:00 | W10: 04:30:00 | X10: 05:00:00 | Y10: 05:30:00 | Z10: 06:00:00 | AA10: 06:30:00 | AB10: 07:00:00 | AC10: 07:30:00 | AD10: 08:00:00 | AE10: 08:30:00 | AF10: 09:00:00 | AG10: 09:30:00 | AH10: 10:00:00 | AI10: 10:30:00 | AJ10: 11:00:00 | AK10: 11:30:00 | AL10: 12:00:00 | AM10: 12:30:00 | AN10: 13:00:00 | AO10: 13:30:00 | AP10: 14:00:00 | AQ10: 14:30:00 | AR10: 15:00:00 | AS10: 15:30:00 | AT10: 16:00:00 | AU10: 16:30:00 | AV10: 17:00:00 | AW10: 17:30:00 | AX10: 18:00:00 | AY10: 18:30:00 | AZ10: 19:00:00 | BA10: 19:30:00 | BB10: 20:00:00 | BC10: 20:30:00 | BD10: 21:00:00 | BE10: 21:30:00 | BF10: 22:00:00 | BG10: 22:30:00 | BH10: 23:00:00 | BI10: 23:30:00
L11: Daylight Saving Time (eg BST) | M11: DST | N11: 01:00:00 | O11: 01:30:00 | P11: 02:00:00 | Q11: 02:30:00 | R11: 03:00:00 | S11: 03:30:00 | T11: 04:00:00 | U11: 04:30:00 | V11: 05:00:00 | W11: 05:30:00 | X11: 06:00:00 | Y11: 06:30:00 | Z11: 07:00:00 | AA11: 07:30:00 | AB11: 08:00:00 | AC11: 08:30:00 | AD11: 09:00:00 | AE11: 09:30:00 | AF11: 10:00:00 | AG11: 10:30:00 | AH11: 11:00:00 | AI11: 11:30:00 | AJ11: 12:00:00 | AK11: 12:30:00 | AL11: 13:00:00 | AM11: 13:30:00 | AN11: 14:00:00 | AO11: 14:30:00 | AP11: 15:00:00 | AQ11: 15:30:00 | AR11: 16:00:00 | AS11: 16:30:00 | AT11: 17:00:00 | AU11: 17:30:00 | AV11: 18:00:00 | AW11: 18:30:00 | AX11: 19:00:00 | AY11: 19:30:00 | AZ11: 20:00:00 | BA11: 20:30:00 | BB11: 21:00:00 | BC11: 21:30:00 | BD11: 22:00:00 | BE11: 22:30:00 | BF11: 23:00:00 | BG11: 23:30:00 | BH11: 00:00:00 | BI11: 00:30:00
A13: Week
A14: begins
A15: Monday | M15: To set a fixed axis maximum kW or use the automatic value:
A16: =H3 -> 2023-02-06 | M16: Enter the value here to fix the axis maximum kW, or
A17: =H3 -> 2023-02-06 | M17: delete (leave blank) to use the automatic value.
M18: Then hit Return and click Set Max.
M20: Select the supply that is to be charted (enter A to F) | R20: A
A21: =N21 -> Example Supply One | M21: Name: | N21: =INDEX(N$25:N$30,MATCH($R$20,$M$25:$M$30,0)) -> Example Supply One | Q21: Max kW: | R21: =INDEX(Q$25:Q$30,MATCH($R$20,$M$25:$M$30,0)) -> 250
M22: then optionally click to reset the chart maximum
N23: Optional supply details (user to enter these):
N24: Name | Q24: Maximum kW
M25: A | N25: Example Supply One | Q25: 250
M26: B | N26: Example Supply Two | Q26: 120
M27: C | N27: Example Supply Three | Q27: 300
M28: D | N28: (no kWh data)
M29: E | N29: (no kWh data)
M30: F | N30: (no kWh data)
A33: Clock time | M33: Chart title: | N33: =IF($T$16,"kW/1000m2 profile - week from Monday ","Electricity kW profile - week from Monday ")&TEXT(H3,"dd/mm/yyyy") -> Electricity kW profile - week from Monday 06/02/2023
A34: =IF($M$2="DST","(DST)","") ->  | M34: Daylight Saving Time (DST) or Standard Time (ST):
M35: Does the kWh data file use Standard Time (eg GMT) all year?
M36: Enter Yes (as is normal) or No | R36: Yes
M37: If Yes, the chart time axis labels are shifted to match DST

Sheet PowerMapMonth
B1: =Week!$N$21 -> Example Supply One
B2: POWER MAP | M2: =TEXT(M3,"mmmm")&" "&TEXT(YEAR(M3),"0") -> February 2023 | AU2: =TEXT(AU3,"mmmm")&" "&TEXT(YEAR(AU3),"0") -> March 2023
B3: The kW power demand at any time is shown by its colour and as grey text | M3: =Week!$H$3-D58 -> 2023-02-06 | N3: =M3+1 -> 2023-02-07 | O3: =N3+1 -> 2023-02-08 | P3: 2023-02-09 | Q3: 2023-02-10 | R3: 2023-02-11 | S3: 2023-02-12 | T3: 2023-02-13 | U3: 2023-02-14 | V3: 2023-02-15 | W3: 2023-02-16 | X3: 2023-02-17 | Y3: 2023-02-18 | Z3: 2023-02-19 | AA3: 2023-02-20 | AB3: 2023-02-21 | AC3: 2023-02-22 | AD3: 2023-02-23 | AE3: 2023-02-24 | AF3: 2023-02-25 | AG3: 2023-02-26 | AH3: 2023-02-27 | AI3: 2023-02-28 | AJ3: 2023-03-01 | AK3: 2023-03-02 | AL3: 2023-03-03 | AM3: 2023-03-04 | AN3: 2023-03-05 | AO3: 2023-03-06 | AP3: 2023-03-07 | AQ3: 2023-03-08 | AR3: 2023-03-09 | AS3: 2023-03-10 | AT3: 2023-03-11 | AU3: 2023-03-12
J4: ="First week Local Time: "&Week!$M$2 -> First week Local Time: ST
J5: =Week!$N$2 -> 00:00:00 | M5: =IF(INDEX(HHD!$C:$AX,Week!$J$3+COLUMN()-13,ROW()-4)=0,"",2*INDEX(HHD!$C:$AX,Week!$J$3+COLUMN()-13,ROW()-4)) -> 52.6 | N5: =IF(INDEX(HHD!$C:$AX,Week!$J$3+COLUMN()-13,ROW()-4)=0,"",2*INDEX(HHD!$C:$AX,Week!$J$3+COLUMN()-13,ROW()-4)) -> 51 | O5: =IF(INDEX(HHD!$C:$AX,Week!$J$3+COLUMN()-13,ROW()-4)=0,"",2*INDEX(HHD!$C:$AX,Week!$J$3+COLUMN()-13,ROW()-4)) -> 47 | P5: =IF(INDEX(HHD!$C:$AX,Week!$J$3+COLUMN()-13,ROW()-4)=0,"",2*INDEX(HHD!$C:$AX,Week!$J$3+COLUMN()-13,ROW()-4)) -> 44.8 | Q5: =IF(INDEX(HHD!$C:$AX,Week!$J$3+COLUMN()-13,ROW()-4)=0,"",2*INDEX(HHD!$C:$AX,Week!$J$3+COLUMN()-13,ROW()-4)) -> 44.8 | R5: =IF(INDEX(HHD!$C:$AX,Week!$J$3+COLUMN()-13,ROW()-4)=0,"",2*INDEX(HHD!$C:$AX,Week!$J$3+COLUMN()-13,ROW()-4)) -> 49.2 | S5: =IF(INDEX(HHD!$C:$AX,Week!$J$3+COLUMN()-13,ROW()-4)=0,"",2*INDEX(HHD!$C:$AX,Week!$J$3+COLUMN()-13,ROW()-4)) -> 49.2 | T5: =IF(INDEX(HHD!$C:$AX,Week!$J$3+COLUMN()-13,ROW()-4)=0,"",2*INDEX(HHD!$C:$AX,Week!$J$3+COLUMN()-13,ROW()-4)) -> 57 | U5: =IF(INDEX(HHD!$C:$AX,Week!$J$3+COLUMN()-13,ROW()-4)=0,"",2*INDEX(HHD!$C:$AX,Week!$J$3+COLUMN()-13,ROW()-4)) -> 47.6 | V5: =IF(INDEX(HHD!$C:$AX,Week!$J$3+COLUMN()-13,ROW()-4)=0,"",2*INDEX(HHD!$C:$AX,Week!$J$3+COLUMN()-13,ROW()-4)) -> 51 | W5: =IF(INDEX(HHD!$C:$AX,Week!$J$3+COLUMN()-13,ROW()-4)=0,"",2*INDEX(HHD!$C:$AX,Week!$J$3+COLUMN()-13,ROW()-4)) -> 42.4 | X5: =IF(INDEX(HHD!$C:$AX,Week!$J$3+COLUMN()-13,ROW()-4)=0,"",2*INDEX(HHD!$C:$AX,Week!$J$3+COLUMN()-13,ROW()-4)) -> 44.8 | Y5: =IF(INDEX(HHD!$C:$AX,Week!$J$3+COLUMN()-13,ROW()-4)=0,"",2*INDEX(HHD!$C:$AX,Week!$J$3+COLUMN()-13,ROW()-4)) -> 44.8 | Z5: =IF(INDEX(HHD!$C:$AX,Week!$J$3+COLUMN()-13,ROW()-4)=0,"",2*INDEX(HHD!$C:$AX,Week!$J$3+COLUMN()-13,ROW()-4)) -> 53 | AA5: =IF(INDEX(HHD!$C:$AX,Week!$J$3+COLUMN()-13,ROW()-4)=0,"",2*INDEX(HHD!$C:$AX,Week!$J$3+COLUMN()-13,ROW()-4)) -> 51.8 | AB5: =IF(INDEX(HHD!$C:$AX,Week!$J$3+COLUMN()-13,ROW()-4)=0,"",2*INDEX(HHD!$C:$AX,Week!$J$3+COLUMN()-13,ROW()-4)) -> 49.6 | AC5: =IF(INDEX(HHD!$C:$AX,Week!$J$3+COLUMN()-13,ROW()-4)=0,"",2*INDEX(HHD!$C:$AX,Week!$J$3+COLUMN()-13,ROW()-4)) -> 48.4 | AD5: =IF(INDEX(HHD!$C:$AX,Week!$J$3+COLUMN()-13,ROW()-4)=0,"",2*INDEX(HHD!$C:$AX,Week!$J$3+COLUMN()-13,ROW()-4)) -> 55.6 | AE5: =IF(INDEX(HHD!$C:$AX,Week!$J$3+COLUMN()-13,ROW()-4)=0,"",2*INDEX(HHD!$C:$AX,Week!$J$3+COLUMN()-13,ROW()-4)) -> 56.2 | AF5: =IF(INDEX(HHD!$C:$AX,Week!$J$3+COLUMN()-13,ROW()-4)=0,"",2*INDEX(HHD!$C:$AX,Week!$J$3+COLUMN()-13,ROW()-4)) -> 50.4 | AG5: =IF(INDEX(HHD!$C:$AX,Week!$J$3+COLUMN()-13,ROW()-4)=0,"",2*INDEX(HHD!$C:$AX,Week!$J$3+COLUMN()-13,ROW()-4)) -> 54.4 | AH5: =IF(INDEX(HHD!$C:$AX,Week!$J$3+COLUMN()-13,ROW()-4)=0,"",2*INDEX(HHD!$C:$AX,Week!$J$3+COLUMN()-13,ROW()-4)) -> 54.6 | AI5: =IF(INDEX(HHD!$C:$AX,Week!$J$3+COLUMN()-13,ROW()-4)=0,"",2*INDEX(HHD!$C:$AX,Week!$J$3+COLUMN()-13,ROW()-4)) -> 47.2 | AJ5: =IF(INDEX(HHD!$C:$AX,Week!$J$3+COLUMN()-13,ROW()-4)=0,"",2*INDEX(HHD!$C:$AX,Week!$J$3+COLUMN()-13,ROW()-4)) -> 48 | AK5: =IF(INDEX(HHD!$C:$AX,Week!$J$3+COLUMN()-13,ROW()-4)=0,"",2*INDEX(HHD!$C:$AX,Week!$J$3+COLUMN()-13,ROW()-4)) -> 53.8 | AL5: =IF(INDEX(HHD!$C:$AX,Week!$J$3+COLUMN()-13,ROW()-4)=0,"",2*INDEX(HHD!$C:$AX,Week!$J$3+COLUMN()-13,ROW()-4)) -> 46.2 | AM5: =IF(INDEX(HHD!$C:$AX,Week!$J$3+COLUMN()-13,ROW()-4)=0,"",2*INDEX(HHD!$C:$AX,Week!$J$3+COLUMN()-13,ROW()-4)) -> 57.2 | AN5: =IF(INDEX(HHD!$C:$AX,Week!$J$3+COLUMN()-13,ROW()-4)=0,"",2*INDEX(HHD!$C:$AX,Week!$J$3+COLUMN()-13,ROW()-4)) -> 47.2 | AO5: =IF(INDEX(HHD!$C:$AX,Week!$J$3+COLUMN()-13,ROW()-4)=0,"",2*INDEX(HHD!$C:$AX,Week!$J$3+COLUMN()-13,ROW()-4)) -> 64 | AP5: =IF(INDEX(HHD!$C:$AX,Week!$J$3+COLUMN()-13,ROW()-4)=0,"",2*INDEX(HHD!$C:$AX,Week!$J$3+COLUMN()-13,ROW()-4)) -> 45.6 | AQ5: =IF(INDEX(HHD!$C:$AX,Week!$J$3+COLUMN()-13,ROW()-4)=0,"",2*INDEX(HHD!$C:$AX,Week!$J$3+COLUMN()-13,ROW()-4)) -> 55.4 | AR5: =IF(INDEX(HHD!$C:$AX,Week!$J$3+COLUMN()-13,ROW()-4)=0,"",2*INDEX(HHD!$C:$AX,Week!$J$3+COLUMN()-13,ROW()-4)) -> 56 | AS5: =IF(INDEX(HHD!$C:$AX,Week!$J$3+COLUMN()-13,ROW()-4)=0,"",2*INDEX(HHD!$C:$AX,Week!$J$3+COLUMN()-13,ROW()-4)) -> 48.4 | AT5: =IF(INDEX(HHD!$C:$AX,Week!$J$3+COLUMN()-13,ROW()-4)=0,"",2*INDEX(HHD!$C:$AX,Week!$J$3+COLUMN()-13,ROW()-4)) -> 52.6 | AU5: =IF(INDEX(HHD!$C:$AX,Week!$J$3+COLUMN()-13,ROW()-4)=0,"",2*INDEX(HHD!$C:$AX,Week!$J$3+COLUMN()-13,ROW()-4)) -> 49.8
J6: =J5+1/48 -> 00:30:00 | M6: =IF(INDEX(HHD!$C:$AX,Week!$J$3+COLUMN()-13,ROW()-4)=0,"",2*INDEX(HHD!$C:$AX,Week!$J$3+COLUMN()-13,ROW()-4)) -> 48.2 | N6: =IF(INDEX(HHD!$C:$AX,Week!$J$3+COLUMN()-13,ROW()-4)=0,"",2*INDEX(HHD!$C:$AX,Week!$J$3+COLUMN()-13,ROW()-4)) -> 46.8 | O6: =IF(INDEX(HHD!$C:$AX,Week!$J$3+COLUMN()-13,ROW()-4)=0,"",2*INDEX(HHD!$C:$AX,Week!$J$3+COLUMN()-13,ROW()-4)) -> 47.2 | P6: =IF(INDEX(HHD!$C:$AX,Week!$J$3+COLUMN()-13,ROW()-4)=0,"",2*INDEX(HHD!$C:$AX,Week!$J$3+COLUMN()-13,ROW()-4)) -> 54.4 | Q6: =IF(INDEX(HHD!$C:$AX,Week!$J$3+COLUMN()-13,ROW()-4)=0,"",2*INDEX(HHD!$C:$AX,Week!$J$3+COLUMN()-13,ROW()-4)) -> 50.8 | R6: =IF(INDEX(HHD!$C:$AX,Week!$J$3+COLUMN()-13,ROW()-4)=0,"",2*INDEX(HHD!$C:$AX,Week!$J$3+COLUMN()-13,ROW()-4)) -> 48.4 | S6: =IF(INDEX(HHD!$C:$AX,Week!$J$3+COLUMN()-13,ROW()-4)=0,"",2*INDEX(HHD!$C:$AX,Week!$J$3+COLUMN()-13,ROW()-4)) -> 55.2 | T6: =IF(INDEX(HHD!$C:$AX,Week!$J$3+COLUMN()-13,ROW()-4)=0,"",2*INDEX(HHD!$C:$AX,Week!$J$3+COLUMN()-13,ROW()-4)) -> 54.8 | U6: =IF(INDEX(HHD!$C:$AX,Week!$J$3+COLUMN()-13,ROW()-4)=0,"",2*INDEX(HHD!$C:$AX,Week!$J$3+COLUMN()-13,ROW()-4)) -> 53 | V6: =IF(INDEX(HHD!$C:$AX,Week!$J$3+COLUMN()-13,ROW()-4)=0,"",2*INDEX(HHD!$C:$AX,Week!$J$3+COLUMN()-13,ROW()-4)) -> 45 | W6: =IF(INDEX(HHD!$C:$AX,Week!$J$3+COLUMN()-13,ROW()-4)=0,"",2*INDEX(HHD!$C:$AX,Week!$J$3+COLUMN()-13,ROW()-4)) -> 46.8 | X6: =IF(INDEX(HHD!$C:$AX,Week!$J$3+COLUMN()-13,ROW()-4)=0,"",2*INDEX(HHD!$C:$AX,Week!$J$3+COLUMN()-13,ROW()-4)) -> 40.8 | Y6: =IF(INDEX(HHD!$C:$AX,Week!$J$3+COLUMN()-13,ROW()-4)=0,"",2*INDEX(HHD!$C:$AX,Week!$J$3+COLUMN()-13,ROW()-4)) -> 46.2 | Z6: =IF(INDEX(HHD!$C:$AX,Week!$J$3+COLUMN()-13,ROW()-4)=0,"",2*INDEX(HHD!$C:$AX,Week!$J$3+COLUMN()-13,ROW()-4)) -> 49 | AA6: =IF(INDEX(HHD!$C:$AX,Week!$J$3+COLUMN()-13,ROW()-4)=0,"",2*INDEX(HHD!$C:$AX,Week!$J$3+COLUMN()-13,ROW()-4)) -> 53.4 | AB6: =IF(INDEX(HHD!$C:$AX,Week!$J$3+COLUMN()-13,ROW()-4)=0,"",2*INDEX(HHD!$C:$AX,Week!$J$3+COLUMN()-13,ROW()-4)) -> 51.6 | AC6: =IF(INDEX(HHD!$C:$AX,Week!$J$3+COLUMN()-13,ROW()-4)=0,"",2*INDEX(HHD!$C:$AX,Week!$J$3+COLUMN()-13,ROW()-4)) -> 50.6 | AD6: =IF(INDEX(HHD!$C:$AX,Week!$J$3+COLUMN()-13,ROW()-4)=0,"",2*INDEX(HHD!$C:$AX,Week!$J$3+COLUMN()-13,ROW()-4)) -> 61.8 | AE6: =IF(INDEX(HHD!$C:$AX,Week!$J$3+COLUMN()-13,ROW()-4)=0,"",2*INDEX(HHD!$C:$AX,Week!$J$3+COLUMN()-13,ROW()-4)) -> 47.8 | AF6: =IF(INDEX(HHD!$C:$AX,Week!$J$3+COLUMN()-13,ROW()-4)=0,"",2*INDEX(HHD!$C:$AX,Week!$J$3+COLUMN()-13,ROW()-4)) -> 49 | AG6: =IF(INDEX(HHD!$C:$AX,Week!$J$3+COLUMN()-13,ROW()-4)=0,"",2*INDEX(HHD!$C:$AX,Week!$J$3+COLUMN()-13,ROW()-4)) -> 49.4 | AH6: =IF(INDEX(HHD!$C:$AX,Week!$J$3+COLUMN()-13,ROW()-4)=0,"",2*INDEX(HHD!$C:$AX,Week!$J$3+COLUMN()-13,ROW()-4)) -> 60.2 | AI6: =IF(INDEX(HHD!$C:$AX,Week!$J$3+COLUMN()-13,ROW()-4)=0,"",2*INDEX(HHD!$C:$AX,Week!$J$3+COLUMN()-13,ROW()-4)) -> 53.2 | AJ6: =IF(INDEX(HHD!$C:$AX,Week!$J$3+COLUMN()-13,ROW()-4)=0,"",2*INDEX(HHD!$C:$AX,Week!$J$3+COLUMN()-13,ROW()-4)) -> 51 | AK6: =IF(INDEX(HHD!$C:$AX,Week!$J$3+COLUMN()-13,ROW()-4)=0,"",2*INDEX(HHD!$C:$AX,Week!$J$3+COLUMN()-13,ROW()-4)) -> 52 | AL6: =IF(INDEX(HHD!$C:$AX,Week!$J$3+COLUMN()-13,ROW()-4)=0,"",2*INDEX(HHD!$C:$AX,Week!$J$3+COLUMN()-13,ROW()-4)) -> 52.6 | AM6: =IF(INDEX(HHD!$C:$AX,Week!$J$3+COLUMN()-13,ROW()-4)=0,"",2*INDEX(HHD!$C:$AX,Week!$J$3+COLUMN()-13,ROW()-4)) -> 49 | AN6: =IF(INDEX(HHD!$C:$AX,Week!$J$3+COLUMN()-13,ROW()-4)=0,"",2*INDEX(HHD!$C:$AX,Week!$J$3+COLUMN()-13,ROW()-4)) -> 50.6 | AO6: =IF(INDEX(HHD!$C:$AX,Week!$J$3+COLUMN()-13,ROW()-4)=0,"",2*INDEX(HHD!$C:$AX,Week!$J$3+COLUMN()-13,ROW()-4)) -> 56.2 | AP6: =IF(INDEX(HHD!$C:$AX,Week!$J$3+COLUMN()-13,ROW()-4)=0,"",2*INDEX(HHD!$C:$AX,Week!$J$3+COLUMN()-13,ROW()-4)) -> 51.4 | AQ6: =IF(INDEX(HHD!$C:$AX,Week!$J$3+COLUMN()-13,ROW()-4)=0,"",2*INDEX(HHD!$C:$AX,Week!$J$3+COLUMN()-13,ROW()-4)) -> 52 | AR6: =IF(INDEX(HHD!$C:$AX,Week!$J$3+COLUMN()-13,ROW()-4)=0,"",2*INDEX(HHD!$C:$AX,Week!$J$3+COLUMN()-13,ROW()-4)) -> 55 | AS6: =IF(INDEX(HHD!$C:$AX,Week!$J$3+COLUMN()-13,ROW()-4)=0,"",2*INDEX(HHD!$C:$AX,Week!$J$3+COLUMN()-13,ROW()-4)) -> 51.2 | AT6: =IF(INDEX(HHD!$C:$AX,Week!$J$3+COLUMN()-13,ROW()-4)=0,"",2*INDEX(HHD!$C:$AX,Week!$J$3+COLUMN()-13,ROW()-4)) -> 51.2 | AU6: =IF(INDEX(HHD!$C:$AX,Week!$J$3+COLUMN()-13,ROW()-4)=0,"",2*INDEX(HHD!$C:$AX,Week!$J$3+COLUMN()-13,ROW()-4)) -> 48.8
C7: Change start date | J7: 01:00:00 | M7: =IF(INDEX(HHD!$C:$AX,Week!$J$3+COLUMN()-13,ROW()-4)=0,"",2*INDEX(HHD!$C:$AX,Week!$J$3+COLUMN()-13,ROW()-4)) -> 55.8 | N7: =IF(INDEX(HHD!$C:$AX,Week!$J$3+COLUMN()-13,ROW()-4)=0,"",2*INDEX(HHD!$C:$AX,Week!$J$3+COLUMN()-13,ROW()-4)) -> 51.2 | O7: =IF(INDEX(HHD!$C:$AX,Week!$J$3+COLUMN()-13,ROW()-4)=0,"",2*INDEX(HHD!$C:$AX,Week!$J$3+COLUMN()-13,ROW()-4)) -> 54 | P7: =IF(INDEX(HHD!$C:$AX,Week!$J$3+COLUMN()-13,ROW()-4)=0,"",2*INDEX(HHD!$C:$AX,Week!$J$3+COLUMN()-13,ROW()-4)) -> 51 | Q7: =IF(INDEX(HHD!$C:$AX,Week!$J$3+COLUMN()-13,ROW()-4)=0,"",2*INDEX(HHD!$C:$AX,Week!$J$3+COLUMN()-13,ROW()-4)) -> 50 | R7: =IF(INDEX(HHD!$C:$AX,Week!$J$3+COLUMN()-13,ROW()-4)=0,"",2*INDEX(HHD!$C:$AX,Week!$J$3+COLUMN()-13,ROW()-4)) -> 54.6 | S7: =IF(INDEX(HHD!$C:$AX,Week!$J$3+COLUMN()-13,ROW()-4)=0,"",2*INDEX(HHD!$C:$AX,Week!$J$3+COLUMN()-13,ROW()-4)) -> 54.4 | T7: =IF(INDEX(HHD!$C:$AX,Week!$J$3+COLUMN()-13,ROW()-4)=0,"",2*INDEX(HHD!$C:$AX,Week!$J$3+COLUMN()-13,ROW()-4)) -> 59.2 | U7: =IF(INDEX(HHD!$C:$AX,Week!$J$3+COLUMN()-13,ROW()-4)=0,"",2*INDEX(HHD!$C:$AX,Week!$J$3+COLUMN()-13,ROW()-4)) -> 44 | V7: =IF(INDEX(HHD!$C:$AX,Week!$J$3+COLUMN()-13,ROW()-4)=0,"",2*INDEX(HHD!$C:$AX,Week!$J$3+COLUMN()-13,ROW()-4)) -> 53 | W7: =IF(INDEX(HHD!$C:$AX,Week!$J$3+COLUMN()-13,ROW()-4)=0,"",2*INDEX(HHD!$C:$AX,Week!$J$3+COLUMN()-13,ROW()-4)) -> 44.8 | X7: =IF(INDEX(HHD!$C:$AX,Week!$J$3+COLUMN()-13,ROW()-4)=0,"",2*INDEX(HHD!$C:$AX,Week!$J$3+COLUMN()-13,ROW()-4)) -> 44 | Y7: =IF(INDEX(HHD!$C:$AX,Week!$J$3+COLUMN()-13,ROW()-4)=0,"",2*INDEX(HHD!$C:$AX,Week!$J$3+COLUMN()-13,ROW()-4)) -> 40.4 | Z7: =IF(INDEX(HHD!$C:$AX,Week!$J$3+COLUMN()-13,ROW()-4)=0,"",2*INDEX(HHD!$C:$AX,Week!$J$3+COLUMN()-13,ROW()-4)) -> 48 | AA7: =IF(INDEX(HHD!$C:$AX,Week!$J$3+COLUMN()-13,ROW()-4)=0,"",2*INDEX(HHD!$C:$AX,Week!$J$3+COLUMN()-13,ROW()-4)) -> 55 | AB7: =IF(INDEX(HHD!$C:$AX,Week!$J$3+COLUMN()-13,ROW()-4)=0,"",2*INDEX(HHD!$C:$AX,Week!$J$3+COLUMN()-13,ROW()-4)) -> 49.4 | AC7: =IF(INDEX(HHD!$C:$AX,Week!$J$3+COLUMN()-13,ROW()-4)=0,"",2*INDEX(HHD!$C:$AX,Week!$J$3+COLUMN()-13,ROW()-4)) -> 47 | AD7: =IF(INDEX(HHD!$C:$AX,Week!$J$3+COLUMN()-13,ROW()-4)=0,"",2*INDEX(HHD!$C:$AX,Week!$J$3+COLUMN()-13,ROW()-4)) -> 57.4 | AE7: =IF(INDEX(HHD!$C:$AX,Week!$J$3+COLUMN()-13,ROW()-4)=0,"",2*INDEX(HHD!$C:$AX,Week!$J$3+COLUMN()-13,ROW()-4)) -> 55.8 | AF7: =IF(INDEX(HHD!$C:$AX,Week!$J$3+COLUMN()-13,ROW()-4)=0,"",2*INDEX(HHD!$C:$AX,Week!$J$3+COLUMN()-13,ROW()-4)) -> 49.2 | AG7: =IF(INDEX(HHD!$C:$AX,Week!$J$3+COLUMN()-13,ROW()-4)=0,"",2*INDEX(HHD!$C:$AX,Week!$J$3+COLUMN()-13,ROW()-4)) -> 49 | AH7: =IF(INDEX(HHD!$C:$AX,Week!$J$3+COLUMN()-13,ROW()-4)=0,"",2*INDEX(HHD!$C:$AX,Week!$J$3+COLUMN()-13,ROW()-4)) -> 58.8 | AI7: =IF(INDEX(HHD!$C:$AX,Week!$J$3+COLUMN()-13,ROW()-4)=0,"",2*INDEX(HHD!$C:$AX,Week!$J$3+COLUMN()-13,ROW()-4)) -> 50 | AJ7: =IF(INDEX(HHD!$C:$AX,Week!$J$3+COLUMN()-13,ROW()-4)=0,"",2*INDEX(HHD!$C:$AX,Week!$J$3+COLUMN()-13,ROW()-4)) -> 55.4 | AK7: =IF(INDEX(HHD!$C:$AX,Week!$J$3+COLUMN()-13,ROW()-4)=0,"",2*INDEX(HHD!$C:$AX,Week!$J$3+COLUMN()-13,ROW()-4)) -> 59.2 | AL7: =IF(INDEX(HHD!$C:$AX,Week!$J$3+COLUMN()-13,ROW()-4)=0,"",2*INDEX(HHD!$C:$AX,Week!$J$3+COLUMN()-13,ROW()-4)) -> 50.6 | AM7: =IF(INDEX(HHD!$C:$AX,Week!$J$3+COLUMN()-13,ROW()-4)=0,"",2*INDEX(HHD!$C:$AX,Week!$J$3+COLUMN()-13,ROW()-4)) -> 47.2 | AN7: =IF(INDEX(HHD!$C:$AX,Week!$J$3+COLUMN()-13,ROW()-4)=0,"",2*INDEX(HHD!$C:$AX,Week!$J$3+COLUMN()-13,ROW()-4)) -> 50.2 | AO7: =IF(INDEX(HHD!$C:$AX,Week!$J$3+COLUMN()-13,ROW()-4)=0,"",2*INDEX(HHD!$C:$AX,Week!$J$3+COLUMN()-13,ROW()-4)) -> 55.2 | AP7: =IF(INDEX(HHD!$C:$AX,Week!$J$3+COLUMN()-13,ROW()-4)=0,"",2*INDEX(HHD!$C:$AX,Week!$J$3+COLUMN()-13,ROW()-4)) -> 50.8 | AQ7: =IF(INDEX(HHD!$C:$AX,Week!$J$3+COLUMN()-13,ROW()-4)=0,"",2*INDEX(HHD!$C:$AX,Week!$J$3+COLUMN()-13,ROW()-4)) -> 55.2 | AR7: =IF(INDEX(HHD!$C:$AX,Week!$J$3+COLUMN()-13,ROW()-4)=0,"",2*INDEX(HHD!$C:$AX,Week!$J$3+COLUMN()-13,ROW()-4)) -> 55 | AS7: =IF(INDEX(HHD!$C:$AX,Week!$J$3+COLUMN()-13,ROW()-4)=0,"",2*INDEX(HHD!$C:$AX,Week!$J$3+COLUMN()-13,ROW()-4)) -> 58.2 | AT7: =IF(INDEX(HHD!$C:$AX,Week!$J$3+COLUMN()-13,ROW()-4)=0,"",2*INDEX(HHD!$C:$AX,Week!$J$3+COLUMN()-13,ROW()-4)) -> 53.8 | AU7: =IF(INDEX(HHD!$C:$AX,Week!$J$3+COLUMN()-13,ROW()-4)=0,"",2*INDEX(HHD!$C:$AX,Week!$J$3+COLUMN()-13,ROW()-4)) -> 46
J8: 01:30:00 | M8: =IF(INDEX(HHD!$C:$AX,Week!$J$3+COLUMN()-13,ROW()-4)=0,"",2*INDEX(HHD!$C:$AX,Week!$J$3+COLUMN()-13,ROW()-4)) -> 54.2 | N8: =IF(INDEX(HHD!$C:$AX,Week!$J$3+COLUMN()-13,ROW()-4)=0,"",2*INDEX(HHD!$C:$AX,Week!$J$3+COLUMN()-13,ROW()-4)) -> 54.4 | O8: =IF(INDEX(HHD!$C:$AX,Week!$J$3+COLUMN()-13,ROW()-4)=0,"",2*INDEX(HHD!$C:$AX,Week!$J$3+COLUMN()-13,ROW()-4)) -> 53.6 | P8: =IF(INDEX(HHD!$C:$AX,Week!$J$3+COLUMN()-13,ROW()-4)=0,"",2*INDEX(HHD!$C:$AX,Week!$J$3+COLUMN()-13,ROW()-4)) -> 52.4 | Q8: =IF(INDEX(HHD!$C:$AX,Week!$J$3+COLUMN()-13,ROW()-4)=0,"",2*INDEX(HHD!$C:$AX,Week!$J$3+COLUMN()-13,ROW()-4)) -> 46.8 | R8: =IF(INDEX(HHD!$C:$AX,Week!$J$3+COLUMN()-13,ROW()-4)=0,"",2*INDEX(HHD!$C:$AX,Week!$J$3+COLUMN()-13,ROW()-4)) -> 45.8 | S8: =IF(INDEX(HHD!$C:$AX,Week!$J$3+COLUMN()-13,ROW()-4)=0,"",2*INDEX(HHD!$C:$AX,Week!$J$3+COLUMN()-13,ROW()-4)) -> 47.2 | T8: =IF(INDEX(HHD!$C:$AX,Week!$J$3+COLUMN()-13,ROW()-4)=0,"",2*INDEX(HHD!$C:$AX,Week!$J$3+COLUMN()-13,ROW()-4)) -> 61.8 | U8: =IF(INDEX(HHD!$C:$AX,Week!$J$3+COLUMN()-13,ROW()-4)=0,"",2*INDEX(HHD!$C:$AX,Week!$J$3+COLUMN()-13,ROW()-4)) -> 54.8 | V8: =IF(INDEX(HHD!$C:$AX,Week!$J$3+COLUMN()-13,ROW()-4)=0,"",2*INDEX(HHD!$C:$AX,Week!$J$3+COLUMN()-13,ROW()-4)) -> 51 | W8: =IF(INDEX(HHD!$C:$AX,Week!$J$3+COLUMN()-13,ROW()-4)=0,"",2*INDEX(HHD!$C:$AX,Week!$J$3+COLUMN()-13,ROW()-4)) -> 42.6 | X8: =IF(INDEX(HHD!$C:$AX,Week!$J$3+COLUMN()-13,ROW()-4)=0,"",2*INDEX(HHD!$C:$AX,Week!$J$3+COLUMN()-13,ROW()-4)) -> 47.6 | Y8: =IF(INDEX(HHD!$C:$AX,Week!$J$3+COLUMN()-13,ROW()-4)=0,"",2*INDEX(HHD!$C:$AX,Week!$J$3+COLUMN()-13,ROW()-4)) -> 44 | Z8: =IF(INDEX(HHD!$C:$AX,Week!$J$3+COLUMN()-13,ROW()-4)=0,"",2*INDEX(HHD!$C:$AX,Week!$J$3+COLUMN()-13,ROW()-4)) -> 50.8 | AA8: =IF(INDEX(HHD!$C:$AX,Week!$J$3+COLUMN()-13,ROW()-4)=0,"",2*INDEX(HHD!$C:$AX,Week!$J$3+COLUMN()-13,ROW()-4)) -> 54.4 | AB8: =IF(INDEX(HHD!$C:$AX,Week!$J$3+COLUMN()-13,ROW()-4)=0,"",2*INDEX(HHD!$C:$AX,Week!$J$3+COLUMN()-13,ROW()-4)) -> 48 | AC8: =IF(INDEX(HHD!$C:$AX,Week!$J$3+COLUMN()-13,ROW()-4)=0,"",2*INDEX(HHD!$C:$AX,Week!$J$3+COLUMN()-13,ROW()-4)) -> 51 | AD8: =IF(INDEX(HHD!$C:$AX,Week!$J$3+COLUMN()-13,ROW()-4)=0,"",2*INDEX(HHD!$C:$AX,Week!$J$3+COLUMN()-13,ROW()-4)) -> 60.6 | AE8: =IF(INDEX(HHD!$C:$AX,Week!$J$3+COLUMN()-13,ROW()-4)=0,"",2*INDEX(HHD!$C:$AX,Week!$J$3+COLUMN()-13,ROW()-4)) -> 52.6 | AF8: =IF(INDEX(HHD!$C:$AX,Week!$J$3+COLUMN()-13,ROW()-4)=0,"",2*INDEX(HHD!$C:$AX,Week!$J$3+COLUMN()-13,ROW()-4)) -> 48.8 | AG8: =IF(INDEX(HHD!$C:$AX,Week!$J$3+COLUMN()-13,ROW()-4)=0,"",2*INDEX(HHD!$C:$AX,Week!$J$3+COLUMN()-13,ROW()-4)) -> 48.2 | AH8: =IF(INDEX(HHD!$C:$AX,Week!$J$3+COLUMN()-13,ROW()-4)=0,"",2*INDEX(HHD!$C:$AX,Week!$J$3+COLUMN()-13,ROW()-4)) -> 47.4 | AI8: =IF(INDEX(HHD!$C:$AX,Week!$J$3+COLUMN()-13,ROW()-4)=0,"",2*INDEX(HHD!$C:$AX,Week!$J$3+COLUMN()-13,ROW()-4)) -> 51.6 | AJ8: =IF(INDEX(HHD!$C:$AX,Week!$J$3+COLUMN()-13,ROW()-4)=0,"",2*INDEX(HHD!$C:$AX,Week!$J$3+COLUMN()-13,ROW()-4)) -> 54.4 | AK8: =IF(INDEX(HHD!$C:$AX,Week!$J$3+COLUMN()-13,ROW()-4)=0,"",2*INDEX(HHD!$C:$AX,Week!$J$3+COLUMN()-13,ROW()-4)) -> 58 | AL8: =IF(INDEX(HHD!$C:$AX,Week!$J$3+COLUMN()-13,ROW()-4)=0,"",2*INDEX(HHD!$C:$AX,Week!$J$3+COLUMN()-13,ROW()-4)) -> 50 | AM8: =IF(INDEX(HHD!$C:$AX,Week!$J$3+COLUMN()-13,ROW()-4)=0,"",2*INDEX(HHD!$C:$AX,Week!$J$3+COLUMN()-13,ROW()-4)) -> 53.6 | AN8: =IF(INDEX(HHD!$C:$AX,Week!$J$3+COLUMN()-13,ROW()-4)=0,"",2*INDEX(HHD!$C:$AX,Week!$J$3+COLUMN()-13,ROW()-4)) -> 51.4 | AO8: =IF(INDEX(HHD!$C:$AX,Week!$J$3+COLUMN()-13,ROW()-4)=0,"",2*INDEX(HHD!$C:$AX,Week!$J$3+COLUMN()-13,ROW()-4)) -> 62.4 | AP8: =IF(INDEX(HHD!$C:$AX,Week!$J$3+COLUMN()-13,ROW()-4)=0,"",2*INDEX(HHD!$C:$AX,Week!$J$3+COLUMN()-13,ROW()-4)) -> 56.2 | AQ8: =IF(INDEX(HHD!$C:$AX,Week!$J$3+COLUMN()-13,ROW()-4)=0,"",2*INDEX(HHD!$C:$AX,Week!$J$3+COLUMN()-13,ROW()-4)) -> 60.6 | AR8: =IF(INDEX(HHD!$C:$AX,Week!$J$3+COLUMN()-13,ROW()-4)=0,"",2*INDEX(HHD!$C:$AX,Week!$J$3+COLUMN()-13,ROW()-4)) -> 60.6 | AS8: =IF(INDEX(HHD!$C:$AX,Week!$J$3+COLUMN()-13,ROW()-4)=0,"",2*INDEX(HHD!$C:$AX,Week!$J$3+COLUMN()-13,ROW()-4)) -> 53.4 | AT8: =IF(INDEX(HHD!$C:$AX,Week!$J$3+COLUMN()-13,ROW()-4)=0,"",2*INDEX(HHD!$C:$AX,Week!$J$3+COLUMN()-13,ROW()-4)) -> 56.2 | AU8: =IF(INDEX(HHD!$C:$AX,Week!$J$3+COLUMN()-13,ROW()-4)=0,"",2*INDEX(HHD!$C:$AX,Week!$J$3+COLUMN()-13,ROW()-4)) -> 46.4
C9: Shift 1 week | J9: 02:00:00 | M9: =IF(INDEX(HHD!$C:$AX,Week!$J$3+COLUMN()-13,ROW()-4)=0,"",2*INDEX(HHD!$C:$AX,Week!$J$3+COLUMN()-13,ROW()-4)) -> 53.4 | N9: =IF(INDEX(HHD!$C:$AX,Week!$J$3+COLUMN()-13,ROW()-4)=0,"",2*INDEX(HHD!$C:$AX,Week!$J$3+COLUMN()-13,ROW()-4)) -> 53.2 | O9: =IF(INDEX(HHD!$C:$AX,Week!$J$3+COLUMN()-13,ROW()-4)=0,"",2*INDEX(HHD!$C:$AX,Week!$J$3+COLUMN()-13,ROW()-4)) -> 46.8 | P9: =IF(INDEX(HHD!$C:$AX,Week!$J$3+COLUMN()-13,ROW()-4)=0,"",2*INDEX(HHD!$C:$AX,Week!$J$3+COLUMN()-13,ROW()-4)) -> 52.8 | Q9: =IF(INDEX(HHD!$C:$AX,Week!$J$3+COLUMN()-13,ROW()-4)=0,"",2*INDEX(HHD!$C:$AX,Week!$J$3+COLUMN()-13,ROW()-4)) -> 49 | R9: =IF(INDEX(HHD!$C:$AX,Week!$J$3+COLUMN()-13,ROW()-4)=0,"",2*INDEX(HHD!$C:$AX,Week!$J$3+COLUMN()-13,ROW()-4)) -> 51.4 | S9: =IF(INDEX(HHD!$C:$AX,Week!$J$3+COLUMN()-13,ROW()-4)=0,"",2*INDEX(HHD!$C:$AX,Week!$J$3+COLUMN()-13,ROW()-4)) -> 49.4 | T9: =IF(INDEX(HHD!$C:$AX,Week!$J$3+COLUMN()-13,ROW()-4)=0,"",2*INDEX(HHD!$C:$AX,Week!$J$3+COLUMN()-13,ROW()-4)) -> 59.2 | U9: =IF(INDEX(HHD!$C:$AX,Week!$J$3+COLUMN()-13,ROW()-4)=0,"",2*INDEX(HHD!$C:$AX,Week!$J$3+COLUMN()-13,ROW()-4)) -> 56.6 | V9: =IF(INDEX(HHD!$C:$AX,Week!$J$3+COLUMN()-13,ROW()-4)=0,"",2*INDEX(HHD!$C:$AX,Week!$J$3+COLUMN()-13,ROW()-4)) -> 52 | W9: =IF(INDEX(HHD!$C:$AX,Week!$J$3+COLUMN()-13,ROW()-4)=0,"",2*INDEX(HHD!$C:$AX,Week!$J$3+COLUMN()-13,ROW()-4)) -> 47.6 | X9: =IF(INDEX(HHD!$C:$AX,Week!$J$3+COLUMN()-13,ROW()-4)=0,"",2*INDEX(HHD!$C:$AX,Week!$J$3+COLUMN()-13,ROW()-4)) -> 38.8 | Y9: =IF(INDEX(HHD!$C:$AX,Week!$J$3+COLUMN()-13,ROW()-4)=0,"",2*INDEX(HHD!$C:$AX,Week!$J$3+COLUMN()-13,ROW()-4)) -> 43.2 | Z9: =IF(INDEX(HHD!$C:$AX,Week!$J$3+COLUMN()-13,ROW()-4)=0,"",2*INDEX(HHD!$C:$AX,Week!$J$3+COLUMN()-13,ROW()-4)) -> 49.6 | AA9: =IF(INDEX(HHD!$C:$AX,Week!$J$3+COLUMN()-13,ROW()-4)=0,"",2*INDEX(HHD!$C:$AX,Week!$J$3+COLUMN()-13,ROW()-4)) -> 52.4 | AB9: =IF(INDEX(HHD!$C:$AX,Week!$J$3+COLUMN()-13,ROW()-4)=0,"",2*INDEX(HHD!$C:$AX,Week!$J$3+COLUMN()-13,ROW()-4)) -> 55 | AC9: =IF(INDEX(HHD!$C:$AX,Week!$J$3+COLUMN()-13,ROW()-4)=0,"",2*INDEX(HHD!$C:$AX,Week!$J$3+COLUMN()-13,ROW()-4)) -> 51.4 | AD9: =IF(INDEX(HHD!$C:$AX,Week!$J$3+COLUMN()-13,ROW()-4)=0,"",2*INDEX(HHD!$C:$AX,Week!$J$3+COLUMN()-13,ROW()-4)) -> 63 | AE9: =IF(INDEX(HHD!$C:$AX,Week!$J$3+COLUMN()-13,ROW()-4)=0,"",2*INDEX(HHD!$C:$AX,Week!$J$3+COLUMN()-13,ROW()-4)) -> 56.4 | AF9: =IF(INDEX(HHD!$C:$AX,Week!$J$3+COLUMN()-13,ROW()-4)=0,"",2*INDEX(HHD!$C:$AX,Week!$J$3+COLUMN()-13,ROW()-4)) -> 56.2 | AG9: =IF(INDEX(HHD!$C:$AX,Week!$J$3+COLUMN()-13,ROW()-4)=0,"",2*INDEX(HHD!$C:$AX,Week!$J$3+COLUMN()-13,ROW()-4)) -> 52.6 | AH9: =IF(INDEX(HHD!$C:$AX,Week!$J$3+COLUMN()-13,ROW()-4)=0,"",2*INDEX(HHD!$C:$AX,Week!$J$3+COLUMN()-13,ROW()-4)) -> 47 | AI9: =IF(INDEX(HHD!$C:$AX,Week!$J$3+COLUMN()-13,ROW()-4)=0,"",2*INDEX(HHD!$C:$AX,Week!$J$3+COLUMN()-13,ROW()-4)) -> 50.2 | AJ9: =IF(INDEX(HHD!$C:$AX,Week!$J$3+COLUMN()-13,ROW()-4)=0,"",2*INDEX(HHD!$C:$AX,Week!$J$3+COLUMN()-13,ROW()-4)) -> 58.4 | AK9: =IF(INDEX(HHD!$C:$AX,Week!$J$3+COLUMN()-13,ROW()-4)=0,"",2*INDEX(HHD!$C:$AX,Week!$J$3+COLUMN()-13,ROW()-4)) -> 52 | AL9: =IF(INDEX(HHD!$C:$AX,Week!$J$3+COLUMN()-13,ROW()-4)=0,"",2*INDEX(HHD!$C:$AX,Week!$J$3+COLUMN()-13,ROW()-4)) -> 47.2 | AM9: =IF(INDEX(HHD!$C:$AX,Week!$J$3+COLUMN()-13,ROW()-4)=0,"",2*INDEX(HHD!$C:$AX,Week!$J$3+COLUMN()-13,ROW()-4)) -> 51.4 | AN9: =IF(INDEX(HHD!$C:$AX,Week!$J$3+COLUMN()-13,ROW()-4)=0,"",2*INDEX(HHD!$C:$AX,Week!$J$3+COLUMN()-13,ROW()-4)) -> 44.2 | AO9: =IF(INDEX(HHD!$C:$AX,Week!$J$3+COLUMN()-13,ROW()-4)=0,"",2*INDEX(HHD!$C:$AX,Week!$J$3+COLUMN()-13,ROW()-4)) -> 55.8 | AP9: =IF(INDEX(HHD!$C:$AX,Week!$J$3+COLUMN()-13,ROW()-4)=0,"",2*INDEX(HHD!$C:$AX,Week!$J$3+COLUMN()-13,ROW()-4)) -> 55.4 | AQ9: =IF(INDEX(HHD!$C:$AX,Week!$J$3+COLUMN()-13,ROW()-4)=0,"",2*INDEX(HHD!$C:$AX,Week!$J$3+COLUMN()-13,ROW()-4)) -> 54.4 | AR9: =IF(INDEX(HHD!$C:$AX,Week!$J$3+COLUMN()-13,ROW()-4)=0,"",2*INDEX(HHD!$C:$AX,Week!$J$3+COLUMN()-13,ROW()-4)) -> 55 | AS9: =IF(INDEX(HHD!$C:$AX,Week!$J$3+COLUMN()-13,ROW()-4)=0,"",2*INDEX(HHD!$C:$AX,Week!$J$3+COLUMN()-13,ROW()-4)) -> 52.6 | AT9: =IF(INDEX(HHD!$C:$AX,Week!$J$3+COLUMN()-13,ROW()-4)=0,"",2*INDEX(HHD!$C:$AX,Week!$J$3+COLUMN()-13,ROW()-4)) -> 50 | AU9: =IF(INDEX(HHD!$C:$AX,Week!$J$3+COLUMN()-13,ROW()-4)=0,"",2*INDEX(HHD!$C:$AX,Week!$J$3+COLUMN()-13,ROW()-4)) -> 45.2
J10: 02:30:00 | M10: =IF(INDEX(HHD!$C:$AX,Week!$J$3+COLUMN()-13,ROW()-4)=0,"",2*INDEX(HHD!$C:$AX,Week!$J$3+COLUMN()-13,ROW()-4)) -> 49.2 | N10: =IF(INDEX(HHD!$C:$AX,Week!$J$3+COLUMN()-13,ROW()-4)=0,"",2*INDEX(HHD!$C:$AX,Week!$J$3+COLUMN()-13,ROW()-4)) -> 52.2 | O10: =IF(INDEX(HHD!$C:$AX,Week!$J$3+COLUMN()-13,ROW()-4)=0,"",2*INDEX(HHD!$C:$AX,Week!$J$3+COLUMN()-13,ROW()-4)) -> 46.4 | P10: =IF(INDEX(HHD!$C:$AX,Week!$J$3+COLUMN()-13,ROW()-4)=0,"",2*INDEX(HHD!$C:$AX,Week!$J$3+COLUMN()-13,ROW()-4)) -> 46.6 | Q10: =IF(INDEX(HHD!$C:$AX,Week!$J$3+COLUMN()-13,ROW()-4)=0,"",2*INDEX(HHD!$C:$AX,Week!$J$3+COLUMN()-13,ROW()-4)) -> 47.2 | R10: =IF(INDEX(HHD!$C:$AX,Week!$J$3+COLUMN()-13,ROW()-4)=0,"",2*INDEX(HHD!$C:$AX,Week!$J$3+COLUMN()-13,ROW()-4)) -> 45.2 | S10: =IF(INDEX(HHD!$C:$AX,Week!$J$3+COLUMN()-13,ROW()-4)=0,"",2*INDEX(HHD!$C:$AX,Week!$J$3+COLUMN()-13,ROW()-4)) -> 48.6 | T10: =IF(INDEX(HHD!$C:$AX,Week!$J$3+COLUMN()-13,ROW()-4)=0,"",2*INDEX(HHD!$C:$AX,Week!$J$3+COLUMN()-13,ROW()-4)) -> 51.6 | U10: =IF(INDEX(HHD!$C:$AX,Week!$J$3+COLUMN()-13,ROW()-4)=0,"",2*INDEX(HHD!$C:$AX,Week!$J$3+COLUMN()-13,ROW()-4)) -> 48.4 | V10: =IF(INDEX(HHD!$C:$AX,Week!$J$3+COLUMN()-13,ROW()-4)=0,"",2*INDEX(HHD!$C:$AX,Week!$J$3+COLUMN()-13,ROW()-4)) -> 53 | W10: =IF(INDEX(HHD!$C:$AX,Week!$J$3+COLUMN()-13,ROW()-4)=0,"",2*INDEX(HHD!$C:$AX,Week!$J$3+COLUMN()-13,ROW()-4)) -> 46.6 | X10: =IF(INDEX(HHD!$C:$AX,Week!$J$3+COLUMN()-13,ROW()-4)=0,"",2*INDEX(HHD!$C:$AX,Week!$J$3+COLUMN()-13,ROW()-4)) -> 43.2 | Y10: =IF(INDEX(HHD!$C:$AX,Week!$J$3+COLUMN()-13,ROW()-4)=0,"",2*INDEX(HHD!$C:$AX,Week!$J$3+COLUMN()-13,ROW()-4)) -> 48.8 | Z10: =IF(INDEX(HHD!$C:$AX,Week!$J$3+COLUMN()-13,ROW()-4)=0,"",2*INDEX(HHD!$C:$AX,Week!$J$3+COLUMN()-13,ROW()-4)) -> 42.8 | AA10: =IF(INDEX(HHD!$C:$AX,Week!$J$3+COLUMN()-13,ROW()-4)=0,"",2*INDEX(HHD!$C:$AX,Week!$J$3+COLUMN()-13,ROW()-4)) -> 52 | AB10: =IF(INDEX(HHD!$C:$AX,Week!$J$3+COLUMN()-13,ROW()-4)=0,"",2*INDEX(HHD!$C:$AX,Week!$J$3+COLUMN()-13,ROW()-4)) -> 52.8 | AC10: =IF(INDEX(HHD!$C:$AX,Week!$J$3+COLUMN()-13,ROW()-4)=0,"",2*INDEX(HHD!$C:$AX,Week!$J$3+COLUMN()-13,ROW()-4)) -> 53 | AD10: =IF(INDEX(HHD!$C:$AX,Week!$J$3+COLUMN()-13,ROW()-4)=0,"",2*INDEX(HHD!$C:$AX,Week!$J$3+COLUMN()-13,ROW()-4)) -> 62 | AE10: =IF(INDEX(HHD!$C:$AX,Week!$J$3+COLUMN()-13,ROW()-4)=0,"",2*INDEX(HHD!$C:$AX,Week!$J$3+COLUMN()-13,ROW()-4)) -> 51.4 | AF10: =IF(INDEX(HHD!$C:$AX,Week!$J$3+COLUMN()-13,ROW()-4)=0,"",2*INDEX(HHD!$C:$AX,Week!$J$3+COLUMN()-13,ROW()-4)) -> 48.6 | AG10: =IF(INDEX(HHD!$C:$AX,Week!$J$3+COLUMN()-13,ROW()-4)=0,"",2*INDEX(HHD!$C:$AX,Week!$J$3+COLUMN()-13,ROW()-4)) -> 55 | AH10: =IF(INDEX(HHD!$C:$AX,Week!$J$3+COLUMN()-13,ROW()-4)=0,"",2*INDEX(HHD!$C:$AX,Week!$J$3+COLUMN()-13,ROW()-4)) -> 58 | AI10: =IF(INDEX(HHD!$C:$AX,Week!$J$3+COLUMN()-13,ROW()-4)=0,"",2*INDEX(HHD!$C:$AX,Week!$J$3+COLUMN()-13,ROW()-4)) -> 47.8 | AJ10: =IF(INDEX(HHD!$C:$AX,Week!$J$3+COLUMN()-13,ROW()-4)=0,"",2*INDEX(HHD!$C:$AX,Week!$J$3+COLUMN()-13,ROW()-4)) -> 53.8 | AK10: =IF(INDEX(HHD!$C:$AX,Week!$J$3+COLUMN()-13,ROW()-4)=0,"",2*INDEX(HHD!$C:$AX,Week!$J$3+COLUMN()-13,ROW()-4)) -> 52 | AL10: =IF(INDEX(HHD!$C:$AX,Week!$J$3+COLUMN()-13,ROW()-4)=0,"",2*INDEX(HHD!$C:$AX,Week!$J$3+COLUMN()-13,ROW()-4)) -> 52.4 | AM10: =IF(INDEX(HHD!$C:$AX,Week!$J$3+COLUMN()-13,ROW()-4)=0,"",2*INDEX(HHD!$C:$AX,Week!$J$3+COLUMN()-13,ROW()-4)) -> 46.4 | AN10: =IF(INDEX(HHD!$C:$AX,Week!$J$3+COLUMN()-13,ROW()-4)=0,"",2*INDEX(HHD!$C:$AX,Week!$J$3+COLUMN()-13,ROW()-4)) -> 46.2 | AO10: =IF(INDEX(HHD!$C:$AX,Week!$J$3+COLUMN()-13,ROW()-4)=0,"",2*INDEX(HHD!$C:$AX,Week!$J$3+COLUMN()-13,ROW()-4)) -> 61.2 | AP10: =IF(INDEX(HHD!$C:$AX,Week!$J$3+COLUMN()-13,ROW()-4)=0,"",2*INDEX(HHD!$C:$AX,Week!$J$3+COLUMN()-13,ROW()-4)) -> 53 | AQ10: =IF(INDEX(HHD!$C:$AX,Week!$J$3+COLUMN()-13,ROW()-4)=0,"",2*INDEX(HHD!$C:$AX,Week!$J$3+COLUMN()-13,ROW()-4)) -> 57.6 | AR10: =IF(INDEX(HHD!$C:$AX,Week!$J$3+COLUMN()-13,ROW()-4)=0,"",2*INDEX(HHD!$C:$AX,Week!$J$3+COLUMN()-13,ROW()-4)) -> 62.6 | AS10: =IF(INDEX(HHD!$C:$AX,Week!$J$3+COLUMN()-13,ROW()-4)=0,"",2*INDEX(HHD!$C:$AX,Week!$J$3+COLUMN()-13,ROW()-4)) -> 56.6 | AT10: =IF(INDEX(HHD!$C:$AX,Week!$J$3+COLUMN()-13,ROW()-4)=0,"",2*INDEX(HHD!$C:$AX,Week!$J$3+COLUMN()-13,ROW()-4)) -> 59.4 | AU10: =IF(INDEX(HHD!$C:$AX,Week!$J$3+COLUMN()-13,ROW()-4)=0,"",2*INDEX(HHD!$C:$AX,Week!$J$3+COLUMN()-13,ROW()-4)) -> 51.4
C11: Shift 4 weeks | J11: 03:00:00 | M11: =IF(INDEX(HHD!$C:$AX,Week!$J$3+COLUMN()-13,ROW()-4)=0,"",2*INDEX(HHD!$C:$AX,Week!$J$3+COLUMN()-13,ROW()-4)) -> 58.4 | N11: =IF(INDEX(HHD!$C:$AX,Week!$J$3+COLUMN()-13,ROW()-4)=0,"",2*INDEX(HHD!$C:$AX,Week!$J$3+COLUMN()-13,ROW()-4)) -> 52.2 | O11: =IF(INDEX(HHD!$C:$AX,Week!$J$3+COLUMN()-13,ROW()-4)=0,"",2*INDEX(HHD!$C:$AX,Week!$J$3+COLUMN()-13,ROW()-4)) -> 50.2 | P11: =IF(INDEX(HHD!$C:$AX,Week!$J$3+COLUMN()-13,ROW()-4)=0,"",2*INDEX(HHD!$C:$AX,Week!$J$3+COLUMN()-13,ROW()-4)) -> 53 | Q11: =IF(INDEX(HHD!$C:$AX,Week!$J$3+COLUMN()-13,ROW()-4)=0,"",2*INDEX(HHD!$C:$AX,Week!$J$3+COLUMN()-13,ROW()-4)) -> 50.4 | R11: =IF(INDEX(HHD!$C:$AX,Week!$J$3+COLUMN()-13,ROW()-4)=0,"",2*INDEX(HHD!$C:$AX,Week!$J$3+COLUMN()-13,ROW()-4)) -> 53 | S11: =IF(INDEX(HHD!$C:$AX,Week!$J$3+COLUMN()-13,ROW()-4)=0,"",2*INDEX(HHD!$C:$AX,Week!$J$3+COLUMN()-13,ROW()-4)) -> 50.4 | T11: =IF(INDEX(HHD!$C:$AX,Week!$J$3+COLUMN()-13,ROW()-4)=0,"",2*INDEX(HHD!$C:$AX,Week!$J$3+COLUMN()-13,ROW()-4)) -> 52.4 | U11: =IF(INDEX(HHD!$C:$AX,Week!$J$3+COLUMN()-13,ROW()-4)=0,"",2*INDEX(HHD!$C:$AX,Week!$J$3+COLUMN()-13,ROW()-4)) -> 56.2 | V11: =IF(INDEX(HHD!$C:$AX,Week!$J$3+COLUMN()-13,ROW()-4)=0,"",2*INDEX(HHD!$C:$AX,Week!$J$3+COLUMN()-13,ROW()-4)) -> 53.8 | W11: =IF(INDEX(HHD!$C:$AX,Week!$J$3+COLUMN()-13,ROW()-4)=0,"",2*INDEX(HHD!$C:$AX,Week!$J$3+COLUMN()-13,ROW()-4)) -> 47.4 | X11: =IF(INDEX(HHD!$C:$AX,Week!$J$3+COLUMN()-13,ROW()-4)=0,"",2*INDEX(HHD!$C:$AX,Week!$J$3+COLUMN()-13,ROW()-4)) -> 44.2 | Y11: =IF(INDEX(HHD!$C:$AX,Week!$J$3+COLUMN()-13,ROW()-4)=0,"",2*INDEX(HHD!$C:$AX,Week!$J$3+COLUMN()-13,ROW()-4)) -> 47.8 | Z11: =IF(INDEX(HHD!$C:$AX,Week!$J$3+COLUMN()-13,ROW()-4)=0,"",2*INDEX(HHD!$C:$AX,Week!$J$3+COLUMN()-13,ROW()-4)) -> 45 | AA11: =IF(INDEX(HHD!$C:$AX,Week!$J$3+COLUMN()-13,ROW()-4)=0,"",2*INDEX(HHD!$C:$AX,Week!$J$3+COLUMN()-13,ROW()-4)) -> 52.4 | AB11: =IF(INDEX(HHD!$C:$AX,Week!$J$3+COLUMN()-13,ROW()-4)=0,"",2*INDEX(HHD!$C:$AX,Week!$J$3+COLUMN()-13,ROW()-4)) -> 52 | AC11: =IF(INDEX(HHD!$C:$AX,Week!$J$3+COLUMN()-13,ROW()-4)=0,"",2*INDEX(HHD!$C:$AX,Week!$J$3+COLUMN()-13,ROW()-4)) -> 51.2 | AD11: =IF(INDEX(HHD!$C:$AX,Week!$J$3+COLUMN()-13,ROW()-4)=0,"",2*INDEX(HHD!$C:$AX,Week!$J$3+COLUMN()-13,ROW()-4)) -> 62.4 | AE11: =IF(INDEX(HHD!$C:$AX,Week!$J$3+COLUMN()-13,ROW()-4)=0,"",2*INDEX(HHD!$C:$AX,Week!$J$3+COLUMN()-13,ROW()-4)) -> 57.8 | AF11: =IF(INDEX(HHD!$C:$AX,Week!$J$3+COLUMN()-13,ROW()-4)=0,"",2*INDEX(HHD!$C:$AX,Week!$J$3+COLUMN()-13,ROW()-4)) -> 56.6 | AG11: =IF(INDEX(HHD!$C:$AX,Week!$J$3+COLUMN()-13,ROW()-4)=0,"",2*INDEX(HHD!$C:$AX,Week!$J$3+COLUMN()-13,ROW()-4)) -> 56.8 | AH11: =IF(INDEX(HHD!$C:$AX,Week!$J$3+COLUMN()-13,ROW()-4)=0,"",2*INDEX(HHD!$C:$AX,Week!$J$3+COLUMN()-13,ROW()-4)) -> 53.6 | AI11: =IF(INDEX(HHD!$C:$AX,Week!$J$3+COLUMN()-13,ROW()-4)=0,"",2*INDEX(HHD!$C:$AX,Week!$J$3+COLUMN()-13,ROW()-4)) -> 49 | AJ11: =IF(INDEX(HHD!$C:$AX,Week!$J$3+COLUMN()-13,ROW()-4)=0,"",2*INDEX(HHD!$C:$AX,Week!$J$3+COLUMN()-13,ROW()-4)) -> 53.8 | AK11: =IF(INDEX(HHD!$C:$AX,Week!$J$3+COLUMN()-13,ROW()-4)=0,"",2*INDEX(HHD!$C:$AX,Week!$J$3+COLUMN()-13,ROW()-4)) -> 60.4 | AL11: =IF(INDEX(HHD!$C:$AX,Week!$J$3+COLUMN()-13,ROW()-4)=0,"",2*INDEX(HHD!$C:$AX,Week!$J$3+COLUMN()-13,ROW()-4)) -> 60 | AM11: =IF(INDEX(HHD!$C:$AX,Week!$J$3+COLUMN()-13,ROW()-4)=0,"",2*INDEX(HHD!$C:$AX,Week!$J$3+COLUMN()-13,ROW()-4)) -> 49.8 | AN11: =IF(INDEX(HHD!$C:$AX,Week!$J$3+COLUMN()-13,ROW()-4)=0,"",2*INDEX(HHD!$C:$AX,Week!$J$3+COLUMN()-13,ROW()-4)) -> 53.4 | AO11: =IF(INDEX(HHD!$C:$AX,Week!$J$3+COLUMN()-13,ROW()-4)=0,"",2*INDEX(HHD!$C:$AX,Week!$J$3+COLUMN()-13,ROW()-4)) -> 61.6 | AP11: =IF(INDEX(HHD!$C:$AX,Week!$J$3+COLUMN()-13,ROW()-4)=0,"",2*INDEX(HHD!$C:$AX,Week!$J$3+COLUMN()-13,ROW()-4)) -> 50.2 | AQ11: =IF(INDEX(HHD!$C:$AX,Week!$J$3+COLUMN()-13,ROW()-4)=0,"",2*INDEX(HHD!$C:$AX,Week!$J$3+COLUMN()-13,ROW()-4)) -> 58.4 | AR11: =IF(INDEX(HHD!$C:$AX,Week!$J$3+COLUMN()-13,ROW()-4)=0,"",2*INDEX(HHD!$C:$AX,Week!$J$3+COLUMN()-13,ROW()-4)) -> 61 | AS11: =IF(INDEX(HHD!$C:$AX,Week!$J$3+COLUMN()-13,ROW()-4)=0,"",2*INDEX(HHD!$C:$AX,Week!$J$3+COLUMN()-13,ROW()-4)) -> 60.2 | AT11: =IF(INDEX(HHD!$C:$AX,Week!$J$3+COLUMN()-13,ROW()-4)=0,"",2*INDEX(HHD!$C:$AX,Week!$J$3+COLUMN()-13,ROW()-4)) -> 61.4 | AU11: =IF(INDEX(HHD!$C:$AX,Week!$J$3+COLUMN()-13,ROW()-4)=0,"",2*INDEX(HHD!$C:$AX,Week!$J$3+COLUMN()-13,ROW()-4)) -> 50
J12: 03:30:00 | M12: =IF(INDEX(HHD!$C:$AX,Week!$J$3+COLUMN()-13,ROW()-4)=0,"",2*INDEX(HHD!$C:$AX,Week!$J$3+COLUMN()-13,ROW()-4)) -> 57.6 | N12: =IF(INDEX(HHD!$C:$AX,Week!$J$3+COLUMN()-13,ROW()-4)=0,"",2*INDEX(HHD!$C:$AX,Week!$J$3+COLUMN()-13,ROW()-4)) -> 55.6 | O12: =IF(INDEX(HHD!$C:$AX,Week!$J$3+COLUMN()-13,ROW()-4)=0,"",2*INDEX(HHD!$C:$AX,Week!$J$3+COLUMN()-13,ROW()-4)) -> 55 | P12: =IF(INDEX(HHD!$C:$AX,Week!$J$3+COLUMN()-13,ROW()-4)=0,"",2*INDEX(HHD!$C:$AX,Week!$J$3+COLUMN()-13,ROW()-4)) -> 48.8 | Q12: =IF(INDEX(HHD!$C:$AX,Week!$J$3+COLUMN()-13,ROW()-4)=0,"",2*INDEX(HHD!$C:$AX,Week!$J$3+COLUMN()-13,ROW()-4)) -> 46.6 | R12: =IF(INDEX(HHD!$C:$AX,Week!$J$3+COLUMN()-13,ROW()-4)=0,"",2*INDEX(HHD!$C:$AX,Week!$J$3+COLUMN()-13,ROW()-4)) -> 54 | S12: =IF(INDEX(HHD!$C:$AX,Week!$J$3+COLUMN()-13,ROW()-4)=0,"",2*INDEX(HHD!$C:$AX,Week!$J$3+COLUMN()-13,ROW()-4)) -> 51.2 | T12: =IF(INDEX(HHD!$C:$AX,Week!$J$3+COLUMN()-13,ROW()-4)=0,"",2*INDEX(HHD!$C:$AX,Week!$J$3+COLUMN()-13,ROW()-4)) -> 53.6 | U12: =IF(INDEX(HHD!$C:$AX,Week!$J$3+COLUMN()-13,ROW()-4)=0,"",2*INDEX(HHD!$C:$AX,Week!$J$3+COLUMN()-13,ROW()-4)) -> 55.2 | V12: =IF(INDEX(HHD!$C:$AX,Week!$J$3+COLUMN()-13,ROW()-4)=0,"",2*INDEX(HHD!$C:$AX,Week!$J$3+COLUMN()-13,ROW()-4)) -> 53 | W12: =IF(INDEX(HHD!$C:$AX,Week!$J$3+COLUMN()-13,ROW()-4)=0,"",2*INDEX(HHD!$C:$AX,Week!$J$3+COLUMN()-13,ROW()-4)) -> 40.8 | X12: =IF(INDEX(HHD!$C:$AX,Week!$J$3+COLUMN()-13,ROW()-4)=0,"",2*INDEX(HHD!$C:$AX,Week!$J$3+COLUMN()-13,ROW()-4)) -> 46.2 | Y12: =IF(INDEX(HHD!$C:$AX,Week!$J$3+COLUMN()-13,ROW()-4)=0,"",2*INDEX(HHD!$C:$AX,Week!$J$3+COLUMN()-13,ROW()-4)) -> 50.6 | Z12: =IF(INDEX(HHD!$C:$AX,Week!$J$3+COLUMN()-13,ROW()-4)=0,"",2*INDEX(HHD!$C:$AX,Week!$J$3+COLUMN()-13,ROW()-4)) -> 49.6 | AA12: =IF(INDEX(HHD!$C:$AX,Week!$J$3+COLUMN()-13,ROW()-4)=0,"",2*INDEX(HHD!$C:$AX,Week!$J$3+COLUMN()-13,ROW()-4)) -> 52.4 | AB12: =IF(INDEX(HHD!$C:$AX,Week!$J$3+COLUMN()-13,ROW()-4)=0,"",2*INDEX(HHD!$C:$AX,Week!$J$3+COLUMN()-13,ROW()-4)) -> 51 | AC12: =IF(INDEX(HHD!$C:$AX,Week!$J$3+COLUMN()-13,ROW()-4)=0,"",2*INDEX(HHD!$C:$AX,Week!$J$3+COLUMN()-13,ROW()-4)) -> 48.8 | AD12: =IF(INDEX(HHD!$C:$AX,Week!$J$3+COLUMN()-13,ROW()-4)=0,"",2*INDEX(HHD!$C:$AX,Week!$J$3+COLUMN()-13,ROW()-4)) -> 58.4 | AE12: =IF(INDEX(HHD!$C:$AX,Week!$J$3+COLUMN()-13,ROW()-4)=0,"",2*INDEX(HHD!$C:$AX,Week!$J$3+COLUMN()-13,ROW()-4)) -> 61.4 | AF12: =IF(INDEX(HHD!$C:$AX,Week!$J$3+COLUMN()-13,ROW()-4)=0,"",2*INDEX(HHD!$C:$AX,Week!$J$3+COLUMN()-13,ROW()-4)) -> 54.6 | AG12: =IF(INDEX(HHD!$C:$AX,Week!$J$3+COLUMN()-13,ROW()-4)=0,"",2*INDEX(HHD!$C:$AX,Week!$J$3+COLUMN()-13,ROW()-4)) -> 61 | AH12: =IF(INDEX(HHD!$C:$AX,Week!$J$3+COLUMN()-13,ROW()-4)=0,"",2*INDEX(HHD!$C:$AX,Week!$J$3+COLUMN()-13,ROW()-4)) -> 63.8 | AI12: =IF(INDEX(HHD!$C:$AX,Week!$J$3+COLUMN()-13,ROW()-4)=0,"",2*INDEX(HHD!$C:$AX,Week!$J$3+COLUMN()-13,ROW()-4)) -> 50.2 | AJ12: =IF(INDEX(HHD!$C:$AX,Week!$J$3+COLUMN()-13,ROW()-4)=0,"",2*INDEX(HHD!$C:$AX,Week!$J$3+COLUMN()-13,ROW()-4)) -> 54.8 | AK12: =IF(INDEX(HHD!$C:$AX,Week!$J$3+COLUMN()-13,ROW()-4)=0,"",2*INDEX(HHD!$C:$AX,Week!$J$3+COLUMN()-13,ROW()-4)) -> 58.6 | AL12: =IF(INDEX(HHD!$C:$AX,Week!$J$3+COLUMN()-13,ROW()-4)=0,"",2*INDEX(HHD!$C:$AX,Week!$J$3+COLUMN()-13,ROW()-4)) -> 53.8 | AM12: =IF(INDEX(HHD!$C:$AX,Week!$J$3+COLUMN()-13,ROW()-4)=0,"",2*INDEX(HHD!$C:$AX,Week!$J$3+COLUMN()-13,ROW()-4)) -> 53 | AN12: =IF(INDEX(HHD!$C:$AX,Week!$J$3+COLUMN()-13,ROW()-4)=0,"",2*INDEX(HHD!$C:$AX,Week!$J$3+COLUMN()-13,ROW()-4)) -> 58.6 | AO12: =IF(INDEX(HHD!$C:$AX,Week!$J$3+COLUMN()-13,ROW()-4)=0,"",2*INDEX(HHD!$C:$AX,Week!$J$3+COLUMN()-13,ROW()-4)) -> 56.2 | AP12: =IF(INDEX(HHD!$C:$AX,Week!$J$3+COLUMN()-13,ROW()-4)=0,"",2*INDEX(HHD!$C:$AX,Week!$J$3+COLUMN()-13,ROW()-4)) -> 52.8 | AQ12: =IF(INDEX(HHD!$C:$AX,Week!$J$3+COLUMN()-13,ROW()-4)=0,"",2*INDEX(HHD!$C:$AX,Week!$J$3+COLUMN()-13,ROW()-4)) -> 66.2 | AR12: =IF(INDEX(HHD!$C:$AX,Week!$J$3+COLUMN()-13,ROW()-4)=0,"",2*INDEX(HHD!$C:$AX,Week!$J$3+COLUMN()-13,ROW()-4)) -> 61.6 | AS12: =IF(INDEX(HHD!$C:$AX,Week!$J$3+COLUMN()-13,ROW()-4)=0,"",2*INDEX(HHD!$C:$AX,Week!$J$3+COLUMN()-13,ROW()-4)) -> 61.4 | AT12: =IF(INDEX(HHD!$C:$AX,Week!$J$3+COLUMN()-13,ROW()-4)=0,"",2*INDEX(HHD!$C:$AX,Week!$J$3+COLUMN()-13,ROW()-4)) -> 60 | AU12: =IF(INDEX(HHD!$C:$AX,Week!$J$3+COLUMN()-13,ROW()-4)=0,"",2*INDEX(HHD!$C:$AX,Week!$J$3+COLUMN()-13,ROW()-4)) -> 51.6
C13: Shift 52 weeks | J13: 04:00:00 | M13: =IF(INDEX(HHD!$C:$AX,Week!$J$3+COLUMN()-13,ROW()-4)=0,"",2*INDEX(HHD!$C:$AX,Week!$J$3+COLUMN()-13,ROW()-4)) -> 47.4 | N13: =IF(INDEX(HHD!$C:$AX,Week!$J$3+COLUMN()-13,ROW()-4)=0,"",2*INDEX(HHD!$C:$AX,Week!$J$3+COLUMN()-13,ROW()-4)) -> 54.4 | O13: =IF(INDEX(HHD!$C:$AX,Week!$J$3+COLUMN()-13,ROW()-4)=0,"",2*INDEX(HHD!$C:$AX,Week!$J$3+COLUMN()-13,ROW()-4)) -> 51.2 | P13: =IF(INDEX(HHD!$C:$AX,Week!$J$3+COLUMN()-13,ROW()-4)=0,"",2*INDEX(HHD!$C:$AX,Week!$J$3+COLUMN()-13,ROW()-4)) -> 50.8 | Q13: =IF(INDEX(HHD!$C:$AX,Week!$J$3+COLUMN()-13,ROW()-4)=0,"",2*INDEX(HHD!$C:$AX,Week!$J$3+COLUMN()-13,ROW()-4)) -> 48.2 | R13: =IF(INDEX(HHD!$C:$AX,Week!$J$3+COLUMN()-13,ROW()-4)=0,"",2*INDEX(HHD!$C:$AX,Week!$J$3+COLUMN()-13,ROW()-4)) -> 46.4 | S13: =IF(INDEX(HHD!$C:$AX,Week!$J$3+COLUMN()-13,ROW()-4)=0,"",2*INDEX(HHD!$C:$AX,Week!$J$3+COLUMN()-13,ROW()-4)) -> 51.6 | T13: =IF(INDEX(HHD!$C:$AX,Week!$J$3+COLUMN()-13,ROW()-4)=0,"",2*INDEX(HHD!$C:$AX,Week!$J$3+COLUMN()-13,ROW()-4)) -> 54.2 | U13: =IF(INDEX(HHD!$C:$AX,Week!$J$3+COLUMN()-13,ROW()-4)=0,"",2*INDEX(HHD!$C:$AX,Week!$J$3+COLUMN()-13,ROW()-4)) -> 56.6 | V13: =IF(INDEX(HHD!$C:$AX,Week!$J$3+COLUMN()-13,ROW()-4)=0,"",2*INDEX(HHD!$C:$AX,Week!$J$3+COLUMN()-13,ROW()-4)) -> 58.2 | W13: =IF(INDEX(HHD!$C:$AX,Week!$J$3+COLUMN()-13,ROW()-4)=0,"",2*INDEX(HHD!$C:$AX,Week!$J$3+COLUMN()-13,ROW()-4)) -> 42.6 | X13: =IF(INDEX(HHD!$C:$AX,Week!$J$3+COLUMN()-13,ROW()-4)=0,"",2*INDEX(HHD!$C:$AX,Week!$J$3+COLUMN()-13,ROW()-4)) -> 48.2 | Y13: =IF(INDEX(HHD!$C:$AX,Week!$J$3+COLUMN()-13,ROW()-4)=0,"",2*INDEX(HHD!$C:$AX,Week!$J$3+COLUMN()-13,ROW()-4)) -> 47.6 | Z13: =IF(INDEX(HHD!$C:$AX,Week!$J$3+COLUMN()-13,ROW()-4)=0,"",2*INDEX(HHD!$C:$AX,Week!$J$3+COLUMN()-13,ROW()-4)) -> 52.6 | AA13: =IF(INDEX(HHD!$C:$AX,Week!$J$3+COLUMN()-13,ROW()-4)=0,"",2*INDEX(HHD!$C:$AX,Week!$J$3+COLUMN()-13,ROW()-4)) -> 54.4 | AB13: =IF(INDEX(HHD!$C:$AX,Week!$J$3+COLUMN()-13,ROW()-4)=0,"",2*INDEX(HHD!$C:$AX,Week!$J$3+COLUMN()-13,ROW()-4)) -> 51.6 | AC13: =IF(INDEX(HHD!$C:$AX,Week!$J$3+COLUMN()-13,ROW()-4)=0,"",2*INDEX(HHD!$C:$AX,Week!$J$3+COLUMN()-13,ROW()-4)) -> 47 | AD13: =IF(INDEX(HHD!$C:$AX,Week!$J$3+COLUMN()-13,ROW()-4)=0,"",2*INDEX(HHD!$C:$AX,Week!$J$3+COLUMN()-13,ROW()-4)) -> 56.4 | AE13: =IF(INDEX(HHD!$C:$AX,Week!$J$3+COLUMN()-13,ROW()-4)=0,"",2*INDEX(HHD!$C:$AX,Week!$J$3+COLUMN()-13,ROW()-4)) -> 58.2 | AF13: =IF(INDEX(HHD!$C:$AX,Week!$J$3+COLUMN()-13,ROW()-4)=0,"",2*INDEX(HHD!$C:$AX,Week!$J$3+COLUMN()-13,ROW()-4)) -> 50.2 | AG13: =IF(INDEX(HHD!$C:$AX,Week!$J$3+COLUMN()-13,ROW()-4)=0,"",2*INDEX(HHD!$C:$AX,Week!$J$3+COLUMN()-13,ROW()-4)) -> 62 | AH13: =IF(INDEX(HHD!$C:$AX,Week!$J$3+COLUMN()-13,ROW()-4)=0,"",2*INDEX(HHD!$C:$AX,Week!$J$3+COLUMN()-13,ROW()-4)) -> 58 | AI13: =IF(INDEX(HHD!$C:$AX,Week!$J$3+COLUMN()-13,ROW()-4)=0,"",2*INDEX(HHD!$C:$AX,Week!$J$3+COLUMN()-13,ROW()-4)) -> 57.2 | AJ13: =IF(INDEX(HHD!$C:$AX,Week!$J$3+COLUMN()-13,ROW()-4)=0,"",2*INDEX(HHD!$C:$AX,Week!$J$3+COLUMN()-13,ROW()-4)) -> 60.4 | AK13: =IF(INDEX(HHD!$C:$AX,Week!$J$3+COLUMN()-13,ROW()-4)=0,"",2*INDEX(HHD!$C:$AX,Week!$J$3+COLUMN()-13,ROW()-4)) -> 62 | AL13: =IF(INDEX(HHD!$C:$AX,Week!$J$3+COLUMN()-13,ROW()-4)=0,"",2*INDEX(HHD!$C:$AX,Week!$J$3+COLUMN()-13,ROW()-4)) -> 50.4 | AM13: =IF(INDEX(HHD!$C:$AX,Week!$J$3+COLUMN()-13,ROW()-4)=0,"",2*INDEX(HHD!$C:$AX,Week!$J$3+COLUMN()-13,ROW()-4)) -> 58 | AN13: =IF(INDEX(HHD!$C:$AX,Week!$J$3+COLUMN()-13,ROW()-4)=0,"",2*INDEX(HHD!$C:$AX,Week!$J$3+COLUMN()-13,ROW()-4)) -> 55.4 | AO13: =IF(INDEX(HHD!$C:$AX,Week!$J$3+COLUMN()-13,ROW()-4)=0,"",2*INDEX(HHD!$C:$AX,Week!$J$3+COLUMN()-13,ROW()-4)) -> 53.4 | AP13: =IF(INDEX(HHD!$C:$AX,Week!$J$3+COLUMN()-13,ROW()-4)=0,"",2*INDEX(HHD!$C:$AX,Week!$J$3+COLUMN()-13,ROW()-4)) -> 55.2 | AQ13: =IF(INDEX(HHD!$C:$AX,Week!$J$3+COLUMN()-13,ROW()-4)=0,"",2*INDEX(HHD!$C:$AX,Week!$J$3+COLUMN()-13,ROW()-4)) -> 61.2 | AR13: =IF(INDEX(HHD!$C:$AX,Week!$J$3+COLUMN()-13,ROW()-4)=0,"",2*INDEX(HHD!$C:$AX,Week!$J$3+COLUMN()-13,ROW()-4)) -> 57 | AS13: =IF(INDEX(HHD!$C:$AX,Week!$J$3+COLUMN()-13,ROW()-4)=0,"",2*INDEX(HHD!$C:$AX,Week!$J$3+COLUMN()-13,ROW()-4)) -> 49 | AT13: =IF(INDEX(HHD!$C:$AX,Week!$J$3+COLUMN()-13,ROW()-4)=0,"",2*INDEX(HHD!$C:$AX,Week!$J$3+COLUMN()-13,ROW()-4)) -> 59.4 | AU13: =IF(INDEX(HHD!$C:$AX,Week!$J$3+COLUMN()-13,ROW()-4)=0,"",2*INDEX(HHD!$C:$AX,Week!$J$3+COLUMN()-13,ROW()-4)) -> 55.2
J14: 04:30:00 | M14: =IF(INDEX(HHD!$C:$AX,Week!$J$3+COLUMN()-13,ROW()-4)=0,"",2*INDEX(HHD!$C:$AX,Week!$J$3+COLUMN()-13,ROW()-4)) -> 54.2 | N14: =IF(INDEX(HHD!$C:$AX,Week!$J$3+COLUMN()-13,ROW()-4)=0,"",2*INDEX(HHD!$C:$AX,Week!$J$3+COLUMN()-13,ROW()-4)) -> 60.8 | O14: =IF(INDEX(HHD!$C:$AX,Week!$J$3+COLUMN()-13,ROW()-4)=0,"",2*INDEX(HHD!$C:$AX,Week!$J$3+COLUMN()-13,ROW()-4)) -> 59.2 | P14: =IF(INDEX(HHD!$C:$AX,Week!$J$3+COLUMN()-13,ROW()-4)=0,"",2*INDEX(HHD!$C:$AX,Week!$J$3+COLUMN()-13,ROW()-4)) -> 56 | Q14: =IF(INDEX(HHD!$C:$AX,Week!$J$3+COLUMN()-13,ROW()-4)=0,"",2*INDEX(HHD!$C:$AX,Week!$J$3+COLUMN()-13,ROW()-4)) -> 56 | R14: =IF(INDEX(HHD!$C:$AX,Week!$J$3+COLUMN()-13,ROW()-4)=0,"",2*INDEX(HHD!$C:$AX,Week!$J$3+COLUMN()-13,ROW()-4)) -> 50.4 | S14: =IF(INDEX(HHD!$C:$AX,Week!$J$3+COLUMN()-13,ROW()-4)=0,"",2*INDEX(HHD!$C:$AX,Week!$J$3+COLUMN()-13,ROW()-4)) -> 52.2 | T14: =IF(INDEX(HHD!$C:$AX,Week!$J$3+COLUMN()-13,ROW()-4)=0,"",2*INDEX(HHD!$C:$AX,Week!$J$3+COLUMN()-13,ROW()-4)) -> 60.6 | U14: =IF(INDEX(HHD!$C:$AX,Week!$J$3+COLUMN()-13,ROW()-4)=0,"",2*INDEX(HHD!$C:$AX,Week!$J$3+COLUMN()-13,ROW()-4)) -> 50.8 | V14: =IF(INDEX(HHD!$C:$AX,Week!$J$3+COLUMN()-13,ROW()-4)=0,"",2*INDEX(HHD!$C:$AX,Week!$J$3+COLUMN()-13,ROW()-4)) -> 59.2 | W14: =IF(INDEX(HHD!$C:$AX,Week!$J$3+COLUMN()-13,ROW()-4)=0,"",2*INDEX(HHD!$C:$AX,Week!$J$3+COLUMN()-13,ROW()-4)) -> 51.8 | X14: =IF(INDEX(HHD!$C:$AX,Week!$J$3+COLUMN()-13,ROW()-4)=0,"",2*INDEX(HHD!$C:$AX,Week!$J$3+COLUMN()-13,ROW()-4)) -> 43.6 | Y14: =IF(INDEX(HHD!$C:$AX,Week!$J$3+COLUMN()-13,ROW()-4)=0,"",2*INDEX(HHD!$C:$AX,Week!$J$3+COLUMN()-13,ROW()-4)) -> 44.8 | Z14: =IF(INDEX(HHD!$C:$AX,Week!$J$3+COLUMN()-13,ROW()-4)=0,"",2*INDEX(HHD!$C:$AX,Week!$J$3+COLUMN()-13,ROW()-4)) -> 46.8 | AA14: =IF(INDEX(HHD!$C:$AX,Week!$J$3+COLUMN()-13,ROW()-4)=0,"",2*INDEX(HHD!$C:$AX,Week!$J$3+COLUMN()-13,ROW()-4)) -> 55.4 | AB14: =IF(INDEX(HHD!$C:$AX,Week!$J$3+COLUMN()-13,ROW()-4)=0,"",2*INDEX(HHD!$C:$AX,Week!$J$3+COLUMN()-13,ROW()-4)) -> 53.4 | AC14: =IF(INDEX(HHD!$C:$AX,Week!$J$3+COLUMN()-13,ROW()-4)=0,"",2*INDEX(HHD!$C:$AX,Week!$J$3+COLUMN()-13,ROW()-4)) -> 51 | AD14: =IF(INDEX(HHD!$C:$AX,Week!$J$3+COLUMN()-13,ROW()-4)=0,"",2*INDEX(HHD!$C:$AX,Week!$J$3+COLUMN()-13,ROW()-4)) -> 57.6 | AE14: =IF(INDEX(HHD!$C:$AX,Week!$J$3+COLUMN()-13,ROW()-4)=0,"",2*INDEX(HHD!$C:$AX,Week!$J$3+COLUMN()-13,ROW()-4)) -> 58 | AF14: =IF(INDEX(HHD!$C:$AX,Week!$J$3+COLUMN()-13,ROW()-4)=0,"",2*INDEX(HHD!$C:$AX,Week!$J$3+COLUMN()-13,ROW()-4)) -> 56.4 | AG14: =IF(INDEX(HHD!$C:$AX,Week!$J$3+COLUMN()-13,ROW()-4)=0,"",2*INDEX(HHD!$C:$AX,Week!$J$3+COLUMN()-13,ROW()-4)) -> 60.2 | AH14: =IF(INDEX(HHD!$C:$AX,Week!$J$3+COLUMN()-13,ROW()-4)=0,"",2*INDEX(HHD!$C:$AX,Week!$J$3+COLUMN()-13,ROW()-4)) -> 63.4 | AI14: =IF(INDEX(HHD!$C:$AX,Week!$J$3+COLUMN()-13,ROW()-4)=0,"",2*INDEX(HHD!$C:$AX,Week!$J$3+COLUMN()-13,ROW()-4)) -> 56.8 | AJ14: =IF(INDEX(HHD!$C:$AX,Week!$J$3+COLUMN()-13,ROW()-4)=0,"",2*INDEX(HHD!$C:$AX,Week!$J$3+COLUMN()-13,ROW()-4)) -> 56 | AK14: =IF(INDEX(HHD!$C:$AX,Week!$J$3+COLUMN()-13,ROW()-4)=0,"",2*INDEX(HHD!$C:$AX,Week!$J$3+COLUMN()-13,ROW()-4)) -> 55.6 | AL14: =IF(INDEX(HHD!$C:$AX,Week!$J$3+COLUMN()-13,ROW()-4)=0,"",2*INDEX(HHD!$C:$AX,Week!$J$3+COLUMN()-13,ROW()-4)) -> 54.6 | AM14: =IF(INDEX(HHD!$C:$AX,Week!$J$3+COLUMN()-13,ROW()-4)=0,"",2*INDEX(HHD!$C:$AX,Week!$J$3+COLUMN()-13,ROW()-4)) -> 48.8 | AN14: =IF(INDEX(HHD!$C:$AX,Week!$J$3+COLUMN()-13,ROW()-4)=0,"",2*INDEX(HHD!$C:$AX,Week!$J$3+COLUMN()-13,ROW()-4)) -> 50.6 | AO14: =IF(INDEX(HHD!$C:$AX,Week!$J$3+COLUMN()-13,ROW()-4)=0,"",2*INDEX(HHD!$C:$AX,Week!$J$3+COLUMN()-13,ROW()-4)) -> 62.4 | AP14: =IF(INDEX(HHD!$C:$AX,Week!$J$3+COLUMN()-13,ROW()-4)=0,"",2*INDEX(HHD!$C:$AX,Week!$J$3+COLUMN()-13,ROW()-4)) -> 59.6 | AQ14: =IF(INDEX(HHD!$C:$AX,Week!$J$3+COLUMN()-13,ROW()-4)=0,"",2*INDEX(HHD!$C:$AX,Week!$J$3+COLUMN()-13,ROW()-4)) -> 51 | AR14: =IF(INDEX(HHD!$C:$AX,Week!$J$3+COLUMN()-13,ROW()-4)=0,"",2*INDEX(HHD!$C:$AX,Week!$J$3+COLUMN()-13,ROW()-4)) -> 56.8 | AS14: =IF(INDEX(HHD!$C:$AX,Week!$J$3+COLUMN()-13,ROW()-4)=0,"",2*INDEX(HHD!$C:$AX,Week!$J$3+COLUMN()-13,ROW()-4)) -> 49.8 | AT14: =IF(INDEX(HHD!$C:$AX,Week!$J$3+COLUMN()-13,ROW()-4)=0,"",2*INDEX(HHD!$C:$AX,Week!$J$3+COLUMN()-13,ROW()-4)) -> 61.6 | AU14: =IF(INDEX(HHD!$C:$AX,Week!$J$3+COLUMN()-13,ROW()-4)=0,"",2*INDEX(HHD!$C:$AX,Week!$J$3+COLUMN()-13,ROW()-4)) -> 48.8
J15: 05:00:00 | M15: =IF(INDEX(HHD!$C:$AX,Week!$J$3+COLUMN()-13,ROW()-4)=0,"",2*INDEX(HHD!$C:$AX,Week!$J$3+COLUMN()-13,ROW()-4)) -> 52.8 | N15: =IF(INDEX(HHD!$C:$AX,Week!$J$3+COLUMN()-13,ROW()-4)=0,"",2*INDEX(HHD!$C:$AX,Week!$J$3+COLUMN()-13,ROW()-4)) -> 50 | O15: =IF(INDEX(HHD!$C:$AX,Week!$J$3+COLUMN()-13,ROW()-4)=0,"",2*INDEX(HHD!$C:$AX,Week!$J$3+COLUMN()-13,ROW()-4)) -> 51.6 | P15: =IF(INDEX(HHD!$C:$AX,Week!$J$3+COLUMN()-13,ROW()-4)=0,"",2*INDEX(HHD!$C:$AX,Week!$J$3+COLUMN()-13,ROW()-4)) -> 53.2 | Q15: =IF(INDEX(HHD!$C:$AX,Week!$J$3+COLUMN()-13,ROW()-4)=0,"",2*INDEX(HHD!$C:$AX,Week!$J$3+COLUMN()-13,ROW()-4)) -> 53 | R15: =IF(INDEX(HHD!$C:$AX,Week!$J$3+COLUMN()-13,ROW()-4)=0,"",2*INDEX(HHD!$C:$AX,Week!$J$3+COLUMN()-13,ROW()-4)) -> 48.6 | S15: =IF(INDEX(HHD!$C:$AX,Week!$J$3+COLUMN()-13,ROW()-4)=0,"",2*INDEX(HHD!$C:$AX,Week!$J$3+COLUMN()-13,ROW()-4)) -> 49.6 | T15: =IF(INDEX(HHD!$C:$AX,Week!$J$3+COLUMN()-13,ROW()-4)=0,"",2*INDEX(HHD!$C:$AX,Week!$J$3+COLUMN()-13,ROW()-4)) -> 65.4 | U15: =IF(INDEX(HHD!$C:$AX,Week!$J$3+COLUMN()-13,ROW()-4)=0,"",2*INDEX(HHD!$C:$AX,Week!$J$3+COLUMN()-13,ROW()-4)) -> 58 | V15: =IF(INDEX(HHD!$C:$AX,Week!$J$3+COLUMN()-13,ROW()-4)=0,"",2*INDEX(HHD!$C:$AX,Week!$J$3+COLUMN()-13,ROW()-4)) -> 53.2 | W15: =IF(INDEX(HHD!$C:$AX,Week!$J$3+COLUMN()-13,ROW()-4)=0,"",2*INDEX(HHD!$C:$AX,Week!$J$3+COLUMN()-13,ROW()-4)) -> 46.4 | X15: =IF(INDEX(HHD!$C:$AX,Week!$J$3+COLUMN()-13,ROW()-4)=0,"",2*INDEX(HHD!$C:$AX,Week!$J$3+COLUMN()-13,ROW()-4)) -> 51.6 | Y15: =IF(INDEX(HHD!$C:$AX,Week!$J$3+COLUMN()-13,ROW()-4)=0,"",2*INDEX(HHD!$C:$AX,Week!$J$3+COLUMN()-13,ROW()-4)) -> 50.8 | Z15: =IF(INDEX(HHD!$C:$AX,Week!$J$3+COLUMN()-13,ROW()-4)=0,"",2*INDEX(HHD!$C:$AX,Week!$J$3+COLUMN()-13,ROW()-4)) -> 49.4 | AA15: =IF(INDEX(HHD!$C:$AX,Week!$J$3+COLUMN()-13,ROW()-4)=0,"",2*INDEX(HHD!$C:$AX,Week!$J$3+COLUMN()-13,ROW()-4)) -> 56.8 | AB15: =IF(INDEX(HHD!$C:$AX,Week!$J$3+COLUMN()-13,ROW()-4)=0,"",2*INDEX(HHD!$C:$AX,Week!$J$3+COLUMN()-13,ROW()-4)) -> 56 | AC15: =IF(INDEX(HHD!$C:$AX,Week!$J$3+COLUMN()-13,ROW()-4)=0,"",2*INDEX(HHD!$C:$AX,Week!$J$3+COLUMN()-13,ROW()-4)) -> 49.6 | AD15: =IF(INDEX(HHD!$C:$AX,Week!$J$3+COLUMN()-13,ROW()-4)=0,"",2*INDEX(HHD!$C:$AX,Week!$J$3+COLUMN()-13,ROW()-4)) -> 57.6 | AE15: =IF(INDEX(HHD!$C:$AX,Week!$J$3+COLUMN()-13,ROW()-4)=0,"",2*INDEX(HHD!$C:$AX,Week!$J$3+COLUMN()-13,ROW()-4)) -> 60.4 | AF15: =IF(INDEX(HHD!$C:$AX,Week!$J$3+COLUMN()-13,ROW()-4)=0,"",2*INDEX(HHD!$C:$AX,Week!$J$3+COLUMN()-13,ROW()-4)) -> 57.6 | AG15: =IF(INDEX(HHD!$C:$AX,Week!$J$3+COLUMN()-13,ROW()-4)=0,"",2*INDEX(HHD!$C:$AX,Week!$J$3+COLUMN()-13,ROW()-4)) -> 53.6 | AH15: =IF(INDEX(HHD!$C:$AX,Week!$J$3+COLUMN()-13,ROW()-4)=0,"",2*INDEX(HHD!$C:$AX,Week!$J$3+COLUMN()-13,ROW()-4)) -> 54.4 | AI15: =IF(INDEX(HHD!$C:$AX,Week!$J$3+COLUMN()-13,ROW()-4)=0,"",2*INDEX(HHD!$C:$AX,Week!$J$3+COLUMN()-13,ROW()-4)) -> 49.4 | AJ15: =IF(INDEX(HHD!$C:$AX,Week!$J$3+COLUMN()-13,ROW()-4)=0,"",2*INDEX(HHD!$C:$AX,Week!$J$3+COLUMN()-13,ROW()-4)) -> 57 | AK15: =IF(INDEX(HHD!$C:$AX,Week!$J$3+COLUMN()-13,ROW()-4)=0,"",2*INDEX(HHD!$C:$AX,Week!$J$3+COLUMN()-13,ROW()-4)) -> 61.6 | AL15: =IF(INDEX(HHD!$C:$AX,Week!$J$3+COLUMN()-13,ROW()-4)=0,"",2*INDEX(HHD!$C:$AX,Week!$J$3+COLUMN()-13,ROW()-4)) -> 57.2 | AM15: =IF(INDEX(HHD!$C:$AX,Week!$J$3+COLUMN()-13,ROW()-4)=0,"",2*INDEX(HHD!$C:$AX,Week!$J$3+COLUMN()-13,ROW()-4)) -> 52 | AN15: =IF(INDEX(HHD!$C:$AX,Week!$J$3+COLUMN()-13,ROW()-4)=0,"",2*INDEX(HHD!$C:$AX,Week!$J$3+COLUMN()-13,ROW()-4)) -> 50.2 | AO15: =IF(INDEX(HHD!$C:$AX,Week!$J$3+COLUMN()-13,ROW()-4)=0,"",2*INDEX(HHD!$C:$AX,Week!$J$3+COLUMN()-13,ROW()-4)) -> 62.8 | AP15: =IF(INDEX(HHD!$C:$AX,Week!$J$3+COLUMN()-13,ROW()-4)=0,"",2*INDEX(HHD!$C:$AX,Week!$J$3+COLUMN()-13,ROW()-4)) -> 50.8 | AQ15: =IF(INDEX(HHD!$C:$AX,Week!$J$3+COLUMN()-13,ROW()-4)=0,"",2*INDEX(HHD!$C:$AX,Week!$J$3+COLUMN()-13,ROW()-4)) -> 56.6 | AR15: =IF(INDEX(HHD!$C:$AX,Week!$J$3+COLUMN()-13,ROW()-4)=0,"",2*INDEX(HHD!$C:$AX,Week!$J$3+COLUMN()-13,ROW()-4)) -> 55.6 | AS15: =IF(INDEX(HHD!$C:$AX,Week!$J$3+COLUMN()-13,ROW()-4)=0,"",2*INDEX(HHD!$C:$AX,Week!$J$3+COLUMN()-13,ROW()-4)) -> 51.4 | AT15: =IF(INDEX(HHD!$C:$AX,Week!$J$3+COLUMN()-13,ROW()-4)=0,"",2*INDEX(HHD!$C:$AX,Week!$J$3+COLUMN()-13,ROW()-4)) -> 60.6 | AU15: =IF(INDEX(HHD!$C:$AX,Week!$J$3+COLUMN()-13,ROW()-4)=0,"",2*INDEX(HHD!$C:$AX,Week!$J$3+COLUMN()-13,ROW()-4)) -> 52.8
J16: 05:30:00 | M16: =IF(INDEX(HHD!$C:$AX,Week!$J$3+COLUMN()-13,ROW()-4)=0,"",2*INDEX(HHD!$C:$AX,Week!$J$3+COLUMN()-13,ROW()-4)) -> 53 | N16: =IF(INDEX(HHD!$C:$AX,Week!$J$3+COLUMN()-13,ROW()-4)=0,"",2*INDEX(HHD!$C:$AX,Week!$J$3+COLUMN()-13,ROW()-4)) -> 59.2 | O16: =IF(INDEX(HHD!$C:$AX,Week!$J$3+COLUMN()-13,ROW()-4)=0,"",2*INDEX(HHD!$C:$AX,Week!$J$3+COLUMN()-13,ROW()-4)) -> 53.6 | P16: =IF(INDEX(HHD!$C:$AX,Week!$J$3+COLUMN()-13,ROW()-4)=0,"",2*INDEX(HHD!$C:$AX,Week!$J$3+COLUMN()-13,ROW()-4)) -> 53.4 | Q16: =IF(INDEX(HHD!$C:$AX,Week!$J$3+COLUMN()-13,ROW()-4)=0,"",2*INDEX(HHD!$C:$AX,Week!$J$3+COLUMN()-13,ROW()-4)) -> 57.6 | R16: =IF(INDEX(HHD!$C:$AX,Week!$J$3+COLUMN()-13,ROW()-4)=0,"",2*INDEX(HHD!$C:$AX,Week!$J$3+COLUMN()-13,ROW()-4)) -> 50.8 | S16: =IF(INDEX(HHD!$C:$AX,Week!$J$3+COLUMN()-13,ROW()-4)=0,"",2*INDEX(HHD!$C:$AX,Week!$J$3+COLUMN()-13,ROW()-4)) -> 47.2 | T16: =IF(INDEX(HHD!$C:$AX,Week!$J$3+COLUMN()-13,ROW()-4)=0,"",2*INDEX(HHD!$C:$AX,Week!$J$3+COLUMN()-13,ROW()-4)) -> 57.2 | U16: =IF(INDEX(HHD!$C:$AX,Week!$J$3+COLUMN()-13,ROW()-4)=0,"",2*INDEX(HHD!$C:$AX,Week!$J$3+COLUMN()-13,ROW()-4)) -> 60 | V16: =IF(INDEX(HHD!$C:$AX,Week!$J$3+COLUMN()-13,ROW()-4)=0,"",2*INDEX(HHD!$C:$AX,Week!$J$3+COLUMN()-13,ROW()-4)) -> 54.4 | W16: =IF(INDEX(HHD!$C:$AX,Week!$J$3+COLUMN()-13,ROW()-4)=0,"",2*INDEX(HHD!$C:$AX,Week!$J$3+COLUMN()-13,ROW()-4)) -> 52.4 | X16: =IF(INDEX(HHD!$C:$AX,Week!$J$3+COLUMN()-13,ROW()-4)=0,"",2*INDEX(HHD!$C:$AX,Week!$J$3+COLUMN()-13,ROW()-4)) -> 48.6 | Y16: =IF(INDEX(HHD!$C:$AX,Week!$J$3+COLUMN()-13,ROW()-4)=0,"",2*INDEX(HHD!$C:$AX,Week!$J$3+COLUMN()-13,ROW()-4)) -> 53 | Z16: =IF(INDEX(HHD!$C:$AX,Week!$J$3+COLUMN()-13,ROW()-4)=0,"",2*INDEX(HHD!$C:$AX,Week!$J$3+COLUMN()-13,ROW()-4)) -> 45.4 | AA16: =IF(INDEX(HHD!$C:$AX,Week!$J$3+COLUMN()-13,ROW()-4)=0,"",2*INDEX(HHD!$C:$AX,Week!$J$3+COLUMN()-13,ROW()-4)) -> 55.4 | AB16: =IF(INDEX(HHD!$C:$AX,Week!$J$3+COLUMN()-13,ROW()-4)=0,"",2*INDEX(HHD!$C:$AX,Week!$J$3+COLUMN()-13,ROW()-4)) -> 49.4 | AC16: =IF(INDEX(HHD!$C:$AX,Week!$J$3+COLUMN()-13,ROW()-4)=0,"",2*INDEX(HHD!$C:$AX,Week!$J$3+COLUMN()-13,ROW()-4)) -> 53.8 | AD16: =IF(INDEX(HHD!$C:$AX,Week!$J$3+COLUMN()-13,ROW()-4)=0,"",2*INDEX(HHD!$C:$AX,Week!$J$3+COLUMN()-13,ROW()-4)) -> 62.2 | AE16: =IF(INDEX(HHD!$C:$AX,Week!$J$3+COLUMN()-13,ROW()-4)=0,"",2*INDEX(HHD!$C:$AX,Week!$J$3+COLUMN()-13,ROW()-4)) -> 59.4 | AF16: =IF(INDEX(HHD!$C:$AX,Week!$J$3+COLUMN()-13,ROW()-4)=0,"",2*INDEX(HHD!$C:$AX,Week!$J$3+COLUMN()-13,ROW()-4)) -> 47.8 | AG16: =IF(INDEX(HHD!$C:$AX,Week!$J$3+COLUMN()-13,ROW()-4)=0,"",2*INDEX(HHD!$C:$AX,Week!$J$3+COLUMN()-13,ROW()-4)) -> 53.6 | AH16: =IF(INDEX(HHD!$C:$AX,Week!$J$3+COLUMN()-13,ROW()-4)=0,"",2*INDEX(HHD!$C:$AX,Week!$J$3+COLUMN()-13,ROW()-4)) -> 52.2 | AI16: =IF(INDEX(HHD!$C:$AX,Week!$J$3+COLUMN()-13,ROW()-4)=0,"",2*INDEX(HHD!$C:$AX,Week!$J$3+COLUMN()-13,ROW()-4)) -> 50.6 | AJ16: =IF(INDEX(HHD!$C:$AX,Week!$J$3+COLUMN()-13,ROW()-4)=0,"",2*INDEX(HHD!$C:$AX,Week!$J$3+COLUMN()-13,ROW()-4)) -> 55 | AK16: =IF(INDEX(HHD!$C:$AX,Week!$J$3+COLUMN()-13,ROW()-4)=0,"",2*INDEX(HHD!$C:$AX,Week!$J$3+COLUMN()-13,ROW()-4)) -> 56.8 | AL16: =IF(INDEX(HHD!$C:$AX,Week!$J$3+COLUMN()-13,ROW()-4)=0,"",2*INDEX(HHD!$C:$AX,Week!$J$3+COLUMN()-13,ROW()-4)) -> 55.2 | AM16: =IF(INDEX(HHD!$C:$AX,Week!$J$3+COLUMN()-13,ROW()-4)=0,"",2*INDEX(HHD!$C:$AX,Week!$J$3+COLUMN()-13,ROW()-4)) -> 53.2 | AN16: =IF(INDEX(HHD!$C:$AX,Week!$J$3+COLUMN()-13,ROW()-4)=0,"",2*INDEX(HHD!$C:$AX,Week!$J$3+COLUMN()-13,ROW()-4)) -> 53.6 | AO16: =IF(INDEX(HHD!$C:$AX,Week!$J$3+COLUMN()-13,ROW()-4)=0,"",2*INDEX(HHD!$C:$AX,Week!$J$3+COLUMN()-13,ROW()-4)) -> 58.4 | AP16: =IF(INDEX(HHD!$C:$AX,Week!$J$3+COLUMN()-13,ROW()-4)=0,"",2*INDEX(HHD!$C:$AX,Week!$J$3+COLUMN()-13,ROW()-4)) -> 58.4 | AQ16: =IF(INDEX(HHD!$C:$AX,Week!$J$3+COLUMN()-13,ROW()-4)=0,"",2*INDEX(HHD!$C:$AX,Week!$J$3+COLUMN()-13,ROW()-4)) -> 53.4 | AR16: =IF(INDEX(HHD!$C:$AX,Week!$J$3+COLUMN()-13,ROW()-4)=0,"",2*INDEX(HHD!$C:$AX,Week!$J$3+COLUMN()-13,ROW()-4)) -> 60.8 | AS16: =IF(INDEX(HHD!$C:$AX,Week!$J$3+COLUMN()-13,ROW()-4)=0,"",2*INDEX(HHD!$C:$AX,Week!$J$3+COLUMN()-13,ROW()-4)) -> 58.6 | AT16: =IF(INDEX(HHD!$C:$AX,Week!$J$3+COLUMN()-13,ROW()-4)=0,"",2*INDEX(HHD!$C:$AX,Week!$J$3+COLUMN()-13,ROW()-4)) -> 49 | AU16: =IF(INDEX(HHD!$C:$AX,Week!$J$3+COLUMN()-13,ROW()-4)=0,"",2*INDEX(HHD!$C:$AX,Week!$J$3+COLUMN()-13,ROW()-4)) -> 54.8
J17: 06:00:00 | M17: =IF(INDEX(HHD!$C:$AX,Week!$J$3+COLUMN()-13,ROW()-4)=0,"",2*INDEX(HHD!$C:$AX,Week!$J$3+COLUMN()-13,ROW()-4)) -> 51.2 | N17: =IF(INDEX(HHD!$C:$AX,Week!$J$3+COLUMN()-13,ROW()-4)=0,"",2*INDEX(HHD!$C:$AX,Week!$J$3+COLUMN()-13,ROW()-4)) -> 57 | O17: =IF(INDEX(HHD!$C:$AX,Week!$J$3+COLUMN()-13,ROW()-4)=0,"",2*INDEX(HHD!$C:$AX,Week!$J$3+COLUMN()-13,ROW()-4)) -> 57.2 | P17: =IF(INDEX(HHD!$C:$AX,Week!$J$3+COLUMN()-13,ROW()-4)=0,"",2*INDEX(HHD!$C:$AX,Week!$J$3+COLUMN()-13,ROW()-4)) -> 58 | Q17: =IF(INDEX(HHD!$C:$AX,Week!$J$3+COLUMN()-13,ROW()-4)=0,"",2*INDEX(HHD!$C:$AX,Week!$J$3+COLUMN()-13,ROW()-4)) -> 50.8 | R17: =IF(INDEX(HHD!$C:$AX,Week!$J$3+COLUMN()-13,ROW()-4)=0,"",2*INDEX(HHD!$C:$AX,Week!$J$3+COLUMN()-13,ROW()-4)) -> 48.6 | S17: =IF(INDEX(HHD!$C:$AX,Week!$J$3+COLUMN()-13,ROW()-4)=0,"",2*INDEX(HHD!$C:$AX,Week!$J$3+COLUMN()-13,ROW()-4)) -> 57.2 | T17: =IF(INDEX(HHD!$C:$AX,Week!$J$3+COLUMN()-13,ROW()-4)=0,"",2*INDEX(HHD!$C:$AX,Week!$J$3+COLUMN()-13,ROW()-4)) -> 60.2 | U17: =IF(INDEX(HHD!$C:$AX,Week!$J$3+COLUMN()-13,ROW()-4)=0,"",2*INDEX(HHD!$C:$AX,Week!$J$3+COLUMN()-13,ROW()-4)) -> 58 | V17: =IF(INDEX(HHD!$C:$AX,Week!$J$3+COLUMN()-13,ROW()-4)=0,"",2*INDEX(HHD!$C:$AX,Week!$J$3+COLUMN()-13,ROW()-4)) -> 59.6 | W17: =IF(INDEX(HHD!$C:$AX,Week!$J$3+COLUMN()-13,ROW()-4)=0,"",2*INDEX(HHD!$C:$AX,Week!$J$3+COLUMN()-13,ROW()-4)) -> 49.2 | X17: =IF(INDEX(HHD!$C:$AX,Week!$J$3+COLUMN()-13,ROW()-4)=0,"",2*INDEX(HHD!$C:$AX,Week!$J$3+COLUMN()-13,ROW()-4)) -> 51.6 | Y17: =IF(INDEX(HHD!$C:$AX,Week!$J$3+COLUMN()-13,ROW()-4)=0,"",2*INDEX(HHD!$C:$AX,Week!$J$3+COLUMN()-13,ROW()-4)) -> 51.8 | Z17: =IF(INDEX(HHD!$C:$AX,Week!$J$3+COLUMN()-13,ROW()-4)=0,"",2*INDEX(HHD!$C:$AX,Week!$J$3+COLUMN()-13,ROW()-4)) -> 50.8 | AA17: =IF(INDEX(HHD!$C:$AX,Week!$J$3+COLUMN()-13,ROW()-4)=0,"",2*INDEX(HHD!$C:$AX,Week!$J$3+COLUMN()-13,ROW()-4)) -> 55.2 | AB17: =IF(INDEX(HHD!$C:$AX,Week!$J$3+COLUMN()-13,ROW()-4)=0,"",2*INDEX(HHD!$C:$AX,Week!$J$3+COLUMN()-13,ROW()-4)) -> 53.4 | AC17: =IF(INDEX(HHD!$C:$AX,Week!$J$3+COLUMN()-13,ROW()-4)=0,"",2*INDEX(HHD!$C:$AX,Week!$J$3+COLUMN()-13,ROW()-4)) -> 55 | AD17: =IF(INDEX(HHD!$C:$AX,Week!$J$3+COLUMN()-13,ROW()-4)=0,"",2*INDEX(HHD!$C:$AX,Week!$J$3+COLUMN()-13,ROW()-4)) -> 57.2 | AE17: =IF(INDEX(HHD!$C:$AX,Week!$J$3+COLUMN()-13,ROW()-4)=0,"",2*INDEX(HHD!$C:$AX,Week!$J$3+COLUMN()-13,ROW()-4)) -> 54.4 | AF17: =IF(INDEX(HHD!$C:$AX,Week!$J$3+COLUMN()-13,ROW()-4)=0,"",2*INDEX(HHD!$C:$AX,Week!$J$3+COLUMN()-13,ROW()-4)) -> 52 | AG17: =IF(INDEX(HHD!$C:$AX,Week!$J$3+COLUMN()-13,ROW()-4)=0,"",2*INDEX(HHD!$C:$AX,Week!$J$3+COLUMN()-13,ROW()-4)) -> 57 | AH17: =IF(INDEX(HHD!$C:$AX,Week!$J$3+COLUMN()-13,ROW()-4)=0,"",2*INDEX(HHD!$C:$AX,Week!$J$3+COLUMN()-13,ROW()-4)) -> 53.4 | AI17: =IF(INDEX(HHD!$C:$AX,Week!$J$3+COLUMN()-13,ROW()-4)=0,"",2*INDEX(HHD!$C:$AX,Week!$J$3+COLUMN()-13,ROW()-4)) -> 52.6 | AJ17: =IF(INDEX(HHD!$C:$AX,Week!$J$3+COLUMN()-13,ROW()-4)=0,"",2*INDEX(HHD!$C:$AX,Week!$J$3+COLUMN()-13,ROW()-4)) -> 53.6 | AK17: =IF(INDEX(HHD!$C:$AX,Week!$J$3+COLUMN()-13,ROW()-4)=0,"",2*INDEX(HHD!$C:$AX,Week!$J$3+COLUMN()-13,ROW()-4)) -> 53.2 | AL17: =IF(INDEX(HHD!$C:$AX,Week!$J$3+COLUMN()-13,ROW()-4)=0,"",2*INDEX(HHD!$C:$AX,Week!$J$3+COLUMN()-13,ROW()-4)) -> 55.8 | AM17: =IF(INDEX(HHD!$C:$AX,Week!$J$3+COLUMN()-13,ROW()-4)=0,"",2*INDEX(HHD!$C:$AX,Week!$J$3+COLUMN()-13,ROW()-4)) -> 49.6 | AN17: =IF(INDEX(HHD!$C:$AX,Week!$J$3+COLUMN()-13,ROW()-4)=0,"",2*INDEX(HHD!$C:$AX,Week!$J$3+COLUMN()-13,ROW()-4)) -> 48 | AO17: =IF(INDEX(HHD!$C:$AX,Week!$J$3+COLUMN()-13,ROW()-4)=0,"",2*INDEX(HHD!$C:$AX,Week!$J$3+COLUMN()-13,ROW()-4)) -> 62 | AP17: =IF(INDEX(HHD!$C:$AX,Week!$J$3+COLUMN()-13,ROW()-4)=0,"",2*INDEX(HHD!$C:$AX,Week!$J$3+COLUMN()-13,ROW()-4)) -> 57 | AQ17: =IF(INDEX(HHD!$C:$AX,Week!$J$3+COLUMN()-13,ROW()-4)=0,"",2*INDEX(HHD!$C:$AX,Week!$J$3+COLUMN()-13,ROW()-4)) -> 61.4 | AR17: =IF(INDEX(HHD!$C:$AX,Week!$J$3+COLUMN()-13,ROW()-4)=0,"",2*INDEX(HHD!$C:$AX,Week!$J$3+COLUMN()-13,ROW()-4)) -> 58.6 | AS17: =IF(INDEX(HHD!$C:$AX,Week!$J$3+COLUMN()-13,ROW()-4)=0,"",2*INDEX(HHD!$C:$AX,Week!$J$3+COLUMN()-13,ROW()-4)) -> 55.4 | AT17: =IF(INDEX(HHD!$C:$AX,Week!$J$3+COLUMN()-13,ROW()-4)=0,"",2*INDEX(HHD!$C:$AX,Week!$J$3+COLUMN()-13,ROW()-4)) -> 57.8 | AU17: =IF(INDEX(HHD!$C:$AX,Week!$J$3+COLUMN()-13,ROW()-4)=0,"",2*INDEX(HHD!$C:$AX,Week!$J$3+COLUMN()-13,ROW()-4)) -> 53
D18: COLOUR KEY (to adjust see box below) | J18: 06:30:00 | M18: =IF(INDEX(HHD!$C:$AX,Week!$J$3+COLUMN()-13,ROW()-4)=0,"",2*INDEX(HHD!$C:$AX,Week!$J$3+COLUMN()-13,ROW()-4)) -> 61.8 | N18: =IF(INDEX(HHD!$C:$AX,Week!$J$3+COLUMN()-13,ROW()-4)=0,"",2*INDEX(HHD!$C:$AX,Week!$J$3+COLUMN()-13,ROW()-4)) -> 61.8 | O18: =IF(INDEX(HHD!$C:$AX,Week!$J$3+COLUMN()-13,ROW()-4)=0,"",2*INDEX(HHD!$C:$AX,Week!$J$3+COLUMN()-13,ROW()-4)) -> 65.6 | P18: =IF(INDEX(HHD!$C:$AX,Week!$J$3+COLUMN()-13,ROW()-4)=0,"",2*INDEX(HHD!$C:$AX,Week!$J$3+COLUMN()-13,ROW()-4)) -> 84 | Q18: =IF(INDEX(HHD!$C:$AX,Week!$J$3+COLUMN()-13,ROW()-4)=0,"",2*INDEX(HHD!$C:$AX,Week!$J$3+COLUMN()-13,ROW()-4)) -> 71 | R18: =IF(INDEX(HHD!$C:$AX,Week!$J$3+COLUMN()-13,ROW()-4)=0,"",2*INDEX(HHD!$C:$AX,Week!$J$3+COLUMN()-13,ROW()-4)) -> 55 | S18: =IF(INDEX(HHD!$C:$AX,Week!$J$3+COLUMN()-13,ROW()-4)=0,"",2*INDEX(HHD!$C:$AX,Week!$J$3+COLUMN()-13,ROW()-4)) -> 51.8 | T18: =IF(INDEX(HHD!$C:$AX,Week!$J$3+COLUMN()-13,ROW()-4)=0,"",2*INDEX(HHD!$C:$AX,Week!$J$3+COLUMN()-13,ROW()-4)) -> 63.6 | U18: =IF(INDEX(HHD!$C:$AX,Week!$J$3+COLUMN()-13,ROW()-4)=0,"",2*INDEX(HHD!$C:$AX,Week!$J$3+COLUMN()-13,ROW()-4)) -> 60.2 | V18: =IF(INDEX(HHD!$C:$AX,Week!$J$3+COLUMN()-13,ROW()-4)=0,"",2*INDEX(HHD!$C:$AX,Week!$J$3+COLUMN()-13,ROW()-4)) -> 72.6 | W18: =IF(INDEX(HHD!$C:$AX,Week!$J$3+COLUMN()-13,ROW()-4)=0,"",2*INDEX(HHD!$C:$AX,Week!$J$3+COLUMN()-13,ROW()-4)) -> 70 | X18: =IF(INDEX(HHD!$C:$AX,Week!$J$3+COLUMN()-13,ROW()-4)=0,"",2*INDEX(HHD!$C:$AX,Week!$J$3+COLUMN()-13,ROW()-4)) -> 58.6 | Y18: =IF(INDEX(HHD!$C:$AX,Week!$J$3+COLUMN()-13,ROW()-4)=0,"",2*INDEX(HHD!$C:$AX,Week!$J$3+COLUMN()-13,ROW()-4)) -> 53 | Z18: =IF(INDEX(HHD!$C:$AX,Week!$J$3+COLUMN()-13,ROW()-4)=0,"",2*INDEX(HHD!$C:$AX,Week!$J$3+COLUMN()-13,ROW()-4)) -> 50 | AA18: =IF(INDEX(HHD!$C:$AX,Week!$J$3+COLUMN()-13,ROW()-4)=0,"",2*INDEX(HHD!$C:$AX,Week!$J$3+COLUMN()-13,ROW()-4)) -> 47.8 | AB18: =IF(INDEX(HHD!$C:$AX,Week!$J$3+COLUMN()-13,ROW()-4)=0,"",2*INDEX(HHD!$C:$AX,Week!$J$3+COLUMN()-13,ROW()-4)) -> 59.6 | AC18: =IF(INDEX(HHD!$C:$AX,Week!$J$3+COLUMN()-13,ROW()-4)=0,"",2*INDEX(HHD!$C:$AX,Week!$J$3+COLUMN()-13,ROW()-4)) -> 54.4 | AD18: =IF(INDEX(HHD!$C:$AX,Week!$J$3+COLUMN()-13,ROW()-4)=0,"",2*INDEX(HHD!$C:$AX,Week!$J$3+COLUMN()-13,ROW()-4)) -> 61 | AE18: =IF(INDEX(HHD!$C:$AX,Week!$J$3+COLUMN()-13,ROW()-4)=0,"",2*INDEX(HHD!$C:$AX,Week!$J$3+COLUMN()-13,ROW()-4)) -> 75.6 | AF18: =IF(INDEX(HHD!$C:$AX,Week!$J$3+COLUMN()-13,ROW()-4)=0,"",2*INDEX(HHD!$C:$AX,Week!$J$3+COLUMN()-13,ROW()-4)) -> 63.2 | AG18: =IF(INDEX(HHD!$C:$AX,Week!$J$3+COLUMN()-13,ROW()-4)=0,"",2*INDEX(HHD!$C:$AX,Week!$J$3+COLUMN()-13,ROW()-4)) -> 60 | AH18: =IF(INDEX(HHD!$C:$AX,Week!$J$3+COLUMN()-13,ROW()-4)=0,"",2*INDEX(HHD!$C:$AX,Week!$J$3+COLUMN()-13,ROW()-4)) -> 72.6 | AI18: =IF(INDEX(HHD!$C:$AX,Week!$J$3+COLUMN()-13,ROW()-4)=0,"",2*INDEX(HHD!$C:$AX,Week!$J$3+COLUMN()-13,ROW()-4)) -> 60.2 | AJ18: =IF(INDEX(HHD!$C:$AX,Week!$J$3+COLUMN()-13,ROW()-4)=0,"",2*INDEX(HHD!$C:$AX,Week!$J$3+COLUMN()-13,ROW()-4)) -> 62.8 | AK18: =IF(INDEX(HHD!$C:$AX,Week!$J$3+COLUMN()-13,ROW()-4)=0,"",2*INDEX(HHD!$C:$AX,Week!$J$3+COLUMN()-13,ROW()-4)) -> 73.6 | AL18: =IF(INDEX(HHD!$C:$AX,Week!$J$3+COLUMN()-13,ROW()-4)=0,"",2*INDEX(HHD!$C:$AX,Week!$J$3+COLUMN()-13,ROW()-4)) -> 79 | AM18: =IF(INDEX(HHD!$C:$AX,Week!$J$3+COLUMN()-13,ROW()-4)=0,"",2*INDEX(HHD!$C:$AX,Week!$J$3+COLUMN()-13,ROW()-4)) -> 63.6 | AN18: =IF(INDEX(HHD!$C:$AX,Week!$J$3+COLUMN()-13,ROW()-4)=0,"",2*INDEX(HHD!$C:$AX,Week!$J$3+COLUMN()-13,ROW()-4)) -> 52.2 | AO18: =IF(INDEX(HHD!$C:$AX,Week!$J$3+COLUMN()-13,ROW()-4)=0,"",2*INDEX(HHD!$C:$AX,Week!$J$3+COLUMN()-13,ROW()-4)) -> 68.8 | AP18: =IF(INDEX(HHD!$C:$AX,Week!$J$3+COLUMN()-13,ROW()-4)=0,"",2*INDEX(HHD!$C:$AX,Week!$J$3+COLUMN()-13,ROW()-4)) -> 68.2 | AQ18: =IF(INDEX(HHD!$C:$AX,Week!$J$3+COLUMN()-13,ROW()-4)=0,"",2*INDEX(HHD!$C:$AX,Week!$J$3+COLUMN()-13,ROW()-4)) -> 72.4 | AR18: =IF(INDEX(HHD!$C:$AX,Week!$J$3+COLUMN()-13,ROW()-4)=0,"",2*INDEX(HHD!$C:$AX,Week!$J$3+COLUMN()-13,ROW()-4)) -> 86 | AS18: =IF(INDEX(HHD!$C:$AX,Week!$J$3+COLUMN()-13,ROW()-4)=0,"",2*INDEX(HHD!$C:$AX,Week!$J$3+COLUMN()-13,ROW()-4)) -> 70.4 | AT18: =IF(INDEX(HHD!$C:$AX,Week!$J$3+COLUMN()-13,ROW()-4)=0,"",2*INDEX(HHD!$C:$AX,Week!$J$3+COLUMN()-13,ROW()-4)) -> 65.2 | AU18: =IF(INDEX(HHD!$C:$AX,Week!$J$3+COLUMN()-13,ROW()-4)=0,"",2*INDEX(HHD!$C:$AX,Week!$J$3+COLUMN()-13,ROW()-4)) -> 50.8
J19: 07:00:00 | M19: =IF(INDEX(HHD!$C:$AX,Week!$J$3+COLUMN()-13,ROW()-4)=0,"",2*INDEX(HHD!$C:$AX,Week!$J$3+COLUMN()-13,ROW()-4)) -> 91.6 | N19: =IF(INDEX(HHD!$C:$AX,Week!$J$3+COLUMN()-13,ROW()-4)=0,"",2*INDEX(HHD!$C:$AX,Week!$J$3+COLUMN()-13,ROW()-4)) -> 126.4 | O19: =IF(INDEX(HHD!$C:$AX,Week!$J$3+COLUMN()-13,ROW()-4)=0,"",2*INDEX(HHD!$C:$AX,Week!$J$3+COLUMN()-13,ROW()-4)) -> 95 | P19: =IF(INDEX(HHD!$C:$AX,Week!$J$3+COLUMN()-13,ROW()-4)=0,"",2*INDEX(HHD!$C:$AX,Week!$J$3+COLUMN()-13,ROW()-4)) -> 91.4 | Q19: =IF(INDEX(HHD!$C:$AX,Week!$J$3+COLUMN()-13,ROW()-4)=0,"",2*INDEX(HHD!$C:$AX,Week!$J$3+COLUMN()-13,ROW()-4)) -> 94.4 | R19: =IF(INDEX(HHD!$C:$AX,Week!$J$3+COLUMN()-13,ROW()-4)=0,"",2*INDEX(HHD!$C:$AX,Week!$J$3+COLUMN()-13,ROW()-4)) -> 84.8 | S19: =IF(INDEX(HHD!$C:$AX,Week!$J$3+COLUMN()-13,ROW()-4)=0,"",2*INDEX(HHD!$C:$AX,Week!$J$3+COLUMN()-13,ROW()-4)) -> 59.2 | T19: =IF(INDEX(HHD!$C:$AX,Week!$J$3+COLUMN()-13,ROW()-4)=0,"",2*INDEX(HHD!$C:$AX,Week!$J$3+COLUMN()-13,ROW()-4)) -> 94.2 | U19: =IF(INDEX(HHD!$C:$AX,Week!$J$3+COLUMN()-13,ROW()-4)=0,"",2*INDEX(HHD!$C:$AX,Week!$J$3+COLUMN()-13,ROW()-4)) -> 86.6 | V19: =IF(INDEX(HHD!$C:$AX,Week!$J$3+COLUMN()-13,ROW()-4)=0,"",2*INDEX(HHD!$C:$AX,Week!$J$3+COLUMN()-13,ROW()-4)) -> 97.2 | W19: =IF(INDEX(HHD!$C:$AX,Week!$J$3+COLUMN()-13,ROW()-4)=0,"",2*INDEX(HHD!$C:$AX,Week!$J$3+COLUMN()-13,ROW()-4)) -> 81.4 | X19: =IF(INDEX(HHD!$C:$AX,Week!$J$3+COLUMN()-13,ROW()-4)=0,"",2*INDEX(HHD!$C:$AX,Week!$J$3+COLUMN()-13,ROW()-4)) -> 87.4 | Y19: =IF(INDEX(HHD!$C:$AX,Week!$J$3+COLUMN()-13,ROW()-4)=0,"",2*INDEX(HHD!$C:$AX,Week!$J$3+COLUMN()-13,ROW()-4)) -> 89 | Z19: =IF(INDEX(HHD!$C:$AX,Week!$J$3+COLUMN()-13,ROW()-4)=0,"",2*INDEX(HHD!$C:$AX,Week!$J$3+COLUMN()-13,ROW()-4)) -> 50.4 | AA19: =IF(INDEX(HHD!$C:$AX,Week!$J$3+COLUMN()-13,ROW()-4)=0,"",2*INDEX(HHD!$C:$AX,Week!$J$3+COLUMN()-13,ROW()-4)) -> 67.6 | AB19: =IF(INDEX(HHD!$C:$AX,Week!$J$3+COLUMN()-13,ROW()-4)=0,"",2*INDEX(HHD!$C:$AX,Week!$J$3+COLUMN()-13,ROW()-4)) -> 78.2 | AC19: =IF(INDEX(HHD!$C:$AX,Week!$J$3+COLUMN()-13,ROW()-4)=0,"",2*INDEX(HHD!$C:$AX,Week!$J$3+COLUMN()-13,ROW()-4)) -> 91.8 | AD19: =IF(INDEX(HHD!$C:$AX,Week!$J$3+COLUMN()-13,ROW()-4)=0,"",2*INDEX(HHD!$C:$AX,Week!$J$3+COLUMN()-13,ROW()-4)) -> 91.8 | AE19: =IF(INDEX(HHD!$C:$AX,Week!$J$3+COLUMN()-13,ROW()-4)=0,"",2*INDEX(HHD!$C:$AX,Week!$J$3+COLUMN()-13,ROW()-4)) -> 93.4 | AF19: =IF(INDEX(HHD!$C:$AX,Week!$J$3+COLUMN()-13,ROW()-4)=0,"",2*INDEX(HHD!$C:$AX,Week!$J$3+COLUMN()-13,ROW()-4)) -> 86.2 | AG19: =IF(INDEX(HHD!$C:$AX,Week!$J$3+COLUMN()-13,ROW()-4)=0,"",2*INDEX(HHD!$C:$AX,Week!$J$3+COLUMN()-13,ROW()-4)) -> 51.6 | AH19: =IF(INDEX(HHD!$C:$AX,Week!$J$3+COLUMN()-13,ROW()-4)=0,"",2*INDEX(HHD!$C:$AX,Week!$J$3+COLUMN()-13,ROW()-4)) -> 117.2 | AI19: =IF(INDEX(HHD!$C:$AX,Week!$J$3+COLUMN()-13,ROW()-4)=0,"",2*INDEX(HHD!$C:$AX,Week!$J$3+COLUMN()-13,ROW()-4)) -> 82.8 | AJ19: =IF(INDEX(HHD!$C:$AX,Week!$J$3+COLUMN()-13,ROW()-4)=0,"",2*INDEX(HHD!$C:$AX,Week!$J$3+COLUMN()-13,ROW()-4)) -> 95.8 | AK19: =IF(INDEX(HHD!$C:$AX,Week!$J$3+COLUMN()-13,ROW()-4)=0,"",2*INDEX(HHD!$C:$AX,Week!$J$3+COLUMN()-13,ROW()-4)) -> 103.2 | AL19: =IF(INDEX(HHD!$C:$AX,Week!$J$3+COLUMN()-13,ROW()-4)=0,"",2*INDEX(HHD!$C:$AX,Week!$J$3+COLUMN()-13,ROW()-4)) -> 86.2 | AM19: =IF(INDEX(HHD!$C:$AX,Week!$J$3+COLUMN()-13,ROW()-4)=0,"",2*INDEX(HHD!$C:$AX,Week!$J$3+COLUMN()-13,ROW()-4)) -> 114 | AN19: =IF(INDEX(HHD!$C:$AX,Week!$J$3+COLUMN()-13,ROW()-4)=0,"",2*INDEX(HHD!$C:$AX,Week!$J$3+COLUMN()-13,ROW()-4)) -> 52.4 | AO19: =IF(INDEX(HHD!$C:$AX,Week!$J$3+COLUMN()-13,ROW()-4)=0,"",2*INDEX(HHD!$C:$AX,Week!$J$3+COLUMN()-13,ROW()-4)) -> 82.8 | AP19: =IF(INDEX(HHD!$C:$AX,Week!$J$3+COLUMN()-13,ROW()-4)=0,"",2*INDEX(HHD!$C:$AX,Week!$J$3+COLUMN()-13,ROW()-4)) -> 86.6 | AQ19: =IF(INDEX(HHD!$C:$AX,Week!$J$3+COLUMN()-13,ROW()-4)=0,"",2*INDEX(HHD!$C:$AX,Week!$J$3+COLUMN()-13,ROW()-4)) -> 92.4 | AR19: =IF(INDEX(HHD!$C:$AX,Week!$J$3+COLUMN()-13,ROW()-4)=0,"",2*INDEX(HHD!$C:$AX,Week!$J$3+COLUMN()-13,ROW()-4)) -> 85.4 | AS19: =IF(INDEX(HHD!$C:$AX,Week!$J$3+COLUMN()-13,ROW()-4)=0,"",2*INDEX(HHD!$C:$AX,Week!$J$3+COLUMN()-13,ROW()-4)) -> 100.4 | AT19: =IF(INDEX(HHD!$C:$AX,Week!$J$3+COLUMN()-13,ROW()-4)=0,"",2*INDEX(HHD!$C:$AX,Week!$J$3+COLUMN()-13,ROW()-4)) -> 90.4 | AU19: =IF(INDEX(HHD!$C:$AX,Week!$J$3+COLUMN()-13,ROW()-4)=0,"",2*INDEX(HHD!$C:$AX,Week!$J$3+COLUMN()-13,ROW()-4)) -> 51.4
D20: Electricity | J20: 07:30:00 | M20: =IF(INDEX(HHD!$C:$AX,Week!$J$3+COLUMN()-13,ROW()-4)=0,"",2*INDEX(HHD!$C:$AX,Week!$J$3+COLUMN()-13,ROW()-4)) -> 131.2 | N20: =IF(INDEX(HHD!$C:$AX,Week!$J$3+COLUMN()-13,ROW()-4)=0,"",2*INDEX(HHD!$C:$AX,Week!$J$3+COLUMN()-13,ROW()-4)) -> 116.8 | O20: =IF(INDEX(HHD!$C:$AX,Week!$J$3+COLUMN()-13,ROW()-4)=0,"",2*INDEX(HHD!$C:$AX,Week!$J$3+COLUMN()-13,ROW()-4)) -> 111.4 | P20: =IF(INDEX(HHD!$C:$AX,Week!$J$3+COLUMN()-13,ROW()-4)=0,"",2*INDEX(HHD!$C:$AX,Week!$J$3+COLUMN()-13,ROW()-4)) -> 106 | Q20: =IF(INDEX(HHD!$C:$AX,Week!$J$3+COLUMN()-13,ROW()-4)=0,"",2*INDEX(HHD!$C:$AX,Week!$J$3+COLUMN()-13,ROW()-4)) -> 133.8 | R20: =IF(INDEX(HHD!$C:$AX,Week!$J$3+COLUMN()-13,ROW()-4)=0,"",2*INDEX(HHD!$C:$AX,Week!$J$3+COLUMN()-13,ROW()-4)) -> 102.2 | S20: =IF(INDEX(HHD!$C:$AX,Week!$J$3+COLUMN()-13,ROW()-4)=0,"",2*INDEX(HHD!$C:$AX,Week!$J$3+COLUMN()-13,ROW()-4)) -> 73.8 | T20: =IF(INDEX(HHD!$C:$AX,Week!$J$3+COLUMN()-13,ROW()-4)=0,"",2*INDEX(HHD!$C:$AX,Week!$J$3+COLUMN()-13,ROW()-4)) -> 137.2 | U20: =IF(INDEX(HHD!$C:$AX,Week!$J$3+COLUMN()-13,ROW()-4)=0,"",2*INDEX(HHD!$C:$AX,Week!$J$3+COLUMN()-13,ROW()-4)) -> 116.4 | V20: =IF(INDEX(HHD!$C:$AX,Week!$J$3+COLUMN()-13,ROW()-4)=0,"",2*INDEX(HHD!$C:$AX,Week!$J$3+COLUMN()-13,ROW()-4)) -> 126.4 | W20: =IF(INDEX(HHD!$C:$AX,Week!$J$3+COLUMN()-13,ROW()-4)=0,"",2*INDEX(HHD!$C:$AX,Week!$J$3+COLUMN()-13,ROW()-4)) -> 93.4 | X20: =IF(INDEX(HHD!$C:$AX,Week!$J$3+COLUMN()-13,ROW()-4)=0,"",2*INDEX(HHD!$C:$AX,Week!$J$3+COLUMN()-13,ROW()-4)) -> 119.4 | Y20: =IF(INDEX(HHD!$C:$AX,Week!$J$3+COLUMN()-13,ROW()-4)=0,"",2*INDEX(HHD!$C:$AX,Week!$J$3+COLUMN()-13,ROW()-4)) -> 106.8 | Z20: =IF(INDEX(HHD!$C:$AX,Week!$J$3+COLUMN()-13,ROW()-4)=0,"",2*INDEX(HHD!$C:$AX,Week!$J$3+COLUMN()-13,ROW()-4)) -> 51.8 | AA20: =IF(INDEX(HHD!$C:$AX,Week!$J$3+COLUMN()-13,ROW()-4)=0,"",2*INDEX(HHD!$C:$AX,Week!$J$3+COLUMN()-13,ROW()-4)) -> 100.2 | AB20: =IF(INDEX(HHD!$C:$AX,Week!$J$3+COLUMN()-13,ROW()-4)=0,"",2*INDEX(HHD!$C:$AX,Week!$J$3+COLUMN()-13,ROW()-4)) -> 121.4 | AC20: =IF(INDEX(HHD!$C:$AX,Week!$J$3+COLUMN()-13,ROW()-4)=0,"",2*INDEX(HHD!$C:$AX,Week!$J$3+COLUMN()-13,ROW()-4)) -> 98 | AD20: =IF(INDEX(HHD!$C:$AX,Week!$J$3+COLUMN()-13,ROW()-4)=0,"",2*INDEX(HHD!$C:$AX,Week!$J$3+COLUMN()-13,ROW()-4)) -> 112.4 | AE20: =IF(INDEX(HHD!$C:$AX,Week!$J$3+COLUMN()-13,ROW()-4)=0,"",2*INDEX(HHD!$C:$AX,Week!$J$3+COLUMN()-13,ROW()-4)) -> 106.8 | AF20: =IF(INDEX(HHD!$C:$AX,Week!$J$3+COLUMN()-13,ROW()-4)=0,"",2*INDEX(HHD!$C:$AX,Week!$J$3+COLUMN()-13,ROW()-4)) -> 120.2 | AG20: =IF(INDEX(HHD!$C:$AX,Week!$J$3+COLUMN()-13,ROW()-4)=0,"",2*INDEX(HHD!$C:$AX,Week!$J$3+COLUMN()-13,ROW()-4)) -> 62 | AH20: =IF(INDEX(HHD!$C:$AX,Week!$J$3+COLUMN()-13,ROW()-4)=0,"",2*INDEX(HHD!$C:$AX,Week!$J$3+COLUMN()-13,ROW()-4)) -> 127.4 | AI20: =IF(INDEX(HHD!$C:$AX,Week!$J$3+COLUMN()-13,ROW()-4)=0,"",2*INDEX(HHD!$C:$AX,Week!$J$3+COLUMN()-13,ROW()-4)) -> 95.8 | AJ20: =IF(INDEX(HHD!$C:$AX,Week!$J$3+COLUMN()-13,ROW()-4)=0,"",2*INDEX(HHD!$C:$AX,Week!$J$3+COLUMN()-13,ROW()-4)) -> 110.6 | AK20: =IF(INDEX(HHD!$C:$AX,Week!$J$3+COLUMN()-13,ROW()-4)=0,"",2*INDEX(HHD!$C:$AX,Week!$J$3+COLUMN()-13,ROW()-4)) -> 114.8 | AL20: =IF(INDEX(HHD!$C:$AX,Week!$J$3+COLUMN()-13,ROW()-4)=0,"",2*INDEX(HHD!$C:$AX,Week!$J$3+COLUMN()-13,ROW()-4)) -> 108.4 | AM20: =IF(INDEX(HHD!$C:$AX,Week!$J$3+COLUMN()-13,ROW()-4)=0,"",2*INDEX(HHD!$C:$AX,Week!$J$3+COLUMN()-13,ROW()-4)) -> 122.2 | AN20: =IF(INDEX(HHD!$C:$AX,Week!$J$3+COLUMN()-13,ROW()-4)=0,"",2*INDEX(HHD!$C:$AX,Week!$J$3+COLUMN()-13,ROW()-4)) -> 68.8 | AO20: =IF(INDEX(HHD!$C:$AX,Week!$J$3+COLUMN()-13,ROW()-4)=0,"",2*INDEX(HHD!$C:$AX,Week!$J$3+COLUMN()-13,ROW()-4)) -> 98 | AP20: =IF(INDEX(HHD!$C:$AX,Week!$J$3+COLUMN()-13,ROW()-4)=0,"",2*INDEX(HHD!$C:$AX,Week!$J$3+COLUMN()-13,ROW()-4)) -> 107 | AQ20: =IF(INDEX(HHD!$C:$AX,Week!$J$3+COLUMN()-13,ROW()-4)=0,"",2*INDEX(HHD!$C:$AX,Week!$J$3+COLUMN()-13,ROW()-4)) -> 115.8 | AR20: =IF(INDEX(HHD!$C:$AX,Week!$J$3+COLUMN()-13,ROW()-4)=0,"",2*INDEX(HHD!$C:$AX,Week!$J$3+COLUMN()-13,ROW()-4)) -> 118.4 | AS20: =IF(INDEX(HHD!$C:$AX,Week!$J$3+COLUMN()-13,ROW()-4)=0,"",2*INDEX(HHD!$C:$AX,Week!$J$3+COLUMN()-13,ROW()-4)) -> 106.4 | AT20: =IF(INDEX(HHD!$C:$AX,Week!$J$3+COLUMN()-13,ROW()-4)=0,"",2*INDEX(HHD!$C:$AX,Week!$J$3+COLUMN()-13,ROW()-4)) -> 86.2 | AU20: =IF(INDEX(HHD!$C:$AX,Week!$J$3+COLUMN()-13,ROW()-4)=0,"",2*INDEX(HHD!$C:$AX,Week!$J$3+COLUMN()-13,ROW()-4)) -> 53.6
D21: power demand | J21: 08:00:00 | M21: =IF(INDEX(HHD!$C:$AX,Week!$J$3+COLUMN()-13,ROW()-4)=0,"",2*INDEX(HHD!$C:$AX,Week!$J$3+COLUMN()-13,ROW()-4)) -> 125.4 | N21: =IF(INDEX(HHD!$C:$AX,Week!$J$3+COLUMN()-13,ROW()-4)=0,"",2*INDEX(HHD!$C:$AX,Week!$J$3+COLUMN()-13,ROW()-4)) -> 150.2 | O21: =IF(INDEX(HHD!$C:$AX,Week!$J$3+COLUMN()-13,ROW()-4)=0,"",2*INDEX(HHD!$C:$AX,Week!$J$3+COLUMN()-13,ROW()-4)) -> 130.8 | P21: =IF(INDEX(HHD!$C:$AX,Week!$J$3+COLUMN()-13,ROW()-4)=0,"",2*INDEX(HHD!$C:$AX,Week!$J$3+COLUMN()-13,ROW()-4)) -> 141.4 | Q21: =IF(INDEX(HHD!$C:$AX,Week!$J$3+COLUMN()-13,ROW()-4)=0,"",2*INDEX(HHD!$C:$AX,Week!$J$3+COLUMN()-13,ROW()-4)) -> 148.4 | R21: =IF(INDEX(HHD!$C:$AX,Week!$J$3+COLUMN()-13,ROW()-4)=0,"",2*INDEX(HHD!$C:$AX,Week!$J$3+COLUMN()-13,ROW()-4)) -> 153 | S21: =IF(INDEX(HHD!$C:$AX,Week!$J$3+COLUMN()-13,ROW()-4)=0,"",2*INDEX(HHD!$C:$AX,Week!$J$3+COLUMN()-13,ROW()-4)) -> 96.4 | T21: =IF(INDEX(HHD!$C:$AX,Week!$J$3+COLUMN()-13,ROW()-4)=0,"",2*INDEX(HHD!$C:$AX,Week!$J$3+COLUMN()-13,ROW()-4)) -> 136 | U21: =IF(INDEX(HHD!$C:$AX,Week!$J$3+COLUMN()-13,ROW()-4)=0,"",2*INDEX(HHD!$C:$AX,Week!$J$3+COLUMN()-13,ROW()-4)) -> 133.8 | V21: =IF(INDEX(HHD!$C:$AX,Week!$J$3+COLUMN()-13,ROW()-4)=0,"",2*INDEX(HHD!$C:$AX,Week!$J$3+COLUMN()-13,ROW()-4)) -> 131 | W21: =IF(INDEX(HHD!$C:$AX,Week!$J$3+COLUMN()-13,ROW()-4)=0,"",2*INDEX(HHD!$C:$AX,Week!$J$3+COLUMN()-13,ROW()-4)) -> 134.4 | X21: =IF(INDEX(HHD!$C:$AX,Week!$J$3+COLUMN()-13,ROW()-4)=0,"",2*INDEX(HHD!$C:$AX,Week!$J$3+COLUMN()-13,ROW()-4)) -> 121.4 | Y21: =IF(INDEX(HHD!$C:$AX,Week!$J$3+COLUMN()-13,ROW()-4)=0,"",2*INDEX(HHD!$C:$AX,Week!$J$3+COLUMN()-13,ROW()-4)) -> 128.6 | Z21: =IF(INDEX(HHD!$C:$AX,Week!$J$3+COLUMN()-13,ROW()-4)=0,"",2*INDEX(HHD!$C:$AX,Week!$J$3+COLUMN()-13,ROW()-4)) -> 99 | AA21: =IF(INDEX(HHD!$C:$AX,Week!$J$3+COLUMN()-13,ROW()-4)=0,"",2*INDEX(HHD!$C:$AX,Week!$J$3+COLUMN()-13,ROW()-4)) -> 170.4 | AB21: =IF(INDEX(HHD!$C:$AX,Week!$J$3+COLUMN()-13,ROW()-4)=0,"",2*INDEX(HHD!$C:$AX,Week!$J$3+COLUMN()-13,ROW()-4)) -> 128.6 | AC21: =IF(INDEX(HHD!$C:$AX,Week!$J$3+COLUMN()-13,ROW()-4)=0,"",2*INDEX(HHD!$C:$AX,Week!$J$3+COLUMN()-13,ROW()-4)) -> 137.4 | AD21: =IF(INDEX(HHD!$C:$AX,Week!$J$3+COLUMN()-13,ROW()-4)=0,"",2*INDEX(HHD!$C:$AX,Week!$J$3+COLUMN()-13,ROW()-4)) -> 134 | AE21: =IF(INDEX(HHD!$C:$AX,Week!$J$3+COLUMN()-13,ROW()-4)=0,"",2*INDEX(HHD!$C:$AX,Week!$J$3+COLUMN()-13,ROW()-4)) -> 156.2 | AF21: =IF(INDEX(HHD!$C:$AX,Week!$J$3+COLUMN()-13,ROW()-4)=0,"",2*INDEX(HHD!$C:$AX,Week!$J$3+COLUMN()-13,ROW()-4)) -> 132.6 | AG21: =IF(INDEX(HHD!$C:$AX,Week!$J$3+COLUMN()-13,ROW()-4)=0,"",2*INDEX(HHD!$C:$AX,Week!$J$3+COLUMN()-13,ROW()-4)) -> 85.8 | AH21: =IF(INDEX(HHD!$C:$AX,Week!$J$3+COLUMN()-13,ROW()-4)=0,"",2*INDEX(HHD!$C:$AX,Week!$J$3+COLUMN()-13,ROW()-4)) -> 144.2 | AI21: =IF(INDEX(HHD!$C:$AX,Week!$J$3+COLUMN()-13,ROW()-4)=0,"",2*INDEX(HHD!$C:$AX,Week!$J$3+COLUMN()-13,ROW()-4)) -> 149.4 | AJ21: =IF(INDEX(HHD!$C:$AX,Week!$J$3+COLUMN()-13,ROW()-4)=0,"",2*INDEX(HHD!$C:$AX,Week!$J$3+COLUMN()-13,ROW()-4)) -> 157.4 | AK21: =IF(INDEX(HHD!$C:$AX,Week!$J$3+COLUMN()-13,ROW()-4)=0,"",2*INDEX(HHD!$C:$AX,Week!$J$3+COLUMN()-13,ROW()-4)) -> 129.4 | AL21: =IF(INDEX(HHD!$C:$AX,Week!$J$3+COLUMN()-13,ROW()-4)=0,"",2*INDEX(HHD!$C:$AX,Week!$J$3+COLUMN()-13,ROW()-4)) -> 133.2 | AM21: =IF(INDEX(HHD!$C:$AX,Week!$J$3+COLUMN()-13,ROW()-4)=0,"",2*INDEX(HHD!$C:$AX,Week!$J$3+COLUMN()-13,ROW()-4)) -> 106.2 | AN21: =IF(INDEX(HHD!$C:$AX,Week!$J$3+COLUMN()-13,ROW()-4)=0,"",2*INDEX(HHD!$C:$AX,Week!$J$3+COLUMN()-13,ROW()-4)) -> 117.2 | AO21: =IF(INDEX(HHD!$C:$AX,Week!$J$3+COLUMN()-13,ROW()-4)=0,"",2*INDEX(HHD!$C:$AX,Week!$J$3+COLUMN()-13,ROW()-4)) -> 134.8 | AP21: =IF(INDEX(HHD!$C:$AX,Week!$J$3+COLUMN()-13,ROW()-4)=0,"",2*INDEX(HHD!$C:$AX,Week!$J$3+COLUMN()-13,ROW()-4)) -> 141.4 | AQ21: =IF(INDEX(HHD!$C:$AX,Week!$J$3+COLUMN()-13,ROW()-4)=0,"",2*INDEX(HHD!$C:$AX,Week!$J$3+COLUMN()-13,ROW()-4)) -> 135.6 | AR21: =IF(INDEX(HHD!$C:$AX,Week!$J$3+COLUMN()-13,ROW()-4)=0,"",2*INDEX(HHD!$C:$AX,Week!$J$3+COLUMN()-13,ROW()-4)) -> 145.8 | AS21: =IF(INDEX(HHD!$C:$AX,Week!$J$3+COLUMN()-13,ROW()-4)=0,"",2*INDEX(HHD!$C:$AX,Week!$J$3+COLUMN()-13,ROW()-4)) -> 129.4 | AT21: =IF(INDEX(HHD!$C:$AX,Week!$J$3+COLUMN()-13,ROW()-4)=0,"",2*INDEX(HHD!$C:$AX,Week!$J$3+COLUMN()-13,ROW()-4)) -> 145.6 | AU21: =IF(INDEX(HHD!$C:$AX,Week!$J$3+COLUMN()-13,ROW()-4)=0,"",2*INDEX(HHD!$C:$AX,Week!$J$3+COLUMN()-13,ROW()-4)) -> 85.2
D22: kW | J22: 08:30:00 | M22: =IF(INDEX(HHD!$C:$AX,Week!$J$3+COLUMN()-13,ROW()-4)=0,"",2*INDEX(HHD!$C:$AX,Week!$J$3+COLUMN()-13,ROW()-4)) -> 145.2 | N22: =IF(INDEX(HHD!$C:$AX,Week!$J$3+COLUMN()-13,ROW()-4)=0,"",2*INDEX(HHD!$C:$AX,Week!$J$3+COLUMN()-13,ROW()-4)) -> 155.2 | O22: =IF(INDEX(HHD!$C:$AX,Week!$J$3+COLUMN()-13,ROW()-4)=0,"",2*INDEX(HHD!$C:$AX,Week!$J$3+COLUMN()-13,ROW()-4)) -> 164 | P22: =IF(INDEX(HHD!$C:$AX,Week!$J$3+COLUMN()-13,ROW()-4)=0,"",2*INDEX(HHD!$C:$AX,Week!$J$3+COLUMN()-13,ROW()-4)) -> 161.6 | Q22: =IF(INDEX(HHD!$C:$AX,Week!$J$3+COLUMN()-13,ROW()-4)=0,"",2*INDEX(HHD!$C:$AX,Week!$J$3+COLUMN()-13,ROW()-4)) -> 178.8 | R22: =IF(INDEX(HHD!$C:$AX,Week!$J$3+COLUMN()-13,ROW()-4)=0,"",2*INDEX(HHD!$C:$AX,Week!$J$3+COLUMN()-13,ROW()-4)) -> 140.2 | S22: =IF(INDEX(HHD!$C:$AX,Week!$J$3+COLUMN()-13,ROW()-4)=0,"",2*INDEX(HHD!$C:$AX,Week!$J$3+COLUMN()-13,ROW()-4)) -> 127.4 | T22: =IF(INDEX(HHD!$C:$AX,Week!$J$3+COLUMN()-13,ROW()-4)=0,"",2*INDEX(HHD!$C:$AX,Week!$J$3+COLUMN()-13,ROW()-4)) -> 169.2 | U22: =IF(INDEX(HHD!$C:$AX,Week!$J$3+COLUMN()-13,ROW()-4)=0,"",2*INDEX(HHD!$C:$AX,Week!$J$3+COLUMN()-13,ROW()-4)) -> 168.4 | V22: =IF(INDEX(HHD!$C:$AX,Week!$J$3+COLUMN()-13,ROW()-4)=0,"",2*INDEX(HHD!$C:$AX,Week!$J$3+COLUMN()-13,ROW()-4)) -> 157.4 | W22: =IF(INDEX(HHD!$C:$AX,Week!$J$3+COLUMN()-13,ROW()-4)=0,"",2*INDEX(HHD!$C:$AX,Week!$J$3+COLUMN()-13,ROW()-4)) -> 140.4 | X22: =IF(INDEX(HHD!$C:$AX,Week!$J$3+COLUMN()-13,ROW()-4)=0,"",2*INDEX(HHD!$C:$AX,Week!$J$3+COLUMN()-13,ROW()-4)) -> 124.8 | Y22: =IF(INDEX(HHD!$C:$AX,Week!$J$3+COLUMN()-13,ROW()-4)=0,"",2*INDEX(HHD!$C:$AX,Week!$J$3+COLUMN()-13,ROW()-4)) -> 126.8 | Z22: =IF(INDEX(HHD!$C:$AX,Week!$J$3+COLUMN()-13,ROW()-4)=0,"",2*INDEX(HHD!$C:$AX,Week!$J$3+COLUMN()-13,ROW()-4)) -> 120.8 | AA22: =IF(INDEX(HHD!$C:$AX,Week!$J$3+COLUMN()-13,ROW()-4)=0,"",2*INDEX(HHD!$C:$AX,Week!$J$3+COLUMN()-13,ROW()-4)) -> 136 | AB22: =IF(INDEX(HHD!$C:$AX,Week!$J$3+COLUMN()-13,ROW()-4)=0,"",2*INDEX(HHD!$C:$AX,Week!$J$3+COLUMN()-13,ROW()-4)) -> 133 | AC22: =IF(INDEX(HHD!$C:$AX,Week!$J$3+COLUMN()-13,ROW()-4)=0,"",2*INDEX(HHD!$C:$AX,Week!$J$3+COLUMN()-13,ROW()-4)) -> 140 | AD22: =IF(INDEX(HHD!$C:$AX,Week!$J$3+COLUMN()-13,ROW()-4)=0,"",2*INDEX(HHD!$C:$AX,Week!$J$3+COLUMN()-13,ROW()-4)) -> 146 | AE22: =IF(INDEX(HHD!$C:$AX,Week!$J$3+COLUMN()-13,ROW()-4)=0,"",2*INDEX(HHD!$C:$AX,Week!$J$3+COLUMN()-13,ROW()-4)) -> 161.6 | AF22: =IF(INDEX(HHD!$C:$AX,Week!$J$3+COLUMN()-13,ROW()-4)=0,"",2*INDEX(HHD!$C:$AX,Week!$J$3+COLUMN()-13,ROW()-4)) -> 145 | AG22: =IF(INDEX(HHD!$C:$AX,Week!$J$3+COLUMN()-13,ROW()-4)=0,"",2*INDEX(HHD!$C:$AX,Week!$J$3+COLUMN()-13,ROW()-4)) -> 101.4 | AH22: =IF(INDEX(HHD!$C:$AX,Week!$J$3+COLUMN()-13,ROW()-4)=0,"",2*INDEX(HHD!$C:$AX,Week!$J$3+COLUMN()-13,ROW()-4)) -> 151.8 | AI22: =IF(INDEX(HHD!$C:$AX,Week!$J$3+COLUMN()-13,ROW()-4)=0,"",2*INDEX(HHD!$C:$AX,Week!$J$3+COLUMN()-13,ROW()-4)) -> 151 | AJ22: =IF(INDEX(HHD!$C:$AX,Week!$J$3+COLUMN()-13,ROW()-4)=0,"",2*INDEX(HHD!$C:$AX,Week!$J$3+COLUMN()-13,ROW()-4)) -> 138 | AK22: =IF(INDEX(HHD!$C:$AX,Week!$J$3+COLUMN()-13,ROW()-4)=0,"",2*INDEX(HHD!$C:$AX,Week!$J$3+COLUMN()-13,ROW()-4)) -> 168.6 | AL22: =IF(INDEX(HHD!$C:$AX,Week!$J$3+COLUMN()-13,ROW()-4)=0,"",2*INDEX(HHD!$C:$AX,Week!$J$3+COLUMN()-13,ROW()-4)) -> 136.2 | AM22: =IF(INDEX(HHD!$C:$AX,Week!$J$3+COLUMN()-13,ROW()-4)=0,"",2*INDEX(HHD!$C:$AX,Week!$J$3+COLUMN()-13,ROW()-4)) -> 141.4 | AN22: =IF(INDEX(HHD!$C:$AX,Week!$J$3+COLUMN()-13,ROW()-4)=0,"",2*INDEX(HHD!$C:$AX,Week!$J$3+COLUMN()-13,ROW()-4)) -> 117.4 | AO22: =IF(INDEX(HHD!$C:$AX,Week!$J$3+COLUMN()-13,ROW()-4)=0,"",2*INDEX(HHD!$C:$AX,Week!$J$3+COLUMN()-13,ROW()-4)) -> 161.8 | AP22: =IF(INDEX(HHD!$C:$AX,Week!$J$3+COLUMN()-13,ROW()-4)=0,"",2*INDEX(HHD!$C:$AX,Week!$J$3+COLUMN()-13,ROW()-4)) -> 143.8 | AQ22: =IF(INDEX(HHD!$C:$AX,Week!$J$3+COLUMN()-13,ROW()-4)=0,"",2*INDEX(HHD!$C:$AX,Week!$J$3+COLUMN()-13,ROW()-4)) -> 164.8 | AR22: =IF(INDEX(HHD!$C:$AX,Week!$J$3+COLUMN()-13,ROW()-4)=0,"",2*INDEX(HHD!$C:$AX,Week!$J$3+COLUMN()-13,ROW()-4)) -> 144.6 | AS22: =IF(INDEX(HHD!$C:$AX,Week!$J$3+COLUMN()-13,ROW()-4)=0,"",2*INDEX(HHD!$C:$AX,Week!$J$3+COLUMN()-13,ROW()-4)) -> 145 | AT22: =IF(INDEX(HHD!$C:$AX,Week!$J$3+COLUMN()-13,ROW()-4)=0,"",2*INDEX(HHD!$C:$AX,Week!$J$3+COLUMN()-13,ROW()-4)) -> 151.2 | AU22: =IF(INDEX(HHD!$C:$AX,Week!$J$3+COLUMN()-13,ROW()-4)=0,"",2*INDEX(HHD!$C:$AX,Week!$J$3+COLUMN()-13,ROW()-4)) -> 99.4
J23: 09:00:00 | M23: =IF(INDEX(HHD!$C:$AX,Week!$J$3+COLUMN()-13,ROW()-4)=0,"",2*INDEX(HHD!$C:$AX,Week!$J$3+COLUMN()-13,ROW()-4)) -> 151 | N23: =IF(INDEX(HHD!$C:$AX,Week!$J$3+COLUMN()-13,ROW()-4)=0,"",2*INDEX(HHD!$C:$AX,Week!$J$3+COLUMN()-13,ROW()-4)) -> 152 | O23: =IF(INDEX(HHD!$C:$AX,Week!$J$3+COLUMN()-13,ROW()-4)=0,"",2*INDEX(HHD!$C:$AX,Week!$J$3+COLUMN()-13,ROW()-4)) -> 153.8 | P23: =IF(INDEX(HHD!$C:$AX,Week!$J$3+COLUMN()-13,ROW()-4)=0,"",2*INDEX(HHD!$C:$AX,Week!$J$3+COLUMN()-13,ROW()-4)) -> 154.6 | Q23: =IF(INDEX(HHD!$C:$AX,Week!$J$3+COLUMN()-13,ROW()-4)=0,"",2*INDEX(HHD!$C:$AX,Week!$J$3+COLUMN()-13,ROW()-4)) -> 165.4 | R23: =IF(INDEX(HHD!$C:$AX,Week!$J$3+COLUMN()-13,ROW()-4)=0,"",2*INDEX(HHD!$C:$AX,Week!$J$3+COLUMN()-13,ROW()-4)) -> 141.4 | S23: =IF(INDEX(HHD!$C:$AX,Week!$J$3+COLUMN()-13,ROW()-4)=0,"",2*INDEX(HHD!$C:$AX,Week!$J$3+COLUMN()-13,ROW()-4)) -> 132.2 | T23: =IF(INDEX(HHD!$C:$AX,Week!$J$3+COLUMN()-13,ROW()-4)=0,"",2*INDEX(HHD!$C:$AX,Week!$J$3+COLUMN()-13,ROW()-4)) -> 164 | U23: =IF(INDEX(HHD!$C:$AX,Week!$J$3+COLUMN()-13,ROW()-4)=0,"",2*INDEX(HHD!$C:$AX,Week!$J$3+COLUMN()-13,ROW()-4)) -> 143 | V23: =IF(INDEX(HHD!$C:$AX,Week!$J$3+COLUMN()-13,ROW()-4)=0,"",2*INDEX(HHD!$C:$AX,Week!$J$3+COLUMN()-13,ROW()-4)) -> 151.4 | W23: =IF(INDEX(HHD!$C:$AX,Week!$J$3+COLUMN()-13,ROW()-4)=0,"",2*INDEX(HHD!$C:$AX,Week!$J$3+COLUMN()-13,ROW()-4)) -> 146.8 | X23: =IF(INDEX(HHD!$C:$AX,Week!$J$3+COLUMN()-13,ROW()-4)=0,"",2*INDEX(HHD!$C:$AX,Week!$J$3+COLUMN()-13,ROW()-4)) -> 132 | Y23: =IF(INDEX(HHD!$C:$AX,Week!$J$3+COLUMN()-13,ROW()-4)=0,"",2*INDEX(HHD!$C:$AX,Week!$J$3+COLUMN()-13,ROW()-4)) -> 132.6 | Z23: =IF(INDEX(HHD!$C:$AX,Week!$J$3+COLUMN()-13,ROW()-4)=0,"",2*INDEX(HHD!$C:$AX,Week!$J$3+COLUMN()-13,ROW()-4)) -> 128.6 | AA23: =IF(INDEX(HHD!$C:$AX,Week!$J$3+COLUMN()-13,ROW()-4)=0,"",2*INDEX(HHD!$C:$AX,Week!$J$3+COLUMN()-13,ROW()-4)) -> 142.8 | AB23: =IF(INDEX(HHD!$C:$AX,Week!$J$3+COLUMN()-13,ROW()-4)=0,"",2*INDEX(HHD!$C:$AX,Week!$J$3+COLUMN()-13,ROW()-4)) -> 167.2 | AC23: =IF(INDEX(HHD!$C:$AX,Week!$J$3+COLUMN()-13,ROW()-4)=0,"",2*INDEX(HHD!$C:$AX,Week!$J$3+COLUMN()-13,ROW()-4)) -> 163.8 | AD23: =IF(INDEX(HHD!$C:$AX,Week!$J$3+COLUMN()-13,ROW()-4)=0,"",2*INDEX(HHD!$C:$AX,Week!$J$3+COLUMN()-13,ROW()-4)) -> 134.6 | AE23: =IF(INDEX(HHD!$C:$AX,Week!$J$3+COLUMN()-13,ROW()-4)=0,"",2*INDEX(HHD!$C:$AX,Week!$J$3+COLUMN()-13,ROW()-4)) -> 138.4 | AF23: =IF(INDEX(HHD!$C:$AX,Week!$J$3+COLUMN()-13,ROW()-4)=0,"",2*INDEX(HHD!$C:$AX,Week!$J$3+COLUMN()-13,ROW()-4)) -> 137.6 | AG23: =IF(INDEX(HHD!$C:$AX,Week!$J$3+COLUMN()-13,ROW()-4)=0,"",2*INDEX(HHD!$C:$AX,Week!$J$3+COLUMN()-13,ROW()-4)) -> 127.2 | AH23: =IF(INDEX(HHD!$C:$AX,Week!$J$3+COLUMN()-13,ROW()-4)=0,"",2*INDEX(HHD!$C:$AX,Week!$J$3+COLUMN()-13,ROW()-4)) -> 155.2 | AI23: =IF(INDEX(HHD!$C:$AX,Week!$J$3+COLUMN()-13,ROW()-4)=0,"",2*INDEX(HHD!$C:$AX,Week!$J$3+COLUMN()-13,ROW()-4)) -> 159.4 | AJ23: =IF(INDEX(HHD!$C:$AX,Week!$J$3+COLUMN()-13,ROW()-4)=0,"",2*INDEX(HHD!$C:$AX,Week!$J$3+COLUMN()-13,ROW()-4)) -> 151.8 | AK23: =IF(INDEX(HHD!$C:$AX,Week!$J$3+COLUMN()-13,ROW()-4)=0,"",2*INDEX(HHD!$C:$AX,Week!$J$3+COLUMN()-13,ROW()-4)) -> 165.6 | AL23: =IF(INDEX(HHD!$C:$AX,Week!$J$3+COLUMN()-13,ROW()-4)=0,"",2*INDEX(HHD!$C:$AX,Week!$J$3+COLUMN()-13,ROW()-4)) -> 138.6 | AM23: =IF(INDEX(HHD!$C:$AX,Week!$J$3+COLUMN()-13,ROW()-4)=0,"",2*INDEX(HHD!$C:$AX,Week!$J$3+COLUMN()-13,ROW()-4)) -> 151 | AN23: =IF(INDEX(HHD!$C:$AX,Week!$J$3+COLUMN()-13,ROW()-4)=0,"",2*INDEX(HHD!$C:$AX,Week!$J$3+COLUMN()-13,ROW()-4)) -> 106 | AO23: =IF(INDEX(HHD!$C:$AX,Week!$J$3+COLUMN()-13,ROW()-4)=0,"",2*INDEX(HHD!$C:$AX,Week!$J$3+COLUMN()-13,ROW()-4)) -> 155.4 | AP23: =IF(INDEX(HHD!$C:$AX,Week!$J$3+COLUMN()-13,ROW()-4)=0,"",2*INDEX(HHD!$C:$AX,Week!$J$3+COLUMN()-13,ROW()-4)) -> 145.8 | AQ23: =IF(INDEX(HHD!$C:$AX,Week!$J$3+COLUMN()-13,ROW()-4)=0,"",2*INDEX(HHD!$C:$AX,Week!$J$3+COLUMN()-13,ROW()-4)) -> 212.8 | AR23: =IF(INDEX(HHD!$C:$AX,Week!$J$3+COLUMN()-13,ROW()-4)=0,"",2*INDEX(HHD!$C:$AX,Week!$J$3+COLUMN()-13,ROW()-4)) -> 175.4 | AS23: =IF(INDEX(HHD!$C:$AX,Week!$J$3+COLUMN()-13,ROW()-4)=0,"",2*INDEX(HHD!$C:$AX,Week!$J$3+COLUMN()-13,ROW()-4)) -> 156 | AT23: =IF(INDEX(HHD!$C:$AX,Week!$J$3+COLUMN()-13,ROW()-4)=0,"",2*INDEX(HHD!$C:$AX,Week!$J$3+COLUMN()-13,ROW()-4)) -> 166.8 | AU23: =IF(INDEX(HHD!$C:$AX,Week!$J$3+COLUMN()-13,ROW()-4)=0,"",2*INDEX(HHD!$C:$AX,Week!$J$3+COLUMN()-13,ROW()-4)) -> 113
C24: =D24 -> 212.8 | D24: =IF($D$38="C",$C41,IF($D$38="F",$D41,IF($D$38="Y",$E41,0))) -> 212.8 | E24: (Max) | J24: 09:30:00 | M24: =IF(INDEX(HHD!$C:$AX,Week!$J$3+COLUMN()-13,ROW()-4)=0,"",2*INDEX(HHD!$C:$AX,Week!$J$3+COLUMN()-13,ROW()-4)) -> 159.6 | N24: =IF(INDEX(HHD!$C:$AX,Week!$J$3+COLUMN()-13,ROW()-4)=0,"",2*INDEX(HHD!$C:$AX,Week!$J$3+COLUMN()-13,ROW()-4)) -> 171.2 | O24: =IF(INDEX(HHD!$C:$AX,Week!$J$3+COLUMN()-13,ROW()-4)=0,"",2*INDEX(HHD!$C:$AX,Week!$J$3+COLUMN()-13,ROW()-4)) -> 180.4 | P24: =IF(INDEX(HHD!$C:$AX,Week!$J$3+COLUMN()-13,ROW()-4)=0,"",2*INDEX(HHD!$C:$AX,Week!$J$3+COLUMN()-13,ROW()-4)) -> 178 | Q24: =IF(INDEX(HHD!$C:$AX,Week!$J$3+COLUMN()-13,ROW()-4)=0,"",2*INDEX(HHD!$C:$AX,Week!$J$3+COLUMN()-13,ROW()-4)) -> 173 | R24: =IF(INDEX(HHD!$C:$AX,Week!$J$3+COLUMN()-13,ROW()-4)=0,"",2*INDEX(HHD!$C:$AX,Week!$J$3+COLUMN()-13,ROW()-4)) -> 151.2 | S24: =IF(INDEX(HHD!$C:$AX,Week!$J$3+COLUMN()-13,ROW()-4)=0,"",2*INDEX(HHD!$C:$AX,Week!$J$3+COLUMN()-13,ROW()-4)) -> 137.4 | T24: =IF(INDEX(HHD!$C:$AX,Week!$J$3+COLUMN()-13,ROW()-4)=0,"",2*INDEX(HHD!$C:$AX,Week!$J$3+COLUMN()-13,ROW()-4)) -> 146.4 | U24: =IF(INDEX(HHD!$C:$AX,Week!$J$3+COLUMN()-13,ROW()-4)=0,"",2*INDEX(HHD!$C:$AX,Week!$J$3+COLUMN()-13,ROW()-4)) -> 141.2 | V24: =IF(INDEX(HHD!$C:$AX,Week!$J$3+COLUMN()-13,ROW()-4)=0,"",2*INDEX(HHD!$C:$AX,Week!$J$3+COLUMN()-13,ROW()-4)) -> 128.8 | W24: =IF(INDEX(HHD!$C:$AX,Week!$J$3+COLUMN()-13,ROW()-4)=0,"",2*INDEX(HHD!$C:$AX,Week!$J$3+COLUMN()-13,ROW()-4)) -> 169.2 | X24: =IF(INDEX(HHD!$C:$AX,Week!$J$3+COLUMN()-13,ROW()-4)=0,"",2*INDEX(HHD!$C:$AX,Week!$J$3+COLUMN()-13,ROW()-4)) -> 142.4 | Y24: =IF(INDEX(HHD!$C:$AX,Week!$J$3+COLUMN()-13,ROW()-4)=0,"",2*INDEX(HHD!$C:$AX,Week!$J$3+COLUMN()-13,ROW()-4)) -> 142.6 | Z24: =IF(INDEX(HHD!$C:$AX,Week!$J$3+COLUMN()-13,ROW()-4)=0,"",2*INDEX(HHD!$C:$AX,Week!$J$3+COLUMN()-13,ROW()-4)) -> 129 | AA24: =IF(INDEX(HHD!$C:$AX,Week!$J$3+COLUMN()-13,ROW()-4)=0,"",2*INDEX(HHD!$C:$AX,Week!$J$3+COLUMN()-13,ROW()-4)) -> 150.4 | AB24: =IF(INDEX(HHD!$C:$AX,Week!$J$3+COLUMN()-13,ROW()-4)=0,"",2*INDEX(HHD!$C:$AX,Week!$J$3+COLUMN()-13,ROW()-4)) -> 147.4 | AC24: =IF(INDEX(HHD!$C:$AX,Week!$J$3+COLUMN()-13,ROW()-4)=0,"",2*INDEX(HHD!$C:$AX,Week!$J$3+COLUMN()-13,ROW()-4)) -> 154 | AD24: =IF(INDEX(HHD!$C:$AX,Week!$J$3+COLUMN()-13,ROW()-4)=0,"",2*INDEX(HHD!$C:$AX,Week!$J$3+COLUMN()-13,ROW()-4)) -> 145 | AE24: =IF(INDEX(HHD!$C:$AX,Week!$J$3+COLUMN()-13,ROW()-4)=0,"",2*INDEX(HHD!$C:$AX,Week!$J$3+COLUMN()-13,ROW()-4)) -> 158.6 | AF24: =IF(INDEX(HHD!$C:$AX,Week!$J$3+COLUMN()-13,ROW()-4)=0,"",2*INDEX(HHD!$C:$AX,Week!$J$3+COLUMN()-13,ROW()-4)) -> 130.4 | AG24: =IF(INDEX(HHD!$C:$AX,Week!$J$3+COLUMN()-13,ROW()-4)=0,"",2*INDEX(HHD!$C:$AX,Week!$J$3+COLUMN()-13,ROW()-4)) -> 138.8 | AH24: =IF(INDEX(HHD!$C:$AX,Week!$J$3+COLUMN()-13,ROW()-4)=0,"",2*INDEX(HHD!$C:$AX,Week!$J$3+COLUMN()-13,ROW()-4)) -> 161.6 | AI24: =IF(INDEX(HHD!$C:$AX,Week!$J$3+COLUMN()-13,ROW()-4)=0,"",2*INDEX(HHD!$C:$AX,Week!$J$3+COLUMN()-13,ROW()-4)) -> 170.6 | AJ24: =IF(INDEX(HHD!$C:$AX,Week!$J$3+COLUMN()-13,ROW()-4)=0,"",2*INDEX(HHD!$C:$AX,Week!$J$3+COLUMN()-13,ROW()-4)) -> 157 | AK24: =IF(INDEX(HHD!$C:$AX,Week!$J$3+COLUMN()-13,ROW()-4)=0,"",2*INDEX(HHD!$C:$AX,Week!$J$3+COLUMN()-13,ROW()-4)) -> 179.2 | AL24: =IF(INDEX(HHD!$C:$AX,Week!$J$3+COLUMN()-13,ROW()-4)=0,"",2*INDEX(HHD!$C:$AX,Week!$J$3+COLUMN()-13,ROW()-4)) -> 141.6 | AM24: =IF(INDEX(HHD!$C:$AX,Week!$J$3+COLUMN()-13,ROW()-4)=0,"",2*INDEX(HHD!$C:$AX,Week!$J$3+COLUMN()-13,ROW()-4)) -> 158.2 | AN24: =IF(INDEX(HHD!$C:$AX,Week!$J$3+COLUMN()-13,ROW()-4)=0,"",2*INDEX(HHD!$C:$AX,Week!$J$3+COLUMN()-13,ROW()-4)) -> 123.4 | AO24: =IF(INDEX(HHD!$C:$AX,Week!$J$3+COLUMN()-13,ROW()-4)=0,"",2*INDEX(HHD!$C:$AX,Week!$J$3+COLUMN()-13,ROW()-4)) -> 138.6 | AP24: =IF(INDEX(HHD!$C:$AX,Week!$J$3+COLUMN()-13,ROW()-4)=0,"",2*INDEX(HHD!$C:$AX,Week!$J$3+COLUMN()-13,ROW()-4)) -> 152.8 | AQ24: =IF(INDEX(HHD!$C:$AX,Week!$J$3+COLUMN()-13,ROW()-4)=0,"",2*INDEX(HHD!$C:$AX,Week!$J$3+COLUMN()-13,ROW()-4)) -> 170.6 | AR24: =IF(INDEX(HHD!$C:$AX,Week!$J$3+COLUMN()-13,ROW()-4)=0,"",2*INDEX(HHD!$C:$AX,Week!$J$3+COLUMN()-13,ROW()-4)) -> 154.2 | AS24: =IF(INDEX(HHD!$C:$AX,Week!$J$3+COLUMN()-13,ROW()-4)=0,"",2*INDEX(HHD!$C:$AX,Week!$J$3+COLUMN()-13,ROW()-4)) -> 169 | AT24: =IF(INDEX(HHD!$C:$AX,Week!$J$3+COLUMN()-13,ROW()-4)=0,"",2*INDEX(HHD!$C:$AX,Week!$J$3+COLUMN()-13,ROW()-4)) -> 187 | AU24: =IF(INDEX(HHD!$C:$AX,Week!$J$3+COLUMN()-13,ROW()-4)=0,"",2*INDEX(HHD!$C:$AX,Week!$J$3+COLUMN()-13,ROW()-4)) -> 161
C25: =D25 -> 192 | D25: 192 | J25: 10:00:00 | M25: =IF(INDEX(HHD!$C:$AX,Week!$J$3+COLUMN()-13,ROW()-4)=0,"",2*INDEX(HHD!$C:$AX,Week!$J$3+COLUMN()-13,ROW()-4)) -> 181.6 | N25: =IF(INDEX(HHD!$C:$AX,Week!$J$3+COLUMN()-13,ROW()-4)=0,"",2*INDEX(HHD!$C:$AX,Week!$J$3+COLUMN()-13,ROW()-4)) -> 189 | O25: =IF(INDEX(HHD!$C:$AX,Week!$J$3+COLUMN()-13,ROW()-4)=0,"",2*INDEX(HHD!$C:$AX,Week!$J$3+COLUMN()-13,ROW()-4)) -> 171.2 | P25: =IF(INDEX(HHD!$C:$AX,Week!$J$3+COLUMN()-13,ROW()-4)=0,"",2*INDEX(HHD!$C:$AX,Week!$J$3+COLUMN()-13,ROW()-4)) -> 172 | Q25: =IF(INDEX(HHD!$C:$AX,Week!$J$3+COLUMN()-13,ROW()-4)=0,"",2*INDEX(HHD!$C:$AX,Week!$J$3+COLUMN()-13,ROW()-4)) -> 158.2 | R25: =IF(INDEX(HHD!$C:$AX,Week!$J$3+COLUMN()-13,ROW()-4)=0,"",2*INDEX(HHD!$C:$AX,Week!$J$3+COLUMN()-13,ROW()-4)) -> 170.2 | S25: =IF(INDEX(HHD!$C:$AX,Week!$J$3+COLUMN()-13,ROW()-4)=0,"",2*INDEX(HHD!$C:$AX,Week!$J$3+COLUMN()-13,ROW()-4)) -> 127.8 | T25: =IF(INDEX(HHD!$C:$AX,Week!$J$3+COLUMN()-13,ROW()-4)=0,"",2*INDEX(HHD!$C:$AX,Week!$J$3+COLUMN()-13,ROW()-4)) -> 168.4 | U25: =IF(INDEX(HHD!$C:$AX,Week!$J$3+COLUMN()-13,ROW()-4)=0,"",2*INDEX(HHD!$C:$AX,Week!$J$3+COLUMN()-13,ROW()-4)) -> 146.4 | V25: =IF(INDEX(HHD!$C:$AX,Week!$J$3+COLUMN()-13,ROW()-4)=0,"",2*INDEX(HHD!$C:$AX,Week!$J$3+COLUMN()-13,ROW()-4)) -> 155 | W25: =IF(INDEX(HHD!$C:$AX,Week!$J$3+COLUMN()-13,ROW()-4)=0,"",2*INDEX(HHD!$C:$AX,Week!$J$3+COLUMN()-13,ROW()-4)) -> 163.4 | X25: =IF(INDEX(HHD!$C:$AX,Week!$J$3+COLUMN()-13,ROW()-4)=0,"",2*INDEX(HHD!$C:$AX,Week!$J$3+COLUMN()-13,ROW()-4)) -> 147 | Y25: =IF(INDEX(HHD!$C:$AX,Week!$J$3+COLUMN()-13,ROW()-4)=0,"",2*INDEX(HHD!$C:$AX,Week!$J$3+COLUMN()-13,ROW()-4)) -> 139 | Z25: =IF(INDEX(HHD!$C:$AX,Week!$J$3+COLUMN()-13,ROW()-4)=0,"",2*INDEX(HHD!$C:$AX,Week!$J$3+COLUMN()-13,ROW()-4)) -> 132.4 | AA25: =IF(INDEX(HHD!$C:$AX,Week!$J$3+COLUMN()-13,ROW()-4)=0,"",2*INDEX(HHD!$C:$AX,Week!$J$3+COLUMN()-13,ROW()-4)) -> 166.8 | AB25: =IF(INDEX(HHD!$C:$AX,Week!$J$3+COLUMN()-13,ROW()-4)=0,"",2*INDEX(HHD!$C:$AX,Week!$J$3+COLUMN()-13,ROW()-4)) -> 174.8 | AC25: =IF(INDEX(HHD!$C:$AX,Week!$J$3+COLUMN()-13,ROW()-4)=0,"",2*INDEX(HHD!$C:$AX,Week!$J$3+COLUMN()-13,ROW()-4)) -> 150.2 | AD25: =IF(INDEX(HHD!$C:$AX,Week!$J$3+COLUMN()-13,ROW()-4)=0,"",2*INDEX(HHD!$C:$AX,Week!$J$3+COLUMN()-13,ROW()-4)) -> 159.2 | AE25: =IF(INDEX(HHD!$C:$AX,Week!$J$3+COLUMN()-13,ROW()-4)=0,"",2*INDEX(HHD!$C:$AX,Week!$J$3+COLUMN()-13,ROW()-4)) -> 172.4 | AF25: =IF(INDEX(HHD!$C:$AX,Week!$J$3+COLUMN()-13,ROW()-4)=0,"",2*INDEX(HHD!$C:$AX,Week!$J$3+COLUMN()-13,ROW()-4)) -> 138.6 | AG25: =IF(INDEX(HHD!$C:$AX,Week!$J$3+COLUMN()-13,ROW()-4)=0,"",2*INDEX(HHD!$C:$AX,Week!$J$3+COLUMN()-13,ROW()-4)) -> 159.2 | AH25: =IF(INDEX(HHD!$C:$AX,Week!$J$3+COLUMN()-13,ROW()-4)=0,"",2*INDEX(HHD!$C:$AX,Week!$J$3+COLUMN()-13,ROW()-4)) -> 175.4 | AI25: =IF(INDEX(HHD!$C:$AX,Week!$J$3+COLUMN()-13,ROW()-4)=0,"",2*INDEX(HHD!$C:$AX,Week!$J$3+COLUMN()-13,ROW()-4)) -> 182.4 | AJ25: =IF(INDEX(HHD!$C:$AX,Week!$J$3+COLUMN()-13,ROW()-4)=0,"",2*INDEX(HHD!$C:$AX,Week!$J$3+COLUMN()-13,ROW()-4)) -> 156.8 | AK25: =IF(INDEX(HHD!$C:$AX,Week!$J$3+COLUMN()-13,ROW()-4)=0,"",2*INDEX(HHD!$C:$AX,Week!$J$3+COLUMN()-13,ROW()-4)) -> 163 | AL25: =IF(INDEX(HHD!$C:$AX,Week!$J$3+COLUMN()-13,ROW()-4)=0,"",2*INDEX(HHD!$C:$AX,Week!$J$3+COLUMN()-13,ROW()-4)) -> 171.8 | AM25: =IF(INDEX(HHD!$C:$AX,Week!$J$3+COLUMN()-13,ROW()-4)=0,"",2*INDEX(HHD!$C:$AX,Week!$J$3+COLUMN()-13,ROW()-4)) -> 167.6 | AN25: =IF(INDEX(HHD!$C:$AX,Week!$J$3+COLUMN()-13,ROW()-4)=0,"",2*INDEX(HHD!$C:$AX,Week!$J$3+COLUMN()-13,ROW()-4)) -> 147.8 | AO25: =IF(INDEX(HHD!$C:$AX,Week!$J$3+COLUMN()-13,ROW()-4)=0,"",2*INDEX(HHD!$C:$AX,Week!$J$3+COLUMN()-13,ROW()-4)) -> 162.2 | AP25: =IF(INDEX(HHD!$C:$AX,Week!$J$3+COLUMN()-13,ROW()-4)=0,"",2*INDEX(HHD!$C:$AX,Week!$J$3+COLUMN()-13,ROW()-4)) -> 171 | AQ25: =IF(INDEX(HHD!$C:$AX,Week!$J$3+COLUMN()-13,ROW()-4)=0,"",2*INDEX(HHD!$C:$AX,Week!$J$3+COLUMN()-13,ROW()-4)) -> 187 | AR25: =IF(INDEX(HHD!$C:$AX,Week!$J$3+COLUMN()-13,ROW()-4)=0,"",2*INDEX(HHD!$C:$AX,Week!$J$3+COLUMN()-13,ROW()-4)) -> 175.2 | AS25: =IF(INDEX(HHD!$C:$AX,Week!$J$3+COLUMN()-13,ROW()-4)=0,"",2*INDEX(HHD!$C:$AX,Week!$J$3+COLUMN()-13,ROW()-4)) -> 164.2 | AT25: =IF(INDEX(HHD!$C:$AX,Week!$J$3+COLUMN()-13,ROW()-4)=0,"",2*INDEX(HHD!$C:$AX,Week!$J$3+COLUMN()-13,ROW()-4)) -> 182.2 | AU25: =IF(INDEX(HHD!$C:$AX,Week!$J$3+COLUMN()-13,ROW()-4)=0,"",2*INDEX(HHD!$C:$AX,Week!$J$3+COLUMN()-13,ROW()-4)) -> 167.2
C26: 171.2 | D26: 171.2 | J26: 10:30:00 | M26: =IF(INDEX(HHD!$C:$AX,Week!$J$3+COLUMN()-13,ROW()-4)=0,"",2*INDEX(HHD!$C:$AX,Week!$J$3+COLUMN()-13,ROW()-4)) -> 202.4 | N26: =IF(INDEX(HHD!$C:$AX,Week!$J$3+COLUMN()-13,ROW()-4)=0,"",2*INDEX(HHD!$C:$AX,Week!$J$3+COLUMN()-13,ROW()-4)) -> 167.2 | O26: =IF(INDEX(HHD!$C:$AX,Week!$J$3+COLUMN()-13,ROW()-4)=0,"",2*INDEX(HHD!$C:$AX,Week!$J$3+COLUMN()-13,ROW()-4)) -> 175.2 | P26: =IF(INDEX(HHD!$C:$AX,Week!$J$3+COLUMN()-13,ROW()-4)=0,"",2*INDEX(HHD!$C:$AX,Week!$J$3+COLUMN()-13,ROW()-4)) -> 187.6 | Q26: =IF(INDEX(HHD!$C:$AX,Week!$J$3+COLUMN()-13,ROW()-4)=0,"",2*INDEX(HHD!$C:$AX,Week!$J$3+COLUMN()-13,ROW()-4)) -> 163.6 | R26: =IF(INDEX(HHD!$C:$AX,Week!$J$3+COLUMN()-13,ROW()-4)=0,"",2*INDEX(HHD!$C:$AX,Week!$J$3+COLUMN()-13,ROW()-4)) -> 188.4 | S26: =IF(INDEX(HHD!$C:$AX,Week!$J$3+COLUMN()-13,ROW()-4)=0,"",2*INDEX(HHD!$C:$AX,Week!$J$3+COLUMN()-13,ROW()-4)) -> 159 | T26: =IF(INDEX(HHD!$C:$AX,Week!$J$3+COLUMN()-13,ROW()-4)=0,"",2*INDEX(HHD!$C:$AX,Week!$J$3+COLUMN()-13,ROW()-4)) -> 158 | U26: =IF(INDEX(HHD!$C:$AX,Week!$J$3+COLUMN()-13,ROW()-4)=0,"",2*INDEX(HHD!$C:$AX,Week!$J$3+COLUMN()-13,ROW()-4)) -> 168 | V26: =IF(INDEX(HHD!$C:$AX,Week!$J$3+COLUMN()-13,ROW()-4)=0,"",2*INDEX(HHD!$C:$AX,Week!$J$3+COLUMN()-13,ROW()-4)) -> 168.4 | W26: =IF(INDEX(HHD!$C:$AX,Week!$J$3+COLUMN()-13,ROW()-4)=0,"",2*INDEX(HHD!$C:$AX,Week!$J$3+COLUMN()-13,ROW()-4)) -> 179 | X26: =IF(INDEX(HHD!$C:$AX,Week!$J$3+COLUMN()-13,ROW()-4)=0,"",2*INDEX(HHD!$C:$AX,Week!$J$3+COLUMN()-13,ROW()-4)) -> 180.4 | Y26: =IF(INDEX(HHD!$C:$AX,Week!$J$3+COLUMN()-13,ROW()-4)=0,"",2*INDEX(HHD!$C:$AX,Week!$J$3+COLUMN()-13,ROW()-4)) -> 164.8 | Z26: =IF(INDEX(HHD!$C:$AX,Week!$J$3+COLUMN()-13,ROW()-4)=0,"",2*INDEX(HHD!$C:$AX,Week!$J$3+COLUMN()-13,ROW()-4)) -> 143 | AA26: =IF(INDEX(HHD!$C:$AX,Week!$J$3+COLUMN()-13,ROW()-4)=0,"",2*INDEX(HHD!$C:$AX,Week!$J$3+COLUMN()-13,ROW()-4)) -> 166.8 | AB26: =IF(INDEX(HHD!$C:$AX,Week!$J$3+COLUMN()-13,ROW()-4)=0,"",2*INDEX(HHD!$C:$AX,Week!$J$3+COLUMN()-13,ROW()-4)) -> 163.6 | AC26: =IF(INDEX(HHD!$C:$AX,Week!$J$3+COLUMN()-13,ROW()-4)=0,"",2*INDEX(HHD!$C:$AX,Week!$J$3+COLUMN()-13,ROW()-4)) -> 157.2 | AD26: =IF(INDEX(HHD!$C:$AX,Week!$J$3+COLUMN()-13,ROW()-4)=0,"",2*INDEX(HHD!$C:$AX,Week!$J$3+COLUMN()-13,ROW()-4)) -> 158.8 | AE26: =IF(INDEX(HHD!$C:$AX,Week!$J$3+COLUMN()-13,ROW()-4)=0,"",2*INDEX(HHD!$C:$AX,Week!$J$3+COLUMN()-13,ROW()-4)) -> 162.6 | AF26: =IF(INDEX(HHD!$C:$AX,Week!$J$3+COLUMN()-13,ROW()-4)=0,"",2*INDEX(HHD!$C:$AX,Week!$J$3+COLUMN()-13,ROW()-4)) -> 150.6 | AG26: =IF(INDEX(HHD!$C:$AX,Week!$J$3+COLUMN()-13,ROW()-4)=0,"",2*INDEX(HHD!$C:$AX,Week!$J$3+COLUMN()-13,ROW()-4)) -> 155.8 | AH26: =IF(INDEX(HHD!$C:$AX,Week!$J$3+COLUMN()-13,ROW()-4)=0,"",2*INDEX(HHD!$C:$AX,Week!$J$3+COLUMN()-13,ROW()-4)) -> 168.2 | AI26: =IF(INDEX(HHD!$C:$AX,Week!$J$3+COLUMN()-13,ROW()-4)=0,"",2*INDEX(HHD!$C:$AX,Week!$J$3+COLUMN()-13,ROW()-4)) -> 164.6 | AJ26: =IF(INDEX(HHD!$C:$AX,Week!$J$3+COLUMN()-13,ROW()-4)=0,"",2*INDEX(HHD!$C:$AX,Week!$J$3+COLUMN()-13,ROW()-4)) -> 148.6 | AK26: =IF(INDEX(HHD!$C:$AX,Week!$J$3+COLUMN()-13,ROW()-4)=0,"",2*INDEX(HHD!$C:$AX,Week!$J$3+COLUMN()-13,ROW()-4)) -> 181.8 | AL26: =IF(INDEX(HHD!$C:$AX,Week!$J$3+COLUMN()-13,ROW()-4)=0,"",2*INDEX(HHD!$C:$AX,Week!$J$3+COLUMN()-13,ROW()-4)) -> 209.4 | AM26: =IF(INDEX(HHD!$C:$AX,Week!$J$3+COLUMN()-13,ROW()-4)=0,"",2*INDEX(HHD!$C:$AX,Week!$J$3+COLUMN()-13,ROW()-4)) -> 148.8 | AN26: =IF(INDEX(HHD!$C:$AX,Week!$J$3+COLUMN()-13,ROW()-4)=0,"",2*INDEX(HHD!$C:$AX,Week!$J$3+COLUMN()-13,ROW()-4)) -> 174.8 | AO26: =IF(INDEX(HHD!$C:$AX,Week!$J$3+COLUMN()-13,ROW()-4)=0,"",2*INDEX(HHD!$C:$AX,Week!$J$3+COLUMN()-13,ROW()-4)) -> 155 | AP26: =IF(INDEX(HHD!$C:$AX,Week!$J$3+COLUMN()-13,ROW()-4)=0,"",2*INDEX(HHD!$C:$AX,Week!$J$3+COLUMN()-13,ROW()-4)) -> 167 | AQ26: =IF(INDEX(HHD!$C:$AX,Week!$J$3+COLUMN()-13,ROW()-4)=0,"",2*INDEX(HHD!$C:$AX,Week!$J$3+COLUMN()-13,ROW()-4)) -> 180 | AR26: =IF(INDEX(HHD!$C:$AX,Week!$J$3+COLUMN()-13,ROW()-4)=0,"",2*INDEX(HHD!$C:$AX,Week!$J$3+COLUMN()-13,ROW()-4)) -> 192.6 | AS26: =IF(INDEX(HHD!$C:$AX,Week!$J$3+COLUMN()-13,ROW()-4)=0,"",2*INDEX(HHD!$C:$AX,Week!$J$3+COLUMN()-13,ROW()-4)) -> 185.4 | AT26: =IF(INDEX(HHD!$C:$AX,Week!$J$3+COLUMN()-13,ROW()-4)=0,"",2*INDEX(HHD!$C:$AX,Week!$J$3+COLUMN()-13,ROW()-4)) -> 184.2 | AU26: =IF(INDEX(HHD!$C:$AX,Week!$J$3+COLUMN()-13,ROW()-4)=0,"",2*INDEX(HHD!$C:$AX,Week!$J$3+COLUMN()-13,ROW()-4)) -> 156.8
C27: 150.4 | D27: 150.4 | J27: 11:00:00 | M27: =IF(INDEX(HHD!$C:$AX,Week!$J$3+COLUMN()-13,ROW()-4)=0,"",2*INDEX(HHD!$C:$AX,Week!$J$3+COLUMN()-13,ROW()-4)) -> 179 | N27: =IF(INDEX(HHD!$C:$AX,Week!$J$3+COLUMN()-13,ROW()-4)=0,"",2*INDEX(HHD!$C:$AX,Week!$J$3+COLUMN()-13,ROW()-4)) -> 183.2 | O27: =IF(INDEX(HHD!$C:$AX,Week!$J$3+COLUMN()-13,ROW()-4)=0,"",2*INDEX(HHD!$C:$AX,Week!$J$3+COLUMN()-13,ROW()-4)) -> 182.8 | P27: =IF(INDEX(HHD!$C:$AX,Week!$J$3+COLUMN()-13,ROW()-4)=0,"",2*INDEX(HHD!$C:$AX,Week!$J$3+COLUMN()-13,ROW()-4)) -> 159 | Q27: =IF(INDEX(HHD!$C:$AX,Week!$J$3+COLUMN()-13,ROW()-4)=0,"",2*INDEX(HHD!$C:$AX,Week!$J$3+COLUMN()-13,ROW()-4)) -> 174 | R27: =IF(INDEX(HHD!$C:$AX,Week!$J$3+COLUMN()-13,ROW()-4)=0,"",2*INDEX(HHD!$C:$AX,Week!$J$3+COLUMN()-13,ROW()-4)) -> 184.6 | S27: =IF(INDEX(HHD!$C:$AX,Week!$J$3+COLUMN()-13,ROW()-4)=0,"",2*INDEX(HHD!$C:$AX,Week!$J$3+COLUMN()-13,ROW()-4)) -> 176.2 | T27: =IF(INDEX(HHD!$C:$AX,Week!$J$3+COLUMN()-13,ROW()-4)=0,"",2*INDEX(HHD!$C:$AX,Week!$J$3+COLUMN()-13,ROW()-4)) -> 181.8 | U27: =IF(INDEX(HHD!$C:$AX,Week!$J$3+COLUMN()-13,ROW()-4)=0,"",2*INDEX(HHD!$C:$AX,Week!$J$3+COLUMN()-13,ROW()-4)) -> 179.2 | V27: =IF(INDEX(HHD!$C:$AX,Week!$J$3+COLUMN()-13,ROW()-4)=0,"",2*INDEX(HHD!$C:$AX,Week!$J$3+COLUMN()-13,ROW()-4)) -> 167.4 | W27: =IF(INDEX(HHD!$C:$AX,Week!$J$3+COLUMN()-13,ROW()-4)=0,"",2*INDEX(HHD!$C:$AX,Week!$J$3+COLUMN()-13,ROW()-4)) -> 143.8 | X27: =IF(INDEX(HHD!$C:$AX,Week!$J$3+COLUMN()-13,ROW()-4)=0,"",2*INDEX(HHD!$C:$AX,Week!$J$3+COLUMN()-13,ROW()-4)) -> 169.8 | Y27: =IF(INDEX(HHD!$C:$AX,Week!$J$3+COLUMN()-13,ROW()-4)=0,"",2*INDEX(HHD!$C:$AX,Week!$J$3+COLUMN()-13,ROW()-4)) -> 175.8 | Z27: =IF(INDEX(HHD!$C:$AX,Week!$J$3+COLUMN()-13,ROW()-4)=0,"",2*INDEX(HHD!$C:$AX,Week!$J$3+COLUMN()-13,ROW()-4)) -> 141.6 | AA27: =IF(INDEX(HHD!$C:$AX,Week!$J$3+COLUMN()-13,ROW()-4)=0,"",2*INDEX(HHD!$C:$AX,Week!$J$3+COLUMN()-13,ROW()-4)) -> 177.6 | AB27: =IF(INDEX(HHD!$C:$AX,Week!$J$3+COLUMN()-13,ROW()-4)=0,"",2*INDEX(HHD!$C:$AX,Week!$J$3+COLUMN()-13,ROW()-4)) -> 156.8 | AC27: =IF(INDEX(HHD!$C:$AX,Week!$J$3+COLUMN()-13,ROW()-4)=0,"",2*INDEX(HHD!$C:$AX,Week!$J$3+COLUMN()-13,ROW()-4)) -> 160.4 | AD27: =IF(INDEX(HHD!$C:$AX,Week!$J$3+COLUMN()-13,ROW()-4)=0,"",2*INDEX(HHD!$C:$AX,Week!$J$3+COLUMN()-13,ROW()-4)) -> 176.8 | AE27: =IF(INDEX(HHD!$C:$AX,Week!$J$3+COLUMN()-13,ROW()-4)=0,"",2*INDEX(HHD!$C:$AX,Week!$J$3+COLUMN()-13,ROW()-4)) -> 172.2 | AF27: =IF(INDEX(HHD!$C:$AX,Week!$J$3+COLUMN()-13,ROW()-4)=0,"",2*INDEX(HHD!$C:$AX,Week!$J$3+COLUMN()-13,ROW()-4)) -> 188.4 | AG27: =IF(INDEX(HHD!$C:$AX,Week!$J$3+COLUMN()-13,ROW()-4)=0,"",2*INDEX(HHD!$C:$AX,Week!$J$3+COLUMN()-13,ROW()-4)) -> 154.2 | AH27: =IF(INDEX(HHD!$C:$AX,Week!$J$3+COLUMN()-13,ROW()-4)=0,"",2*INDEX(HHD!$C:$AX,Week!$J$3+COLUMN()-13,ROW()-4)) -> 158.8 | AI27: =IF(INDEX(HHD!$C:$AX,Week!$J$3+COLUMN()-13,ROW()-4)=0,"",2*INDEX(HHD!$C:$AX,Week!$J$3+COLUMN()-13,ROW()-4)) -> 174.6 | AJ27: =IF(INDEX(HHD!$C:$AX,Week!$J$3+COLUMN()-13,ROW()-4)=0,"",2*INDEX(HHD!$C:$AX,Week!$J$3+COLUMN()-13,ROW()-4)) -> 173.8 | AK27: =IF(INDEX(HHD!$C:$AX,Week!$J$3+COLUMN()-13,ROW()-4)=0,"",2*INDEX(HHD!$C:$AX,Week!$J$3+COLUMN()-13,ROW()-4)) -> 179.6 | AL27: =IF(INDEX(HHD!$C:$AX,Week!$J$3+COLUMN()-13,ROW()-4)=0,"",2*INDEX(HHD!$C:$AX,Week!$J$3+COLUMN()-13,ROW()-4)) -> 189.2 | AM27: =IF(INDEX(HHD!$C:$AX,Week!$J$3+COLUMN()-13,ROW()-4)=0,"",2*INDEX(HHD!$C:$AX,Week!$J$3+COLUMN()-13,ROW()-4)) -> 150.4 | AN27: =IF(INDEX(HHD!$C:$AX,Week!$J$3+COLUMN()-13,ROW()-4)=0,"",2*INDEX(HHD!$C:$AX,Week!$J$3+COLUMN()-13,ROW()-4)) -> 159.8 | AO27: =IF(INDEX(HHD!$C:$AX,Week!$J$3+COLUMN()-13,ROW()-4)=0,"",2*INDEX(HHD!$C:$AX,Week!$J$3+COLUMN()-13,ROW()-4)) -> 172.6 | AP27: =IF(INDEX(HHD!$C:$AX,Week!$J$3+COLUMN()-13,ROW()-4)=0,"",2*INDEX(HHD!$C:$AX,Week!$J$3+COLUMN()-13,ROW()-4)) -> 184.4 | AQ27: =IF(INDEX(HHD!$C:$AX,Week!$J$3+COLUMN()-13,ROW()-4)=0,"",2*INDEX(HHD!$C:$AX,Week!$J$3+COLUMN()-13,ROW()-4)) -> 181.2 | AR27: =IF(INDEX(HHD!$C:$AX,Week!$J$3+COLUMN()-13,ROW()-4)=0,"",2*INDEX(HHD!$C:$AX,Week!$J$3+COLUMN()-13,ROW()-4)) -> 166.8 | AS27: =IF(INDEX(HHD!$C:$AX,Week!$J$3+COLUMN()-13,ROW()-4)=0,"",2*INDEX(HHD!$C:$AX,Week!$J$3+COLUMN()-13,ROW()-4)) -> 186.8 | AT27: =IF(INDEX(HHD!$C:$AX,Week!$J$3+COLUMN()-13,ROW()-4)=0,"",2*INDEX(HHD!$C:$AX,Week!$J$3+COLUMN()-13,ROW()-4)) -> 174 | AU27: =IF(INDEX(HHD!$C:$AX,Week!$J$3+COLUMN()-13,ROW()-4)=0,"",2*INDEX(HHD!$C:$AX,Week!$J$3+COLUMN()-13,ROW()-4)) -> 159.6
C28: 129.6 | D28: 129.6 | E28: ("Mid") | J28: 11:30:00 | M28: =IF(INDEX(HHD!$C:$AX,Week!$J$3+COLUMN()-13,ROW()-4)=0,"",2*INDEX(HHD!$C:$AX,Week!$J$3+COLUMN()-13,ROW()-4)) -> 180.2 | N28: =IF(INDEX(HHD!$C:$AX,Week!$J$3+COLUMN()-13,ROW()-4)=0,"",2*INDEX(HHD!$C:$AX,Week!$J$3+COLUMN()-13,ROW()-4)) -> 161.6 | O28: =IF(INDEX(HHD!$C:$AX,Week!$J$3+COLUMN()-13,ROW()-4)=0,"",2*INDEX(HHD!$C:$AX,Week!$J$3+COLUMN()-13,ROW()-4)) -> 176.8 | P28: =IF(INDEX(HHD!$C:$AX,Week!$J$3+COLUMN()-13,ROW()-4)=0,"",2*INDEX(HHD!$C:$AX,Week!$J$3+COLUMN()-13,ROW()-4)) -> 187 | Q28: =IF(INDEX(HHD!$C:$AX,Week!$J$3+COLUMN()-13,ROW()-4)=0,"",2*INDEX(HHD!$C:$AX,Week!$J$3+COLUMN()-13,ROW()-4)) -> 173.6 | R28: =IF(INDEX(HHD!$C:$AX,Week!$J$3+COLUMN()-13,ROW()-4)=0,"",2*INDEX(HHD!$C:$AX,Week!$J$3+COLUMN()-13,ROW()-4)) -> 154.6 | S28: =IF(INDEX(HHD!$C:$AX,Week!$J$3+COLUMN()-13,ROW()-4)=0,"",2*INDEX(HHD!$C:$AX,Week!$J$3+COLUMN()-13,ROW()-4)) -> 152.2 | T28: =IF(INDEX(HHD!$C:$AX,Week!$J$3+COLUMN()-13,ROW()-4)=0,"",2*INDEX(HHD!$C:$AX,Week!$J$3+COLUMN()-13,ROW()-4)) -> 175 | U28: =IF(INDEX(HHD!$C:$AX,Week!$J$3+COLUMN()-13,ROW()-4)=0,"",2*INDEX(HHD!$C:$AX,Week!$J$3+COLUMN()-13,ROW()-4)) -> 173.6 | V28: =IF(INDEX(HHD!$C:$AX,Week!$J$3+COLUMN()-13,ROW()-4)=0,"",2*INDEX(HHD!$C:$AX,Week!$J$3+COLUMN()-13,ROW()-4)) -> 171.2 | W28: =IF(INDEX(HHD!$C:$AX,Week!$J$3+COLUMN()-13,ROW()-4)=0,"",2*INDEX(HHD!$C:$AX,Week!$J$3+COLUMN()-13,ROW()-4)) -> 156 | X28: =IF(INDEX(HHD!$C:$AX,Week!$J$3+COLUMN()-13,ROW()-4)=0,"",2*INDEX(HHD!$C:$AX,Week!$J$3+COLUMN()-13,ROW()-4)) -> 160.4 | Y28: =IF(INDEX(HHD!$C:$AX,Week!$J$3+COLUMN()-13,ROW()-4)=0,"",2*INDEX(HHD!$C:$AX,Week!$J$3+COLUMN()-13,ROW()-4)) -> 169.8 | Z28: =IF(INDEX(HHD!$C:$AX,Week!$J$3+COLUMN()-13,ROW()-4)=0,"",2*INDEX(HHD!$C:$AX,Week!$J$3+COLUMN()-13,ROW()-4)) -> 148.6 | AA28: =IF(INDEX(HHD!$C:$AX,Week!$J$3+COLUMN()-13,ROW()-4)=0,"",2*INDEX(HHD!$C:$AX,Week!$J$3+COLUMN()-13,ROW()-4)) -> 159.6 | AB28: =IF(INDEX(HHD!$C:$AX,Week!$J$3+COLUMN()-13,ROW()-4)=0,"",2*INDEX(HHD!$C:$AX,Week!$J$3+COLUMN()-13,ROW()-4)) -> 169.4 | AC28: =IF(INDEX(HHD!$C:$AX,Week!$J$3+COLUMN()-13,ROW()-4)=0,"",2*INDEX(HHD!$C:$AX,Week!$J$3+COLUMN()-13,ROW()-4)) -> 173.2 | AD28: =IF(INDEX(HHD!$C:$AX,Week!$J$3+COLUMN()-13,ROW()-4)=0,"",2*INDEX(HHD!$C:$AX,Week!$J$3+COLUMN()-13,ROW()-4)) -> 170 | AE28: =IF(INDEX(HHD!$C:$AX,Week!$J$3+COLUMN()-13,ROW()-4)=0,"",2*INDEX(HHD!$C:$AX,Week!$J$3+COLUMN()-13,ROW()-4)) -> 173.6 | AF28: =IF(INDEX(HHD!$C:$AX,Week!$J$3+COLUMN()-13,ROW()-4)=0,"",2*INDEX(HHD!$C:$AX,Week!$J$3+COLUMN()-13,ROW()-4)) -> 170.8 | AG28: =IF(INDEX(HHD!$C:$AX,Week!$J$3+COLUMN()-13,ROW()-4)=0,"",2*INDEX(HHD!$C:$AX,Week!$J$3+COLUMN()-13,ROW()-4)) -> 153.8 | AH28: =IF(INDEX(HHD!$C:$AX,Week!$J$3+COLUMN()-13,ROW()-4)=0,"",2*INDEX(HHD!$C:$AX,Week!$J$3+COLUMN()-13,ROW()-4)) -> 159.4 | AI28: =IF(INDEX(HHD!$C:$AX,Week!$J$3+COLUMN()-13,ROW()-4)=0,"",2*INDEX(HHD!$C:$AX,Week!$J$3+COLUMN()-13,ROW()-4)) -> 169.6 | AJ28: =IF(INDEX(HHD!$C:$AX,Week!$J$3+COLUMN()-13,ROW()-4)=0,"",2*INDEX(HHD!$C:$AX,Week!$J$3+COLUMN()-13,ROW()-4)) -> 193.4 | AK28: =IF(INDEX(HHD!$C:$AX,Week!$J$3+COLUMN()-13,ROW()-4)=0,"",2*INDEX(HHD!$C:$AX,Week!$J$3+COLUMN()-13,ROW()-4)) -> 189.8 | AL28: =IF(INDEX(HHD!$C:$AX,Week!$J$3+COLUMN()-13,ROW()-4)=0,"",2*INDEX(HHD!$C:$AX,Week!$J$3+COLUMN()-13,ROW()-4)) -> 191.2 | AM28: =IF(INDEX(HHD!$C:$AX,Week!$J$3+COLUMN()-13,ROW()-4)=0,"",2*INDEX(HHD!$C:$AX,Week!$J$3+COLUMN()-13,ROW()-4)) -> 149.2 | AN28: =IF(INDEX(HHD!$C:$AX,Week!$J$3+COLUMN()-13,ROW()-4)=0,"",2*INDEX(HHD!$C:$AX,Week!$J$3+COLUMN()-13,ROW()-4)) -> 166.4 | AO28: =IF(INDEX(HHD!$C:$AX,Week!$J$3+COLUMN()-13,ROW()-4)=0,"",2*INDEX(HHD!$C:$AX,Week!$J$3+COLUMN()-13,ROW()-4)) -> 174.8 | AP28: =IF(INDEX(HHD!$C:$AX,Week!$J$3+COLUMN()-13,ROW()-4)=0,"",2*INDEX(HHD!$C:$AX,Week!$J$3+COLUMN()-13,ROW()-4)) -> 174.4 | AQ28: =IF(INDEX(HHD!$C:$AX,Week!$J$3+COLUMN()-13,ROW()-4)=0,"",2*INDEX(HHD!$C:$AX,Week!$J$3+COLUMN()-13,ROW()-4)) -> 180.8 | AR28: =IF(INDEX(HHD!$C:$AX,Week!$J$3+COLUMN()-13,ROW()-4)=0,"",2*INDEX(HHD!$C:$AX,Week!$J$3+COLUMN()-13,ROW()-4)) -> 161.6 | AS28: =IF(INDEX(HHD!$C:$AX,Week!$J$3+COLUMN()-13,ROW()-4)=0,"",2*INDEX(HHD!$C:$AX,Week!$J$3+COLUMN()-13,ROW()-4)) -> 199.2 | AT28: =IF(INDEX(HHD!$C:$AX,Week!$J$3+COLUMN()-13,ROW()-4)=0,"",2*INDEX(HHD!$C:$AX,Week!$J$3+COLUMN()-13,ROW()-4)) -> 182.6 | AU28: =IF(INDEX(HHD!$C:$AX,Week!$J$3+COLUMN()-13,ROW()-4)=0,"",2*INDEX(HHD!$C:$AX,Week!$J$3+COLUMN()-13,ROW()-4)) -> 183.2
C29: 112.96 | D29: 112.96 | J29: 12:00:00 | M29: =IF(INDEX(HHD!$C:$AX,Week!$J$3+COLUMN()-13,ROW()-4)=0,"",2*INDEX(HHD!$C:$AX,Week!$J$3+COLUMN()-13,ROW()-4)) -> 162.4 | N29: =IF(INDEX(HHD!$C:$AX,Week!$J$3+COLUMN()-13,ROW()-4)=0,"",2*INDEX(HHD!$C:$AX,Week!$J$3+COLUMN()-13,ROW()-4)) -> 180.4 | O29: =IF(INDEX(HHD!$C:$AX,Week!$J$3+COLUMN()-13,ROW()-4)=0,"",2*INDEX(HHD!$C:$AX,Week!$J$3+COLUMN()-13,ROW()-4)) -> 166.6 | P29: =IF(INDEX(HHD!$C:$AX,Week!$J$3+COLUMN()-13,ROW()-4)=0,"",2*INDEX(HHD!$C:$AX,Week!$J$3+COLUMN()-13,ROW()-4)) -> 174 | Q29: =IF(INDEX(HHD!$C:$AX,Week!$J$3+COLUMN()-13,ROW()-4)=0,"",2*INDEX(HHD!$C:$AX,Week!$J$3+COLUMN()-13,ROW()-4)) -> 164 | R29: =IF(INDEX(HHD!$C:$AX,Week!$J$3+COLUMN()-13,ROW()-4)=0,"",2*INDEX(HHD!$C:$AX,Week!$J$3+COLUMN()-13,ROW()-4)) -> 177.2 | S29: =IF(INDEX(HHD!$C:$AX,Week!$J$3+COLUMN()-13,ROW()-4)=0,"",2*INDEX(HHD!$C:$AX,Week!$J$3+COLUMN()-13,ROW()-4)) -> 151.4 | T29: =IF(INDEX(HHD!$C:$AX,Week!$J$3+COLUMN()-13,ROW()-4)=0,"",2*INDEX(HHD!$C:$AX,Week!$J$3+COLUMN()-13,ROW()-4)) -> 182.8 | U29: =IF(INDEX(HHD!$C:$AX,Week!$J$3+COLUMN()-13,ROW()-4)=0,"",2*INDEX(HHD!$C:$AX,Week!$J$3+COLUMN()-13,ROW()-4)) -> 186.8 | V29: =IF(INDEX(HHD!$C:$AX,Week!$J$3+COLUMN()-13,ROW()-4)=0,"",2*INDEX(HHD!$C:$AX,Week!$J$3+COLUMN()-13,ROW()-4)) -> 173.2 | W29: =IF(INDEX(HHD!$C:$AX,Week!$J$3+COLUMN()-13,ROW()-4)=0,"",2*INDEX(HHD!$C:$AX,Week!$J$3+COLUMN()-13,ROW()-4)) -> 169.8 | X29: =IF(INDEX(HHD!$C:$AX,Week!$J$3+COLUMN()-13,ROW()-4)=0,"",2*INDEX(HHD!$C:$AX,Week!$J$3+COLUMN()-13,ROW()-4)) -> 161.2 | Y29: =IF(INDEX(HHD!$C:$AX,Week!$J$3+COLUMN()-13,ROW()-4)=0,"",2*INDEX(HHD!$C:$AX,Week!$J$3+COLUMN()-13,ROW()-4)) -> 170 | Z29: =IF(INDEX(HHD!$C:$AX,Week!$J$3+COLUMN()-13,ROW()-4)=0,"",2*INDEX(HHD!$C:$AX,Week!$J$3+COLUMN()-13,ROW()-4)) -> 140 | AA29: =IF(INDEX(HHD!$C:$AX,Week!$J$3+COLUMN()-13,ROW()-4)=0,"",2*INDEX(HHD!$C:$AX,Week!$J$3+COLUMN()-13,ROW()-4)) -> 182.2 | AB29: =IF(INDEX(HHD!$C:$AX,Week!$J$3+COLUMN()-13,ROW()-4)=0,"",2*INDEX(HHD!$C:$AX,Week!$J$3+COLUMN()-13,ROW()-4)) -> 141.4 | AC29: =IF(INDEX(HHD!$C:$AX,Week!$J$3+COLUMN()-13,ROW()-4)=0,"",2*INDEX(HHD!$C:$AX,Week!$J$3+COLUMN()-13,ROW()-4)) -> 157 | AD29: =IF(INDEX(HHD!$C:$AX,Week!$J$3+COLUMN()-13,ROW()-4)=0,"",2*INDEX(HHD!$C:$AX,Week!$J$3+COLUMN()-13,ROW()-4)) -> 168.4 | AE29: =IF(INDEX(HHD!$C:$AX,Week!$J$3+COLUMN()-13,ROW()-4)=0,"",2*INDEX(HHD!$C:$AX,Week!$J$3+COLUMN()-13,ROW()-4)) -> 162.8 | AF29: =IF(INDEX(HHD!$C:$AX,Week!$J$3+COLUMN()-13,ROW()-4)=0,"",2*INDEX(HHD!$C:$AX,Week!$J$3+COLUMN()-13,ROW()-4)) -> 164 | AG29: =IF(INDEX(HHD!$C:$AX,Week!$J$3+COLUMN()-13,ROW()-4)=0,"",2*INDEX(HHD!$C:$AX,Week!$J$3+COLUMN()-13,ROW()-4)) -> 173.4 | AH29: =IF(INDEX(HHD!$C:$AX,Week!$J$3+COLUMN()-13,ROW()-4)=0,"",2*INDEX(HHD!$C:$AX,Week!$J$3+COLUMN()-13,ROW()-4)) -> 174 | AI29: =IF(INDEX(HHD!$C:$AX,Week!$J$3+COLUMN()-13,ROW()-4)=0,"",2*INDEX(HHD!$C:$AX,Week!$J$3+COLUMN()-13,ROW()-4)) -> 182.4 | AJ29: =IF(INDEX(HHD!$C:$AX,Week!$J$3+COLUMN()-13,ROW()-4)=0,"",2*INDEX(HHD!$C:$AX,Week!$J$3+COLUMN()-13,ROW()-4)) -> 173.2 | AK29: =IF(INDEX(HHD!$C:$AX,Week!$J$3+COLUMN()-13,ROW()-4)=0,"",2*INDEX(HHD!$C:$AX,Week!$J$3+COLUMN()-13,ROW()-4)) -> 173.2 | AL29: =IF(INDEX(HHD!$C:$AX,Week!$J$3+COLUMN()-13,ROW()-4)=0,"",2*INDEX(HHD!$C:$AX,Week!$J$3+COLUMN()-13,ROW()-4)) -> 162.6 | AM29: =IF(INDEX(HHD!$C:$AX,Week!$J$3+COLUMN()-13,ROW()-4)=0,"",2*INDEX(HHD!$C:$AX,Week!$J$3+COLUMN()-13,ROW()-4)) -> 158 | AN29: =IF(INDEX(HHD!$C:$AX,Week!$J$3+COLUMN()-13,ROW()-4)=0,"",2*INDEX(HHD!$C:$AX,Week!$J$3+COLUMN()-13,ROW()-4)) -> 164.2 | AO29: =IF(INDEX(HHD!$C:$AX,Week!$J$3+COLUMN()-13,ROW()-4)=0,"",2*INDEX(HHD!$C:$AX,Week!$J$3+COLUMN()-13,ROW()-4)) -> 175.6 | AP29: =IF(INDEX(HHD!$C:$AX,Week!$J$3+COLUMN()-13,ROW()-4)=0,"",2*INDEX(HHD!$C:$AX,Week!$J$3+COLUMN()-13,ROW()-4)) -> 190.8 | AQ29: =IF(INDEX(HHD!$C:$AX,Week!$J$3+COLUMN()-13,ROW()-4)=0,"",2*INDEX(HHD!$C:$AX,Week!$J$3+COLUMN()-13,ROW()-4)) -> 187.8 | AR29: =IF(INDEX(HHD!$C:$AX,Week!$J$3+COLUMN()-13,ROW()-4)=0,"",2*INDEX(HHD!$C:$AX,Week!$J$3+COLUMN()-13,ROW()-4)) -> 172.2 | AS29: =IF(INDEX(HHD!$C:$AX,Week!$J$3+COLUMN()-13,ROW()-4)=0,"",2*INDEX(HHD!$C:$AX,Week!$J$3+COLUMN()-13,ROW()-4)) -> 196.6 | AT29: =IF(INDEX(HHD!$C:$AX,Week!$J$3+COLUMN()-13,ROW()-4)=0,"",2*INDEX(HHD!$C:$AX,Week!$J$3+COLUMN()-13,ROW()-4)) -> 174.6 | AU29: =IF(INDEX(HHD!$C:$AX,Week!$J$3+COLUMN()-13,ROW()-4)=0,"",2*INDEX(HHD!$C:$AX,Week!$J$3+COLUMN()-13,ROW()-4)) -> 164.2
C30: 96.32 | D30: 96.32 | J30: 12:30:00 | M30: =IF(INDEX(HHD!$C:$AX,Week!$J$3+COLUMN()-13,ROW()-4)=0,"",2*INDEX(HHD!$C:$AX,Week!$J$3+COLUMN()-13,ROW()-4)) -> 157 | N30: =IF(INDEX(HHD!$C:$AX,Week!$J$3+COLUMN()-13,ROW()-4)=0,"",2*INDEX(HHD!$C:$AX,Week!$J$3+COLUMN()-13,ROW()-4)) -> 165.6 | O30: =IF(INDEX(HHD!$C:$AX,Week!$J$3+COLUMN()-13,ROW()-4)=0,"",2*INDEX(HHD!$C:$AX,Week!$J$3+COLUMN()-13,ROW()-4)) -> 175 | P30: =IF(INDEX(HHD!$C:$AX,Week!$J$3+COLUMN()-13,ROW()-4)=0,"",2*INDEX(HHD!$C:$AX,Week!$J$3+COLUMN()-13,ROW()-4)) -> 172 | Q30: =IF(INDEX(HHD!$C:$AX,Week!$J$3+COLUMN()-13,ROW()-4)=0,"",2*INDEX(HHD!$C:$AX,Week!$J$3+COLUMN()-13,ROW()-4)) -> 195.8 | R30: =IF(INDEX(HHD!$C:$AX,Week!$J$3+COLUMN()-13,ROW()-4)=0,"",2*INDEX(HHD!$C:$AX,Week!$J$3+COLUMN()-13,ROW()-4)) -> 164.2 | S30: =IF(INDEX(HHD!$C:$AX,Week!$J$3+COLUMN()-13,ROW()-4)=0,"",2*INDEX(HHD!$C:$AX,Week!$J$3+COLUMN()-13,ROW()-4)) -> 160.6 | T30: =IF(INDEX(HHD!$C:$AX,Week!$J$3+COLUMN()-13,ROW()-4)=0,"",2*INDEX(HHD!$C:$AX,Week!$J$3+COLUMN()-13,ROW()-4)) -> 153.2 | U30: =IF(INDEX(HHD!$C:$AX,Week!$J$3+COLUMN()-13,ROW()-4)=0,"",2*INDEX(HHD!$C:$AX,Week!$J$3+COLUMN()-13,ROW()-4)) -> 155.4 | V30: =IF(INDEX(HHD!$C:$AX,Week!$J$3+COLUMN()-13,ROW()-4)=0,"",2*INDEX(HHD!$C:$AX,Week!$J$3+COLUMN()-13,ROW()-4)) -> 151.6 | W30: =IF(INDEX(HHD!$C:$AX,Week!$J$3+COLUMN()-13,ROW()-4)=0,"",2*INDEX(HHD!$C:$AX,Week!$J$3+COLUMN()-13,ROW()-4)) -> 181.6 | X30: =IF(INDEX(HHD!$C:$AX,Week!$J$3+COLUMN()-13,ROW()-4)=0,"",2*INDEX(HHD!$C:$AX,Week!$J$3+COLUMN()-13,ROW()-4)) -> 157.6 | Y30: =IF(INDEX(HHD!$C:$AX,Week!$J$3+COLUMN()-13,ROW()-4)=0,"",2*INDEX(HHD!$C:$AX,Week!$J$3+COLUMN()-13,ROW()-4)) -> 170.6 | Z30: =IF(INDEX(HHD!$C:$AX,Week!$J$3+COLUMN()-13,ROW()-4)=0,"",2*INDEX(HHD!$C:$AX,Week!$J$3+COLUMN()-13,ROW()-4)) -> 148.2 | AA30: =IF(INDEX(HHD!$C:$AX,Week!$J$3+COLUMN()-13,ROW()-4)=0,"",2*INDEX(HHD!$C:$AX,Week!$J$3+COLUMN()-13,ROW()-4)) -> 178.8 | AB30: =IF(INDEX(HHD!$C:$AX,Week!$J$3+COLUMN()-13,ROW()-4)=0,"",2*INDEX(HHD!$C:$AX,Week!$J$3+COLUMN()-13,ROW()-4)) -> 155.2 | AC30: =IF(INDEX(HHD!$C:$AX,Week!$J$3+COLUMN()-13,ROW()-4)=0,"",2*INDEX(HHD!$C:$AX,Week!$J$3+COLUMN()-13,ROW()-4)) -> 179.6 | AD30: =IF(INDEX(HHD!$C:$AX,Week!$J$3+COLUMN()-13,ROW()-4)=0,"",2*INDEX(HHD!$C:$AX,Week!$J$3+COLUMN()-13,ROW()-4)) -> 165 | AE30: =IF(INDEX(HHD!$C:$AX,Week!$J$3+COLUMN()-13,ROW()-4)=0,"",2*INDEX(HHD!$C:$AX,Week!$J$3+COLUMN()-13,ROW()-4)) -> 172.8 | AF30: =IF(INDEX(HHD!$C:$AX,Week!$J$3+COLUMN()-13,ROW()-4)=0,"",2*INDEX(HHD!$C:$AX,Week!$J$3+COLUMN()-13,ROW()-4)) -> 166 | AG30: =IF(INDEX(HHD!$C:$AX,Week!$J$3+COLUMN()-13,ROW()-4)=0,"",2*INDEX(HHD!$C:$AX,Week!$J$3+COLUMN()-13,ROW()-4)) -> 143.4 | AH30: =IF(INDEX(HHD!$C:$AX,Week!$J$3+COLUMN()-13,ROW()-4)=0,"",2*INDEX(HHD!$C:$AX,Week!$J$3+COLUMN()-13,ROW()-4)) -> 171.6 | AI30: =IF(INDEX(HHD!$C:$AX,Week!$J$3+COLUMN()-13,ROW()-4)=0,"",2*INDEX(HHD!$C:$AX,Week!$J$3+COLUMN()-13,ROW()-4)) -> 188.2 | AJ30: =IF(INDEX(HHD!$C:$AX,Week!$J$3+COLUMN()-13,ROW()-4)=0,"",2*INDEX(HHD!$C:$AX,Week!$J$3+COLUMN()-13,ROW()-4)) -> 168.6 | AK30: =IF(INDEX(HHD!$C:$AX,Week!$J$3+COLUMN()-13,ROW()-4)=0,"",2*INDEX(HHD!$C:$AX,Week!$J$3+COLUMN()-13,ROW()-4)) -> 174.8 | AL30: =IF(INDEX(HHD!$C:$AX,Week!$J$3+COLUMN()-13,ROW()-4)=0,"",2*INDEX(HHD!$C:$AX,Week!$J$3+COLUMN()-13,ROW()-4)) -> 164.4 | AM30: =IF(INDEX(HHD!$C:$AX,Week!$J$3+COLUMN()-13,ROW()-4)=0,"",2*INDEX(HHD!$C:$AX,Week!$J$3+COLUMN()-13,ROW()-4)) -> 169 | AN30: =IF(INDEX(HHD!$C:$AX,Week!$J$3+COLUMN()-13,ROW()-4)=0,"",2*INDEX(HHD!$C:$AX,Week!$J$3+COLUMN()-13,ROW()-4)) -> 168 | AO30: =IF(INDEX(HHD!$C:$AX,Week!$J$3+COLUMN()-13,ROW()-4)=0,"",2*INDEX(HHD!$C:$AX,Week!$J$3+COLUMN()-13,ROW()-4)) -> 155.6 | AP30: =IF(INDEX(HHD!$C:$AX,Week!$J$3+COLUMN()-13,ROW()-4)=0,"",2*INDEX(HHD!$C:$AX,Week!$J$3+COLUMN()-13,ROW()-4)) -> 177.6 | AQ30: =IF(INDEX(HHD!$C:$AX,Week!$J$3+COLUMN()-13,ROW()-4)=0,"",2*INDEX(HHD!$C:$AX,Week!$J$3+COLUMN()-13,ROW()-4)) -> 182.2 | AR30: =IF(INDEX(HHD!$C:$AX,Week!$J$3+COLUMN()-13,ROW()-4)=0,"",2*INDEX(HHD!$C:$AX,Week!$J$3+COLUMN()-13,ROW()-4)) -> 180.6 | AS30: =IF(INDEX(HHD!$C:$AX,Week!$J$3+COLUMN()-13,ROW()-4)=0,"",2*INDEX(HHD!$C:$AX,Week!$J$3+COLUMN()-13,ROW()-4)) -> 176.6 | AT30: =IF(INDEX(HHD!$C:$AX,Week!$J$3+COLUMN()-13,ROW()-4)=0,"",2*INDEX(HHD!$C:$AX,Week!$J$3+COLUMN()-13,ROW()-4)) -> 171.4 | AU30: =IF(INDEX(HHD!$C:$AX,Week!$J$3+COLUMN()-13,ROW()-4)=0,"",2*INDEX(HHD!$C:$AX,Week!$J$3+COLUMN()-13,ROW()-4)) -> 167.8
C31: 79.68 | D31: 79.68 | J31: 13:00:00 | M31: =IF(INDEX(HHD!$C:$AX,Week!$J$3+COLUMN()-13,ROW()-4)=0,"",2*INDEX(HHD!$C:$AX,Week!$J$3+COLUMN()-13,ROW()-4)) -> 170.6 | N31: =IF(INDEX(HHD!$C:$AX,Week!$J$3+COLUMN()-13,ROW()-4)=0,"",2*INDEX(HHD!$C:$AX,Week!$J$3+COLUMN()-13,ROW()-4)) -> 160 | O31: =IF(INDEX(HHD!$C:$AX,Week!$J$3+COLUMN()-13,ROW()-4)=0,"",2*INDEX(HHD!$C:$AX,Week!$J$3+COLUMN()-13,ROW()-4)) -> 182.2 | P31: =IF(INDEX(HHD!$C:$AX,Week!$J$3+COLUMN()-13,ROW()-4)=0,"",2*INDEX(HHD!$C:$AX,Week!$J$3+COLUMN()-13,ROW()-4)) -> 173.8 | Q31: =IF(INDEX(HHD!$C:$AX,Week!$J$3+COLUMN()-13,ROW()-4)=0,"",2*INDEX(HHD!$C:$AX,Week!$J$3+COLUMN()-13,ROW()-4)) -> 169.8 | R31: =IF(INDEX(HHD!$C:$AX,Week!$J$3+COLUMN()-13,ROW()-4)=0,"",2*INDEX(HHD!$C:$AX,Week!$J$3+COLUMN()-13,ROW()-4)) -> 179.8 | S31: =IF(INDEX(HHD!$C:$AX,Week!$J$3+COLUMN()-13,ROW()-4)=0,"",2*INDEX(HHD!$C:$AX,Week!$J$3+COLUMN()-13,ROW()-4)) -> 158.8 | T31: =IF(INDEX(HHD!$C:$AX,Week!$J$3+COLUMN()-13,ROW()-4)=0,"",2*INDEX(HHD!$C:$AX,Week!$J$3+COLUMN()-13,ROW()-4)) -> 183.8 | U31: =IF(INDEX(HHD!$C:$AX,Week!$J$3+COLUMN()-13,ROW()-4)=0,"",2*INDEX(HHD!$C:$AX,Week!$J$3+COLUMN()-13,ROW()-4)) -> 157.2 | V31: =IF(INDEX(HHD!$C:$AX,Week!$J$3+COLUMN()-13,ROW()-4)=0,"",2*INDEX(HHD!$C:$AX,Week!$J$3+COLUMN()-13,ROW()-4)) -> 166.4 | W31: =IF(INDEX(HHD!$C:$AX,Week!$J$3+COLUMN()-13,ROW()-4)=0,"",2*INDEX(HHD!$C:$AX,Week!$J$3+COLUMN()-13,ROW()-4)) -> 165.2 | X31: =IF(INDEX(HHD!$C:$AX,Week!$J$3+COLUMN()-13,ROW()-4)=0,"",2*INDEX(HHD!$C:$AX,Week!$J$3+COLUMN()-13,ROW()-4)) -> 156.2 | Y31: =IF(INDEX(HHD!$C:$AX,Week!$J$3+COLUMN()-13,ROW()-4)=0,"",2*INDEX(HHD!$C:$AX,Week!$J$3+COLUMN()-13,ROW()-4)) -> 161.4 | Z31: =IF(INDEX(HHD!$C:$AX,Week!$J$3+COLUMN()-13,ROW()-4)=0,"",2*INDEX(HHD!$C:$AX,Week!$J$3+COLUMN()-13,ROW()-4)) -> 163.6 | AA31: =IF(INDEX(HHD!$C:$AX,Week!$J$3+COLUMN()-13,ROW()-4)=0,"",2*INDEX(HHD!$C:$AX,Week!$J$3+COLUMN()-13,ROW()-4)) -> 183.8 | AB31: =IF(INDEX(HHD!$C:$AX,Week!$J$3+COLUMN()-13,ROW()-4)=0,"",2*INDEX(HHD!$C:$AX,Week!$J$3+COLUMN()-13,ROW()-4)) -> 151.8 | AC31: =IF(INDEX(HHD!$C:$AX,Week!$J$3+COLUMN()-13,ROW()-4)=0,"",2*INDEX(HHD!$C:$AX,Week!$J$3+COLUMN()-13,ROW()-4)) -> 169.4 | AD31: =IF(INDEX(HHD!$C:$AX,Week!$J$3+COLUMN()-13,ROW()-4)=0,"",2*INDEX(HHD!$C:$AX,Week!$J$3+COLUMN()-13,ROW()-4)) -> 183 | AE31: =IF(INDEX(HHD!$C:$AX,Week!$J$3+COLUMN()-13,ROW()-4)=0,"",2*INDEX(HHD!$C:$AX,Week!$J$3+COLUMN()-13,ROW()-4)) -> 174.6 | AF31: =IF(INDEX(HHD!$C:$AX,Week!$J$3+COLUMN()-13,ROW()-4)=0,"",2*INDEX(HHD!$C:$AX,Week!$J$3+COLUMN()-13,ROW()-4)) -> 166 | AG31: =IF(INDEX(HHD!$C:$AX,Week!$J$3+COLUMN()-13,ROW()-4)=0,"",2*INDEX(HHD!$C:$AX,Week!$J$3+COLUMN()-13,ROW()-4)) -> 144 | AH31: =IF(INDEX(HHD!$C:$AX,Week!$J$3+COLUMN()-13,ROW()-4)=0,"",2*INDEX(HHD!$C:$AX,Week!$J$3+COLUMN()-13,ROW()-4)) -> 168.6 | AI31: =IF(INDEX(HHD!$C:$AX,Week!$J$3+COLUMN()-13,ROW()-4)=0,"",2*INDEX(HHD!$C:$AX,Week!$J$3+COLUMN()-13,ROW()-4)) -> 190.8 | AJ31: =IF(INDEX(HHD!$C:$AX,Week!$J$3+COLUMN()-13,ROW()-4)=0,"",2*INDEX(HHD!$C:$AX,Week!$J$3+COLUMN()-13,ROW()-4)) -> 188 | AK31: =IF(INDEX(HHD!$C:$AX,Week!$J$3+COLUMN()-13,ROW()-4)=0,"",2*INDEX(HHD!$C:$AX,Week!$J$3+COLUMN()-13,ROW()-4)) -> 187.8 | AL31: =IF(INDEX(HHD!$C:$AX,Week!$J$3+COLUMN()-13,ROW()-4)=0,"",2*INDEX(HHD!$C:$AX,Week!$J$3+COLUMN()-13,ROW()-4)) -> 183.8 | AM31: =IF(INDEX(HHD!$C:$AX,Week!$J$3+COLUMN()-13,ROW()-4)=0,"",2*INDEX(HHD!$C:$AX,Week!$J$3+COLUMN()-13,ROW()-4)) -> 156.8 | AN31: =IF(INDEX(HHD!$C:$AX,Week!$J$3+COLUMN()-13,ROW()-4)=0,"",2*INDEX(HHD!$C:$AX,Week!$J$3+COLUMN()-13,ROW()-4)) -> 165.4 | AO31: =IF(INDEX(HHD!$C:$AX,Week!$J$3+COLUMN()-13,ROW()-4)=0,"",2*INDEX(HHD!$C:$AX,Week!$J$3+COLUMN()-13,ROW()-4)) -> 164.4 | AP31: =IF(INDEX(HHD!$C:$AX,Week!$J$3+COLUMN()-13,ROW()-4)=0,"",2*INDEX(HHD!$C:$AX,Week!$J$3+COLUMN()-13,ROW()-4)) -> 168.8 | AQ31: =IF(INDEX(HHD!$C:$AX,Week!$J$3+COLUMN()-13,ROW()-4)=0,"",2*INDEX(HHD!$C:$AX,Week!$J$3+COLUMN()-13,ROW()-4)) -> 200.8 | AR31: =IF(INDEX(HHD!$C:$AX,Week!$J$3+COLUMN()-13,ROW()-4)=0,"",2*INDEX(HHD!$C:$AX,Week!$J$3+COLUMN()-13,ROW()-4)) -> 188.2 | AS31: =IF(INDEX(HHD!$C:$AX,Week!$J$3+COLUMN()-13,ROW()-4)=0,"",2*INDEX(HHD!$C:$AX,Week!$J$3+COLUMN()-13,ROW()-4)) -> 183.6 | AT31: =IF(INDEX(HHD!$C:$AX,Week!$J$3+COLUMN()-13,ROW()-4)=0,"",2*INDEX(HHD!$C:$AX,Week!$J$3+COLUMN()-13,ROW()-4)) -> 168 | AU31: =IF(INDEX(HHD!$C:$AX,Week!$J$3+COLUMN()-13,ROW()-4)=0,"",2*INDEX(HHD!$C:$AX,Week!$J$3+COLUMN()-13,ROW()-4)) -> 161.8
C32: 63.04 | D32: 63.04 | J32: 13:30:00 | M32: =IF(INDEX(HHD!$C:$AX,Week!$J$3+COLUMN()-13,ROW()-4)=0,"",2*INDEX(HHD!$C:$AX,Week!$J$3+COLUMN()-13,ROW()-4)) -> 155.6 | N32: =IF(INDEX(HHD!$C:$AX,Week!$J$3+COLUMN()-13,ROW()-4)=0,"",2*INDEX(HHD!$C:$AX,Week!$J$3+COLUMN()-13,ROW()-4)) -> 157.6 | O32: =IF(INDEX(HHD!$C:$AX,Week!$J$3+COLUMN()-13,ROW()-4)=0,"",2*INDEX(HHD!$C:$AX,Week!$J$3+COLUMN()-13,ROW()-4)) -> 169.4 | P32: =IF(INDEX(HHD!$C:$AX,Week!$J$3+COLUMN()-13,ROW()-4)=0,"",2*INDEX(HHD!$C:$AX,Week!$J$3+COLUMN()-13,ROW()-4)) -> 162.6 | Q32: =IF(INDEX(HHD!$C:$AX,Week!$J$3+COLUMN()-13,ROW()-4)=0,"",2*INDEX(HHD!$C:$AX,Week!$J$3+COLUMN()-13,ROW()-4)) -> 173.8 | R32: =IF(INDEX(HHD!$C:$AX,Week!$J$3+COLUMN()-13,ROW()-4)=0,"",2*INDEX(HHD!$C:$AX,Week!$J$3+COLUMN()-13,ROW()-4)) -> 158.2 | S32: =IF(INDEX(HHD!$C:$AX,Week!$J$3+COLUMN()-13,ROW()-4)=0,"",2*INDEX(HHD!$C:$AX,Week!$J$3+COLUMN()-13,ROW()-4)) -> 171.8 | T32: =IF(INDEX(HHD!$C:$AX,Week!$J$3+COLUMN()-13,ROW()-4)=0,"",2*INDEX(HHD!$C:$AX,Week!$J$3+COLUMN()-13,ROW()-4)) -> 169.6 | U32: =IF(INDEX(HHD!$C:$AX,Week!$J$3+COLUMN()-13,ROW()-4)=0,"",2*INDEX(HHD!$C:$AX,Week!$J$3+COLUMN()-13,ROW()-4)) -> 159.6 | V32: =IF(INDEX(HHD!$C:$AX,Week!$J$3+COLUMN()-13,ROW()-4)=0,"",2*INDEX(HHD!$C:$AX,Week!$J$3+COLUMN()-13,ROW()-4)) -> 160.6 | W32: =IF(INDEX(HHD!$C:$AX,Week!$J$3+COLUMN()-13,ROW()-4)=0,"",2*INDEX(HHD!$C:$AX,Week!$J$3+COLUMN()-13,ROW()-4)) -> 166.6 | X32: =IF(INDEX(HHD!$C:$AX,Week!$J$3+COLUMN()-13,ROW()-4)=0,"",2*INDEX(HHD!$C:$AX,Week!$J$3+COLUMN()-13,ROW()-4)) -> 142.6 | Y32: =IF(INDEX(HHD!$C:$AX,Week!$J$3+COLUMN()-13,ROW()-4)=0,"",2*INDEX(HHD!$C:$AX,Week!$J$3+COLUMN()-13,ROW()-4)) -> 173.6 | Z32: =IF(INDEX(HHD!$C:$AX,Week!$J$3+COLUMN()-13,ROW()-4)=0,"",2*INDEX(HHD!$C:$AX,Week!$J$3+COLUMN()-13,ROW()-4)) -> 149.2 | AA32: =IF(INDEX(HHD!$C:$AX,Week!$J$3+COLUMN()-13,ROW()-4)=0,"",2*INDEX(HHD!$C:$AX,Week!$J$3+COLUMN()-13,ROW()-4)) -> 168 | AB32: =IF(INDEX(HHD!$C:$AX,Week!$J$3+COLUMN()-13,ROW()-4)=0,"",2*INDEX(HHD!$C:$AX,Week!$J$3+COLUMN()-13,ROW()-4)) -> 164.4 | AC32: =IF(INDEX(HHD!$C:$AX,Week!$J$3+COLUMN()-13,ROW()-4)=0,"",2*INDEX(HHD!$C:$AX,Week!$J$3+COLUMN()-13,ROW()-4)) -> 180.4 | AD32: =IF(INDEX(HHD!$C:$AX,Week!$J$3+COLUMN()-13,ROW()-4)=0,"",2*INDEX(HHD!$C:$AX,Week!$J$3+COLUMN()-13,ROW()-4)) -> 165.6 | AE32: =IF(INDEX(HHD!$C:$AX,Week!$J$3+COLUMN()-13,ROW()-4)=0,"",2*INDEX(HHD!$C:$AX,Week!$J$3+COLUMN()-13,ROW()-4)) -> 179 | AF32: =IF(INDEX(HHD!$C:$AX,Week!$J$3+COLUMN()-13,ROW()-4)=0,"",2*INDEX(HHD!$C:$AX,Week!$J$3+COLUMN()-13,ROW()-4)) -> 177 | AG32: =IF(INDEX(HHD!$C:$AX,Week!$J$3+COLUMN()-13,ROW()-4)=0,"",2*INDEX(HHD!$C:$AX,Week!$J$3+COLUMN()-13,ROW()-4)) -> 153.4 | AH32: =IF(INDEX(HHD!$C:$AX,Week!$J$3+COLUMN()-13,ROW()-4)=0,"",2*INDEX(HHD!$C:$AX,Week!$J$3+COLUMN()-13,ROW()-4)) -> 169.6 | AI32: =IF(INDEX(HHD!$C:$AX,Week!$J$3+COLUMN()-13,ROW()-4)=0,"",2*INDEX(HHD!$C:$AX,Week!$J$3+COLUMN()-13,ROW()-4)) -> 168.8 | AJ32: =IF(INDEX(HHD!$C:$AX,Week!$J$3+COLUMN()-13,ROW()-4)=0,"",2*INDEX(HHD!$C:$AX,Week!$J$3+COLUMN()-13,ROW()-4)) -> 181.6 | AK32: =IF(INDEX(HHD!$C:$AX,Week!$J$3+COLUMN()-13,ROW()-4)=0,"",2*INDEX(HHD!$C:$AX,Week!$J$3+COLUMN()-13,ROW()-4)) -> 188.6 | AL32: =IF(INDEX(HHD!$C:$AX,Week!$J$3+COLUMN()-13,ROW()-4)=0,"",2*INDEX(HHD!$C:$AX,Week!$J$3+COLUMN()-13,ROW()-4)) -> 176.8 | AM32: =IF(INDEX(HHD!$C:$AX,Week!$J$3+COLUMN()-13,ROW()-4)=0,"",2*INDEX(HHD!$C:$AX,Week!$J$3+COLUMN()-13,ROW()-4)) -> 162.6 | AN32: =IF(INDEX(HHD!$C:$AX,Week!$J$3+COLUMN()-13,ROW()-4)=0,"",2*INDEX(HHD!$C:$AX,Week!$J$3+COLUMN()-13,ROW()-4)) -> 167.4 | AO32: =IF(INDEX(HHD!$C:$AX,Week!$J$3+COLUMN()-13,ROW()-4)=0,"",2*INDEX(HHD!$C:$AX,Week!$J$3+COLUMN()-13,ROW()-4)) -> 171.6 | AP32: =IF(INDEX(HHD!$C:$AX,Week!$J$3+COLUMN()-13,ROW()-4)=0,"",2*INDEX(HHD!$C:$AX,Week!$J$3+COLUMN()-13,ROW()-4)) -> 182 | AQ32: =IF(INDEX(HHD!$C:$AX,Week!$J$3+COLUMN()-13,ROW()-4)=0,"",2*INDEX(HHD!$C:$AX,Week!$J$3+COLUMN()-13,ROW()-4)) -> 178.6 | AR32: =IF(INDEX(HHD!$C:$AX,Week!$J$3+COLUMN()-13,ROW()-4)=0,"",2*INDEX(HHD!$C:$AX,Week!$J$3+COLUMN()-13,ROW()-4)) -> 154.6 | AS32: =IF(INDEX(HHD!$C:$AX,Week!$J$3+COLUMN()-13,ROW()-4)=0,"",2*INDEX(HHD!$C:$AX,Week!$J$3+COLUMN()-13,ROW()-4)) -> 188.6 | AT32: =IF(INDEX(HHD!$C:$AX,Week!$J$3+COLUMN()-13,ROW()-4)=0,"",2*INDEX(HHD!$C:$AX,Week!$J$3+COLUMN()-13,ROW()-4)) -> 186.8 | AU32: =IF(INDEX(HHD!$C:$AX,Week!$J$3+COLUMN()-13,ROW()-4)=0,"",2*INDEX(HHD!$C:$AX,Week!$J$3+COLUMN()-13,ROW()-4)) -> 164.8
C33: 46.4 | D33: 46.4 | E33: (Min) | J33: 14:00:00 | M33: =IF(INDEX(HHD!$C:$AX,Week!$J$3+COLUMN()-13,ROW()-4)=0,"",2*INDEX(HHD!$C:$AX,Week!$J$3+COLUMN()-13,ROW()-4)) -> 151.8 | N33: =IF(INDEX(HHD!$C:$AX,Week!$J$3+COLUMN()-13,ROW()-4)=0,"",2*INDEX(HHD!$C:$AX,Week!$J$3+COLUMN()-13,ROW()-4)) -> 149.2 | O33: =IF(INDEX(HHD!$C:$AX,Week!$J$3+COLUMN()-13,ROW()-4)=0,"",2*INDEX(HHD!$C:$AX,Week!$J$3+COLUMN()-13,ROW()-4)) -> 180.2 | P33: =IF(INDEX(HHD!$C:$AX,Week!$J$3+COLUMN()-13,ROW()-4)=0,"",2*INDEX(HHD!$C:$AX,Week!$J$3+COLUMN()-13,ROW()-4)) -> 158.6 | Q33: =IF(INDEX(HHD!$C:$AX,Week!$J$3+COLUMN()-13,ROW()-4)=0,"",2*INDEX(HHD!$C:$AX,Week!$J$3+COLUMN()-13,ROW()-4)) -> 144.8 | R33: =IF(INDEX(HHD!$C:$AX,Week!$J$3+COLUMN()-13,ROW()-4)=0,"",2*INDEX(HHD!$C:$AX,Week!$J$3+COLUMN()-13,ROW()-4)) -> 167.2 | S33: =IF(INDEX(HHD!$C:$AX,Week!$J$3+COLUMN()-13,ROW()-4)=0,"",2*INDEX(HHD!$C:$AX,Week!$J$3+COLUMN()-13,ROW()-4)) -> 162 | T33: =IF(INDEX(HHD!$C:$AX,Week!$J$3+COLUMN()-13,ROW()-4)=0,"",2*INDEX(HHD!$C:$AX,Week!$J$3+COLUMN()-13,ROW()-4)) -> 161 | U33: =IF(INDEX(HHD!$C:$AX,Week!$J$3+COLUMN()-13,ROW()-4)=0,"",2*INDEX(HHD!$C:$AX,Week!$J$3+COLUMN()-13,ROW()-4)) -> 145.4 | V33: =IF(INDEX(HHD!$C:$AX,Week!$J$3+COLUMN()-13,ROW()-4)=0,"",2*INDEX(HHD!$C:$AX,Week!$J$3+COLUMN()-13,ROW()-4)) -> 172 | W33: =IF(INDEX(HHD!$C:$AX,Week!$J$3+COLUMN()-13,ROW()-4)=0,"",2*INDEX(HHD!$C:$AX,Week!$J$3+COLUMN()-13,ROW()-4)) -> 148.2 | X33: =IF(INDEX(HHD!$C:$AX,Week!$J$3+COLUMN()-13,ROW()-4)=0,"",2*INDEX(HHD!$C:$AX,Week!$J$3+COLUMN()-13,ROW()-4)) -> 156.6 | Y33: =IF(INDEX(HHD!$C:$AX,Week!$J$3+COLUMN()-13,ROW()-4)=0,"",2*INDEX(HHD!$C:$AX,Week!$J$3+COLUMN()-13,ROW()-4)) -> 154.4 | Z33: =IF(INDEX(HHD!$C:$AX,Week!$J$3+COLUMN()-13,ROW()-4)=0,"",2*INDEX(HHD!$C:$AX,Week!$J$3+COLUMN()-13,ROW()-4)) -> 152.6 | AA33: =IF(INDEX(HHD!$C:$AX,Week!$J$3+COLUMN()-13,ROW()-4)=0,"",2*INDEX(HHD!$C:$AX,Week!$J$3+COLUMN()-13,ROW()-4)) -> 174.2 | AB33: =IF(INDEX(HHD!$C:$AX,Week!$J$3+COLUMN()-13,ROW()-4)=0,"",2*INDEX(HHD!$C:$AX,Week!$J$3+COLUMN()-13,ROW()-4)) -> 166.4 | AC33: =IF(INDEX(HHD!$C:$AX,Week!$J$3+COLUMN()-13,ROW()-4)=0,"",2*INDEX(HHD!$C:$AX,Week!$J$3+COLUMN()-13,ROW()-4)) -> 168.6 | AD33: =IF(INDEX(HHD!$C:$AX,Week!$J$3+COLUMN()-13,ROW()-4)=0,"",2*INDEX(HHD!$C:$AX,Week!$J$3+COLUMN()-13,ROW()-4)) -> 143.4 | AE33: =IF(INDEX(HHD!$C:$AX,Week!$J$3+COLUMN()-13,ROW()-4)=0,"",2*INDEX(HHD!$C:$AX,Week!$J$3+COLUMN()-13,ROW()-4)) -> 173 | AF33: =IF(INDEX(HHD!$C:$AX,Week!$J$3+COLUMN()-13,ROW()-4)=0,"",2*INDEX(HHD!$C:$AX,Week!$J$3+COLUMN()-13,ROW()-4)) -> 157.6 | AG33: =IF(INDEX(HHD!$C:$AX,Week!$J$3+COLUMN()-13,ROW()-4)=0,"",2*INDEX(HHD!$C:$AX,Week!$J$3+COLUMN()-13,ROW()-4)) -> 137.6 | AH33: =IF(INDEX(HHD!$C:$AX,Week!$J$3+COLUMN()-13,ROW()-4)=0,"",2*INDEX(HHD!$C:$AX,Week!$J$3+COLUMN()-13,ROW()-4)) -> 169.2 | AI33: =IF(INDEX(HHD!$C:$AX,Week!$J$3+COLUMN()-13,ROW()-4)=0,"",2*INDEX(HHD!$C:$AX,Week!$J$3+COLUMN()-13,ROW()-4)) -> 176.2 | AJ33: =IF(INDEX(HHD!$C:$AX,Week!$J$3+COLUMN()-13,ROW()-4)=0,"",2*INDEX(HHD!$C:$AX,Week!$J$3+COLUMN()-13,ROW()-4)) -> 186 | AK33: =IF(INDEX(HHD!$C:$AX,Week!$J$3+COLUMN()-13,ROW()-4)=0,"",2*INDEX(HHD!$C:$AX,Week!$J$3+COLUMN()-13,ROW()-4)) -> 168.6 | AL33: =IF(INDEX(HHD!$C:$AX,Week!$J$3+COLUMN()-13,ROW()-4)=0,"",2*INDEX(HHD!$C:$AX,Week!$J$3+COLUMN()-13,ROW()-4)) -> 160.4 | AM33: =IF(INDEX(HHD!$C:$AX,Week!$J$3+COLUMN()-13,ROW()-4)=0,"",2*INDEX(HHD!$C:$AX,Week!$J$3+COLUMN()-13,ROW()-4)) -> 160.6 | AN33: =IF(INDEX(HHD!$C:$AX,Week!$J$3+COLUMN()-13,ROW()-4)=0,"",2*INDEX(HHD!$C:$AX,Week!$J$3+COLUMN()-13,ROW()-4)) -> 174.2 | AO33: =IF(INDEX(HHD!$C:$AX,Week!$J$3+COLUMN()-13,ROW()-4)=0,"",2*INDEX(HHD!$C:$AX,Week!$J$3+COLUMN()-13,ROW()-4)) -> 157.4 | AP33: =IF(INDEX(HHD!$C:$AX,Week!$J$3+COLUMN()-13,ROW()-4)=0,"",2*INDEX(HHD!$C:$AX,Week!$J$3+COLUMN()-13,ROW()-4)) -> 156 | AQ33: =IF(INDEX(HHD!$C:$AX,Week!$J$3+COLUMN()-13,ROW()-4)=0,"",2*INDEX(HHD!$C:$AX,Week!$J$3+COLUMN()-13,ROW()-4)) -> 189.2 | AR33: =IF(INDEX(HHD!$C:$AX,Week!$J$3+COLUMN()-13,ROW()-4)=0,"",2*INDEX(HHD!$C:$AX,Week!$J$3+COLUMN()-13,ROW()-4)) -> 192.2 | AS33: =IF(INDEX(HHD!$C:$AX,Week!$J$3+COLUMN()-13,ROW()-4)=0,"",2*INDEX(HHD!$C:$AX,Week!$J$3+COLUMN()-13,ROW()-4)) -> 183 | AT33: =IF(INDEX(HHD!$C:$AX,Week!$J$3+COLUMN()-13,ROW()-4)=0,"",2*INDEX(HHD!$C:$AX,Week!$J$3+COLUMN()-13,ROW()-4)) -> 190.8 | AU33: =IF(INDEX(HHD!$C:$AX,Week!$J$3+COLUMN()-13,ROW()-4)=0,"",2*INDEX(HHD!$C:$AX,Week!$J$3+COLUMN()-13,ROW()-4)) -> 178.2
C34: =D34 -> 0 | J34: 14:30:00 | M34: =IF(INDEX(HHD!$C:$AX,Week!$J$3+COLUMN()-13,ROW()-4)=0,"",2*INDEX(HHD!$C:$AX,Week!$J$3+COLUMN()-13,ROW()-4)) -> 155.8 | N34: =IF(INDEX(HHD!$C:$AX,Week!$J$3+COLUMN()-13,ROW()-4)=0,"",2*INDEX(HHD!$C:$AX,Week!$J$3+COLUMN()-13,ROW()-4)) -> 134.6 | O34: =IF(INDEX(HHD!$C:$AX,Week!$J$3+COLUMN()-13,ROW()-4)=0,"",2*INDEX(HHD!$C:$AX,Week!$J$3+COLUMN()-13,ROW()-4)) -> 177.2 | P34: =IF(INDEX(HHD!$C:$AX,Week!$J$3+COLUMN()-13,ROW()-4)=0,"",2*INDEX(HHD!$C:$AX,Week!$J$3+COLUMN()-13,ROW()-4)) -> 151.6 | Q34: =IF(INDEX(HHD!$C:$AX,Week!$J$3+COLUMN()-13,ROW()-4)=0,"",2*INDEX(HHD!$C:$AX,Week!$J$3+COLUMN()-13,ROW()-4)) -> 158.6 | R34: =IF(INDEX(HHD!$C:$AX,Week!$J$3+COLUMN()-13,ROW()-4)=0,"",2*INDEX(HHD!$C:$AX,Week!$J$3+COLUMN()-13,ROW()-4)) -> 165.2 | S34: =IF(INDEX(HHD!$C:$AX,Week!$J$3+COLUMN()-13,ROW()-4)=0,"",2*INDEX(HHD!$C:$AX,Week!$J$3+COLUMN()-13,ROW()-4)) -> 175.4 | T34: =IF(INDEX(HHD!$C:$AX,Week!$J$3+COLUMN()-13,ROW()-4)=0,"",2*INDEX(HHD!$C:$AX,Week!$J$3+COLUMN()-13,ROW()-4)) -> 164.4 | U34: =IF(INDEX(HHD!$C:$AX,Week!$J$3+COLUMN()-13,ROW()-4)=0,"",2*INDEX(HHD!$C:$AX,Week!$J$3+COLUMN()-13,ROW()-4)) -> 153 | V34: =IF(INDEX(HHD!$C:$AX,Week!$J$3+COLUMN()-13,ROW()-4)=0,"",2*INDEX(HHD!$C:$AX,Week!$J$3+COLUMN()-13,ROW()-4)) -> 152.6 | W34: =IF(INDEX(HHD!$C:$AX,Week!$J$3+COLUMN()-13,ROW()-4)=0,"",2*INDEX(HHD!$C:$AX,Week!$J$3+COLUMN()-13,ROW()-4)) -> 159.4 | X34: =IF(INDEX(HHD!$C:$AX,Week!$J$3+COLUMN()-13,ROW()-4)=0,"",2*INDEX(HHD!$C:$AX,Week!$J$3+COLUMN()-13,ROW()-4)) -> 166.8 | Y34: =IF(INDEX(HHD!$C:$AX,Week!$J$3+COLUMN()-13,ROW()-4)=0,"",2*INDEX(HHD!$C:$AX,Week!$J$3+COLUMN()-13,ROW()-4)) -> 166 | Z34: =IF(INDEX(HHD!$C:$AX,Week!$J$3+COLUMN()-13,ROW()-4)=0,"",2*INDEX(HHD!$C:$AX,Week!$J$3+COLUMN()-13,ROW()-4)) -> 149.4 | AA34: =IF(INDEX(HHD!$C:$AX,Week!$J$3+COLUMN()-13,ROW()-4)=0,"",2*INDEX(HHD!$C:$AX,Week!$J$3+COLUMN()-13,ROW()-4)) -> 159.2 | AB34: =IF(INDEX(HHD!$C:$AX,Week!$J$3+COLUMN()-13,ROW()-4)=0,"",2*INDEX(HHD!$C:$AX,Week!$J$3+COLUMN()-13,ROW()-4)) -> 148.4 | AC34: =IF(INDEX(HHD!$C:$AX,Week!$J$3+COLUMN()-13,ROW()-4)=0,"",2*INDEX(HHD!$C:$AX,Week!$J$3+COLUMN()-13,ROW()-4)) -> 158.4 | AD34: =IF(INDEX(HHD!$C:$AX,Week!$J$3+COLUMN()-13,ROW()-4)=0,"",2*INDEX(HHD!$C:$AX,Week!$J$3+COLUMN()-13,ROW()-4)) -> 160.4 | AE34: =IF(INDEX(HHD!$C:$AX,Week!$J$3+COLUMN()-13,ROW()-4)=0,"",2*INDEX(HHD!$C:$AX,Week!$J$3+COLUMN()-13,ROW()-4)) -> 154.8 | AF34: =IF(INDEX(HHD!$C:$AX,Week!$J$3+COLUMN()-13,ROW()-4)=0,"",2*INDEX(HHD!$C:$AX,Week!$J$3+COLUMN()-13,ROW()-4)) -> 147.2 | AG34: =IF(INDEX(HHD!$C:$AX,Week!$J$3+COLUMN()-13,ROW()-4)=0,"",2*INDEX(HHD!$C:$AX,Week!$J$3+COLUMN()-13,ROW()-4)) -> 139.4 | AH34: =IF(INDEX(HHD!$C:$AX,Week!$J$3+COLUMN()-13,ROW()-4)=0,"",2*INDEX(HHD!$C:$AX,Week!$J$3+COLUMN()-13,ROW()-4)) -> 181.2 | AI34: =IF(INDEX(HHD!$C:$AX,Week!$J$3+COLUMN()-13,ROW()-4)=0,"",2*INDEX(HHD!$C:$AX,Week!$J$3+COLUMN()-13,ROW()-4)) -> 166 | AJ34: =IF(INDEX(HHD!$C:$AX,Week!$J$3+COLUMN()-13,ROW()-4)=0,"",2*INDEX(HHD!$C:$AX,Week!$J$3+COLUMN()-13,ROW()-4)) -> 159.8 | AK34: =IF(INDEX(HHD!$C:$AX,Week!$J$3+COLUMN()-13,ROW()-4)=0,"",2*INDEX(HHD!$C:$AX,Week!$J$3+COLUMN()-13,ROW()-4)) -> 169.4 | AL34: =IF(INDEX(HHD!$C:$AX,Week!$J$3+COLUMN()-13,ROW()-4)=0,"",2*INDEX(HHD!$C:$AX,Week!$J$3+COLUMN()-13,ROW()-4)) -> 175.6 | AM34: =IF(INDEX(HHD!$C:$AX,Week!$J$3+COLUMN()-13,ROW()-4)=0,"",2*INDEX(HHD!$C:$AX,Week!$J$3+COLUMN()-13,ROW()-4)) -> 166.8 | AN34: =IF(INDEX(HHD!$C:$AX,Week!$J$3+COLUMN()-13,ROW()-4)=0,"",2*INDEX(HHD!$C:$AX,Week!$J$3+COLUMN()-13,ROW()-4)) -> 160.4 | AO34: =IF(INDEX(HHD!$C:$AX,Week!$J$3+COLUMN()-13,ROW()-4)=0,"",2*INDEX(HHD!$C:$AX,Week!$J$3+COLUMN()-13,ROW()-4)) -> 157.2 | AP34: =IF(INDEX(HHD!$C:$AX,Week!$J$3+COLUMN()-13,ROW()-4)=0,"",2*INDEX(HHD!$C:$AX,Week!$J$3+COLUMN()-13,ROW()-4)) -> 164.4 | AQ34: =IF(INDEX(HHD!$C:$AX,Week!$J$3+COLUMN()-13,ROW()-4)=0,"",2*INDEX(HHD!$C:$AX,Week!$J$3+COLUMN()-13,ROW()-4)) -> 174.2 | AR34: =IF(INDEX(HHD!$C:$AX,Week!$J$3+COLUMN()-13,ROW()-4)=0,"",2*INDEX(HHD!$C:$AX,Week!$J$3+COLUMN()-13,ROW()-4)) -> 168.6 | AS34: =IF(INDEX(HHD!$C:$AX,Week!$J$3+COLUMN()-13,ROW()-4)=0,"",2*INDEX(HHD!$C:$AX,Week!$J$3+COLUMN()-13,ROW()-4)) -> 191 | AT34: =IF(INDEX(HHD!$C:$AX,Week!$J$3+COLUMN()-13,ROW()-4)=0,"",2*INDEX(HHD!$C:$AX,Week!$J$3+COLUMN()-13,ROW()-4)) -> 170.6 | AU34: =IF(INDEX(HHD!$C:$AX,Week!$J$3+COLUMN()-13,ROW()-4)=0,"",2*INDEX(HHD!$C:$AX,Week!$J$3+COLUMN()-13,ROW()-4)) -> 165
C35: [No colour] | J35: 15:00:00 | M35: =IF(INDEX(HHD!$C:$AX,Week!$J$3+COLUMN()-13,ROW()-4)=0,"",2*INDEX(HHD!$C:$AX,Week!$J$3+COLUMN()-13,ROW()-4)) -> 153 | N35: =IF(INDEX(HHD!$C:$AX,Week!$J$3+COLUMN()-13,ROW()-4)=0,"",2*INDEX(HHD!$C:$AX,Week!$J$3+COLUMN()-13,ROW()-4)) -> 154 | O35: =IF(INDEX(HHD!$C:$AX,Week!$J$3+COLUMN()-13,ROW()-4)=0,"",2*INDEX(HHD!$C:$AX,Week!$J$3+COLUMN()-13,ROW()-4)) -> 138 | P35: =IF(INDEX(HHD!$C:$AX,Week!$J$3+COLUMN()-13,ROW()-4)=0,"",2*INDEX(HHD!$C:$AX,Week!$J$3+COLUMN()-13,ROW()-4)) -> 159.2 | Q35: =IF(INDEX(HHD!$C:$AX,Week!$J$3+COLUMN()-13,ROW()-4)=0,"",2*INDEX(HHD!$C:$AX,Week!$J$3+COLUMN()-13,ROW()-4)) -> 159 | R35: =IF(INDEX(HHD!$C:$AX,Week!$J$3+COLUMN()-13,ROW()-4)=0,"",2*INDEX(HHD!$C:$AX,Week!$J$3+COLUMN()-13,ROW()-4)) -> 142.4 | S35: =IF(INDEX(HHD!$C:$AX,Week!$J$3+COLUMN()-13,ROW()-4)=0,"",2*INDEX(HHD!$C:$AX,Week!$J$3+COLUMN()-13,ROW()-4)) -> 157.4 | T35: =IF(INDEX(HHD!$C:$AX,Week!$J$3+COLUMN()-13,ROW()-4)=0,"",2*INDEX(HHD!$C:$AX,Week!$J$3+COLUMN()-13,ROW()-4)) -> 149 | U35: =IF(INDEX(HHD!$C:$AX,Week!$J$3+COLUMN()-13,ROW()-4)=0,"",2*INDEX(HHD!$C:$AX,Week!$J$3+COLUMN()-13,ROW()-4)) -> 160 | V35: =IF(INDEX(HHD!$C:$AX,Week!$J$3+COLUMN()-13,ROW()-4)=0,"",2*INDEX(HHD!$C:$AX,Week!$J$3+COLUMN()-13,ROW()-4)) -> 142.8 | W35: =IF(INDEX(HHD!$C:$AX,Week!$J$3+COLUMN()-13,ROW()-4)=0,"",2*INDEX(HHD!$C:$AX,Week!$J$3+COLUMN()-13,ROW()-4)) -> 156 | X35: =IF(INDEX(HHD!$C:$AX,Week!$J$3+COLUMN()-13,ROW()-4)=0,"",2*INDEX(HHD!$C:$AX,Week!$J$3+COLUMN()-13,ROW()-4)) -> 139.4 | Y35: =IF(INDEX(HHD!$C:$AX,Week!$J$3+COLUMN()-13,ROW()-4)=0,"",2*INDEX(HHD!$C:$AX,Week!$J$3+COLUMN()-13,ROW()-4)) -> 131.2 | Z35: =IF(INDEX(HHD!$C:$AX,Week!$J$3+COLUMN()-13,ROW()-4)=0,"",2*INDEX(HHD!$C:$AX,Week!$J$3+COLUMN()-13,ROW()-4)) -> 149.8 | AA35: =IF(INDEX(HHD!$C:$AX,Week!$J$3+COLUMN()-13,ROW()-4)=0,"",2*INDEX(HHD!$C:$AX,Week!$J$3+COLUMN()-13,ROW()-4)) -> 161.8 | AB35: =IF(INDEX(HHD!$C:$AX,Week!$J$3+COLUMN()-13,ROW()-4)=0,"",2*INDEX(HHD!$C:$AX,Week!$J$3+COLUMN()-13,ROW()-4)) -> 143.2 | AC35: =IF(INDEX(HHD!$C:$AX,Week!$J$3+COLUMN()-13,ROW()-4)=0,"",2*INDEX(HHD!$C:$AX,Week!$J$3+COLUMN()-13,ROW()-4)) -> 168.6 | AD35: =IF(INDEX(HHD!$C:$AX,Week!$J$3+COLUMN()-13,ROW()-4)=0,"",2*INDEX(HHD!$C:$AX,Week!$J$3+COLUMN()-13,ROW()-4)) -> 149.8 | AE35: =IF(INDEX(HHD!$C:$AX,Week!$J$3+COLUMN()-13,ROW()-4)=0,"",2*INDEX(HHD!$C:$AX,Week!$J$3+COLUMN()-13,ROW()-4)) -> 154 | AF35: =IF(INDEX(HHD!$C:$AX,Week!$J$3+COLUMN()-13,ROW()-4)=0,"",2*INDEX(HHD!$C:$AX,Week!$J$3+COLUMN()-13,ROW()-4)) -> 146.2 | AG35: =IF(INDEX(HHD!$C:$AX,Week!$J$3+COLUMN()-13,ROW()-4)=0,"",2*INDEX(HHD!$C:$AX,Week!$J$3+COLUMN()-13,ROW()-4)) -> 149 | AH35: =IF(INDEX(HHD!$C:$AX,Week!$J$3+COLUMN()-13,ROW()-4)=0,"",2*INDEX(HHD!$C:$AX,Week!$J$3+COLUMN()-13,ROW()-4)) -> 150.2 | AI35: =IF(INDEX(HHD!$C:$AX,Week!$J$3+COLUMN()-13,ROW()-4)=0,"",2*INDEX(HHD!$C:$AX,Week!$J$3+COLUMN()-13,ROW()-4)) -> 161.8 | AJ35: =IF(INDEX(HHD!$C:$AX,Week!$J$3+COLUMN()-13,ROW()-4)=0,"",2*INDEX(HHD!$C:$AX,Week!$J$3+COLUMN()-13,ROW()-4)) -> 169.2 | AK35: =IF(INDEX(HHD!$C:$AX,Week!$J$3+COLUMN()-13,ROW()-4)=0,"",2*INDEX(HHD!$C:$AX,Week!$J$3+COLUMN()-13,ROW()-4)) -> 168.2 | AL35: =IF(INDEX(HHD!$C:$AX,Week!$J$3+COLUMN()-13,ROW()-4)=0,"",2*INDEX(HHD!$C:$AX,Week!$J$3+COLUMN()-13,ROW()-4)) -> 160.2 | AM35: =IF(INDEX(HHD!$C:$AX,Week!$J$3+COLUMN()-13,ROW()-4)=0,"",2*INDEX(HHD!$C:$AX,Week!$J$3+COLUMN()-13,ROW()-4)) -> 153.2 | AN35: =IF(INDEX(HHD!$C:$AX,Week!$J$3+COLUMN()-13,ROW()-4)=0,"",2*INDEX(HHD!$C:$AX,Week!$J$3+COLUMN()-13,ROW()-4)) -> 167.8 | AO35: =IF(INDEX(HHD!$C:$AX,Week!$J$3+COLUMN()-13,ROW()-4)=0,"",2*INDEX(HHD!$C:$AX,Week!$J$3+COLUMN()-13,ROW()-4)) -> 154 | AP35: =IF(INDEX(HHD!$C:$AX,Week!$J$3+COLUMN()-13,ROW()-4)=0,"",2*INDEX(HHD!$C:$AX,Week!$J$3+COLUMN()-13,ROW()-4)) -> 151.2 | AQ35: =IF(INDEX(HHD!$C:$AX,Week!$J$3+COLUMN()-13,ROW()-4)=0,"",2*INDEX(HHD!$C:$AX,Week!$J$3+COLUMN()-13,ROW()-4)) -> 168.2 | AR35: =IF(INDEX(HHD!$C:$AX,Week!$J$3+COLUMN()-13,ROW()-4)=0,"",2*INDEX(HHD!$C:$AX,Week!$J$3+COLUMN()-13,ROW()-4)) -> 154.6 | AS35: =IF(INDEX(HHD!$C:$AX,Week!$J$3+COLUMN()-13,ROW()-4)=0,"",2*INDEX(HHD!$C:$AX,Week!$J$3+COLUMN()-13,ROW()-4)) -> 190.8 | AT35: =IF(INDEX(HHD!$C:$AX,Week!$J$3+COLUMN()-13,ROW()-4)=0,"",2*INDEX(HHD!$C:$AX,Week!$J$3+COLUMN()-13,ROW()-4)) -> 154.8 | AU35: =IF(INDEX(HHD!$C:$AX,Week!$J$3+COLUMN()-13,ROW()-4)=0,"",2*INDEX(HHD!$C:$AX,Week!$J$3+COLUMN()-13,ROW()-4)) -> 171.8
J36: 15:30:00 | M36: =IF(INDEX(HHD!$C:$AX,Week!$J$3+COLUMN()-13,ROW()-4)=0,"",2*INDEX(HHD!$C:$AX,Week!$J$3+COLUMN()-13,ROW()-4)) -> 125.4 | N36: =IF(INDEX(HHD!$C:$AX,Week!$J$3+COLUMN()-13,ROW()-4)=0,"",2*INDEX(HHD!$C:$AX,Week!$J$3+COLUMN()-13,ROW()-4)) -> 128 | O36: =IF(INDEX(HHD!$C:$AX,Week!$J$3+COLUMN()-13,ROW()-4)=0,"",2*INDEX(HHD!$C:$AX,Week!$J$3+COLUMN()-13,ROW()-4)) -> 136 | P36: =IF(INDEX(HHD!$C:$AX,Week!$J$3+COLUMN()-13,ROW()-4)=0,"",2*INDEX(HHD!$C:$AX,Week!$J$3+COLUMN()-13,ROW()-4)) -> 141.2 | Q36: =IF(INDEX(HHD!$C:$AX,Week!$J$3+COLUMN()-13,ROW()-4)=0,"",2*INDEX(HHD!$C:$AX,Week!$J$3+COLUMN()-13,ROW()-4)) -> 161.8 | R36: =IF(INDEX(HHD!$C:$AX,Week!$J$3+COLUMN()-13,ROW()-4)=0,"",2*INDEX(HHD!$C:$AX,Week!$J$3+COLUMN()-13,ROW()-4)) -> 153.8 | S36: =IF(INDEX(HHD!$C:$AX,Week!$J$3+COLUMN()-13,ROW()-4)=0,"",2*INDEX(HHD!$C:$AX,Week!$J$3+COLUMN()-13,ROW()-4)) -> 156.2 | T36: =IF(INDEX(HHD!$C:$AX,Week!$J$3+COLUMN()-13,ROW()-4)=0,"",2*INDEX(HHD!$C:$AX,Week!$J$3+COLUMN()-13,ROW()-4)) -> 137.4 | U36: =IF(INDEX(HHD!$C:$AX,Week!$J$3+COLUMN()-13,ROW()-4)=0,"",2*INDEX(HHD!$C:$AX,Week!$J$3+COLUMN()-13,ROW()-4)) -> 145.2 | V36: =IF(INDEX(HHD!$C:$AX,Week!$J$3+COLUMN()-13,ROW()-4)=0,"",2*INDEX(HHD!$C:$AX,Week!$J$3+COLUMN()-13,ROW()-4)) -> 136.6 | W36: =IF(INDEX(HHD!$C:$AX,Week!$J$3+COLUMN()-13,ROW()-4)=0,"",2*INDEX(HHD!$C:$AX,Week!$J$3+COLUMN()-13,ROW()-4)) -> 139 | X36: =IF(INDEX(HHD!$C:$AX,Week!$J$3+COLUMN()-13,ROW()-4)=0,"",2*INDEX(HHD!$C:$AX,Week!$J$3+COLUMN()-13,ROW()-4)) -> 136.6 | Y36: =IF(INDEX(HHD!$C:$AX,Week!$J$3+COLUMN()-13,ROW()-4)=0,"",2*INDEX(HHD!$C:$AX,Week!$J$3+COLUMN()-13,ROW()-4)) -> 140.6 | Z36: =IF(INDEX(HHD!$C:$AX,Week!$J$3+COLUMN()-13,ROW()-4)=0,"",2*INDEX(HHD!$C:$AX,Week!$J$3+COLUMN()-13,ROW()-4)) -> 133.2 | AA36: =IF(INDEX(HHD!$C:$AX,Week!$J$3+COLUMN()-13,ROW()-4)=0,"",2*INDEX(HHD!$C:$AX,Week!$J$3+COLUMN()-13,ROW()-4)) -> 143.4 | AB36: =IF(INDEX(HHD!$C:$AX,Week!$J$3+COLUMN()-13,ROW()-4)=0,"",2*INDEX(HHD!$C:$AX,Week!$J$3+COLUMN()-13,ROW()-4)) -> 149 | AC36: =IF(INDEX(HHD!$C:$AX,Week!$J$3+COLUMN()-13,ROW()-4)=0,"",2*INDEX(HHD!$C:$AX,Week!$J$3+COLUMN()-13,ROW()-4)) -> 154 | AD36: =IF(INDEX(HHD!$C:$AX,Week!$J$3+COLUMN()-13,ROW()-4)=0,"",2*INDEX(HHD!$C:$AX,Week!$J$3+COLUMN()-13,ROW()-4)) -> 137.4 | AE36: =IF(INDEX(HHD!$C:$AX,Week!$J$3+COLUMN()-13,ROW()-4)=0,"",2*INDEX(HHD!$C:$AX,Week!$J$3+COLUMN()-13,ROW()-4)) -> 150.4 | AF36: =IF(INDEX(HHD!$C:$AX,Week!$J$3+COLUMN()-13,ROW()-4)=0,"",2*INDEX(HHD!$C:$AX,Week!$J$3+COLUMN()-13,ROW()-4)) -> 154.2 | AG36: =IF(INDEX(HHD!$C:$AX,Week!$J$3+COLUMN()-13,ROW()-4)=0,"",2*INDEX(HHD!$C:$AX,Week!$J$3+COLUMN()-13,ROW()-4)) -> 131.6 | AH36: =IF(INDEX(HHD!$C:$AX,Week!$J$3+COLUMN()-13,ROW()-4)=0,"",2*INDEX(HHD!$C:$AX,Week!$J$3+COLUMN()-13,ROW()-4)) -> 159.6 | AI36: =IF(INDEX(HHD!$C:$AX,Week!$J$3+COLUMN()-13,ROW()-4)=0,"",2*INDEX(HHD!$C:$AX,Week!$J$3+COLUMN()-13,ROW()-4)) -> 182 | AJ36: =IF(INDEX(HHD!$C:$AX,Week!$J$3+COLUMN()-13,ROW()-4)=0,"",2*INDEX(HHD!$C:$AX,Week!$J$3+COLUMN()-13,ROW()-4)) -> 133.8 | AK36: =IF(INDEX(HHD!$C:$AX,Week!$J$3+COLUMN()-13,ROW()-4)=0,"",2*INDEX(HHD!$C:$AX,Week!$J$3+COLUMN()-13,ROW()-4)) -> 172 | AL36: =IF(INDEX(HHD!$C:$AX,Week!$J$3+COLUMN()-13,ROW()-4)=0,"",2*INDEX(HHD!$C:$AX,Week!$J$3+COLUMN()-13,ROW()-4)) -> 131.2 | AM36: =IF(INDEX(HHD!$C:$AX,Week!$J$3+COLUMN()-13,ROW()-4)=0,"",2*INDEX(HHD!$C:$AX,Week!$J$3+COLUMN()-13,ROW()-4)) -> 152 | AN36: =IF(INDEX(HHD!$C:$AX,Week!$J$3+COLUMN()-13,ROW()-4)=0,"",2*INDEX(HHD!$C:$AX,Week!$J$3+COLUMN()-13,ROW()-4)) -> 158.6 | AO36: =IF(INDEX(HHD!$C:$AX,Week!$J$3+COLUMN()-13,ROW()-4)=0,"",2*INDEX(HHD!$C:$AX,Week!$J$3+COLUMN()-13,ROW()-4)) -> 148.6 | AP36: =IF(INDEX(HHD!$C:$AX,Week!$J$3+COLUMN()-13,ROW()-4)=0,"",2*INDEX(HHD!$C:$AX,Week!$J$3+COLUMN()-13,ROW()-4)) -> 164.2 | AQ36: =IF(INDEX(HHD!$C:$AX,Week!$J$3+COLUMN()-13,ROW()-4)=0,"",2*INDEX(HHD!$C:$AX,Week!$J$3+COLUMN()-13,ROW()-4)) -> 169.8 | AR36: =IF(INDEX(HHD!$C:$AX,Week!$J$3+COLUMN()-13,ROW()-4)=0,"",2*INDEX(HHD!$C:$AX,Week!$J$3+COLUMN()-13,ROW()-4)) -> 142.4 | AS36: =IF(INDEX(HHD!$C:$AX,Week!$J$3+COLUMN()-13,ROW()-4)=0,"",2*INDEX(HHD!$C:$AX,Week!$J$3+COLUMN()-13,ROW()-4)) -> 175.2 | AT36: =IF(INDEX(HHD!$C:$AX,Week!$J$3+COLUMN()-13,ROW()-4)=0,"",2*INDEX(HHD!$C:$AX,Week!$J$3+COLUMN()-13,ROW()-4)) -> 142.8 | AU36: =IF(INDEX(HHD!$C:$AX,Week!$J$3+COLUMN()-13,ROW()-4)=0,"",2*INDEX(HHD!$C:$AX,Week!$J$3+COLUMN()-13,ROW()-4)) -> 141.8
J37: 16:00:00 | M37: =IF(INDEX(HHD!$C:$AX,Week!$J$3+COLUMN()-13,ROW()-4)=0,"",2*INDEX(HHD!$C:$AX,Week!$J$3+COLUMN()-13,ROW()-4)) -> 131.2 | N37: =IF(INDEX(HHD!$C:$AX,Week!$J$3+COLUMN()-13,ROW()-4)=0,"",2*INDEX(HHD!$C:$AX,Week!$J$3+COLUMN()-13,ROW()-4)) -> 134 | O37: =IF(INDEX(HHD!$C:$AX,Week!$J$3+COLUMN()-13,ROW()-4)=0,"",2*INDEX(HHD!$C:$AX,Week!$J$3+COLUMN()-13,ROW()-4)) -> 135.6 | P37: =IF(INDEX(HHD!$C:$AX,Week!$J$3+COLUMN()-13,ROW()-4)=0,"",2*INDEX(HHD!$C:$AX,Week!$J$3+COLUMN()-13,ROW()-4)) -> 155.8 | Q37: =IF(INDEX(HHD!$C:$AX,Week!$J$3+COLUMN()-13,ROW()-4)=0,"",2*INDEX(HHD!$C:$AX,Week!$J$3+COLUMN()-13,ROW()-4)) -> 156.2 | R37: =IF(INDEX(HHD!$C:$AX,Week!$J$3+COLUMN()-13,ROW()-4)=0,"",2*INDEX(HHD!$C:$AX,Week!$J$3+COLUMN()-13,ROW()-4)) -> 130.6 | S37: =IF(INDEX(HHD!$C:$AX,Week!$J$3+COLUMN()-13,ROW()-4)=0,"",2*INDEX(HHD!$C:$AX,Week!$J$3+COLUMN()-13,ROW()-4)) -> 143.8 | T37: =IF(INDEX(HHD!$C:$AX,Week!$J$3+COLUMN()-13,ROW()-4)=0,"",2*INDEX(HHD!$C:$AX,Week!$J$3+COLUMN()-13,ROW()-4)) -> 138.2 | U37: =IF(INDEX(HHD!$C:$AX,Week!$J$3+COLUMN()-13,ROW()-4)=0,"",2*INDEX(HHD!$C:$AX,Week!$J$3+COLUMN()-13,ROW()-4)) -> 137 | V37: =IF(INDEX(HHD!$C:$AX,Week!$J$3+COLUMN()-13,ROW()-4)=0,"",2*INDEX(HHD!$C:$AX,Week!$J$3+COLUMN()-13,ROW()-4)) -> 142.8 | W37: =IF(INDEX(HHD!$C:$AX,Week!$J$3+COLUMN()-13,ROW()-4)=0,"",2*INDEX(HHD!$C:$AX,Week!$J$3+COLUMN()-13,ROW()-4)) -> 159 | X37: =IF(INDEX(HHD!$C:$AX,Week!$J$3+COLUMN()-13,ROW()-4)=0,"",2*INDEX(HHD!$C:$AX,Week!$J$3+COLUMN()-13,ROW()-4)) -> 141.6 | Y37: =IF(INDEX(HHD!$C:$AX,Week!$J$3+COLUMN()-13,ROW()-4)=0,"",2*INDEX(HHD!$C:$AX,Week!$J$3+COLUMN()-13,ROW()-4)) -> 147.8 | Z37: =IF(INDEX(HHD!$C:$AX,Week!$J$3+COLUMN()-13,ROW()-4)=0,"",2*INDEX(HHD!$C:$AX,Week!$J$3+COLUMN()-13,ROW()-4)) -> 125.4 | AA37: =IF(INDEX(HHD!$C:$AX,Week!$J$3+COLUMN()-13,ROW()-4)=0,"",2*INDEX(HHD!$C:$AX,Week!$J$3+COLUMN()-13,ROW()-4)) -> 153.4 | AB37: =IF(INDEX(HHD!$C:$AX,Week!$J$3+COLUMN()-13,ROW()-4)=0,"",2*INDEX(HHD!$C:$AX,Week!$J$3+COLUMN()-13,ROW()-4)) -> 136.6 | AC37: =IF(INDEX(HHD!$C:$AX,Week!$J$3+COLUMN()-13,ROW()-4)=0,"",2*INDEX(HHD!$C:$AX,Week!$J$3+COLUMN()-13,ROW()-4)) -> 151.2 | AD37: =IF(INDEX(HHD!$C:$AX,Week!$J$3+COLUMN()-13,ROW()-4)=0,"",2*INDEX(HHD!$C:$AX,Week!$J$3+COLUMN()-13,ROW()-4)) -> 131.2 | AE37: =IF(INDEX(HHD!$C:$AX,Week!$J$3+COLUMN()-13,ROW()-4)=0,"",2*INDEX(HHD!$C:$AX,Week!$J$3+COLUMN()-13,ROW()-4)) -> 153.4 | AF37: =IF(INDEX(HHD!$C:$AX,Week!$J$3+COLUMN()-13,ROW()-4)=0,"",2*INDEX(HHD!$C:$AX,Week!$J$3+COLUMN()-13,ROW()-4)) -> 157.2 | AG37: =IF(INDEX(HHD!$C:$AX,Week!$J$3+COLUMN()-13,ROW()-4)=0,"",2*INDEX(HHD!$C:$AX,Week!$J$3+COLUMN()-13,ROW()-4)) -> 134.8 | AH37: =IF(INDEX(HHD!$C:$AX,Week!$J$3+COLUMN()-13,ROW()-4)=0,"",2*INDEX(HHD!$C:$AX,Week!$J$3+COLUMN()-13,ROW()-4)) -> 130.2 | AI37: =IF(INDEX(HHD!$C:$AX,Week!$J$3+COLUMN()-13,ROW()-4)=0,"",2*INDEX(HHD!$C:$AX,Week!$J$3+COLUMN()-13,ROW()-4)) -> 154.8 | AJ37: =IF(INDEX(HHD!$C:$AX,Week!$J$3+COLUMN()-13,ROW()-4)=0,"",2*INDEX(HHD!$C:$AX,Week!$J$3+COLUMN()-13,ROW()-4)) -> 141.2 | AK37: =IF(INDEX(HHD!$C:$AX,Week!$J$3+COLUMN()-13,ROW()-4)=0,"",2*INDEX(HHD!$C:$AX,Week!$J$3+COLUMN()-13,ROW()-4)) -> 159.4 | AL37: =IF(INDEX(HHD!$C:$AX,Week!$J$3+COLUMN()-13,ROW()-4)=0,"",2*INDEX(HHD!$C:$AX,Week!$J$3+COLUMN()-13,ROW()-4)) -> 141.4 | AM37: =IF(INDEX(HHD!$C:$AX,Week!$J$3+COLUMN()-13,ROW()-4)=0,"",2*INDEX(HHD!$C:$AX,Week!$J$3+COLUMN()-13,ROW()-4)) -> 140.4 | AN37: =IF(INDEX(HHD!$C:$AX,Week!$J$3+COLUMN()-13,ROW()-4)=0,"",2*INDEX(HHD!$C:$AX,Week!$J$3+COLUMN()-13,ROW()-4)) -> 133 | AO37: =IF(INDEX(HHD!$C:$AX,Week!$J$3+COLUMN()-13,ROW()-4)=0,"",2*INDEX(HHD!$C:$AX,Week!$J$3+COLUMN()-13,ROW()-4)) -> 148.2 | AP37: =IF(INDEX(HHD!$C:$AX,Week!$J$3+COLUMN()-13,ROW()-4)=0,"",2*INDEX(HHD!$C:$AX,Week!$J$3+COLUMN()-13,ROW()-4)) -> 154.2 | AQ37: =IF(INDEX(HHD!$C:$AX,Week!$J$3+COLUMN()-13,ROW()-4)=0,"",2*INDEX(HHD!$C:$AX,Week!$J$3+COLUMN()-13,ROW()-4)) -> 147.8 | AR37: =IF(INDEX(HHD!$C:$AX,Week!$J$3+COLUMN()-13,ROW()-4)=0,"",2*INDEX(HHD!$C:$AX,Week!$J$3+COLUMN()-13,ROW()-4)) -> 156.4 | AS37: =IF(INDEX(HHD!$C:$AX,Week!$J$3+COLUMN()-13,ROW()-4)=0,"",2*INDEX(HHD!$C:$AX,Week!$J$3+COLUMN()-13,ROW()-4)) -> 158.4 | AT37: =IF(INDEX(HHD!$C:$AX,Week!$J$3+COLUMN()-13,ROW()-4)=0,"",2*INDEX(HHD!$C:$AX,Week!$J$3+COLUMN()-13,ROW()-4)) -> 162 | AU37: =IF(INDEX(HHD!$C:$AX,Week!$J$3+COLUMN()-13,ROW()-4)=0,"",2*INDEX(HHD!$C:$AX,Week!$J$3+COLUMN()-13,ROW()-4)) -> 147.6
C38: Choose colour set | D38: C | E38: (C, F, or Y) | J38: 16:30:00 | M38: =IF(INDEX(HHD!$C:$AX,Week!$J$3+COLUMN()-13,ROW()-4)=0,"",2*INDEX(HHD!$C:$AX,Week!$J$3+COLUMN()-13,ROW()-4)) -> 106.6 | N38: =IF(INDEX(HHD!$C:$AX,Week!$J$3+COLUMN()-13,ROW()-4)=0,"",2*INDEX(HHD!$C:$AX,Week!$J$3+COLUMN()-13,ROW()-4)) -> 119.4 | O38: =IF(INDEX(HHD!$C:$AX,Week!$J$3+COLUMN()-13,ROW()-4)=0,"",2*INDEX(HHD!$C:$AX,Week!$J$3+COLUMN()-13,ROW()-4)) -> 112.8 | P38: =IF(INDEX(HHD!$C:$AX,Week!$J$3+COLUMN()-13,ROW()-4)=0,"",2*INDEX(HHD!$C:$AX,Week!$J$3+COLUMN()-13,ROW()-4)) -> 121.2 | Q38: =IF(INDEX(HHD!$C:$AX,Week!$J$3+COLUMN()-13,ROW()-4)=0,"",2*INDEX(HHD!$C:$AX,Week!$J$3+COLUMN()-13,ROW()-4)) -> 129 | R38: =IF(INDEX(HHD!$C:$AX,Week!$J$3+COLUMN()-13,ROW()-4)=0,"",2*INDEX(HHD!$C:$AX,Week!$J$3+COLUMN()-13,ROW()-4)) -> 128.8 | S38: =IF(INDEX(HHD!$C:$AX,Week!$J$3+COLUMN()-13,ROW()-4)=0,"",2*INDEX(HHD!$C:$AX,Week!$J$3+COLUMN()-13,ROW()-4)) -> 101.8 | T38: =IF(INDEX(HHD!$C:$AX,Week!$J$3+COLUMN()-13,ROW()-4)=0,"",2*INDEX(HHD!$C:$AX,Week!$J$3+COLUMN()-13,ROW()-4)) -> 121.8 | U38: =IF(INDEX(HHD!$C:$AX,Week!$J$3+COLUMN()-13,ROW()-4)=0,"",2*INDEX(HHD!$C:$AX,Week!$J$3+COLUMN()-13,ROW()-4)) -> 115 | V38: =IF(INDEX(HHD!$C:$AX,Week!$J$3+COLUMN()-13,ROW()-4)=0,"",2*INDEX(HHD!$C:$AX,Week!$J$3+COLUMN()-13,ROW()-4)) -> 122 | W38: =IF(INDEX(HHD!$C:$AX,Week!$J$3+COLUMN()-13,ROW()-4)=0,"",2*INDEX(HHD!$C:$AX,Week!$J$3+COLUMN()-13,ROW()-4)) -> 125.8 | X38: =IF(INDEX(HHD!$C:$AX,Week!$J$3+COLUMN()-13,ROW()-4)=0,"",2*INDEX(HHD!$C:$AX,Week!$J$3+COLUMN()-13,ROW()-4)) -> 119 | Y38: =IF(INDEX(HHD!$C:$AX,Week!$J$3+COLUMN()-13,ROW()-4)=0,"",2*INDEX(HHD!$C:$AX,Week!$J$3+COLUMN()-13,ROW()-4)) -> 124.2 | Z38: =IF(INDEX(HHD!$C:$AX,Week!$J$3+COLUMN()-13,ROW()-4)=0,"",2*INDEX(HHD!$C:$AX,Week!$J$3+COLUMN()-13,ROW()-4)) -> 95.8 | AA38: =IF(INDEX(HHD!$C:$AX,Week!$J$3+COLUMN()-13,ROW()-4)=0,"",2*INDEX(HHD!$C:$AX,Week!$J$3+COLUMN()-13,ROW()-4)) -> 124.2 | AB38: =IF(INDEX(HHD!$C:$AX,Week!$J$3+COLUMN()-13,ROW()-4)=0,"",2*INDEX(HHD!$C:$AX,Week!$J$3+COLUMN()-13,ROW()-4)) -> 108.8 | AC38: =IF(INDEX(HHD!$C:$AX,Week!$J$3+COLUMN()-13,ROW()-4)=0,"",2*INDEX(HHD!$C:$AX,Week!$J$3+COLUMN()-13,ROW()-4)) -> 136.4 | AD38: =IF(INDEX(HHD!$C:$AX,Week!$J$3+COLUMN()-13,ROW()-4)=0,"",2*INDEX(HHD!$C:$AX,Week!$J$3+COLUMN()-13,ROW()-4)) -> 135.2 | AE38: =IF(INDEX(HHD!$C:$AX,Week!$J$3+COLUMN()-13,ROW()-4)=0,"",2*INDEX(HHD!$C:$AX,Week!$J$3+COLUMN()-13,ROW()-4)) -> 130.8 | AF38: =IF(INDEX(HHD!$C:$AX,Week!$J$3+COLUMN()-13,ROW()-4)=0,"",2*INDEX(HHD!$C:$AX,Week!$J$3+COLUMN()-13,ROW()-4)) -> 132.6 | AG38: =IF(INDEX(HHD!$C:$AX,Week!$J$3+COLUMN()-13,ROW()-4)=0,"",2*INDEX(HHD!$C:$AX,Week!$J$3+COLUMN()-13,ROW()-4)) -> 130.2 | AH38: =IF(INDEX(HHD!$C:$AX,Week!$J$3+COLUMN()-13,ROW()-4)=0,"",2*INDEX(HHD!$C:$AX,Week!$J$3+COLUMN()-13,ROW()-4)) -> 117.4 | AI38: =IF(INDEX(HHD!$C:$AX,Week!$J$3+COLUMN()-13,ROW()-4)=0,"",2*INDEX(HHD!$C:$AX,Week!$J$3+COLUMN()-13,ROW()-4)) -> 131.6 | AJ38: =IF(INDEX(HHD!$C:$AX,Week!$J$3+COLUMN()-13,ROW()-4)=0,"",2*INDEX(HHD!$C:$AX,Week!$J$3+COLUMN()-13,ROW()-4)) -> 151.8 | AK38: =IF(INDEX(HHD!$C:$AX,Week!$J$3+COLUMN()-13,ROW()-4)=0,"",2*INDEX(HHD!$C:$AX,Week!$J$3+COLUMN()-13,ROW()-4)) -> 157 | AL38: =IF(INDEX(HHD!$C:$AX,Week!$J$3+COLUMN()-13,ROW()-4)=0,"",2*INDEX(HHD!$C:$AX,Week!$J$3+COLUMN()-13,ROW()-4)) -> 125.2 | AM38: =IF(INDEX(HHD!$C:$AX,Week!$J$3+COLUMN()-13,ROW()-4)=0,"",2*INDEX(HHD!$C:$AX,Week!$J$3+COLUMN()-13,ROW()-4)) -> 128.4 | AN38: =IF(INDEX(HHD!$C:$AX,Week!$J$3+COLUMN()-13,ROW()-4)=0,"",2*INDEX(HHD!$C:$AX,Week!$J$3+COLUMN()-13,ROW()-4)) -> 103.4 | AO38: =IF(INDEX(HHD!$C:$AX,Week!$J$3+COLUMN()-13,ROW()-4)=0,"",2*INDEX(HHD!$C:$AX,Week!$J$3+COLUMN()-13,ROW()-4)) -> 140.6 | AP38: =IF(INDEX(HHD!$C:$AX,Week!$J$3+COLUMN()-13,ROW()-4)=0,"",2*INDEX(HHD!$C:$AX,Week!$J$3+COLUMN()-13,ROW()-4)) -> 133.8 | AQ38: =IF(INDEX(HHD!$C:$AX,Week!$J$3+COLUMN()-13,ROW()-4)=0,"",2*INDEX(HHD!$C:$AX,Week!$J$3+COLUMN()-13,ROW()-4)) -> 153.4 | AR38: =IF(INDEX(HHD!$C:$AX,Week!$J$3+COLUMN()-13,ROW()-4)=0,"",2*INDEX(HHD!$C:$AX,Week!$J$3+COLUMN()-13,ROW()-4)) -> 133.8 | AS38: =IF(INDEX(HHD!$C:$AX,Week!$J$3+COLUMN()-13,ROW()-4)=0,"",2*INDEX(HHD!$C:$AX,Week!$J$3+COLUMN()-13,ROW()-4)) -> 149 | AT38: =IF(INDEX(HHD!$C:$AX,Week!$J$3+COLUMN()-13,ROW()-4)=0,"",2*INDEX(HHD!$C:$AX,Week!$J$3+COLUMN()-13,ROW()-4)) -> 147.6 | AU38: =IF(INDEX(HHD!$C:$AX,Week!$J$3+COLUMN()-13,ROW()-4)=0,"",2*INDEX(HHD!$C:$AX,Week!$J$3+COLUMN()-13,ROW()-4)) -> 122
J39: 17:00:00 | M39: =IF(INDEX(HHD!$C:$AX,Week!$J$3+COLUMN()-13,ROW()-4)=0,"",2*INDEX(HHD!$C:$AX,Week!$J$3+COLUMN()-13,ROW()-4)) -> 70.2 | N39: =IF(INDEX(HHD!$C:$AX,Week!$J$3+COLUMN()-13,ROW()-4)=0,"",2*INDEX(HHD!$C:$AX,Week!$J$3+COLUMN()-13,ROW()-4)) -> 86 | O39: =IF(INDEX(HHD!$C:$AX,Week!$J$3+COLUMN()-13,ROW()-4)=0,"",2*INDEX(HHD!$C:$AX,Week!$J$3+COLUMN()-13,ROW()-4)) -> 85.4 | P39: =IF(INDEX(HHD!$C:$AX,Week!$J$3+COLUMN()-13,ROW()-4)=0,"",2*INDEX(HHD!$C:$AX,Week!$J$3+COLUMN()-13,ROW()-4)) -> 71.6 | Q39: =IF(INDEX(HHD!$C:$AX,Week!$J$3+COLUMN()-13,ROW()-4)=0,"",2*INDEX(HHD!$C:$AX,Week!$J$3+COLUMN()-13,ROW()-4)) -> 92 | R39: =IF(INDEX(HHD!$C:$AX,Week!$J$3+COLUMN()-13,ROW()-4)=0,"",2*INDEX(HHD!$C:$AX,Week!$J$3+COLUMN()-13,ROW()-4)) -> 76.2 | S39: =IF(INDEX(HHD!$C:$AX,Week!$J$3+COLUMN()-13,ROW()-4)=0,"",2*INDEX(HHD!$C:$AX,Week!$J$3+COLUMN()-13,ROW()-4)) -> 86.8 | T39: =IF(INDEX(HHD!$C:$AX,Week!$J$3+COLUMN()-13,ROW()-4)=0,"",2*INDEX(HHD!$C:$AX,Week!$J$3+COLUMN()-13,ROW()-4)) -> 90.6 | U39: =IF(INDEX(HHD!$C:$AX,Week!$J$3+COLUMN()-13,ROW()-4)=0,"",2*INDEX(HHD!$C:$AX,Week!$J$3+COLUMN()-13,ROW()-4)) -> 81 | V39: =IF(INDEX(HHD!$C:$AX,Week!$J$3+COLUMN()-13,ROW()-4)=0,"",2*INDEX(HHD!$C:$AX,Week!$J$3+COLUMN()-13,ROW()-4)) -> 68.6 | W39: =IF(INDEX(HHD!$C:$AX,Week!$J$3+COLUMN()-13,ROW()-4)=0,"",2*INDEX(HHD!$C:$AX,Week!$J$3+COLUMN()-13,ROW()-4)) -> 71.6 | X39: =IF(INDEX(HHD!$C:$AX,Week!$J$3+COLUMN()-13,ROW()-4)=0,"",2*INDEX(HHD!$C:$AX,Week!$J$3+COLUMN()-13,ROW()-4)) -> 79.2 | Y39: =IF(INDEX(HHD!$C:$AX,Week!$J$3+COLUMN()-13,ROW()-4)=0,"",2*INDEX(HHD!$C:$AX,Week!$J$3+COLUMN()-13,ROW()-4)) -> 81 | Z39: =IF(INDEX(HHD!$C:$AX,Week!$J$3+COLUMN()-13,ROW()-4)=0,"",2*INDEX(HHD!$C:$AX,Week!$J$3+COLUMN()-13,ROW()-4)) -> 79 | AA39: =IF(INDEX(HHD!$C:$AX,Week!$J$3+COLUMN()-13,ROW()-4)=0,"",2*INDEX(HHD!$C:$AX,Week!$J$3+COLUMN()-13,ROW()-4)) -> 87.4 | AB39: =IF(INDEX(HHD!$C:$AX,Week!$J$3+COLUMN()-13,ROW()-4)=0,"",2*INDEX(HHD!$C:$AX,Week!$J$3+COLUMN()-13,ROW()-4)) -> 69.2 | AC39: =IF(INDEX(HHD!$C:$AX,Week!$J$3+COLUMN()-13,ROW()-4)=0,"",2*INDEX(HHD!$C:$AX,Week!$J$3+COLUMN()-13,ROW()-4)) -> 105.2 | AD39: =IF(INDEX(HHD!$C:$AX,Week!$J$3+COLUMN()-13,ROW()-4)=0,"",2*INDEX(HHD!$C:$AX,Week!$J$3+COLUMN()-13,ROW()-4)) -> 90.4 | AE39: =IF(INDEX(HHD!$C:$AX,Week!$J$3+COLUMN()-13,ROW()-4)=0,"",2*INDEX(HHD!$C:$AX,Week!$J$3+COLUMN()-13,ROW()-4)) -> 79.2 | AF39: =IF(INDEX(HHD!$C:$AX,Week!$J$3+COLUMN()-13,ROW()-4)=0,"",2*INDEX(HHD!$C:$AX,Week!$J$3+COLUMN()-13,ROW()-4)) -> 99 | AG39: =IF(INDEX(HHD!$C:$AX,Week!$J$3+COLUMN()-13,ROW()-4)=0,"",2*INDEX(HHD!$C:$AX,Week!$J$3+COLUMN()-13,ROW()-4)) -> 76.4 | AH39: =IF(INDEX(HHD!$C:$AX,Week!$J$3+COLUMN()-13,ROW()-4)=0,"",2*INDEX(HHD!$C:$AX,Week!$J$3+COLUMN()-13,ROW()-4)) -> 98.6 | AI39: =IF(INDEX(HHD!$C:$AX,Week!$J$3+COLUMN()-13,ROW()-4)=0,"",2*INDEX(HHD!$C:$AX,Week!$J$3+COLUMN()-13,ROW()-4)) -> 111 | AJ39: =IF(INDEX(HHD!$C:$AX,Week!$J$3+COLUMN()-13,ROW()-4)=0,"",2*INDEX(HHD!$C:$AX,Week!$J$3+COLUMN()-13,ROW()-4)) -> 128.2 | AK39: =IF(INDEX(HHD!$C:$AX,Week!$J$3+COLUMN()-13,ROW()-4)=0,"",2*INDEX(HHD!$C:$AX,Week!$J$3+COLUMN()-13,ROW()-4)) -> 132.8 | AL39: =IF(INDEX(HHD!$C:$AX,Week!$J$3+COLUMN()-13,ROW()-4)=0,"",2*INDEX(HHD!$C:$AX,Week!$J$3+COLUMN()-13,ROW()-4)) -> 107.8 | AM39: =IF(INDEX(HHD!$C:$AX,Week!$J$3+COLUMN()-13,ROW()-4)=0,"",2*INDEX(HHD!$C:$AX,Week!$J$3+COLUMN()-13,ROW()-4)) -> 127.4 | AN39: =IF(INDEX(HHD!$C:$AX,Week!$J$3+COLUMN()-13,ROW()-4)=0,"",2*INDEX(HHD!$C:$AX,Week!$J$3+COLUMN()-13,ROW()-4)) -> 81.2 | AO39: =IF(INDEX(HHD!$C:$AX,Week!$J$3+COLUMN()-13,ROW()-4)=0,"",2*INDEX(HHD!$C:$AX,Week!$J$3+COLUMN()-13,ROW()-4)) -> 111.2 | AP39: =IF(INDEX(HHD!$C:$AX,Week!$J$3+COLUMN()-13,ROW()-4)=0,"",2*INDEX(HHD!$C:$AX,Week!$J$3+COLUMN()-13,ROW()-4)) -> 105 | AQ39: =IF(INDEX(HHD!$C:$AX,Week!$J$3+COLUMN()-13,ROW()-4)=0,"",2*INDEX(HHD!$C:$AX,Week!$J$3+COLUMN()-13,ROW()-4)) -> 140 | AR39: =IF(INDEX(HHD!$C:$AX,Week!$J$3+COLUMN()-13,ROW()-4)=0,"",2*INDEX(HHD!$C:$AX,Week!$J$3+COLUMN()-13,ROW()-4)) -> 144.8 | AS39: =IF(INDEX(HHD!$C:$AX,Week!$J$3+COLUMN()-13,ROW()-4)=0,"",2*INDEX(HHD!$C:$AX,Week!$J$3+COLUMN()-13,ROW()-4)) -> 105.4 | AT39: =IF(INDEX(HHD!$C:$AX,Week!$J$3+COLUMN()-13,ROW()-4)=0,"",2*INDEX(HHD!$C:$AX,Week!$J$3+COLUMN()-13,ROW()-4)) -> 126.8 | AU39: =IF(INDEX(HHD!$C:$AX,Week!$J$3+COLUMN()-13,ROW()-4)=0,"",2*INDEX(HHD!$C:$AX,Week!$J$3+COLUMN()-13,ROW()-4)) -> 90.2
C40: Current | D40: Fixed | E40: Year | J40: 17:30:00 | M40: =IF(INDEX(HHD!$C:$AX,Week!$J$3+COLUMN()-13,ROW()-4)=0,"",2*INDEX(HHD!$C:$AX,Week!$J$3+COLUMN()-13,ROW()-4)) -> 59.2 | N40: =IF(INDEX(HHD!$C:$AX,Week!$J$3+COLUMN()-13,ROW()-4)=0,"",2*INDEX(HHD!$C:$AX,Week!$J$3+COLUMN()-13,ROW()-4)) -> 77.6 | O40: =IF(INDEX(HHD!$C:$AX,Week!$J$3+COLUMN()-13,ROW()-4)=0,"",2*INDEX(HHD!$C:$AX,Week!$J$3+COLUMN()-13,ROW()-4)) -> 61.2 | P40: =IF(INDEX(HHD!$C:$AX,Week!$J$3+COLUMN()-13,ROW()-4)=0,"",2*INDEX(HHD!$C:$AX,Week!$J$3+COLUMN()-13,ROW()-4)) -> 61.8 | Q40: =IF(INDEX(HHD!$C:$AX,Week!$J$3+COLUMN()-13,ROW()-4)=0,"",2*INDEX(HHD!$C:$AX,Week!$J$3+COLUMN()-13,ROW()-4)) -> 65.2 | R40: =IF(INDEX(HHD!$C:$AX,Week!$J$3+COLUMN()-13,ROW()-4)=0,"",2*INDEX(HHD!$C:$AX,Week!$J$3+COLUMN()-13,ROW()-4)) -> 63.6 | S40: =IF(INDEX(HHD!$C:$AX,Week!$J$3+COLUMN()-13,ROW()-4)=0,"",2*INDEX(HHD!$C:$AX,Week!$J$3+COLUMN()-13,ROW()-4)) -> 70.4 | T40: =IF(INDEX(HHD!$C:$AX,Week!$J$3+COLUMN()-13,ROW()-4)=0,"",2*INDEX(HHD!$C:$AX,Week!$J$3+COLUMN()-13,ROW()-4)) -> 67 | U40: =IF(INDEX(HHD!$C:$AX,Week!$J$3+COLUMN()-13,ROW()-4)=0,"",2*INDEX(HHD!$C:$AX,Week!$J$3+COLUMN()-13,ROW()-4)) -> 68.2 | V40: =IF(INDEX(HHD!$C:$AX,Week!$J$3+COLUMN()-13,ROW()-4)=0,"",2*INDEX(HHD!$C:$AX,Week!$J$3+COLUMN()-13,ROW()-4)) -> 66 | W40: =IF(INDEX(HHD!$C:$AX,Week!$J$3+COLUMN()-13,ROW()-4)=0,"",2*INDEX(HHD!$C:$AX,Week!$J$3+COLUMN()-13,ROW()-4)) -> 56.4 | X40: =IF(INDEX(HHD!$C:$AX,Week!$J$3+COLUMN()-13,ROW()-4)=0,"",2*INDEX(HHD!$C:$AX,Week!$J$3+COLUMN()-13,ROW()-4)) -> 61.6 | Y40: =IF(INDEX(HHD!$C:$AX,Week!$J$3+COLUMN()-13,ROW()-4)=0,"",2*INDEX(HHD!$C:$AX,Week!$J$3+COLUMN()-13,ROW()-4)) -> 59 | Z40: =IF(INDEX(HHD!$C:$AX,Week!$J$3+COLUMN()-13,ROW()-4)=0,"",2*INDEX(HHD!$C:$AX,Week!$J$3+COLUMN()-13,ROW()-4)) -> 66.2 | AA40: =IF(INDEX(HHD!$C:$AX,Week!$J$3+COLUMN()-13,ROW()-4)=0,"",2*INDEX(HHD!$C:$AX,Week!$J$3+COLUMN()-13,ROW()-4)) -> 78 | AB40: =IF(INDEX(HHD!$C:$AX,Week!$J$3+COLUMN()-13,ROW()-4)=0,"",2*INDEX(HHD!$C:$AX,Week!$J$3+COLUMN()-13,ROW()-4)) -> 55.4 | AC40: =IF(INDEX(HHD!$C:$AX,Week!$J$3+COLUMN()-13,ROW()-4)=0,"",2*INDEX(HHD!$C:$AX,Week!$J$3+COLUMN()-13,ROW()-4)) -> 72.2 | AD40: =IF(INDEX(HHD!$C:$AX,Week!$J$3+COLUMN()-13,ROW()-4)=0,"",2*INDEX(HHD!$C:$AX,Week!$J$3+COLUMN()-13,ROW()-4)) -> 69.2 | AE40: =IF(INDEX(HHD!$C:$AX,Week!$J$3+COLUMN()-13,ROW()-4)=0,"",2*INDEX(HHD!$C:$AX,Week!$J$3+COLUMN()-13,ROW()-4)) -> 68 | AF40: =IF(INDEX(HHD!$C:$AX,Week!$J$3+COLUMN()-13,ROW()-4)=0,"",2*INDEX(HHD!$C:$AX,Week!$J$3+COLUMN()-13,ROW()-4)) -> 66.8 | AG40: =IF(INDEX(HHD!$C:$AX,Week!$J$3+COLUMN()-13,ROW()-4)=0,"",2*INDEX(HHD!$C:$AX,Week!$J$3+COLUMN()-13,ROW()-4)) -> 70 | AH40: =IF(INDEX(HHD!$C:$AX,Week!$J$3+COLUMN()-13,ROW()-4)=0,"",2*INDEX(HHD!$C:$AX,Week!$J$3+COLUMN()-13,ROW()-4)) -> 91.2 | AI40: =IF(INDEX(HHD!$C:$AX,Week!$J$3+COLUMN()-13,ROW()-4)=0,"",2*INDEX(HHD!$C:$AX,Week!$J$3+COLUMN()-13,ROW()-4)) -> 100.8 | AJ40: =IF(INDEX(HHD!$C:$AX,Week!$J$3+COLUMN()-13,ROW()-4)=0,"",2*INDEX(HHD!$C:$AX,Week!$J$3+COLUMN()-13,ROW()-4)) -> 106.8 | AK40: =IF(INDEX(HHD!$C:$AX,Week!$J$3+COLUMN()-13,ROW()-4)=0,"",2*INDEX(HHD!$C:$AX,Week!$J$3+COLUMN()-13,ROW()-4)) -> 95.4 | AL40: =IF(INDEX(HHD!$C:$AX,Week!$J$3+COLUMN()-13,ROW()-4)=0,"",2*INDEX(HHD!$C:$AX,Week!$J$3+COLUMN()-13,ROW()-4)) -> 99.8 | AM40: =IF(INDEX(HHD!$C:$AX,Week!$J$3+COLUMN()-13,ROW()-4)=0,"",2*INDEX(HHD!$C:$AX,Week!$J$3+COLUMN()-13,ROW()-4)) -> 85.4 | AN40: =IF(INDEX(HHD!$C:$AX,Week!$J$3+COLUMN()-13,ROW()-4)=0,"",2*INDEX(HHD!$C:$AX,Week!$J$3+COLUMN()-13,ROW()-4)) -> 78.4 | AO40: =IF(INDEX(HHD!$C:$AX,Week!$J$3+COLUMN()-13,ROW()-4)=0,"",2*INDEX(HHD!$C:$AX,Week!$J$3+COLUMN()-13,ROW()-4)) -> 94.6 | AP40: =IF(INDEX(HHD!$C:$AX,Week!$J$3+COLUMN()-13,ROW()-4)=0,"",2*INDEX(HHD!$C:$AX,Week!$J$3+COLUMN()-13,ROW()-4)) -> 105.4 | AQ40: =IF(INDEX(HHD!$C:$AX,Week!$J$3+COLUMN()-13,ROW()-4)=0,"",2*INDEX(HHD!$C:$AX,Week!$J$3+COLUMN()-13,ROW()-4)) -> 112.2 | AR40: =IF(INDEX(HHD!$C:$AX,Week!$J$3+COLUMN()-13,ROW()-4)=0,"",2*INDEX(HHD!$C:$AX,Week!$J$3+COLUMN()-13,ROW()-4)) -> 96.4 | AS40: =IF(INDEX(HHD!$C:$AX,Week!$J$3+COLUMN()-13,ROW()-4)=0,"",2*INDEX(HHD!$C:$AX,Week!$J$3+COLUMN()-13,ROW()-4)) -> 98.2 | AT40: =IF(INDEX(HHD!$C:$AX,Week!$J$3+COLUMN()-13,ROW()-4)=0,"",2*INDEX(HHD!$C:$AX,Week!$J$3+COLUMN()-13,ROW()-4)) -> 115.4 | AU40: =IF(INDEX(HHD!$C:$AX,Week!$J$3+COLUMN()-13,ROW()-4)=0,"",2*INDEX(HHD!$C:$AX,Week!$J$3+COLUMN()-13,ROW()-4)) -> 61.6
B41: Max | C41: =MAX($M$5:$AU$52) -> 212.8 | D41: 230 | E41: =PowerMapYear!C41 -> 227.2 | J41: 18:00:00 | M41: =IF(INDEX(HHD!$C:$AX,Week!$J$3+COLUMN()-13,ROW()-4)=0,"",2*INDEX(HHD!$C:$AX,Week!$J$3+COLUMN()-13,ROW()-4)) -> 61.8 | N41: =IF(INDEX(HHD!$C:$AX,Week!$J$3+COLUMN()-13,ROW()-4)=0,"",2*INDEX(HHD!$C:$AX,Week!$J$3+COLUMN()-13,ROW()-4)) -> 69.8 | O41: =IF(INDEX(HHD!$C:$AX,Week!$J$3+COLUMN()-13,ROW()-4)=0,"",2*INDEX(HHD!$C:$AX,Week!$J$3+COLUMN()-13,ROW()-4)) -> 60.4 | P41: =IF(INDEX(HHD!$C:$AX,Week!$J$3+COLUMN()-13,ROW()-4)=0,"",2*INDEX(HHD!$C:$AX,Week!$J$3+COLUMN()-13,ROW()-4)) -> 59.6 | Q41: =IF(INDEX(HHD!$C:$AX,Week!$J$3+COLUMN()-13,ROW()-4)=0,"",2*INDEX(HHD!$C:$AX,Week!$J$3+COLUMN()-13,ROW()-4)) -> 65.8 | R41: =IF(INDEX(HHD!$C:$AX,Week!$J$3+COLUMN()-13,ROW()-4)=0,"",2*INDEX(HHD!$C:$AX,Week!$J$3+COLUMN()-13,ROW()-4)) -> 60.8 | S41: =IF(INDEX(HHD!$C:$AX,Week!$J$3+COLUMN()-13,ROW()-4)=0,"",2*INDEX(HHD!$C:$AX,Week!$J$3+COLUMN()-13,ROW()-4)) -> 64 | T41: =IF(INDEX(HHD!$C:$AX,Week!$J$3+COLUMN()-13,ROW()-4)=0,"",2*INDEX(HHD!$C:$AX,Week!$J$3+COLUMN()-13,ROW()-4)) -> 58.4 | U41: =IF(INDEX(HHD!$C:$AX,Week!$J$3+COLUMN()-13,ROW()-4)=0,"",2*INDEX(HHD!$C:$AX,Week!$J$3+COLUMN()-13,ROW()-4)) -> 63.4 | V41: =IF(INDEX(HHD!$C:$AX,Week!$J$3+COLUMN()-13,ROW()-4)=0,"",2*INDEX(HHD!$C:$AX,Week!$J$3+COLUMN()-13,ROW()-4)) -> 60 | W41: =IF(INDEX(HHD!$C:$AX,Week!$J$3+COLUMN()-13,ROW()-4)=0,"",2*INDEX(HHD!$C:$AX,Week!$J$3+COLUMN()-13,ROW()-4)) -> 57 | X41: =IF(INDEX(HHD!$C:$AX,Week!$J$3+COLUMN()-13,ROW()-4)=0,"",2*INDEX(HHD!$C:$AX,Week!$J$3+COLUMN()-13,ROW()-4)) -> 59.4 | Y41: =IF(INDEX(HHD!$C:$AX,Week!$J$3+COLUMN()-13,ROW()-4)=0,"",2*INDEX(HHD!$C:$AX,Week!$J$3+COLUMN()-13,ROW()-4)) -> 58.4 | Z41: =IF(INDEX(HHD!$C:$AX,Week!$J$3+COLUMN()-13,ROW()-4)=0,"",2*INDEX(HHD!$C:$AX,Week!$J$3+COLUMN()-13,ROW()-4)) -> 65.8 | AA41: =IF(INDEX(HHD!$C:$AX,Week!$J$3+COLUMN()-13,ROW()-4)=0,"",2*INDEX(HHD!$C:$AX,Week!$J$3+COLUMN()-13,ROW()-4)) -> 74.2 | AB41: =IF(INDEX(HHD!$C:$AX,Week!$J$3+COLUMN()-13,ROW()-4)=0,"",2*INDEX(HHD!$C:$AX,Week!$J$3+COLUMN()-13,ROW()-4)) -> 59.8 | AC41: =IF(INDEX(HHD!$C:$AX,Week!$J$3+COLUMN()-13,ROW()-4)=0,"",2*INDEX(HHD!$C:$AX,Week!$J$3+COLUMN()-13,ROW()-4)) -> 73.2 | AD41: =IF(INDEX(HHD!$C:$AX,Week!$J$3+COLUMN()-13,ROW()-4)=0,"",2*INDEX(HHD!$C:$AX,Week!$J$3+COLUMN()-13,ROW()-4)) -> 67.4 | AE41: =IF(INDEX(HHD!$C:$AX,Week!$J$3+COLUMN()-13,ROW()-4)=0,"",2*INDEX(HHD!$C:$AX,Week!$J$3+COLUMN()-13,ROW()-4)) -> 64.4 | AF41: =IF(INDEX(HHD!$C:$AX,Week!$J$3+COLUMN()-13,ROW()-4)=0,"",2*INDEX(HHD!$C:$AX,Week!$J$3+COLUMN()-13,ROW()-4)) -> 60.4 | AG41: =IF(INDEX(HHD!$C:$AX,Week!$J$3+COLUMN()-13,ROW()-4)=0,"",2*INDEX(HHD!$C:$AX,Week!$J$3+COLUMN()-13,ROW()-4)) -> 65.2 | AH41: =IF(INDEX(HHD!$C:$AX,Week!$J$3+COLUMN()-13,ROW()-4)=0,"",2*INDEX(HHD!$C:$AX,Week!$J$3+COLUMN()-13,ROW()-4)) -> 75.4 | AI41: =IF(INDEX(HHD!$C:$AX,Week!$J$3+COLUMN()-13,ROW()-4)=0,"",2*INDEX(HHD!$C:$AX,Week!$J$3+COLUMN()-13,ROW()-4)) -> 68.6 | AJ41: =IF(INDEX(HHD!$C:$AX,Week!$J$3+COLUMN()-13,ROW()-4)=0,"",2*INDEX(HHD!$C:$AX,Week!$J$3+COLUMN()-13,ROW()-4)) -> 70.4 | AK41: =IF(INDEX(HHD!$C:$AX,Week!$J$3+COLUMN()-13,ROW()-4)=0,"",2*INDEX(HHD!$C:$AX,Week!$J$3+COLUMN()-13,ROW()-4)) -> 71.2 | AL41: =IF(INDEX(HHD!$C:$AX,Week!$J$3+COLUMN()-13,ROW()-4)=0,"",2*INDEX(HHD!$C:$AX,Week!$J$3+COLUMN()-13,ROW()-4)) -> 72.4 | AM41: =IF(INDEX(HHD!$C:$AX,Week!$J$3+COLUMN()-13,ROW()-4)=0,"",2*INDEX(HHD!$C:$AX,Week!$J$3+COLUMN()-13,ROW()-4)) -> 79.6 | AN41: =IF(INDEX(HHD!$C:$AX,Week!$J$3+COLUMN()-13,ROW()-4)=0,"",2*INDEX(HHD!$C:$AX,Week!$J$3+COLUMN()-13,ROW()-4)) -> 67.4 | AO41: =IF(INDEX(HHD!$C:$AX,Week!$J$3+COLUMN()-13,ROW()-4)=0,"",2*INDEX(HHD!$C:$AX,Week!$J$3+COLUMN()-13,ROW()-4)) -> 75.2 | AP41: =IF(INDEX(HHD!$C:$AX,Week!$J$3+COLUMN()-13,ROW()-4)=0,"",2*INDEX(HHD!$C:$AX,Week!$J$3+COLUMN()-13,ROW()-4)) -> 71 | AQ41: =IF(INDEX(HHD!$C:$AX,Week!$J$3+COLUMN()-13,ROW()-4)=0,"",2*INDEX(HHD!$C:$AX,Week!$J$3+COLUMN()-13,ROW()-4)) -> 79.6 | AR41: =IF(INDEX(HHD!$C:$AX,Week!$J$3+COLUMN()-13,ROW()-4)=0,"",2*INDEX(HHD!$C:$AX,Week!$J$3+COLUMN()-13,ROW()-4)) -> 66.6 | AS41: =IF(INDEX(HHD!$C:$AX,Week!$J$3+COLUMN()-13,ROW()-4)=0,"",2*INDEX(HHD!$C:$AX,Week!$J$3+COLUMN()-13,ROW()-4)) -> 72 | AT41: =IF(INDEX(HHD!$C:$AX,Week!$J$3+COLUMN()-13,ROW()-4)=0,"",2*INDEX(HHD!$C:$AX,Week!$J$3+COLUMN()-13,ROW()-4)) -> 83 | AU41: =IF(INDEX(HHD!$C:$AX,Week!$J$3+COLUMN()-13,ROW()-4)=0,"",2*INDEX(HHD!$C:$AX,Week!$J$3+COLUMN()-13,ROW()-4)) -> 60.6
C42: =C41-(C$41-C$45)/4 -> 192 | D42: 201.25 | E42: =PowerMapYear!C42 -> 203.975 | J42: 18:30:00 | M42: =IF(INDEX(HHD!$C:$AX,Week!$J$3+COLUMN()-13,ROW()-4)=0,"",2*INDEX(HHD!$C:$AX,Week!$J$3+COLUMN()-13,ROW()-4)) -> 61.2 | N42: =IF(INDEX(HHD!$C:$AX,Week!$J$3+COLUMN()-13,ROW()-4)=0,"",2*INDEX(HHD!$C:$AX,Week!$J$3+COLUMN()-13,ROW()-4)) -> 64 | O42: =IF(INDEX(HHD!$C:$AX,Week!$J$3+COLUMN()-13,ROW()-4)=0,"",2*INDEX(HHD!$C:$AX,Week!$J$3+COLUMN()-13,ROW()-4)) -> 57.4 | P42: =IF(INDEX(HHD!$C:$AX,Week!$J$3+COLUMN()-13,ROW()-4)=0,"",2*INDEX(HHD!$C:$AX,Week!$J$3+COLUMN()-13,ROW()-4)) -> 60 | Q42: =IF(INDEX(HHD!$C:$AX,Week!$J$3+COLUMN()-13,ROW()-4)=0,"",2*INDEX(HHD!$C:$AX,Week!$J$3+COLUMN()-13,ROW()-4)) -> 66.6 | R42: =IF(INDEX(HHD!$C:$AX,Week!$J$3+COLUMN()-13,ROW()-4)=0,"",2*INDEX(HHD!$C:$AX,Week!$J$3+COLUMN()-13,ROW()-4)) -> 64.6 | S42: =IF(INDEX(HHD!$C:$AX,Week!$J$3+COLUMN()-13,ROW()-4)=0,"",2*INDEX(HHD!$C:$AX,Week!$J$3+COLUMN()-13,ROW()-4)) -> 67.8 | T42: =IF(INDEX(HHD!$C:$AX,Week!$J$3+COLUMN()-13,ROW()-4)=0,"",2*INDEX(HHD!$C:$AX,Week!$J$3+COLUMN()-13,ROW()-4)) -> 58.6 | U42: =IF(INDEX(HHD!$C:$AX,Week!$J$3+COLUMN()-13,ROW()-4)=0,"",2*INDEX(HHD!$C:$AX,Week!$J$3+COLUMN()-13,ROW()-4)) -> 60.2 | V42: =IF(INDEX(HHD!$C:$AX,Week!$J$3+COLUMN()-13,ROW()-4)=0,"",2*INDEX(HHD!$C:$AX,Week!$J$3+COLUMN()-13,ROW()-4)) -> 59 | W42: =IF(INDEX(HHD!$C:$AX,Week!$J$3+COLUMN()-13,ROW()-4)=0,"",2*INDEX(HHD!$C:$AX,Week!$J$3+COLUMN()-13,ROW()-4)) -> 63 | X42: =IF(INDEX(HHD!$C:$AX,Week!$J$3+COLUMN()-13,ROW()-4)=0,"",2*INDEX(HHD!$C:$AX,Week!$J$3+COLUMN()-13,ROW()-4)) -> 54.6 | Y42: =IF(INDEX(HHD!$C:$AX,Week!$J$3+COLUMN()-13,ROW()-4)=0,"",2*INDEX(HHD!$C:$AX,Week!$J$3+COLUMN()-13,ROW()-4)) -> 52.6 | Z42: =IF(INDEX(HHD!$C:$AX,Week!$J$3+COLUMN()-13,ROW()-4)=0,"",2*INDEX(HHD!$C:$AX,Week!$J$3+COLUMN()-13,ROW()-4)) -> 57.4 | AA42: =IF(INDEX(HHD!$C:$AX,Week!$J$3+COLUMN()-13,ROW()-4)=0,"",2*INDEX(HHD!$C:$AX,Week!$J$3+COLUMN()-13,ROW()-4)) -> 61 | AB42: =IF(INDEX(HHD!$C:$AX,Week!$J$3+COLUMN()-13,ROW()-4)=0,"",2*INDEX(HHD!$C:$AX,Week!$J$3+COLUMN()-13,ROW()-4)) -> 58.2 | AC42: =IF(INDEX(HHD!$C:$AX,Week!$J$3+COLUMN()-13,ROW()-4)=0,"",2*INDEX(HHD!$C:$AX,Week!$J$3+COLUMN()-13,ROW()-4)) -> 63.6 | AD42: =IF(INDEX(HHD!$C:$AX,Week!$J$3+COLUMN()-13,ROW()-4)=0,"",2*INDEX(HHD!$C:$AX,Week!$J$3+COLUMN()-13,ROW()-4)) -> 59.6 | AE42: =IF(INDEX(HHD!$C:$AX,Week!$J$3+COLUMN()-13,ROW()-4)=0,"",2*INDEX(HHD!$C:$AX,Week!$J$3+COLUMN()-13,ROW()-4)) -> 59.8 | AF42: =IF(INDEX(HHD!$C:$AX,Week!$J$3+COLUMN()-13,ROW()-4)=0,"",2*INDEX(HHD!$C:$AX,Week!$J$3+COLUMN()-13,ROW()-4)) -> 68.6 | AG42: =IF(INDEX(HHD!$C:$AX,Week!$J$3+COLUMN()-13,ROW()-4)=0,"",2*INDEX(HHD!$C:$AX,Week!$J$3+COLUMN()-13,ROW()-4)) -> 71 | AH42: =IF(INDEX(HHD!$C:$AX,Week!$J$3+COLUMN()-13,ROW()-4)=0,"",2*INDEX(HHD!$C:$AX,Week!$J$3+COLUMN()-13,ROW()-4)) -> 64.6 | AI42: =IF(INDEX(HHD!$C:$AX,Week!$J$3+COLUMN()-13,ROW()-4)=0,"",2*INDEX(HHD!$C:$AX,Week!$J$3+COLUMN()-13,ROW()-4)) -> 61.2 | AJ42: =IF(INDEX(HHD!$C:$AX,Week!$J$3+COLUMN()-13,ROW()-4)=0,"",2*INDEX(HHD!$C:$AX,Week!$J$3+COLUMN()-13,ROW()-4)) -> 70.2 | AK42: =IF(INDEX(HHD!$C:$AX,Week!$J$3+COLUMN()-13,ROW()-4)=0,"",2*INDEX(HHD!$C:$AX,Week!$J$3+COLUMN()-13,ROW()-4)) -> 60.6 | AL42: =IF(INDEX(HHD!$C:$AX,Week!$J$3+COLUMN()-13,ROW()-4)=0,"",2*INDEX(HHD!$C:$AX,Week!$J$3+COLUMN()-13,ROW()-4)) -> 65.6 | AM42: =IF(INDEX(HHD!$C:$AX,Week!$J$3+COLUMN()-13,ROW()-4)=0,"",2*INDEX(HHD!$C:$AX,Week!$J$3+COLUMN()-13,ROW()-4)) -> 63.2 | AN42: =IF(INDEX(HHD!$C:$AX,Week!$J$3+COLUMN()-13,ROW()-4)=0,"",2*INDEX(HHD!$C:$AX,Week!$J$3+COLUMN()-13,ROW()-4)) -> 62.2 | AO42: =IF(INDEX(HHD!$C:$AX,Week!$J$3+COLUMN()-13,ROW()-4)=0,"",2*INDEX(HHD!$C:$AX,Week!$J$3+COLUMN()-13,ROW()-4)) -> 73.4 | AP42: =IF(INDEX(HHD!$C:$AX,Week!$J$3+COLUMN()-13,ROW()-4)=0,"",2*INDEX(HHD!$C:$AX,Week!$J$3+COLUMN()-13,ROW()-4)) -> 64 | AQ42: =IF(INDEX(HHD!$C:$AX,Week!$J$3+COLUMN()-13,ROW()-4)=0,"",2*INDEX(HHD!$C:$AX,Week!$J$3+COLUMN()-13,ROW()-4)) -> 70.8 | AR42: =IF(INDEX(HHD!$C:$AX,Week!$J$3+COLUMN()-13,ROW()-4)=0,"",2*INDEX(HHD!$C:$AX,Week!$J$3+COLUMN()-13,ROW()-4)) -> 54.2 | AS42: =IF(INDEX(HHD!$C:$AX,Week!$J$3+COLUMN()-13,ROW()-4)=0,"",2*INDEX(HHD!$C:$AX,Week!$J$3+COLUMN()-13,ROW()-4)) -> 58.6 | AT42: =IF(INDEX(HHD!$C:$AX,Week!$J$3+COLUMN()-13,ROW()-4)=0,"",2*INDEX(HHD!$C:$AX,Week!$J$3+COLUMN()-13,ROW()-4)) -> 61.2 | AU42: =IF(INDEX(HHD!$C:$AX,Week!$J$3+COLUMN()-13,ROW()-4)=0,"",2*INDEX(HHD!$C:$AX,Week!$J$3+COLUMN()-13,ROW()-4)) -> 66.8
C43: =C42-(C$41-C$45)/4 -> 171.2 | D43: 172.5 | E43: =PowerMapYear!C43 -> 180.75 | J43: 19:00:00 | M43: =IF(INDEX(HHD!$C:$AX,Week!$J$3+COLUMN()-13,ROW()-4)=0,"",2*INDEX(HHD!$C:$AX,Week!$J$3+COLUMN()-13,ROW()-4)) -> 57.6 | N43: =IF(INDEX(HHD!$C:$AX,Week!$J$3+COLUMN()-13,ROW()-4)=0,"",2*INDEX(HHD!$C:$AX,Week!$J$3+COLUMN()-13,ROW()-4)) -> 60.2 | O43: =IF(INDEX(HHD!$C:$AX,Week!$J$3+COLUMN()-13,ROW()-4)=0,"",2*INDEX(HHD!$C:$AX,Week!$J$3+COLUMN()-13,ROW()-4)) -> 61.6 | P43: =IF(INDEX(HHD!$C:$AX,Week!$J$3+COLUMN()-13,ROW()-4)=0,"",2*INDEX(HHD!$C:$AX,Week!$J$3+COLUMN()-13,ROW()-4)) -> 55.4 | Q43: =IF(INDEX(HHD!$C:$AX,Week!$J$3+COLUMN()-13,ROW()-4)=0,"",2*INDEX(HHD!$C:$AX,Week!$J$3+COLUMN()-13,ROW()-4)) -> 66.4 | R43: =IF(INDEX(HHD!$C:$AX,Week!$J$3+COLUMN()-13,ROW()-4)=0,"",2*INDEX(HHD!$C:$AX,Week!$J$3+COLUMN()-13,ROW()-4)) -> 64.2 | S43: =IF(INDEX(HHD!$C:$AX,Week!$J$3+COLUMN()-13,ROW()-4)=0,"",2*INDEX(HHD!$C:$AX,Week!$J$3+COLUMN()-13,ROW()-4)) -> 61.4 | T43: =IF(INDEX(HHD!$C:$AX,Week!$J$3+COLUMN()-13,ROW()-4)=0,"",2*INDEX(HHD!$C:$AX,Week!$J$3+COLUMN()-13,ROW()-4)) -> 58.8 | U43: =IF(INDEX(HHD!$C:$AX,Week!$J$3+COLUMN()-13,ROW()-4)=0,"",2*INDEX(HHD!$C:$AX,Week!$J$3+COLUMN()-13,ROW()-4)) -> 59 | V43: =IF(INDEX(HHD!$C:$AX,Week!$J$3+COLUMN()-13,ROW()-4)=0,"",2*INDEX(HHD!$C:$AX,Week!$J$3+COLUMN()-13,ROW()-4)) -> 55.4 | W43: =IF(INDEX(HHD!$C:$AX,Week!$J$3+COLUMN()-13,ROW()-4)=0,"",2*INDEX(HHD!$C:$AX,Week!$J$3+COLUMN()-13,ROW()-4)) -> 49 | X43: =IF(INDEX(HHD!$C:$AX,Week!$J$3+COLUMN()-13,ROW()-4)=0,"",2*INDEX(HHD!$C:$AX,Week!$J$3+COLUMN()-13,ROW()-4)) -> 66.4 | Y43: =IF(INDEX(HHD!$C:$AX,Week!$J$3+COLUMN()-13,ROW()-4)=0,"",2*INDEX(HHD!$C:$AX,Week!$J$3+COLUMN()-13,ROW()-4)) -> 59.6 | Z43: =IF(INDEX(HHD!$C:$AX,Week!$J$3+COLUMN()-13,ROW()-4)=0,"",2*INDEX(HHD!$C:$AX,Week!$J$3+COLUMN()-13,ROW()-4)) -> 64.4 | AA43: =IF(INDEX(HHD!$C:$AX,Week!$J$3+COLUMN()-13,ROW()-4)=0,"",2*INDEX(HHD!$C:$AX,Week!$J$3+COLUMN()-13,ROW()-4)) -> 59.4 | AB43: =IF(INDEX(HHD!$C:$AX,Week!$J$3+COLUMN()-13,ROW()-4)=0,"",2*INDEX(HHD!$C:$AX,Week!$J$3+COLUMN()-13,ROW()-4)) -> 58.8 | AC43: =IF(INDEX(HHD!$C:$AX,Week!$J$3+COLUMN()-13,ROW()-4)=0,"",2*INDEX(HHD!$C:$AX,Week!$J$3+COLUMN()-13,ROW()-4)) -> 71.2 | AD43: =IF(INDEX(HHD!$C:$AX,Week!$J$3+COLUMN()-13,ROW()-4)=0,"",2*INDEX(HHD!$C:$AX,Week!$J$3+COLUMN()-13,ROW()-4)) -> 63.4 | AE43: =IF(INDEX(HHD!$C:$AX,Week!$J$3+COLUMN()-13,ROW()-4)=0,"",2*INDEX(HHD!$C:$AX,Week!$J$3+COLUMN()-13,ROW()-4)) -> 63 | AF43: =IF(INDEX(HHD!$C:$AX,Week!$J$3+COLUMN()-13,ROW()-4)=0,"",2*INDEX(HHD!$C:$AX,Week!$J$3+COLUMN()-13,ROW()-4)) -> 58.4 | AG43: =IF(INDEX(HHD!$C:$AX,Week!$J$3+COLUMN()-13,ROW()-4)=0,"",2*INDEX(HHD!$C:$AX,Week!$J$3+COLUMN()-13,ROW()-4)) -> 67.8 | AH43: =IF(INDEX(HHD!$C:$AX,Week!$J$3+COLUMN()-13,ROW()-4)=0,"",2*INDEX(HHD!$C:$AX,Week!$J$3+COLUMN()-13,ROW()-4)) -> 59.4 | AI43: =IF(INDEX(HHD!$C:$AX,Week!$J$3+COLUMN()-13,ROW()-4)=0,"",2*INDEX(HHD!$C:$AX,Week!$J$3+COLUMN()-13,ROW()-4)) -> 60.8 | AJ43: =IF(INDEX(HHD!$C:$AX,Week!$J$3+COLUMN()-13,ROW()-4)=0,"",2*INDEX(HHD!$C:$AX,Week!$J$3+COLUMN()-13,ROW()-4)) -> 68.6 | AK43: =IF(INDEX(HHD!$C:$AX,Week!$J$3+COLUMN()-13,ROW()-4)=0,"",2*INDEX(HHD!$C:$AX,Week!$J$3+COLUMN()-13,ROW()-4)) -> 60.4 | AL43: =IF(INDEX(HHD!$C:$AX,Week!$J$3+COLUMN()-13,ROW()-4)=0,"",2*INDEX(HHD!$C:$AX,Week!$J$3+COLUMN()-13,ROW()-4)) -> 64.6 | AM43: =IF(INDEX(HHD!$C:$AX,Week!$J$3+COLUMN()-13,ROW()-4)=0,"",2*INDEX(HHD!$C:$AX,Week!$J$3+COLUMN()-13,ROW()-4)) -> 60.8 | AN43: =IF(INDEX(HHD!$C:$AX,Week!$J$3+COLUMN()-13,ROW()-4)=0,"",2*INDEX(HHD!$C:$AX,Week!$J$3+COLUMN()-13,ROW()-4)) -> 62.6 | AO43: =IF(INDEX(HHD!$C:$AX,Week!$J$3+COLUMN()-13,ROW()-4)=0,"",2*INDEX(HHD!$C:$AX,Week!$J$3+COLUMN()-13,ROW()-4)) -> 56.6 | AP43: =IF(INDEX(HHD!$C:$AX,Week!$J$3+COLUMN()-13,ROW()-4)=0,"",2*INDEX(HHD!$C:$AX,Week!$J$3+COLUMN()-13,ROW()-4)) -> 72 | AQ43: =IF(INDEX(HHD!$C:$AX,Week!$J$3+COLUMN()-13,ROW()-4)=0,"",2*INDEX(HHD!$C:$AX,Week!$J$3+COLUMN()-13,ROW()-4)) -> 74.6 | AR43: =IF(INDEX(HHD!$C:$AX,Week!$J$3+COLUMN()-13,ROW()-4)=0,"",2*INDEX(HHD!$C:$AX,Week!$J$3+COLUMN()-13,ROW()-4)) -> 58.6 | AS43: =IF(INDEX(HHD!$C:$AX,Week!$J$3+COLUMN()-13,ROW()-4)=0,"",2*INDEX(HHD!$C:$AX,Week!$J$3+COLUMN()-13,ROW()-4)) -> 62.6 | AT43: =IF(INDEX(HHD!$C:$AX,Week!$J$3+COLUMN()-13,ROW()-4)=0,"",2*INDEX(HHD!$C:$AX,Week!$J$3+COLUMN()-13,ROW()-4)) -> 66.8 | AU43: =IF(INDEX(HHD!$C:$AX,Week!$J$3+COLUMN()-13,ROW()-4)=0,"",2*INDEX(HHD!$C:$AX,Week!$J$3+COLUMN()-13,ROW()-4)) -> 58.4
C44: 150.4 | D44: 143.75 | E44: =PowerMapYear!C44 -> 157.525 | J44: 19:30:00 | M44: =IF(INDEX(HHD!$C:$AX,Week!$J$3+COLUMN()-13,ROW()-4)=0,"",2*INDEX(HHD!$C:$AX,Week!$J$3+COLUMN()-13,ROW()-4)) -> 54.6 | N44: =IF(INDEX(HHD!$C:$AX,Week!$J$3+COLUMN()-13,ROW()-4)=0,"",2*INDEX(HHD!$C:$AX,Week!$J$3+COLUMN()-13,ROW()-4)) -> 56.4 | O44: =IF(INDEX(HHD!$C:$AX,Week!$J$3+COLUMN()-13,ROW()-4)=0,"",2*INDEX(HHD!$C:$AX,Week!$J$3+COLUMN()-13,ROW()-4)) -> 55.2 | P44: =IF(INDEX(HHD!$C:$AX,Week!$J$3+COLUMN()-13,ROW()-4)=0,"",2*INDEX(HHD!$C:$AX,Week!$J$3+COLUMN()-13,ROW()-4)) -> 56 | Q44: =IF(INDEX(HHD!$C:$AX,Week!$J$3+COLUMN()-13,ROW()-4)=0,"",2*INDEX(HHD!$C:$AX,Week!$J$3+COLUMN()-13,ROW()-4)) -> 66 | R44: =IF(INDEX(HHD!$C:$AX,Week!$J$3+COLUMN()-13,ROW()-4)=0,"",2*INDEX(HHD!$C:$AX,Week!$J$3+COLUMN()-13,ROW()-4)) -> 67 | S44: =IF(INDEX(HHD!$C:$AX,Week!$J$3+COLUMN()-13,ROW()-4)=0,"",2*INDEX(HHD!$C:$AX,Week!$J$3+COLUMN()-13,ROW()-4)) -> 69.2 | T44: =IF(INDEX(HHD!$C:$AX,Week!$J$3+COLUMN()-13,ROW()-4)=0,"",2*INDEX(HHD!$C:$AX,Week!$J$3+COLUMN()-13,ROW()-4)) -> 58.6 | U44: =IF(INDEX(HHD!$C:$AX,Week!$J$3+COLUMN()-13,ROW()-4)=0,"",2*INDEX(HHD!$C:$AX,Week!$J$3+COLUMN()-13,ROW()-4)) -> 65.8 | V44: =IF(INDEX(HHD!$C:$AX,Week!$J$3+COLUMN()-13,ROW()-4)=0,"",2*INDEX(HHD!$C:$AX,Week!$J$3+COLUMN()-13,ROW()-4)) -> 52 | W44: =IF(INDEX(HHD!$C:$AX,Week!$J$3+COLUMN()-13,ROW()-4)=0,"",2*INDEX(HHD!$C:$AX,Week!$J$3+COLUMN()-13,ROW()-4)) -> 56.8 | X44: =IF(INDEX(HHD!$C:$AX,Week!$J$3+COLUMN()-13,ROW()-4)=0,"",2*INDEX(HHD!$C:$AX,Week!$J$3+COLUMN()-13,ROW()-4)) -> 49.8 | Y44: =IF(INDEX(HHD!$C:$AX,Week!$J$3+COLUMN()-13,ROW()-4)=0,"",2*INDEX(HHD!$C:$AX,Week!$J$3+COLUMN()-13,ROW()-4)) -> 53.6 | Z44: =IF(INDEX(HHD!$C:$AX,Week!$J$3+COLUMN()-13,ROW()-4)=0,"",2*INDEX(HHD!$C:$AX,Week!$J$3+COLUMN()-13,ROW()-4)) -> 64.8 | AA44: =IF(INDEX(HHD!$C:$AX,Week!$J$3+COLUMN()-13,ROW()-4)=0,"",2*INDEX(HHD!$C:$AX,Week!$J$3+COLUMN()-13,ROW()-4)) -> 66.8 | AB44: =IF(INDEX(HHD!$C:$AX,Week!$J$3+COLUMN()-13,ROW()-4)=0,"",2*INDEX(HHD!$C:$AX,Week!$J$3+COLUMN()-13,ROW()-4)) -> 62 | AC44: =IF(INDEX(HHD!$C:$AX,Week!$J$3+COLUMN()-13,ROW()-4)=0,"",2*INDEX(HHD!$C:$AX,Week!$J$3+COLUMN()-13,ROW()-4)) -> 70.6 | AD44: =IF(INDEX(HHD!$C:$AX,Week!$J$3+COLUMN()-13,ROW()-4)=0,"",2*INDEX(HHD!$C:$AX,Week!$J$3+COLUMN()-13,ROW()-4)) -> 56.2 | AE44: =IF(INDEX(HHD!$C:$AX,Week!$J$3+COLUMN()-13,ROW()-4)=0,"",2*INDEX(HHD!$C:$AX,Week!$J$3+COLUMN()-13,ROW()-4)) -> 64.2 | AF44: =IF(INDEX(HHD!$C:$AX,Week!$J$3+COLUMN()-13,ROW()-4)=0,"",2*INDEX(HHD!$C:$AX,Week!$J$3+COLUMN()-13,ROW()-4)) -> 77.6 | AG44: =IF(INDEX(HHD!$C:$AX,Week!$J$3+COLUMN()-13,ROW()-4)=0,"",2*INDEX(HHD!$C:$AX,Week!$J$3+COLUMN()-13,ROW()-4)) -> 61 | AH44: =IF(INDEX(HHD!$C:$AX,Week!$J$3+COLUMN()-13,ROW()-4)=0,"",2*INDEX(HHD!$C:$AX,Week!$J$3+COLUMN()-13,ROW()-4)) -> 60.6 | AI44: =IF(INDEX(HHD!$C:$AX,Week!$J$3+COLUMN()-13,ROW()-4)=0,"",2*INDEX(HHD!$C:$AX,Week!$J$3+COLUMN()-13,ROW()-4)) -> 70.2 | AJ44: =IF(INDEX(HHD!$C:$AX,Week!$J$3+COLUMN()-13,ROW()-4)=0,"",2*INDEX(HHD!$C:$AX,Week!$J$3+COLUMN()-13,ROW()-4)) -> 68.6 | AK44: =IF(INDEX(HHD!$C:$AX,Week!$J$3+COLUMN()-13,ROW()-4)=0,"",2*INDEX(HHD!$C:$AX,Week!$J$3+COLUMN()-13,ROW()-4)) -> 64 | AL44: =IF(INDEX(HHD!$C:$AX,Week!$J$3+COLUMN()-13,ROW()-4)=0,"",2*INDEX(HHD!$C:$AX,Week!$J$3+COLUMN()-13,ROW()-4)) -> 65.6 | AM44: =IF(INDEX(HHD!$C:$AX,Week!$J$3+COLUMN()-13,ROW()-4)=0,"",2*INDEX(HHD!$C:$AX,Week!$J$3+COLUMN()-13,ROW()-4)) -> 58.6 | AN44: =IF(INDEX(HHD!$C:$AX,Week!$J$3+COLUMN()-13,ROW()-4)=0,"",2*INDEX(HHD!$C:$AX,Week!$J$3+COLUMN()-13,ROW()-4)) -> 63.6 | AO44: =IF(INDEX(HHD!$C:$AX,Week!$J$3+COLUMN()-13,ROW()-4)=0,"",2*INDEX(HHD!$C:$AX,Week!$J$3+COLUMN()-13,ROW()-4)) -> 61.2 | AP44: =IF(INDEX(HHD!$C:$AX,Week!$J$3+COLUMN()-13,ROW()-4)=0,"",2*INDEX(HHD!$C:$AX,Week!$J$3+COLUMN()-13,ROW()-4)) -> 72.2 | AQ44: =IF(INDEX(HHD!$C:$AX,Week!$J$3+COLUMN()-13,ROW()-4)=0,"",2*INDEX(HHD!$C:$AX,Week!$J$3+COLUMN()-13,ROW()-4)) -> 73.2 | AR44: =IF(INDEX(HHD!$C:$AX,Week!$J$3+COLUMN()-13,ROW()-4)=0,"",2*INDEX(HHD!$C:$AX,Week!$J$3+COLUMN()-13,ROW()-4)) -> 62.2 | AS44: =IF(INDEX(HHD!$C:$AX,Week!$J$3+COLUMN()-13,ROW()-4)=0,"",2*INDEX(HHD!$C:$AX,Week!$J$3+COLUMN()-13,ROW()-4)) -> 64.4 | AT44: =IF(INDEX(HHD!$C:$AX,Week!$J$3+COLUMN()-13,ROW()-4)=0,"",2*INDEX(HHD!$C:$AX,Week!$J$3+COLUMN()-13,ROW()-4)) -> 68.8 | AU44: =IF(INDEX(HHD!$C:$AX,Week!$J$3+COLUMN()-13,ROW()-4)=0,"",2*INDEX(HHD!$C:$AX,Week!$J$3+COLUMN()-13,ROW()-4)) -> 62.8
B45: "Mid" | C45: =C50+0.5*(C41-C50) -> 129.6 | D45: 115 | E45: =PowerMapYear!C45 -> 134.3 | J45: 20:00:00 | M45: =IF(INDEX(HHD!$C:$AX,Week!$J$3+COLUMN()-13,ROW()-4)=0,"",2*INDEX(HHD!$C:$AX,Week!$J$3+COLUMN()-13,ROW()-4)) -> 59 | N45: =IF(INDEX(HHD!$C:$AX,Week!$J$3+COLUMN()-13,ROW()-4)=0,"",2*INDEX(HHD!$C:$AX,Week!$J$3+COLUMN()-13,ROW()-4)) -> 55 | O45: =IF(INDEX(HHD!$C:$AX,Week!$J$3+COLUMN()-13,ROW()-4)=0,"",2*INDEX(HHD!$C:$AX,Week!$J$3+COLUMN()-13,ROW()-4)) -> 61.6 | P45: =IF(INDEX(HHD!$C:$AX,Week!$J$3+COLUMN()-13,ROW()-4)=0,"",2*INDEX(HHD!$C:$AX,Week!$J$3+COLUMN()-13,ROW()-4)) -> 61.2 | Q45: =IF(INDEX(HHD!$C:$AX,Week!$J$3+COLUMN()-13,ROW()-4)=0,"",2*INDEX(HHD!$C:$AX,Week!$J$3+COLUMN()-13,ROW()-4)) -> 55.6 | R45: =IF(INDEX(HHD!$C:$AX,Week!$J$3+COLUMN()-13,ROW()-4)=0,"",2*INDEX(HHD!$C:$AX,Week!$J$3+COLUMN()-13,ROW()-4)) -> 63 | S45: =IF(INDEX(HHD!$C:$AX,Week!$J$3+COLUMN()-13,ROW()-4)=0,"",2*INDEX(HHD!$C:$AX,Week!$J$3+COLUMN()-13,ROW()-4)) -> 65.4 | T45: =IF(INDEX(HHD!$C:$AX,Week!$J$3+COLUMN()-13,ROW()-4)=0,"",2*INDEX(HHD!$C:$AX,Week!$J$3+COLUMN()-13,ROW()-4)) -> 65.8 | U45: =IF(INDEX(HHD!$C:$AX,Week!$J$3+COLUMN()-13,ROW()-4)=0,"",2*INDEX(HHD!$C:$AX,Week!$J$3+COLUMN()-13,ROW()-4)) -> 60.6 | V45: =IF(INDEX(HHD!$C:$AX,Week!$J$3+COLUMN()-13,ROW()-4)=0,"",2*INDEX(HHD!$C:$AX,Week!$J$3+COLUMN()-13,ROW()-4)) -> 56.2 | W45: =IF(INDEX(HHD!$C:$AX,Week!$J$3+COLUMN()-13,ROW()-4)=0,"",2*INDEX(HHD!$C:$AX,Week!$J$3+COLUMN()-13,ROW()-4)) -> 48.8 | X45: =IF(INDEX(HHD!$C:$AX,Week!$J$3+COLUMN()-13,ROW()-4)=0,"",2*INDEX(HHD!$C:$AX,Week!$J$3+COLUMN()-13,ROW()-4)) -> 52.4 | Y45: =IF(INDEX(HHD!$C:$AX,Week!$J$3+COLUMN()-13,ROW()-4)=0,"",2*INDEX(HHD!$C:$AX,Week!$J$3+COLUMN()-13,ROW()-4)) -> 56 | Z45: =IF(INDEX(HHD!$C:$AX,Week!$J$3+COLUMN()-13,ROW()-4)=0,"",2*INDEX(HHD!$C:$AX,Week!$J$3+COLUMN()-13,ROW()-4)) -> 59.8 | AA45: =IF(INDEX(HHD!$C:$AX,Week!$J$3+COLUMN()-13,ROW()-4)=0,"",2*INDEX(HHD!$C:$AX,Week!$J$3+COLUMN()-13,ROW()-4)) -> 63.4 | AB45: =IF(INDEX(HHD!$C:$AX,Week!$J$3+COLUMN()-13,ROW()-4)=0,"",2*INDEX(HHD!$C:$AX,Week!$J$3+COLUMN()-13,ROW()-4)) -> 55 | AC45: =IF(INDEX(HHD!$C:$AX,Week!$J$3+COLUMN()-13,ROW()-4)=0,"",2*INDEX(HHD!$C:$AX,Week!$J$3+COLUMN()-13,ROW()-4)) -> 69.2 | AD45: =IF(INDEX(HHD!$C:$AX,Week!$J$3+COLUMN()-13,ROW()-4)=0,"",2*INDEX(HHD!$C:$AX,Week!$J$3+COLUMN()-13,ROW()-4)) -> 60.4 | AE45: =IF(INDEX(HHD!$C:$AX,Week!$J$3+COLUMN()-13,ROW()-4)=0,"",2*INDEX(HHD!$C:$AX,Week!$J$3+COLUMN()-13,ROW()-4)) -> 57 | AF45: =IF(INDEX(HHD!$C:$AX,Week!$J$3+COLUMN()-13,ROW()-4)=0,"",2*INDEX(HHD!$C:$AX,Week!$J$3+COLUMN()-13,ROW()-4)) -> 65.6 | AG45: =IF(INDEX(HHD!$C:$AX,Week!$J$3+COLUMN()-13,ROW()-4)=0,"",2*INDEX(HHD!$C:$AX,Week!$J$3+COLUMN()-13,ROW()-4)) -> 65.4 | AH45: =IF(INDEX(HHD!$C:$AX,Week!$J$3+COLUMN()-13,ROW()-4)=0,"",2*INDEX(HHD!$C:$AX,Week!$J$3+COLUMN()-13,ROW()-4)) -> 57.2 | AI45: =IF(INDEX(HHD!$C:$AX,Week!$J$3+COLUMN()-13,ROW()-4)=0,"",2*INDEX(HHD!$C:$AX,Week!$J$3+COLUMN()-13,ROW()-4)) -> 66.4 | AJ45: =IF(INDEX(HHD!$C:$AX,Week!$J$3+COLUMN()-13,ROW()-4)=0,"",2*INDEX(HHD!$C:$AX,Week!$J$3+COLUMN()-13,ROW()-4)) -> 66.8 | AK45: =IF(INDEX(HHD!$C:$AX,Week!$J$3+COLUMN()-13,ROW()-4)=0,"",2*INDEX(HHD!$C:$AX,Week!$J$3+COLUMN()-13,ROW()-4)) -> 63.6 | AL45: =IF(INDEX(HHD!$C:$AX,Week!$J$3+COLUMN()-13,ROW()-4)=0,"",2*INDEX(HHD!$C:$AX,Week!$J$3+COLUMN()-13,ROW()-4)) -> 53.8 | AM45: =IF(INDEX(HHD!$C:$AX,Week!$J$3+COLUMN()-13,ROW()-4)=0,"",2*INDEX(HHD!$C:$AX,Week!$J$3+COLUMN()-13,ROW()-4)) -> 54.2 | AN45: =IF(INDEX(HHD!$C:$AX,Week!$J$3+COLUMN()-13,ROW()-4)=0,"",2*INDEX(HHD!$C:$AX,Week!$J$3+COLUMN()-13,ROW()-4)) -> 69.6 | AO45: =IF(INDEX(HHD!$C:$AX,Week!$J$3+COLUMN()-13,ROW()-4)=0,"",2*INDEX(HHD!$C:$AX,Week!$J$3+COLUMN()-13,ROW()-4)) -> 57.8 | AP45: =IF(INDEX(HHD!$C:$AX,Week!$J$3+COLUMN()-13,ROW()-4)=0,"",2*INDEX(HHD!$C:$AX,Week!$J$3+COLUMN()-13,ROW()-4)) -> 58.2 | AQ45: =IF(INDEX(HHD!$C:$AX,Week!$J$3+COLUMN()-13,ROW()-4)=0,"",2*INDEX(HHD!$C:$AX,Week!$J$3+COLUMN()-13,ROW()-4)) -> 68.6 | AR45: =IF(INDEX(HHD!$C:$AX,Week!$J$3+COLUMN()-13,ROW()-4)=0,"",2*INDEX(HHD!$C:$AX,Week!$J$3+COLUMN()-13,ROW()-4)) -> 58 | AS45: =IF(INDEX(HHD!$C:$AX,Week!$J$3+COLUMN()-13,ROW()-4)=0,"",2*INDEX(HHD!$C:$AX,Week!$J$3+COLUMN()-13,ROW()-4)) -> 55.4 | AT45: =IF(INDEX(HHD!$C:$AX,Week!$J$3+COLUMN()-13,ROW()-4)=0,"",2*INDEX(HHD!$C:$AX,Week!$J$3+COLUMN()-13,ROW()-4)) -> 65.6 | AU45: =IF(INDEX(HHD!$C:$AX,Week!$J$3+COLUMN()-13,ROW()-4)=0,"",2*INDEX(HHD!$C:$AX,Week!$J$3+COLUMN()-13,ROW()-4)) -> 61.2
C46: =C45-(C$45-C$50)/5 -> 112.96 | D46: 92 | E46: =PowerMapYear!C46 -> 115.72 | J46: 20:30:00 | M46: =IF(INDEX(HHD!$C:$AX,Week!$J$3+COLUMN()-13,ROW()-4)=0,"",2*INDEX(HHD!$C:$AX,Week!$J$3+COLUMN()-13,ROW()-4)) -> 57.8 | N46: =IF(INDEX(HHD!$C:$AX,Week!$J$3+COLUMN()-13,ROW()-4)=0,"",2*INDEX(HHD!$C:$AX,Week!$J$3+COLUMN()-13,ROW()-4)) -> 55.6 | O46: =IF(INDEX(HHD!$C:$AX,Week!$J$3+COLUMN()-13,ROW()-4)=0,"",2*INDEX(HHD!$C:$AX,Week!$J$3+COLUMN()-13,ROW()-4)) -> 60.2 | P46: =IF(INDEX(HHD!$C:$AX,Week!$J$3+COLUMN()-13,ROW()-4)=0,"",2*INDEX(HHD!$C:$AX,Week!$J$3+COLUMN()-13,ROW()-4)) -> 56.6 | Q46: =IF(INDEX(HHD!$C:$AX,Week!$J$3+COLUMN()-13,ROW()-4)=0,"",2*INDEX(HHD!$C:$AX,Week!$J$3+COLUMN()-13,ROW()-4)) -> 56.2 | R46: =IF(INDEX(HHD!$C:$AX,Week!$J$3+COLUMN()-13,ROW()-4)=0,"",2*INDEX(HHD!$C:$AX,Week!$J$3+COLUMN()-13,ROW()-4)) -> 57.2 | S46: =IF(INDEX(HHD!$C:$AX,Week!$J$3+COLUMN()-13,ROW()-4)=0,"",2*INDEX(HHD!$C:$AX,Week!$J$3+COLUMN()-13,ROW()-4)) -> 63 | T46: =IF(INDEX(HHD!$C:$AX,Week!$J$3+COLUMN()-13,ROW()-4)=0,"",2*INDEX(HHD!$C:$AX,Week!$J$3+COLUMN()-13,ROW()-4)) -> 64 | U46: =IF(INDEX(HHD!$C:$AX,Week!$J$3+COLUMN()-13,ROW()-4)=0,"",2*INDEX(HHD!$C:$AX,Week!$J$3+COLUMN()-13,ROW()-4)) -> 54 | V46: =IF(INDEX(HHD!$C:$AX,Week!$J$3+COLUMN()-13,ROW()-4)=0,"",2*INDEX(HHD!$C:$AX,Week!$J$3+COLUMN()-13,ROW()-4)) -> 47.6 | W46: =IF(INDEX(HHD!$C:$AX,Week!$J$3+COLUMN()-13,ROW()-4)=0,"",2*INDEX(HHD!$C:$AX,Week!$J$3+COLUMN()-13,ROW()-4)) -> 50.2 | X46: =IF(INDEX(HHD!$C:$AX,Week!$J$3+COLUMN()-13,ROW()-4)=0,"",2*INDEX(HHD!$C:$AX,Week!$J$3+COLUMN()-13,ROW()-4)) -> 54.6 | Y46: =IF(INDEX(HHD!$C:$AX,Week!$J$3+COLUMN()-13,ROW()-4)=0,"",2*INDEX(HHD!$C:$AX,Week!$J$3+COLUMN()-13,ROW()-4)) -> 54.8 | Z46: =IF(INDEX(HHD!$C:$AX,Week!$J$3+COLUMN()-13,ROW()-4)=0,"",2*INDEX(HHD!$C:$AX,Week!$J$3+COLUMN()-13,ROW()-4)) -> 61.6 | AA46: =IF(INDEX(HHD!$C:$AX,Week!$J$3+COLUMN()-13,ROW()-4)=0,"",2*INDEX(HHD!$C:$AX,Week!$J$3+COLUMN()-13,ROW()-4)) -> 64.4 | AB46: =IF(INDEX(HHD!$C:$AX,Week!$J$3+COLUMN()-13,ROW()-4)=0,"",2*INDEX(HHD!$C:$AX,Week!$J$3+COLUMN()-13,ROW()-4)) -> 59.4 | AC46: =IF(INDEX(HHD!$C:$AX,Week!$J$3+COLUMN()-13,ROW()-4)=0,"",2*INDEX(HHD!$C:$AX,Week!$J$3+COLUMN()-13,ROW()-4)) -> 64.8 | AD46: =IF(INDEX(HHD!$C:$AX,Week!$J$3+COLUMN()-13,ROW()-4)=0,"",2*INDEX(HHD!$C:$AX,Week!$J$3+COLUMN()-13,ROW()-4)) -> 66 | AE46: =IF(INDEX(HHD!$C:$AX,Week!$J$3+COLUMN()-13,ROW()-4)=0,"",2*INDEX(HHD!$C:$AX,Week!$J$3+COLUMN()-13,ROW()-4)) -> 61.8 | AF46: =IF(INDEX(HHD!$C:$AX,Week!$J$3+COLUMN()-13,ROW()-4)=0,"",2*INDEX(HHD!$C:$AX,Week!$J$3+COLUMN()-13,ROW()-4)) -> 60.4 | AG46: =IF(INDEX(HHD!$C:$AX,Week!$J$3+COLUMN()-13,ROW()-4)=0,"",2*INDEX(HHD!$C:$AX,Week!$J$3+COLUMN()-13,ROW()-4)) -> 58.2 | AH46: =IF(INDEX(HHD!$C:$AX,Week!$J$3+COLUMN()-13,ROW()-4)=0,"",2*INDEX(HHD!$C:$AX,Week!$J$3+COLUMN()-13,ROW()-4)) -> 53 | AI46: =IF(INDEX(HHD!$C:$AX,Week!$J$3+COLUMN()-13,ROW()-4)=0,"",2*INDEX(HHD!$C:$AX,Week!$J$3+COLUMN()-13,ROW()-4)) -> 65 | AJ46: =IF(INDEX(HHD!$C:$AX,Week!$J$3+COLUMN()-13,ROW()-4)=0,"",2*INDEX(HHD!$C:$AX,Week!$J$3+COLUMN()-13,ROW()-4)) -> 62 | AK46: =IF(INDEX(HHD!$C:$AX,Week!$J$3+COLUMN()-13,ROW()-4)=0,"",2*INDEX(HHD!$C:$AX,Week!$J$3+COLUMN()-13,ROW()-4)) -> 64 | AL46: =IF(INDEX(HHD!$C:$AX,Week!$J$3+COLUMN()-13,ROW()-4)=0,"",2*INDEX(HHD!$C:$AX,Week!$J$3+COLUMN()-13,ROW()-4)) -> 64.2 | AM46: =IF(INDEX(HHD!$C:$AX,Week!$J$3+COLUMN()-13,ROW()-4)=0,"",2*INDEX(HHD!$C:$AX,Week!$J$3+COLUMN()-13,ROW()-4)) -> 62.8 | AN46: =IF(INDEX(HHD!$C:$AX,Week!$J$3+COLUMN()-13,ROW()-4)=0,"",2*INDEX(HHD!$C:$AX,Week!$J$3+COLUMN()-13,ROW()-4)) -> 68.8 | AO46: =IF(INDEX(HHD!$C:$AX,Week!$J$3+COLUMN()-13,ROW()-4)=0,"",2*INDEX(HHD!$C:$AX,Week!$J$3+COLUMN()-13,ROW()-4)) -> 55.2 | AP46: =IF(INDEX(HHD!$C:$AX,Week!$J$3+COLUMN()-13,ROW()-4)=0,"",2*INDEX(HHD!$C:$AX,Week!$J$3+COLUMN()-13,ROW()-4)) -> 70.2 | AQ46: =IF(INDEX(HHD!$C:$AX,Week!$J$3+COLUMN()-13,ROW()-4)=0,"",2*INDEX(HHD!$C:$AX,Week!$J$3+COLUMN()-13,ROW()-4)) -> 71.2 | AR46: =IF(INDEX(HHD!$C:$AX,Week!$J$3+COLUMN()-13,ROW()-4)=0,"",2*INDEX(HHD!$C:$AX,Week!$J$3+COLUMN()-13,ROW()-4)) -> 63.2 | AS46: =IF(INDEX(HHD!$C:$AX,Week!$J$3+COLUMN()-13,ROW()-4)=0,"",2*INDEX(HHD!$C:$AX,Week!$J$3+COLUMN()-13,ROW()-4)) -> 63.8 | AT46: =IF(INDEX(HHD!$C:$AX,Week!$J$3+COLUMN()-13,ROW()-4)=0,"",2*INDEX(HHD!$C:$AX,Week!$J$3+COLUMN()-13,ROW()-4)) -> 63.6 | AU46: =IF(INDEX(HHD!$C:$AX,Week!$J$3+COLUMN()-13,ROW()-4)=0,"",2*INDEX(HHD!$C:$AX,Week!$J$3+COLUMN()-13,ROW()-4)) -> 59
C47: =C46-(C$45-C$50)/5 -> 96.32 | D47: 69 | E47: =PowerMapYear!C47 -> 97.14 | J47: 21:00:00 | M47: =IF(INDEX(HHD!$C:$AX,Week!$J$3+COLUMN()-13,ROW()-4)=0,"",2*INDEX(HHD!$C:$AX,Week!$J$3+COLUMN()-13,ROW()-4)) -> 55.6 | N47: =IF(INDEX(HHD!$C:$AX,Week!$J$3+COLUMN()-13,ROW()-4)=0,"",2*INDEX(HHD!$C:$AX,Week!$J$3+COLUMN()-13,ROW()-4)) -> 57.4 | O47: =IF(INDEX(HHD!$C:$AX,Week!$J$3+COLUMN()-13,ROW()-4)=0,"",2*INDEX(HHD!$C:$AX,Week!$J$3+COLUMN()-13,ROW()-4)) -> 58.2 | P47: =IF(INDEX(HHD!$C:$AX,Week!$J$3+COLUMN()-13,ROW()-4)=0,"",2*INDEX(HHD!$C:$AX,Week!$J$3+COLUMN()-13,ROW()-4)) -> 58 | Q47: =IF(INDEX(HHD!$C:$AX,Week!$J$3+COLUMN()-13,ROW()-4)=0,"",2*INDEX(HHD!$C:$AX,Week!$J$3+COLUMN()-13,ROW()-4)) -> 58.4 | R47: =IF(INDEX(HHD!$C:$AX,Week!$J$3+COLUMN()-13,ROW()-4)=0,"",2*INDEX(HHD!$C:$AX,Week!$J$3+COLUMN()-13,ROW()-4)) -> 60.4 | S47: =IF(INDEX(HHD!$C:$AX,Week!$J$3+COLUMN()-13,ROW()-4)=0,"",2*INDEX(HHD!$C:$AX,Week!$J$3+COLUMN()-13,ROW()-4)) -> 63.8 | T47: =IF(INDEX(HHD!$C:$AX,Week!$J$3+COLUMN()-13,ROW()-4)=0,"",2*INDEX(HHD!$C:$AX,Week!$J$3+COLUMN()-13,ROW()-4)) -> 54.8 | U47: =IF(INDEX(HHD!$C:$AX,Week!$J$3+COLUMN()-13,ROW()-4)=0,"",2*INDEX(HHD!$C:$AX,Week!$J$3+COLUMN()-13,ROW()-4)) -> 59.6 | V47: =IF(INDEX(HHD!$C:$AX,Week!$J$3+COLUMN()-13,ROW()-4)=0,"",2*INDEX(HHD!$C:$AX,Week!$J$3+COLUMN()-13,ROW()-4)) -> 49 | W47: =IF(INDEX(HHD!$C:$AX,Week!$J$3+COLUMN()-13,ROW()-4)=0,"",2*INDEX(HHD!$C:$AX,Week!$J$3+COLUMN()-13,ROW()-4)) -> 55.2 | X47: =IF(INDEX(HHD!$C:$AX,Week!$J$3+COLUMN()-13,ROW()-4)=0,"",2*INDEX(HHD!$C:$AX,Week!$J$3+COLUMN()-13,ROW()-4)) -> 54.6 | Y47: =IF(INDEX(HHD!$C:$AX,Week!$J$3+COLUMN()-13,ROW()-4)=0,"",2*INDEX(HHD!$C:$AX,Week!$J$3+COLUMN()-13,ROW()-4)) -> 56.4 | Z47: =IF(INDEX(HHD!$C:$AX,Week!$J$3+COLUMN()-13,ROW()-4)=0,"",2*INDEX(HHD!$C:$AX,Week!$J$3+COLUMN()-13,ROW()-4)) -> 59 | AA47: =IF(INDEX(HHD!$C:$AX,Week!$J$3+COLUMN()-13,ROW()-4)=0,"",2*INDEX(HHD!$C:$AX,Week!$J$3+COLUMN()-13,ROW()-4)) -> 54.8 | AB47: =IF(INDEX(HHD!$C:$AX,Week!$J$3+COLUMN()-13,ROW()-4)=0,"",2*INDEX(HHD!$C:$AX,Week!$J$3+COLUMN()-13,ROW()-4)) -> 52.8 | AC47: =IF(INDEX(HHD!$C:$AX,Week!$J$3+COLUMN()-13,ROW()-4)=0,"",2*INDEX(HHD!$C:$AX,Week!$J$3+COLUMN()-13,ROW()-4)) -> 63.2 | AD47: =IF(INDEX(HHD!$C:$AX,Week!$J$3+COLUMN()-13,ROW()-4)=0,"",2*INDEX(HHD!$C:$AX,Week!$J$3+COLUMN()-13,ROW()-4)) -> 68.8 | AE47: =IF(INDEX(HHD!$C:$AX,Week!$J$3+COLUMN()-13,ROW()-4)=0,"",2*INDEX(HHD!$C:$AX,Week!$J$3+COLUMN()-13,ROW()-4)) -> 54.4 | AF47: =IF(INDEX(HHD!$C:$AX,Week!$J$3+COLUMN()-13,ROW()-4)=0,"",2*INDEX(HHD!$C:$AX,Week!$J$3+COLUMN()-13,ROW()-4)) -> 60.8 | AG47: =IF(INDEX(HHD!$C:$AX,Week!$J$3+COLUMN()-13,ROW()-4)=0,"",2*INDEX(HHD!$C:$AX,Week!$J$3+COLUMN()-13,ROW()-4)) -> 68.8 | AH47: =IF(INDEX(HHD!$C:$AX,Week!$J$3+COLUMN()-13,ROW()-4)=0,"",2*INDEX(HHD!$C:$AX,Week!$J$3+COLUMN()-13,ROW()-4)) -> 63.2 | AI47: =IF(INDEX(HHD!$C:$AX,Week!$J$3+COLUMN()-13,ROW()-4)=0,"",2*INDEX(HHD!$C:$AX,Week!$J$3+COLUMN()-13,ROW()-4)) -> 61 | AJ47: =IF(INDEX(HHD!$C:$AX,Week!$J$3+COLUMN()-13,ROW()-4)=0,"",2*INDEX(HHD!$C:$AX,Week!$J$3+COLUMN()-13,ROW()-4)) -> 68.8 | AK47: =IF(INDEX(HHD!$C:$AX,Week!$J$3+COLUMN()-13,ROW()-4)=0,"",2*INDEX(HHD!$C:$AX,Week!$J$3+COLUMN()-13,ROW()-4)) -> 64 | AL47: =IF(INDEX(HHD!$C:$AX,Week!$J$3+COLUMN()-13,ROW()-4)=0,"",2*INDEX(HHD!$C:$AX,Week!$J$3+COLUMN()-13,ROW()-4)) -> 56.8 | AM47: =IF(INDEX(HHD!$C:$AX,Week!$J$3+COLUMN()-13,ROW()-4)=0,"",2*INDEX(HHD!$C:$AX,Week!$J$3+COLUMN()-13,ROW()-4)) -> 59.4 | AN47: =IF(INDEX(HHD!$C:$AX,Week!$J$3+COLUMN()-13,ROW()-4)=0,"",2*INDEX(HHD!$C:$AX,Week!$J$3+COLUMN()-13,ROW()-4)) -> 61.2 | AO47: =IF(INDEX(HHD!$C:$AX,Week!$J$3+COLUMN()-13,ROW()-4)=0,"",2*INDEX(HHD!$C:$AX,Week!$J$3+COLUMN()-13,ROW()-4)) -> 56.4 | AP47: =IF(INDEX(HHD!$C:$AX,Week!$J$3+COLUMN()-13,ROW()-4)=0,"",2*INDEX(HHD!$C:$AX,Week!$J$3+COLUMN()-13,ROW()-4)) -> 65.8 | AQ47: =IF(INDEX(HHD!$C:$AX,Week!$J$3+COLUMN()-13,ROW()-4)=0,"",2*INDEX(HHD!$C:$AX,Week!$J$3+COLUMN()-13,ROW()-4)) -> 65.8 | AR47: =IF(INDEX(HHD!$C:$AX,Week!$J$3+COLUMN()-13,ROW()-4)=0,"",2*INDEX(HHD!$C:$AX,Week!$J$3+COLUMN()-13,ROW()-4)) -> 59.2 | AS47: =IF(INDEX(HHD!$C:$AX,Week!$J$3+COLUMN()-13,ROW()-4)=0,"",2*INDEX(HHD!$C:$AX,Week!$J$3+COLUMN()-13,ROW()-4)) -> 69.6 | AT47: =IF(INDEX(HHD!$C:$AX,Week!$J$3+COLUMN()-13,ROW()-4)=0,"",2*INDEX(HHD!$C:$AX,Week!$J$3+COLUMN()-13,ROW()-4)) -> 63.4 | AU47: =IF(INDEX(HHD!$C:$AX,Week!$J$3+COLUMN()-13,ROW()-4)=0,"",2*INDEX(HHD!$C:$AX,Week!$J$3+COLUMN()-13,ROW()-4)) -> 61.6
C48: 79.68 | D48: 46 | E48: =PowerMapYear!C48 -> 78.56 | J48: 21:30:00 | M48: =IF(INDEX(HHD!$C:$AX,Week!$J$3+COLUMN()-13,ROW()-4)=0,"",2*INDEX(HHD!$C:$AX,Week!$J$3+COLUMN()-13,ROW()-4)) -> 55 | N48: =IF(INDEX(HHD!$C:$AX,Week!$J$3+COLUMN()-13,ROW()-4)=0,"",2*INDEX(HHD!$C:$AX,Week!$J$3+COLUMN()-13,ROW()-4)) -> 52.2 | O48: =IF(INDEX(HHD!$C:$AX,Week!$J$3+COLUMN()-13,ROW()-4)=0,"",2*INDEX(HHD!$C:$AX,Week!$J$3+COLUMN()-13,ROW()-4)) -> 50.2 | P48: =IF(INDEX(HHD!$C:$AX,Week!$J$3+COLUMN()-13,ROW()-4)=0,"",2*INDEX(HHD!$C:$AX,Week!$J$3+COLUMN()-13,ROW()-4)) -> 49.2 | Q48: =IF(INDEX(HHD!$C:$AX,Week!$J$3+COLUMN()-13,ROW()-4)=0,"",2*INDEX(HHD!$C:$AX,Week!$J$3+COLUMN()-13,ROW()-4)) -> 52 | R48: =IF(INDEX(HHD!$C:$AX,Week!$J$3+COLUMN()-13,ROW()-4)=0,"",2*INDEX(HHD!$C:$AX,Week!$J$3+COLUMN()-13,ROW()-4)) -> 53 | S48: =IF(INDEX(HHD!$C:$AX,Week!$J$3+COLUMN()-13,ROW()-4)=0,"",2*INDEX(HHD!$C:$AX,Week!$J$3+COLUMN()-13,ROW()-4)) -> 61 | T48: =IF(INDEX(HHD!$C:$AX,Week!$J$3+COLUMN()-13,ROW()-4)=0,"",2*INDEX(HHD!$C:$AX,Week!$J$3+COLUMN()-13,ROW()-4)) -> 51.2 | U48: =IF(INDEX(HHD!$C:$AX,Week!$J$3+COLUMN()-13,ROW()-4)=0,"",2*INDEX(HHD!$C:$AX,Week!$J$3+COLUMN()-13,ROW()-4)) -> 61 | V48: =IF(INDEX(HHD!$C:$AX,Week!$J$3+COLUMN()-13,ROW()-4)=0,"",2*INDEX(HHD!$C:$AX,Week!$J$3+COLUMN()-13,ROW()-4)) -> 51.2 | W48: =IF(INDEX(HHD!$C:$AX,Week!$J$3+COLUMN()-13,ROW()-4)=0,"",2*INDEX(HHD!$C:$AX,Week!$J$3+COLUMN()-13,ROW()-4)) -> 49 | X48: =IF(INDEX(HHD!$C:$AX,Week!$J$3+COLUMN()-13,ROW()-4)=0,"",2*INDEX(HHD!$C:$AX,Week!$J$3+COLUMN()-13,ROW()-4)) -> 46.2 | Y48: =IF(INDEX(HHD!$C:$AX,Week!$J$3+COLUMN()-13,ROW()-4)=0,"",2*INDEX(HHD!$C:$AX,Week!$J$3+COLUMN()-13,ROW()-4)) -> 47.8 | Z48: =IF(INDEX(HHD!$C:$AX,Week!$J$3+COLUMN()-13,ROW()-4)=0,"",2*INDEX(HHD!$C:$AX,Week!$J$3+COLUMN()-13,ROW()-4)) -> 51.2 | AA48: =IF(INDEX(HHD!$C:$AX,Week!$J$3+COLUMN()-13,ROW()-4)=0,"",2*INDEX(HHD!$C:$AX,Week!$J$3+COLUMN()-13,ROW()-4)) -> 52.8 | AB48: =IF(INDEX(HHD!$C:$AX,Week!$J$3+COLUMN()-13,ROW()-4)=0,"",2*INDEX(HHD!$C:$AX,Week!$J$3+COLUMN()-13,ROW()-4)) -> 55.2 | AC48: =IF(INDEX(HHD!$C:$AX,Week!$J$3+COLUMN()-13,ROW()-4)=0,"",2*INDEX(HHD!$C:$AX,Week!$J$3+COLUMN()-13,ROW()-4)) -> 64 | AD48: =IF(INDEX(HHD!$C:$AX,Week!$J$3+COLUMN()-13,ROW()-4)=0,"",2*INDEX(HHD!$C:$AX,Week!$J$3+COLUMN()-13,ROW()-4)) -> 58.2 | AE48: =IF(INDEX(HHD!$C:$AX,Week!$J$3+COLUMN()-13,ROW()-4)=0,"",2*INDEX(HHD!$C:$AX,Week!$J$3+COLUMN()-13,ROW()-4)) -> 53.2 | AF48: =IF(INDEX(HHD!$C:$AX,Week!$J$3+COLUMN()-13,ROW()-4)=0,"",2*INDEX(HHD!$C:$AX,Week!$J$3+COLUMN()-13,ROW()-4)) -> 62.8 | AG48: =IF(INDEX(HHD!$C:$AX,Week!$J$3+COLUMN()-13,ROW()-4)=0,"",2*INDEX(HHD!$C:$AX,Week!$J$3+COLUMN()-13,ROW()-4)) -> 53.8 | AH48: =IF(INDEX(HHD!$C:$AX,Week!$J$3+COLUMN()-13,ROW()-4)=0,"",2*INDEX(HHD!$C:$AX,Week!$J$3+COLUMN()-13,ROW()-4)) -> 57.8 | AI48: =IF(INDEX(HHD!$C:$AX,Week!$J$3+COLUMN()-13,ROW()-4)=0,"",2*INDEX(HHD!$C:$AX,Week!$J$3+COLUMN()-13,ROW()-4)) -> 54.2 | AJ48: =IF(INDEX(HHD!$C:$AX,Week!$J$3+COLUMN()-13,ROW()-4)=0,"",2*INDEX(HHD!$C:$AX,Week!$J$3+COLUMN()-13,ROW()-4)) -> 64.6 | AK48: =IF(INDEX(HHD!$C:$AX,Week!$J$3+COLUMN()-13,ROW()-4)=0,"",2*INDEX(HHD!$C:$AX,Week!$J$3+COLUMN()-13,ROW()-4)) -> 62 | AL48: =IF(INDEX(HHD!$C:$AX,Week!$J$3+COLUMN()-13,ROW()-4)=0,"",2*INDEX(HHD!$C:$AX,Week!$J$3+COLUMN()-13,ROW()-4)) -> 53.4 | AM48: =IF(INDEX(HHD!$C:$AX,Week!$J$3+COLUMN()-13,ROW()-4)=0,"",2*INDEX(HHD!$C:$AX,Week!$J$3+COLUMN()-13,ROW()-4)) -> 57.8 | AN48: =IF(INDEX(HHD!$C:$AX,Week!$J$3+COLUMN()-13,ROW()-4)=0,"",2*INDEX(HHD!$C:$AX,Week!$J$3+COLUMN()-13,ROW()-4)) -> 61 | AO48: =IF(INDEX(HHD!$C:$AX,Week!$J$3+COLUMN()-13,ROW()-4)=0,"",2*INDEX(HHD!$C:$AX,Week!$J$3+COLUMN()-13,ROW()-4)) -> 58.6 | AP48: =IF(INDEX(HHD!$C:$AX,Week!$J$3+COLUMN()-13,ROW()-4)=0,"",2*INDEX(HHD!$C:$AX,Week!$J$3+COLUMN()-13,ROW()-4)) -> 61.2 | AQ48: =IF(INDEX(HHD!$C:$AX,Week!$J$3+COLUMN()-13,ROW()-4)=0,"",2*INDEX(HHD!$C:$AX,Week!$J$3+COLUMN()-13,ROW()-4)) -> 62.2 | AR48: =IF(INDEX(HHD!$C:$AX,Week!$J$3+COLUMN()-13,ROW()-4)=0,"",2*INDEX(HHD!$C:$AX,Week!$J$3+COLUMN()-13,ROW()-4)) -> 60.4 | AS48: =IF(INDEX(HHD!$C:$AX,Week!$J$3+COLUMN()-13,ROW()-4)=0,"",2*INDEX(HHD!$C:$AX,Week!$J$3+COLUMN()-13,ROW()-4)) -> 61.4 | AT48: =IF(INDEX(HHD!$C:$AX,Week!$J$3+COLUMN()-13,ROW()-4)=0,"",2*INDEX(HHD!$C:$AX,Week!$J$3+COLUMN()-13,ROW()-4)) -> 60 | AU48: =IF(INDEX(HHD!$C:$AX,Week!$J$3+COLUMN()-13,ROW()-4)=0,"",2*INDEX(HHD!$C:$AX,Week!$J$3+COLUMN()-13,ROW()-4)) -> 64.6
C49: 63.04 | D49: 23 | E49: =PowerMapYear!C49 -> 59.98 | J49: 22:00:00 | M49: =IF(INDEX(HHD!$C:$AX,Week!$J$3+COLUMN()-13,ROW()-4)=0,"",2*INDEX(HHD!$C:$AX,Week!$J$3+COLUMN()-13,ROW()-4)) -> 46.8 | N49: =IF(INDEX(HHD!$C:$AX,Week!$J$3+COLUMN()-13,ROW()-4)=0,"",2*INDEX(HHD!$C:$AX,Week!$J$3+COLUMN()-13,ROW()-4)) -> 46.8 | O49: =IF(INDEX(HHD!$C:$AX,Week!$J$3+COLUMN()-13,ROW()-4)=0,"",2*INDEX(HHD!$C:$AX,Week!$J$3+COLUMN()-13,ROW()-4)) -> 45.4 | P49: =IF(INDEX(HHD!$C:$AX,Week!$J$3+COLUMN()-13,ROW()-4)=0,"",2*INDEX(HHD!$C:$AX,Week!$J$3+COLUMN()-13,ROW()-4)) -> 49.2 | Q49: =IF(INDEX(HHD!$C:$AX,Week!$J$3+COLUMN()-13,ROW()-4)=0,"",2*INDEX(HHD!$C:$AX,Week!$J$3+COLUMN()-13,ROW()-4)) -> 47.8 | R49: =IF(INDEX(HHD!$C:$AX,Week!$J$3+COLUMN()-13,ROW()-4)=0,"",2*INDEX(HHD!$C:$AX,Week!$J$3+COLUMN()-13,ROW()-4)) -> 56 | S49: =IF(INDEX(HHD!$C:$AX,Week!$J$3+COLUMN()-13,ROW()-4)=0,"",2*INDEX(HHD!$C:$AX,Week!$J$3+COLUMN()-13,ROW()-4)) -> 57.2 | T49: =IF(INDEX(HHD!$C:$AX,Week!$J$3+COLUMN()-13,ROW()-4)=0,"",2*INDEX(HHD!$C:$AX,Week!$J$3+COLUMN()-13,ROW()-4)) -> 49.4 | U49: =IF(INDEX(HHD!$C:$AX,Week!$J$3+COLUMN()-13,ROW()-4)=0,"",2*INDEX(HHD!$C:$AX,Week!$J$3+COLUMN()-13,ROW()-4)) -> 54.8 | V49: =IF(INDEX(HHD!$C:$AX,Week!$J$3+COLUMN()-13,ROW()-4)=0,"",2*INDEX(HHD!$C:$AX,Week!$J$3+COLUMN()-13,ROW()-4)) -> 44.8 | W49: =IF(INDEX(HHD!$C:$AX,Week!$J$3+COLUMN()-13,ROW()-4)=0,"",2*INDEX(HHD!$C:$AX,Week!$J$3+COLUMN()-13,ROW()-4)) -> 42.2 | X49: =IF(INDEX(HHD!$C:$AX,Week!$J$3+COLUMN()-13,ROW()-4)=0,"",2*INDEX(HHD!$C:$AX,Week!$J$3+COLUMN()-13,ROW()-4)) -> 43.8 | Y49: =IF(INDEX(HHD!$C:$AX,Week!$J$3+COLUMN()-13,ROW()-4)=0,"",2*INDEX(HHD!$C:$AX,Week!$J$3+COLUMN()-13,ROW()-4)) -> 48.8 | Z49: =IF(INDEX(HHD!$C:$AX,Week!$J$3+COLUMN()-13,ROW()-4)=0,"",2*INDEX(HHD!$C:$AX,Week!$J$3+COLUMN()-13,ROW()-4)) -> 51.8 | AA49: =IF(INDEX(HHD!$C:$AX,Week!$J$3+COLUMN()-13,ROW()-4)=0,"",2*INDEX(HHD!$C:$AX,Week!$J$3+COLUMN()-13,ROW()-4)) -> 55 | AB49: =IF(INDEX(HHD!$C:$AX,Week!$J$3+COLUMN()-13,ROW()-4)=0,"",2*INDEX(HHD!$C:$AX,Week!$J$3+COLUMN()-13,ROW()-4)) -> 49.8 | AC49: =IF(INDEX(HHD!$C:$AX,Week!$J$3+COLUMN()-13,ROW()-4)=0,"",2*INDEX(HHD!$C:$AX,Week!$J$3+COLUMN()-13,ROW()-4)) -> 64.4 | AD49: =IF(INDEX(HHD!$C:$AX,Week!$J$3+COLUMN()-13,ROW()-4)=0,"",2*INDEX(HHD!$C:$AX,Week!$J$3+COLUMN()-13,ROW()-4)) -> 57.6 | AE49: =IF(INDEX(HHD!$C:$AX,Week!$J$3+COLUMN()-13,ROW()-4)=0,"",2*INDEX(HHD!$C:$AX,Week!$J$3+COLUMN()-13,ROW()-4)) -> 49.4 | AF49: =IF(INDEX(HHD!$C:$AX,Week!$J$3+COLUMN()-13,ROW()-4)=0,"",2*INDEX(HHD!$C:$AX,Week!$J$3+COLUMN()-13,ROW()-4)) -> 62 | AG49: =IF(INDEX(HHD!$C:$AX,Week!$J$3+COLUMN()-13,ROW()-4)=0,"",2*INDEX(HHD!$C:$AX,Week!$J$3+COLUMN()-13,ROW()-4)) -> 58.6 | AH49: =IF(INDEX(HHD!$C:$AX,Week!$J$3+COLUMN()-13,ROW()-4)=0,"",2*INDEX(HHD!$C:$AX,Week!$J$3+COLUMN()-13,ROW()-4)) -> 57.8 | AI49: =IF(INDEX(HHD!$C:$AX,Week!$J$3+COLUMN()-13,ROW()-4)=0,"",2*INDEX(HHD!$C:$AX,Week!$J$3+COLUMN()-13,ROW()-4)) -> 63.2 | AJ49: =IF(INDEX(HHD!$C:$AX,Week!$J$3+COLUMN()-13,ROW()-4)=0,"",2*INDEX(HHD!$C:$AX,Week!$J$3+COLUMN()-13,ROW()-4)) -> 62.2 | AK49: =IF(INDEX(HHD!$C:$AX,Week!$J$3+COLUMN()-13,ROW()-4)=0,"",2*INDEX(HHD!$C:$AX,Week!$J$3+COLUMN()-13,ROW()-4)) -> 58.2 | AL49: =IF(INDEX(HHD!$C:$AX,Week!$J$3+COLUMN()-13,ROW()-4)=0,"",2*INDEX(HHD!$C:$AX,Week!$J$3+COLUMN()-13,ROW()-4)) -> 52.6 | AM49: =IF(INDEX(HHD!$C:$AX,Week!$J$3+COLUMN()-13,ROW()-4)=0,"",2*INDEX(HHD!$C:$AX,Week!$J$3+COLUMN()-13,ROW()-4)) -> 57 | AN49: =IF(INDEX(HHD!$C:$AX,Week!$J$3+COLUMN()-13,ROW()-4)=0,"",2*INDEX(HHD!$C:$AX,Week!$J$3+COLUMN()-13,ROW()-4)) -> 61.4 | AO49: =IF(INDEX(HHD!$C:$AX,Week!$J$3+COLUMN()-13,ROW()-4)=0,"",2*INDEX(HHD!$C:$AX,Week!$J$3+COLUMN()-13,ROW()-4)) -> 53.2 | AP49: =IF(INDEX(HHD!$C:$AX,Week!$J$3+COLUMN()-13,ROW()-4)=0,"",2*INDEX(HHD!$C:$AX,Week!$J$3+COLUMN()-13,ROW()-4)) -> 52.6 | AQ49: =IF(INDEX(HHD!$C:$AX,Week!$J$3+COLUMN()-13,ROW()-4)=0,"",2*INDEX(HHD!$C:$AX,Week!$J$3+COLUMN()-13,ROW()-4)) -> 62.6 | AR49: =IF(INDEX(HHD!$C:$AX,Week!$J$3+COLUMN()-13,ROW()-4)=0,"",2*INDEX(HHD!$C:$AX,Week!$J$3+COLUMN()-13,ROW()-4)) -> 49.6 | AS49: =IF(INDEX(HHD!$C:$AX,Week!$J$3+COLUMN()-13,ROW()-4)=0,"",2*INDEX(HHD!$C:$AX,Week!$J$3+COLUMN()-13,ROW()-4)) -> 53 | AT49: =IF(INDEX(HHD!$C:$AX,Week!$J$3+COLUMN()-13,ROW()-4)=0,"",2*INDEX(HHD!$C:$AX,Week!$J$3+COLUMN()-13,ROW()-4)) -> 51.6 | AU49: =IF(INDEX(HHD!$C:$AX,Week!$J$3+COLUMN()-13,ROW()-4)=0,"",2*INDEX(HHD!$C:$AX,Week!$J$3+COLUMN()-13,ROW()-4)) -> 48.4
B50: Min | C50: =PERCENTILE($M$5:$AU$52,1/35) -> 46.4 | D50: 0 | E50: =PowerMapYear!C50 -> 41.4 | J50: 22:30:00 | M50: =IF(INDEX(HHD!$C:$AX,Week!$J$3+COLUMN()-13,ROW()-4)=0,"",2*INDEX(HHD!$C:$AX,Week!$J$3+COLUMN()-13,ROW()-4)) -> 51 | N50: =IF(INDEX(HHD!$C:$AX,Week!$J$3+COLUMN()-13,ROW()-4)=0,"",2*INDEX(HHD!$C:$AX,Week!$J$3+COLUMN()-13,ROW()-4)) -> 54 | O50: =IF(INDEX(HHD!$C:$AX,Week!$J$3+COLUMN()-13,ROW()-4)=0,"",2*INDEX(HHD!$C:$AX,Week!$J$3+COLUMN()-13,ROW()-4)) -> 55.6 | P50: =IF(INDEX(HHD!$C:$AX,Week!$J$3+COLUMN()-13,ROW()-4)=0,"",2*INDEX(HHD!$C:$AX,Week!$J$3+COLUMN()-13,ROW()-4)) -> 46.4 | Q50: =IF(INDEX(HHD!$C:$AX,Week!$J$3+COLUMN()-13,ROW()-4)=0,"",2*INDEX(HHD!$C:$AX,Week!$J$3+COLUMN()-13,ROW()-4)) -> 54.6 | R50: =IF(INDEX(HHD!$C:$AX,Week!$J$3+COLUMN()-13,ROW()-4)=0,"",2*INDEX(HHD!$C:$AX,Week!$J$3+COLUMN()-13,ROW()-4)) -> 48.2 | S50: =IF(INDEX(HHD!$C:$AX,Week!$J$3+COLUMN()-13,ROW()-4)=0,"",2*INDEX(HHD!$C:$AX,Week!$J$3+COLUMN()-13,ROW()-4)) -> 53 | T50: =IF(INDEX(HHD!$C:$AX,Week!$J$3+COLUMN()-13,ROW()-4)=0,"",2*INDEX(HHD!$C:$AX,Week!$J$3+COLUMN()-13,ROW()-4)) -> 51.2 | U50: =IF(INDEX(HHD!$C:$AX,Week!$J$3+COLUMN()-13,ROW()-4)=0,"",2*INDEX(HHD!$C:$AX,Week!$J$3+COLUMN()-13,ROW()-4)) -> 49.6 | V50: =IF(INDEX(HHD!$C:$AX,Week!$J$3+COLUMN()-13,ROW()-4)=0,"",2*INDEX(HHD!$C:$AX,Week!$J$3+COLUMN()-13,ROW()-4)) -> 48.2 | W50: =IF(INDEX(HHD!$C:$AX,Week!$J$3+COLUMN()-13,ROW()-4)=0,"",2*INDEX(HHD!$C:$AX,Week!$J$3+COLUMN()-13,ROW()-4)) -> 48.4 | X50: =IF(INDEX(HHD!$C:$AX,Week!$J$3+COLUMN()-13,ROW()-4)=0,"",2*INDEX(HHD!$C:$AX,Week!$J$3+COLUMN()-13,ROW()-4)) -> 46 | Y50: =IF(INDEX(HHD!$C:$AX,Week!$J$3+COLUMN()-13,ROW()-4)=0,"",2*INDEX(HHD!$C:$AX,Week!$J$3+COLUMN()-13,ROW()-4)) -> 45.8 | Z50: =IF(INDEX(HHD!$C:$AX,Week!$J$3+COLUMN()-13,ROW()-4)=0,"",2*INDEX(HHD!$C:$AX,Week!$J$3+COLUMN()-13,ROW()-4)) -> 49.8 | AA50: =IF(INDEX(HHD!$C:$AX,Week!$J$3+COLUMN()-13,ROW()-4)=0,"",2*INDEX(HHD!$C:$AX,Week!$J$3+COLUMN()-13,ROW()-4)) -> 47 | AB50: =IF(INDEX(HHD!$C:$AX,Week!$J$3+COLUMN()-13,ROW()-4)=0,"",2*INDEX(HHD!$C:$AX,Week!$J$3+COLUMN()-13,ROW()-4)) -> 47.4 | AC50: =IF(INDEX(HHD!$C:$AX,Week!$J$3+COLUMN()-13,ROW()-4)=0,"",2*INDEX(HHD!$C:$AX,Week!$J$3+COLUMN()-13,ROW()-4)) -> 61 | AD50: =IF(INDEX(HHD!$C:$AX,Week!$J$3+COLUMN()-13,ROW()-4)=0,"",2*INDEX(HHD!$C:$AX,Week!$J$3+COLUMN()-13,ROW()-4)) -> 58 | AE50: =IF(INDEX(HHD!$C:$AX,Week!$J$3+COLUMN()-13,ROW()-4)=0,"",2*INDEX(HHD!$C:$AX,Week!$J$3+COLUMN()-13,ROW()-4)) -> 53.6 | AF50: =IF(INDEX(HHD!$C:$AX,Week!$J$3+COLUMN()-13,ROW()-4)=0,"",2*INDEX(HHD!$C:$AX,Week!$J$3+COLUMN()-13,ROW()-4)) -> 56.8 | AG50: =IF(INDEX(HHD!$C:$AX,Week!$J$3+COLUMN()-13,ROW()-4)=0,"",2*INDEX(HHD!$C:$AX,Week!$J$3+COLUMN()-13,ROW()-4)) -> 59 | AH50: =IF(INDEX(HHD!$C:$AX,Week!$J$3+COLUMN()-13,ROW()-4)=0,"",2*INDEX(HHD!$C:$AX,Week!$J$3+COLUMN()-13,ROW()-4)) -> 48 | AI50: =IF(INDEX(HHD!$C:$AX,Week!$J$3+COLUMN()-13,ROW()-4)=0,"",2*INDEX(HHD!$C:$AX,Week!$J$3+COLUMN()-13,ROW()-4)) -> 54 | AJ50: =IF(INDEX(HHD!$C:$AX,Week!$J$3+COLUMN()-13,ROW()-4)=0,"",2*INDEX(HHD!$C:$AX,Week!$J$3+COLUMN()-13,ROW()-4)) -> 53.4 | AK50: =IF(INDEX(HHD!$C:$AX,Week!$J$3+COLUMN()-13,ROW()-4)=0,"",2*INDEX(HHD!$C:$AX,Week!$J$3+COLUMN()-13,ROW()-4)) -> 56 | AL50: =IF(INDEX(HHD!$C:$AX,Week!$J$3+COLUMN()-13,ROW()-4)=0,"",2*INDEX(HHD!$C:$AX,Week!$J$3+COLUMN()-13,ROW()-4)) -> 54 | AM50: =IF(INDEX(HHD!$C:$AX,Week!$J$3+COLUMN()-13,ROW()-4)=0,"",2*INDEX(HHD!$C:$AX,Week!$J$3+COLUMN()-13,ROW()-4)) -> 51 | AN50: =IF(INDEX(HHD!$C:$AX,Week!$J$3+COLUMN()-13,ROW()-4)=0,"",2*INDEX(HHD!$C:$AX,Week!$J$3+COLUMN()-13,ROW()-4)) -> 59 | AO50: =IF(INDEX(HHD!$C:$AX,Week!$J$3+COLUMN()-13,ROW()-4)=0,"",2*INDEX(HHD!$C:$AX,Week!$J$3+COLUMN()-13,ROW()-4)) -> 48.4 | AP50: =IF(INDEX(HHD!$C:$AX,Week!$J$3+COLUMN()-13,ROW()-4)=0,"",2*INDEX(HHD!$C:$AX,Week!$J$3+COLUMN()-13,ROW()-4)) -> 55.2 | AQ50: =IF(INDEX(HHD!$C:$AX,Week!$J$3+COLUMN()-13,ROW()-4)=0,"",2*INDEX(HHD!$C:$AX,Week!$J$3+COLUMN()-13,ROW()-4)) -> 60.4 | AR50: =IF(INDEX(HHD!$C:$AX,Week!$J$3+COLUMN()-13,ROW()-4)=0,"",2*INDEX(HHD!$C:$AX,Week!$J$3+COLUMN()-13,ROW()-4)) -> 49.6 | AS50: =IF(INDEX(HHD!$C:$AX,Week!$J$3+COLUMN()-13,ROW()-4)=0,"",2*INDEX(HHD!$C:$AX,Week!$J$3+COLUMN()-13,ROW()-4)) -> 49.2 | AT50: =IF(INDEX(HHD!$C:$AX,Week!$J$3+COLUMN()-13,ROW()-4)=0,"",2*INDEX(HHD!$C:$AX,Week!$J$3+COLUMN()-13,ROW()-4)) -> 52.2 | AU50: =IF(INDEX(HHD!$C:$AX,Week!$J$3+COLUMN()-13,ROW()-4)=0,"",2*INDEX(HHD!$C:$AX,Week!$J$3+COLUMN()-13,ROW()-4)) -> 51.2
J51: 23:00:00 | M51: =IF(INDEX(HHD!$C:$AX,Week!$J$3+COLUMN()-13,ROW()-4)=0,"",2*INDEX(HHD!$C:$AX,Week!$J$3+COLUMN()-13,ROW()-4)) -> 43.8 | N51: =IF(INDEX(HHD!$C:$AX,Week!$J$3+COLUMN()-13,ROW()-4)=0,"",2*INDEX(HHD!$C:$AX,Week!$J$3+COLUMN()-13,ROW()-4)) -> 48 | O51: =IF(INDEX(HHD!$C:$AX,Week!$J$3+COLUMN()-13,ROW()-4)=0,"",2*INDEX(HHD!$C:$AX,Week!$J$3+COLUMN()-13,ROW()-4)) -> 50.6 | P51: =IF(INDEX(HHD!$C:$AX,Week!$J$3+COLUMN()-13,ROW()-4)=0,"",2*INDEX(HHD!$C:$AX,Week!$J$3+COLUMN()-13,ROW()-4)) -> 50.8 | Q51: =IF(INDEX(HHD!$C:$AX,Week!$J$3+COLUMN()-13,ROW()-4)=0,"",2*INDEX(HHD!$C:$AX,Week!$J$3+COLUMN()-13,ROW()-4)) -> 53.6 | R51: =IF(INDEX(HHD!$C:$AX,Week!$J$3+COLUMN()-13,ROW()-4)=0,"",2*INDEX(HHD!$C:$AX,Week!$J$3+COLUMN()-13,ROW()-4)) -> 50.6 | S51: =IF(INDEX(HHD!$C:$AX,Week!$J$3+COLUMN()-13,ROW()-4)=0,"",2*INDEX(HHD!$C:$AX,Week!$J$3+COLUMN()-13,ROW()-4)) -> 57.6 | T51: =IF(INDEX(HHD!$C:$AX,Week!$J$3+COLUMN()-13,ROW()-4)=0,"",2*INDEX(HHD!$C:$AX,Week!$J$3+COLUMN()-13,ROW()-4)) -> 54.8 | U51: =IF(INDEX(HHD!$C:$AX,Week!$J$3+COLUMN()-13,ROW()-4)=0,"",2*INDEX(HHD!$C:$AX,Week!$J$3+COLUMN()-13,ROW()-4)) -> 56.6 | V51: =IF(INDEX(HHD!$C:$AX,Week!$J$3+COLUMN()-13,ROW()-4)=0,"",2*INDEX(HHD!$C:$AX,Week!$J$3+COLUMN()-13,ROW()-4)) -> 47.8 | W51: =IF(INDEX(HHD!$C:$AX,Week!$J$3+COLUMN()-13,ROW()-4)=0,"",2*INDEX(HHD!$C:$AX,Week!$J$3+COLUMN()-13,ROW()-4)) -> 46.6 | X51: =IF(INDEX(HHD!$C:$AX,Week!$J$3+COLUMN()-13,ROW()-4)=0,"",2*INDEX(HHD!$C:$AX,Week!$J$3+COLUMN()-13,ROW()-4)) -> 50.6 | Y51: =IF(INDEX(HHD!$C:$AX,Week!$J$3+COLUMN()-13,ROW()-4)=0,"",2*INDEX(HHD!$C:$AX,Week!$J$3+COLUMN()-13,ROW()-4)) -> 47 | Z51: =IF(INDEX(HHD!$C:$AX,Week!$J$3+COLUMN()-13,ROW()-4)=0,"",2*INDEX(HHD!$C:$AX,Week!$J$3+COLUMN()-13,ROW()-4)) -> 53.6 | AA51: =IF(INDEX(HHD!$C:$AX,Week!$J$3+COLUMN()-13,ROW()-4)=0,"",2*INDEX(HHD!$C:$AX,Week!$J$3+COLUMN()-13,ROW()-4)) -> 49 | AB51: =IF(INDEX(HHD!$C:$AX,Week!$J$3+COLUMN()-13,ROW()-4)=0,"",2*INDEX(HHD!$C:$AX,Week!$J$3+COLUMN()-13,ROW()-4)) -> 49.4 | AC51: =IF(INDEX(HHD!$C:$AX,Week!$J$3+COLUMN()-13,ROW()-4)=0,"",2*INDEX(HHD!$C:$AX,Week!$J$3+COLUMN()-13,ROW()-4)) -> 57.6 | AD51: =IF(INDEX(HHD!$C:$AX,Week!$J$3+COLUMN()-13,ROW()-4)=0,"",2*INDEX(HHD!$C:$AX,Week!$J$3+COLUMN()-13,ROW()-4)) -> 60.6 | AE51: =IF(INDEX(HHD!$C:$AX,Week!$J$3+COLUMN()-13,ROW()-4)=0,"",2*INDEX(HHD!$C:$AX,Week!$J$3+COLUMN()-13,ROW()-4)) -> 53.2 | AF51: =IF(INDEX(HHD!$C:$AX,Week!$J$3+COLUMN()-13,ROW()-4)=0,"",2*INDEX(HHD!$C:$AX,Week!$J$3+COLUMN()-13,ROW()-4)) -> 54 | AG51: =IF(INDEX(HHD!$C:$AX,Week!$J$3+COLUMN()-13,ROW()-4)=0,"",2*INDEX(HHD!$C:$AX,Week!$J$3+COLUMN()-13,ROW()-4)) -> 57.2 | AH51: =IF(INDEX(HHD!$C:$AX,Week!$J$3+COLUMN()-13,ROW()-4)=0,"",2*INDEX(HHD!$C:$AX,Week!$J$3+COLUMN()-13,ROW()-4)) -> 49.2 | AI51: =IF(INDEX(HHD!$C:$AX,Week!$J$3+COLUMN()-13,ROW()-4)=0,"",2*INDEX(HHD!$C:$AX,Week!$J$3+COLUMN()-13,ROW()-4)) -> 54.6 | AJ51: =IF(INDEX(HHD!$C:$AX,Week!$J$3+COLUMN()-13,ROW()-4)=0,"",2*INDEX(HHD!$C:$AX,Week!$J$3+COLUMN()-13,ROW()-4)) -> 57.6 | AK51: =IF(INDEX(HHD!$C:$AX,Week!$J$3+COLUMN()-13,ROW()-4)=0,"",2*INDEX(HHD!$C:$AX,Week!$J$3+COLUMN()-13,ROW()-4)) -> 47.2 | AL51: =IF(INDEX(HHD!$C:$AX,Week!$J$3+COLUMN()-13,ROW()-4)=0,"",2*INDEX(HHD!$C:$AX,Week!$J$3+COLUMN()-13,ROW()-4)) -> 47.2 | AM51: =IF(INDEX(HHD!$C:$AX,Week!$J$3+COLUMN()-13,ROW()-4)=0,"",2*INDEX(HHD!$C:$AX,Week!$J$3+COLUMN()-13,ROW()-4)) -> 49.2 | AN51: =IF(INDEX(HHD!$C:$AX,Week!$J$3+COLUMN()-13,ROW()-4)=0,"",2*INDEX(HHD!$C:$AX,Week!$J$3+COLUMN()-13,ROW()-4)) -> 53.4 | AO51: =IF(INDEX(HHD!$C:$AX,Week!$J$3+COLUMN()-13,ROW()-4)=0,"",2*INDEX(HHD!$C:$AX,Week!$J$3+COLUMN()-13,ROW()-4)) -> 54.8 | AP51: =IF(INDEX(HHD!$C:$AX,Week!$J$3+COLUMN()-13,ROW()-4)=0,"",2*INDEX(HHD!$C:$AX,Week!$J$3+COLUMN()-13,ROW()-4)) -> 56.6 | AQ51: =IF(INDEX(HHD!$C:$AX,Week!$J$3+COLUMN()-13,ROW()-4)=0,"",2*INDEX(HHD!$C:$AX,Week!$J$3+COLUMN()-13,ROW()-4)) -> 54.4 | AR51: =IF(INDEX(HHD!$C:$AX,Week!$J$3+COLUMN()-13,ROW()-4)=0,"",2*INDEX(HHD!$C:$AX,Week!$J$3+COLUMN()-13,ROW()-4)) -> 49 | AS51: =IF(INDEX(HHD!$C:$AX,Week!$J$3+COLUMN()-13,ROW()-4)=0,"",2*INDEX(HHD!$C:$AX,Week!$J$3+COLUMN()-13,ROW()-4)) -> 56.6 | AT51: =IF(INDEX(HHD!$C:$AX,Week!$J$3+COLUMN()-13,ROW()-4)=0,"",2*INDEX(HHD!$C:$AX,Week!$J$3+COLUMN()-13,ROW()-4)) -> 51.2 | AU51: =IF(INDEX(HHD!$C:$AX,Week!$J$3+COLUMN()-13,ROW()-4)=0,"",2*INDEX(HHD!$C:$AX,Week!$J$3+COLUMN()-13,ROW()-4)) -> 50.6
B52: Current values are calculated from the kW on this page | J52: 23:30:00 | M52: =IF(INDEX(HHD!$C:$AX,Week!$J$3+COLUMN()-13,ROW()-4)=0,"",2*INDEX(HHD!$C:$AX,Week!$J$3+COLUMN()-13,ROW()-4)) -> 46.4 | N52: =IF(INDEX(HHD!$C:$AX,Week!$J$3+COLUMN()-13,ROW()-4)=0,"",2*INDEX(HHD!$C:$AX,Week!$J$3+COLUMN()-13,ROW()-4)) -> 52.6 | O52: =IF(INDEX(HHD!$C:$AX,Week!$J$3+COLUMN()-13,ROW()-4)=0,"",2*INDEX(HHD!$C:$AX,Week!$J$3+COLUMN()-13,ROW()-4)) -> 49 | P52: =IF(INDEX(HHD!$C:$AX,Week!$J$3+COLUMN()-13,ROW()-4)=0,"",2*INDEX(HHD!$C:$AX,Week!$J$3+COLUMN()-13,ROW()-4)) -> 45.8 | Q52: =IF(INDEX(HHD!$C:$AX,Week!$J$3+COLUMN()-13,ROW()-4)=0,"",2*INDEX(HHD!$C:$AX,Week!$J$3+COLUMN()-13,ROW()-4)) -> 50.6 | R52: =IF(INDEX(HHD!$C:$AX,Week!$J$3+COLUMN()-13,ROW()-4)=0,"",2*INDEX(HHD!$C:$AX,Week!$J$3+COLUMN()-13,ROW()-4)) -> 48 | S52: =IF(INDEX(HHD!$C:$AX,Week!$J$3+COLUMN()-13,ROW()-4)=0,"",2*INDEX(HHD!$C:$AX,Week!$J$3+COLUMN()-13,ROW()-4)) -> 53.2 | T52: =IF(INDEX(HHD!$C:$AX,Week!$J$3+COLUMN()-13,ROW()-4)=0,"",2*INDEX(HHD!$C:$AX,Week!$J$3+COLUMN()-13,ROW()-4)) -> 50.8 | U52: =IF(INDEX(HHD!$C:$AX,Week!$J$3+COLUMN()-13,ROW()-4)=0,"",2*INDEX(HHD!$C:$AX,Week!$J$3+COLUMN()-13,ROW()-4)) -> 53.2 | V52: =IF(INDEX(HHD!$C:$AX,Week!$J$3+COLUMN()-13,ROW()-4)=0,"",2*INDEX(HHD!$C:$AX,Week!$J$3+COLUMN()-13,ROW()-4)) -> 40.4 | W52: =IF(INDEX(HHD!$C:$AX,Week!$J$3+COLUMN()-13,ROW()-4)=0,"",2*INDEX(HHD!$C:$AX,Week!$J$3+COLUMN()-13,ROW()-4)) -> 48.2 | X52: =IF(INDEX(HHD!$C:$AX,Week!$J$3+COLUMN()-13,ROW()-4)=0,"",2*INDEX(HHD!$C:$AX,Week!$J$3+COLUMN()-13,ROW()-4)) -> 52.6 | Y52: =IF(INDEX(HHD!$C:$AX,Week!$J$3+COLUMN()-13,ROW()-4)=0,"",2*INDEX(HHD!$C:$AX,Week!$J$3+COLUMN()-13,ROW()-4)) -> 46.2 | Z52: =IF(INDEX(HHD!$C:$AX,Week!$J$3+COLUMN()-13,ROW()-4)=0,"",2*INDEX(HHD!$C:$AX,Week!$J$3+COLUMN()-13,ROW()-4)) -> 47.4 | AA52: =IF(INDEX(HHD!$C:$AX,Week!$J$3+COLUMN()-13,ROW()-4)=0,"",2*INDEX(HHD!$C:$AX,Week!$J$3+COLUMN()-13,ROW()-4)) -> 52 | AB52: =IF(INDEX(HHD!$C:$AX,Week!$J$3+COLUMN()-13,ROW()-4)=0,"",2*INDEX(HHD!$C:$AX,Week!$J$3+COLUMN()-13,ROW()-4)) -> 51.2 | AC52: =IF(INDEX(HHD!$C:$AX,Week!$J$3+COLUMN()-13,ROW()-4)=0,"",2*INDEX(HHD!$C:$AX,Week!$J$3+COLUMN()-13,ROW()-4)) -> 55.2 | AD52: =IF(INDEX(HHD!$C:$AX,Week!$J$3+COLUMN()-13,ROW()-4)=0,"",2*INDEX(HHD!$C:$AX,Week!$J$3+COLUMN()-13,ROW()-4)) -> 57.2 | AE52: =IF(INDEX(HHD!$C:$AX,Week!$J$3+COLUMN()-13,ROW()-4)=0,"",2*INDEX(HHD!$C:$AX,Week!$J$3+COLUMN()-13,ROW()-4)) -> 44.6 | AF52: =IF(INDEX(HHD!$C:$AX,Week!$J$3+COLUMN()-13,ROW()-4)=0,"",2*INDEX(HHD!$C:$AX,Week!$J$3+COLUMN()-13,ROW()-4)) -> 52.6 | AG52: =IF(INDEX(HHD!$C:$AX,Week!$J$3+COLUMN()-13,ROW()-4)=0,"",2*INDEX(HHD!$C:$AX,Week!$J$3+COLUMN()-13,ROW()-4)) -> 49.4 | AH52: =IF(INDEX(HHD!$C:$AX,Week!$J$3+COLUMN()-13,ROW()-4)=0,"",2*INDEX(HHD!$C:$AX,Week!$J$3+COLUMN()-13,ROW()-4)) -> 49.6 | AI52: =IF(INDEX(HHD!$C:$AX,Week!$J$3+COLUMN()-13,ROW()-4)=0,"",2*INDEX(HHD!$C:$AX,Week!$J$3+COLUMN()-13,ROW()-4)) -> 46.8 | AJ52: =IF(INDEX(HHD!$C:$AX,Week!$J$3+COLUMN()-13,ROW()-4)=0,"",2*INDEX(HHD!$C:$AX,Week!$J$3+COLUMN()-13,ROW()-4)) -> 59.8 | AK52: =IF(INDEX(HHD!$C:$AX,Week!$J$3+COLUMN()-13,ROW()-4)=0,"",2*INDEX(HHD!$C:$AX,Week!$J$3+COLUMN()-13,ROW()-4)) -> 51.2 | AL52: =IF(INDEX(HHD!$C:$AX,Week!$J$3+COLUMN()-13,ROW()-4)=0,"",2*INDEX(HHD!$C:$AX,Week!$J$3+COLUMN()-13,ROW()-4)) -> 48.4 | AM52: =IF(INDEX(HHD!$C:$AX,Week!$J$3+COLUMN()-13,ROW()-4)=0,"",2*INDEX(HHD!$C:$AX,Week!$J$3+COLUMN()-13,ROW()-4)) -> 52 | AN52: =IF(INDEX(HHD!$C:$AX,Week!$J$3+COLUMN()-13,ROW()-4)=0,"",2*INDEX(HHD!$C:$AX,Week!$J$3+COLUMN()-13,ROW()-4)) -> 57.2 | AO52: =IF(INDEX(HHD!$C:$AX,Week!$J$3+COLUMN()-13,ROW()-4)=0,"",2*INDEX(HHD!$C:$AX,Week!$J$3+COLUMN()-13,ROW()-4)) -> 47.2 | AP52: =IF(INDEX(HHD!$C:$AX,Week!$J$3+COLUMN()-13,ROW()-4)=0,"",2*INDEX(HHD!$C:$AX,Week!$J$3+COLUMN()-13,ROW()-4)) -> 57.4 | AQ52: =IF(INDEX(HHD!$C:$AX,Week!$J$3+COLUMN()-13,ROW()-4)=0,"",2*INDEX(HHD!$C:$AX,Week!$J$3+COLUMN()-13,ROW()-4)) -> 62.6 | AR52: =IF(INDEX(HHD!$C:$AX,Week!$J$3+COLUMN()-13,ROW()-4)=0,"",2*INDEX(HHD!$C:$AX,Week!$J$3+COLUMN()-13,ROW()-4)) -> 48 | AS52: =IF(INDEX(HHD!$C:$AX,Week!$J$3+COLUMN()-13,ROW()-4)=0,"",2*INDEX(HHD!$C:$AX,Week!$J$3+COLUMN()-13,ROW()-4)) -> 51.4 | AT52: =IF(INDEX(HHD!$C:$AX,Week!$J$3+COLUMN()-13,ROW()-4)=0,"",2*INDEX(HHD!$C:$AX,Week!$J$3+COLUMN()-13,ROW()-4)) -> 51 | AU52: =IF(INDEX(HHD!$C:$AX,Week!$J$3+COLUMN()-13,ROW()-4)=0,"",2*INDEX(HHD!$C:$AX,Week!$J$3+COLUMN()-13,ROW()-4)) -> 47.6
B53: Fixed values are typed-in or can be pasted from Current or Year

Sheet PowerMapYear
B1: =Week!$N$21 -> Example Supply One
B2: POWER MAP | W2: =TEXT(W3,"mmmm")&" "&TEXT(YEAR(W3),"0") -> February 2023 | AL2: =TEXT(AL3,"mmmm")&" "&TEXT(YEAR(AL3),"0") -> March 2023 | BA2: =TEXT(BA3,"mmmm")&" "&TEXT(YEAR(BA3),"0") -> March 2023 | BQ2: =TEXT(BQ3,"mmmm")&" "&TEXT(YEAR(BQ3),"0") -> April 2023 | CF2: =TEXT(CF3,"mmmm")&" "&TEXT(YEAR(CF3),"0") -> April 2023 | CV2: =TEXT(CV3,"mmmm")&" "&TEXT(YEAR(CV3),"0") -> May 2023 | DK2: =TEXT(DK3,"mmmm")&" "&TEXT(YEAR(DK3),"0") -> May 2023 | DX2: =TEXT(DX3,"mmmm")&" "&TEXT(YEAR(DX3),"0") -> June 2023 | EM2: =TEXT(EM3,"mmmm")&" "&TEXT(YEAR(EM3),"0") -> June 2023 | FD2: =TEXT(FD3,"mmmm")&" "&TEXT(YEAR(FD3),"0") -> July 2023 | FS2: =TEXT(FS3,"mmmm")&" "&TEXT(YEAR(FS3),"0") -> July 2023 | GI2: =TEXT(GI3,"mmmm")&" "&TEXT(YEAR(GI3),"0") -> August 2023 | GX2: =TEXT(GX3,"mmmm")&" "&TEXT(YEAR(GX3),"0") -> August 2023 | HM2: =TEXT(HM3,"mmmm")&" "&TEXT(YEAR(HM3),"0") -> September 2023 | IB2: =TEXT(IB3,"mmmm")&" "&TEXT(YEAR(IB3),"0") -> September 2023 | IQ2: =TEXT(IQ3,"mmmm")&" "&TEXT(YEAR(IQ3),"0") -> October 2023 | JF2: =TEXT(JF3,"mmmm")&" "&TEXT(YEAR(JF3),"0") -> October 2023 | JV2: =TEXT(JV3,"mmmm")&" "&TEXT(YEAR(JV3),"0") -> November 2023 | KK2: =TEXT(KK3,"mmmm")&" "&TEXT(YEAR(KK3),"0") -> November 2023 | LA2: =TEXT(LA3,"mmmm")&" "&TEXT(YEAR(LA3),"0") -> December 2023 | LP2: =TEXT(LP3,"mmmm")&" "&TEXT(YEAR(LP3),"0") -> December 2023 | ME2: =TEXT(ME3,"mmmm")&" "&TEXT(YEAR(ME3),"0") -> January 2024 | MT2: =TEXT(MT3,"mmmm")&" "&TEXT(YEAR(MT3),"0") -> January 2024 | NJ2: =TEXT(NJ3,"mmmm")&" "&TEXT(YEAR(NJ3),"0") -> February 2024
B3: The kW power demand at any time is shown by its colour and as grey text | M3: =Week!$H$3-D58 -> 2023-02-06 | N3: =M3+1 -> 2023-02-07 | O3: =N3+1 -> 2023-02-08 | P3: 2023-02-09 | Q3: 2023-02-10 | R3: 2023-02-11 | S3: 2023-02-12 | T3: 2023-02-13 | U3: 2023-02-14 | V3: 2023-02-15 | W3: 2023-02-16 | X3: 2023-02-17 | Y3: 2023-02-18 | Z3: 2023-02-19 | AA3: 2023-02-20 | AB3: 2023-02-21 | AC3: 2023-02-22 | AD3: 2023-02-23 | AE3: 2023-02-24 | AF3: 2023-02-25 | AG3: 2023-02-26 | AH3: 2023-02-27 | AI3: 2023-02-28 | AJ3: 2023-03-01 | AK3: 2023-03-02 | AL3: 2023-03-03 | AM3: 2023-03-04 | AN3: 2023-03-05 | AO3: 2023-03-06 | AP3: 2023-03-07 | AQ3: 2023-03-08 | AR3: 2023-03-09 | AS3: 2023-03-10 | AT3: 2023-03-11 | AU3: =AT3+1 -> 2023-03-12 | AV3: =AU3+1 -> 2023-03-13 | AW3: =AV3+1 -> 2023-03-14 | AX3: =AW3+1 -> 2023-03-15 | AY3: =AX3+1 -> 2023-03-16 | AZ3: =AY3+1 -> 2023-03-17 | BA3: =AZ3+1 -> 2023-03-18 | BB3: =BA3+1 -> 2023-03-19 | BC3: =BB3+1 -> 2023-03-20 | BD3: =BC3+1 -> 2023-03-21 | BE3: =BD3+1 -> 2023-03-22 | BF3: =BE3+1 -> 2023-03-23 | BG3: =BF3+1 -> 2023-03-24 | BH3: =BG3+1 -> 2023-03-25 | BI3: =BH3+1 -> 2023-03-26 | BJ3: =BI3+1 -> 2023-03-27 | BK3: =BJ3+1 -> 2023-03-28 | BL3: =BK3+1 -> 2023-03-29 | BM3: =BL3+1 -> 2023-03-30 | BN3: =BM3+1 -> 2023-03-31 | BO3: =BN3+1 -> 2023-04-01 | BP3: =BO3+1 -> 2023-04-02 | BQ3: =BP3+1 -> 2023-04-03 | BR3: =BQ3+1 -> 2023-04-04 | BS3: =BR3+1 -> 2023-04-05 | BT3: =BS3+1 -> 2023-04-06 | BU3: =BT3+1 -> 2023-04-07 | BV3: =BU3+1 -> 2023-04-08 | BW3: =BV3+1 -> 2023-04-09 | BX3: =BW3+1 -> 2023-04-10 | BY3: =BX3+1 -> 2023-04-11 | BZ3: =BY3+1 -> 2023-04-12 | CA3: =BZ3+1 -> 2023-04-13 | CB3: =CA3+1 -> 2023-04-14 | CC3: =CB3+1 -> 2023-04-15 | CD3: =CC3+1 -> 2023-04-16 | CE3: =CD3+1 -> 2023-04-17 | CF3: =CE3+1 -> 2023-04-18 | CG3: =CF3+1 -> 2023-04-19 | CH3: =CG3+1 -> 2023-04-20 | CI3: =CH3+1 -> 2023-04-21 | CJ3: =CI3+1 -> 2023-04-22 | CK3: =CJ3+1 -> 2023-04-23 | CL3: =CK3+1 -> 2023-04-24 | CM3: =CL3+1 -> 2023-04-25 | CN3: =CM3+1 -> 2023-04-26 | CO3: =CN3+1 -> 2023-04-27 | CP3: =CO3+1 -> 2023-04-28 | CQ3: =CP3+1 -> 2023-04-29 | CR3: =CQ3+1 -> 2023-04-30 | CS3: =CR3+1 -> 2023-05-01 | CT3: =CS3+1 -> 2023-05-02 | CU3: =CT3+1 -> 2023-05-03 | CV3: =CU3+1 -> 2023-05-04 | CW3: =CV3+1 -> 2023-05-05 | CX3: =CW3+1 -> 2023-05-06 | CY3: =CX3+1 -> 2023-05-07 | CZ3: =CY3+1 -> 2023-05-08 | DA3: =CZ3+1 -> 2023-05-09 | DB3: =DA3+1 -> 2023-05-10 | DC3: =DB3+1 -> 2023-05-11 | DD3: =DC3+1 -> 2023-05-12 | DE3: =DD3+1 -> 2023-05-13 | DF3: =DE3+1 -> 2023-05-14 | DG3: =DF3+1 -> 2023-05-15 | DH3: =DG3+1 -> 2023-05-16 | DI3: =DH3+1 -> 2023-05-17 | DJ3: =DI3+1 -> 2023-05-18 | DK3: =DJ3+1 -> 2023-05-19 | DL3: =DK3+1 -> 2023-05-20 | DM3: =DL3+1 -> 2023-05-21 | DN3: =DM3+1 -> 2023-05-22 | DO3: =DN3+1 -> 2023-05-23 | DP3: =DO3+1 -> 2023-05-24 | DQ3: =DP3+1 -> 2023-05-25 | DR3: =DQ3+1 -> 2023-05-26 | DS3: =DR3+1 -> 2023-05-27 | DT3: =DS3+1 -> 2023-05-28 | DU3: =DT3+1 -> 2023-05-29 | DV3: =DU3+1 -> 2023-05-30 | DW3: =DV3+1 -> 2023-05-31 | DX3: =DW3+1 -> 2023-06-01 | DY3: =DX3+1 -> 2023-06-02 | DZ3: =DY3+1 -> 2023-06-03 | EA3: =DZ3+1 -> 2023-06-04 | EB3: =EA3+1 -> 2023-06-05 | EC3: =EB3+1 -> 2023-06-06 | ED3: =EC3+1 -> 2023-06-07 | EE3: =ED3+1 -> 2023-06-08 | EF3: =EE3+1 -> 2023-06-09 | EG3: =EF3+1 -> 2023-06-10 | EH3: =EG3+1 -> 2023-06-11 | EI3: =EH3+1 -> 2023-06-12 | EJ3: =EI3+1 -> 2023-06-13 | EK3: =EJ3+1 -> 2023-06-14 | EL3: =EK3+1 -> 2023-06-15 | EM3: =EL3+1 -> 2023-06-16 | EN3: =EM3+1 -> 2023-06-17 | EO3: =EN3+1 -> 2023-06-18 | EP3: =EO3+1 -> 2023-06-19 | EQ3: =EP3+1 -> 2023-06-20 | ER3: =EQ3+1 -> 2023-06-21 | ES3: =ER3+1 -> 2023-06-22 | ET3: =ES3+1 -> 2023-06-23 | EU3: =ET3+1 -> 2023-06-24 | EV3: =EU3+1 -> 2023-06-25 | EW3: =EV3+1 -> 2023-06-26 | EX3: =EW3+1 -> 2023-06-27 | EY3: =EX3+1 -> 2023-06-28 | EZ3: =EY3+1 -> 2023-06-29 | FA3: =EZ3+1 -> 2023-06-30 | FB3: =FA3+1 -> 2023-07-01 | FC3: =FB3+1 -> 2023-07-02 | FD3: =FC3+1 -> 2023-07-03 | FE3: =FD3+1 -> 2023-07-04 | FF3: =FE3+1 -> 2023-07-05 | FG3: =FF3+1 -> 2023-07-06 | FH3: =FG3+1 -> 2023-07-07 | FI3: =FH3+1 -> 2023-07-08 | FJ3: =FI3+1 -> 2023-07-09 | FK3: =FJ3+1 -> 2023-07-10 | FL3: =FK3+1 -> 2023-07-11 | FM3: =FL3+1 -> 2023-07-12 | FN3: =FM3+1 -> 2023-07-13 | FO3: =FN3+1 -> 2023-07-14 | FP3: =FO3+1 -> 2023-07-15 | FQ3: =FP3+1 -> 2023-07-16 | FR3: =FQ3+1 -> 2023-07-17 | FS3: =FR3+1 -> 2023-07-18 | FT3: =FS3+1 -> 2023-07-19 | FU3: =FT3+1 -> 2023-07-20 | FV3: =FU3+1 -> 2023-07-21 | FW3: =FV3+1 -> 2023-07-22 | FX3: =FW3+1 -> 2023-07-23 | FY3: =FX3+1 -> 2023-07-24 | FZ3: =FY3+1 -> 2023-07-25 | GA3: =FZ3+1 -> 2023-07-26 | GB3: =GA3+1 -> 2023-07-27 | GC3: =GB3+1 -> 2023-07-28 | GD3: =GC3+1 -> 2023-07-29 | GE3: =GD3+1 -> 2023-07-30 | GF3: =GE3+1 -> 2023-07-31 | GG3: =GF3+1 -> 2023-08-01 | GH3: =GG3+1 -> 2023-08-02 | GI3: =GH3+1 -> 2023-08-03 | GJ3: =GI3+1 -> 2023-08-04 | GK3: =GJ3+1 -> 2023-08-05 | GL3: =GK3+1 -> 2023-08-06 | GM3: =GL3+1 -> 2023-08-07 | GN3: =GM3+1 -> 2023-08-08 | GO3: =GN3+1 -> 2023-08-09 | GP3: =GO3+1 -> 2023-08-10 | GQ3: =GP3+1 -> 2023-08-11 | GR3: =GQ3+1 -> 2023-08-12 | GS3: =GR3+1 -> 2023-08-13 | GT3: =GS3+1 -> 2023-08-14 | GU3: =GT3+1 -> 2023-08-15 | GV3: =GU3+1 -> 2023-08-16 | GW3: =GV3+1 -> 2023-08-17 | GX3: =GW3+1 -> 2023-08-18 | GY3: =GX3+1 -> 2023-08-19 | GZ3: =GY3+1 -> 2023-08-20 | HA3: =GZ3+1 -> 2023-08-21 | HB3: =HA3+1 -> 2023-08-22 | HC3: =HB3+1 -> 2023-08-23 | HD3: =HC3+1 -> 2023-08-24 | HE3: =HD3+1 -> 2023-08-25 | HF3: =HE3+1 -> 2023-08-26 | HG3: =HF3+1 -> 2023-08-27 | HH3: =HG3+1 -> 2023-08-28 | HI3: =HH3+1 -> 2023-08-29 | HJ3: =HI3+1 -> 2023-08-30 | HK3: =HJ3+1 -> 2023-08-31 | HL3: =HK3+1 -> 2023-09-01 | HM3: =HL3+1 -> 2023-09-02 | HN3: =HM3+1 -> 2023-09-03 | HO3: =HN3+1 -> 2023-09-04 | HP3: =HO3+1 -> 2023-09-05 | HQ3: =HP3+1 -> 2023-09-06 | HR3: =HQ3+1 -> 2023-09-07 | HS3: =HR3+1 -> 2023-09-08 | HT3: =HS3+1 -> 2023-09-09 | HU3: =HT3+1 -> 2023-09-10 | HV3: =HU3+1 -> 2023-09-11 | HW3: =HV3+1 -> 2023-09-12 | HX3: =HW3+1 -> 2023-09-13 | HY3: =HX3+1 -> 2023-09-14 | HZ3: =HY3+1 -> 2023-09-15 | IA3: =HZ3+1 -> 2023-09-16 | IB3: =IA3+1 -> 2023-09-17 | IC3: =IB3+1 -> 2023-09-18 | ID3: =IC3+1 -> 2023-09-19 | IE3: =ID3+1 -> 2023-09-20 | IF3: =IE3+1 -> 2023-09-21 | IG3: =IF3+1 -> 2023-09-22 | IH3: =IG3+1 -> 2023-09-23 | II3: =IH3+1 -> 2023-09-24 | IJ3: =II3+1 -> 2023-09-25 | IK3: =IJ3+1 -> 2023-09-26 | IL3: =IK3+1 -> 2023-09-27 | IM3: =IL3+1 -> 2023-09-28 | IN3: =IM3+1 -> 2023-09-29 | IO3: =IN3+1 -> 2023-09-30 | IP3: =IO3+1 -> 2023-10-01 | IQ3: =IP3+1 -> 2023-10-02 | IR3: =IQ3+1 -> 2023-10-03 | IS3: =IR3+1 -> 2023-10-04 | IT3: =IS3+1 -> 2023-10-05 | IU3: =IT3+1 -> 2023-10-06 | IV3: =IU3+1 -> 2023-10-07 | IW3: =IV3+1 -> 2023-10-08 | IX3: =IW3+1 -> 2023-10-09 | IY3: =IX3+1 -> 2023-10-10 | IZ3: =IY3+1 -> 2023-10-11 | JA3: =IZ3+1 -> 2023-10-12 | JB3: =JA3+1 -> 2023-10-13 | JC3: =JB3+1 -> 2023-10-14 | JD3: =JC3+1 -> 2023-10-15 | JE3: =JD3+1 -> 2023-10-16 | JF3: =JE3+1 -> 2023-10-17 | JG3: =JF3+1 -> 2023-10-18 | JH3: =JG3+1 -> 2023-10-19 | JI3: =JH3+1 -> 2023-10-20 | JJ3: =JI3+1 -> 2023-10-21 | JK3: =JJ3+1 -> 2023-10-22 | JL3: =JK3+1 -> 2023-10-23 | JM3: =JL3+1 -> 2023-10-24 | JN3: =JM3+1 -> 2023-10-25 | JO3: =JN3+1 -> 2023-10-26 | JP3: =JO3+1 -> 2023-10-27 | JQ3: =JP3+1 -> 2023-10-28 | JR3: =JQ3+1 -> 2023-10-29 | JS3: =JR3+1 -> 2023-10-30 | JT3: =JS3+1 -> 2023-10-31 | JU3: =JT3+1 -> 2023-11-01 | JV3: =JU3+1 -> 2023-11-02 | JW3: =JV3+1 -> 2023-11-03 | JX3: =JW3+1 -> 2023-11-04 | JY3: =JX3+1 -> 2023-11-05 | JZ3: =JY3+1 -> 2023-11-06 | KA3: =JZ3+1 -> 2023-11-07 | KB3: =KA3+1 -> 2023-11-08 | KC3: =KB3+1 -> 2023-11-09 | KD3: =KC3+1 -> 2023-11-10 | KE3: =KD3+1 -> 2023-11-11 | KF3: =KE3+1 -> 2023-11-12 | KG3: =KF3+1 -> 2023-11-13 | KH3: =KG3+1 -> 2023-11-14 | KI3: =KH3+1 -> 2023-11-15 | KJ3: =KI3+1 -> 2023-11-16 | KK3: =KJ3+1 -> 2023-11-17 | KL3: =KK3+1 -> 2023-11-18 | KM3: =KL3+1 -> 2023-11-19 | KN3: =KM3+1 -> 2023-11-20 | KO3: =KN3+1 -> 2023-11-21 | KP3: =KO3+1 -> 2023-11-22 | KQ3: =KP3+1 -> 2023-11-23 | KR3: =KQ3+1 -> 2023-11-24 | KS3: =KR3+1 -> 2023-11-25 | KT3: =KS3+1 -> 2023-11-26 | KU3: =KT3+1 -> 2023-11-27 | KV3: =KU3+1 -> 2023-11-28 | KW3: =KV3+1 -> 2023-11-29 | KX3: =KW3+1 -> 2023-11-30 | KY3: =KX3+1 -> 2023-12-01 | KZ3: =KY3+1 -> 2023-12-02 | LA3: =KZ3+1 -> 2023-12-03 | LB3: =LA3+1 -> 2023-12-04 | LC3: =LB3+1 -> 2023-12-05 | LD3: =LC3+1 -> 2023-12-06 | LE3: =LD3+1 -> 2023-12-07 | LF3: =LE3+1 -> 2023-12-08 | LG3: =LF3+1 -> 2023-12-09 | LH3: =LG3+1 -> 2023-12-10 | LI3: =LH3+1 -> 2023-12-11 | LJ3: =LI3+1 -> 2023-12-12 | LK3: =LJ3+1 -> 2023-12-13 | LL3: =LK3+1 -> 2023-12-14 | LM3: =LL3+1 -> 2023-12-15 | LN3: =LM3+1 -> 2023-12-16 | LO3: =LN3+1 -> 2023-12-17 | LP3: =LO3+1 -> 2023-12-18 | LQ3: =LP3+1 -> 2023-12-19 | LR3: =LQ3+1 -> 2023-12-20 | LS3: =LR3+1 -> 2023-12-21 | LT3: =LS3+1 -> 2023-12-22 | LU3: =LT3+1 -> 2023-12-23 | LV3: =LU3+1 -> 2023-12-24 | LW3: =LV3+1 -> 2023-12-25 | LX3: =LW3+1 -> 2023-12-26 | LY3: =LX3+1 -> 2023-12-27 | LZ3: =LY3+1 -> 2023-12-28 | MA3: =LZ3+1 -> 2023-12-29 | MB3: =MA3+1 -> 2023-12-30 | MC3: =MB3+1 -> 2023-12-31 | MD3: =MC3+1 -> 2024-01-01 | ME3: =MD3+1 -> 2024-01-02 | MF3: =ME3+1 -> 2024-01-03 | MG3: =MF3+1 -> 2024-01-04 | MH3: =MG3+1 -> 2024-01-05 | MI3: =MH3+1 -> 2024-01-06 | MJ3: =MI3+1 -> 2024-01-07 | MK3: =MJ3+1 -> 2024-01-08 | ML3: =MK3+1 -> 2024-01-09 | MM3: =ML3+1 -> 2024-01-10 | MN3: =MM3+1 -> 2024-01-11 | MO3: =MN3+1 -> 2024-01-12 | MP3: =MO3+1 -> 2024-01-13 | MQ3: =MP3+1 -> 2024-01-14 | MR3: =MQ3+1 -> 2024-01-15 | MS3: =MR3+1 -> 2024-01-16 | MT3: =MS3+1 -> 2024-01-17 | MU3: =MT3+1 -> 2024-01-18 | MV3: =MU3+1 -> 2024-01-19 | MW3: =MV3+1 -> 2024-01-20 | MX3: =MW3+1 -> 2024-01-21 | MY3: =MX3+1 -> 2024-01-22 | MZ3: =MY3+1 -> 2024-01-23 | NA3: =MZ3+1 -> 2024-01-24 | NB3: =NA3+1 -> 2024-01-25 | NC3: =NB3+1 -> 2024-01-26 | ND3: =NC3+1 -> 2024-01-27 | NE3: =ND3+1 -> 2024-01-28 | NF3: =NE3+1 -> 2024-01-29 | NG3: =NF3+1 -> 2024-01-30 | NH3: =NG3+1 -> 2024-01-31 | NI3: =NH3+1 -> 2024-02-01 | NJ3: =NI3+1 -> 2024-02-02 | NK3: =NJ3+1 -> 2024-02-03 | NL3: =NK3+1 -> 2024-02-04 | NM3: =NL3+1 -> 2024-02-05 | NN3: =NM3+1 -> 2024-02-06 | NO3: =NN3+1 -> 2024-02-07 | NP3: =NO3+1 -> 2024-02-08 | NQ3: =NP3+1 -> 2024-02-09 | NR3: =NQ3+1 -> 2024-02-10 | NS3: =NR3+1 -> 2024-02-11 | NT3: =NS3+1 -> 2024-02-12 | NU3: =NT3+1 -> 2024-02-13 | NV3: =NU3+1 -> 2024-02-14 | NW3: =NV3+1 -> 2024-02-15 | NX3: =NW3+1 -> 2024-02-16 | NY3: =NX3+1 -> 2024-02-17 | NZ3: =NY3+1 -> 2024-02-18 | OA3: =NZ3+1 -> 2024-02-19
J4: ="First week Local Time: "&Week!$M$2 -> First week Local Time: ST
J5: =Week!$N$2 -> 00:00:00 | M5: =IF(INDEX(HHD!$C:$AX,Week!$J$3+COLUMN()-13,ROW()-4)=0,"",2*INDEX(HHD!$C:$AX,Week!$J$3+COLUMN()-13,ROW()-4)) -> 52.6 | N5: =IF(INDEX(HHD!$C:$AX,Week!$J$3+COLUMN()-13,ROW()-4)=0,"",2*INDEX(HHD!$C:$AX,Week!$J$3+COLUMN()-13,ROW()-4)) -> 51 | O5: =IF(INDEX(HHD!$C:$AX,Week!$J$3+COLUMN()-13,ROW()-4)=0,"",2*INDEX(HHD!$C:$AX,Week!$J$3+COLUMN()-13,ROW()-4)) -> 47 | P5: =IF(INDEX(HHD!$C:$AX,Week!$J$3+COLUMN()-13,ROW()-4)=0,"",2*INDEX(HHD!$C:$AX,Week!$J$3+COLUMN()-13,ROW()-4)) -> 44.8 | Q5: =IF(INDEX(HHD!$C:$AX,Week!$J$3+COLUMN()-13,ROW()-4)=0,"",2*INDEX(HHD!$C:$AX,Week!$J$3+COLUMN()-13,ROW()-4)) -> 44.8 | R5: =IF(INDEX(HHD!$C:$AX,Week!$J$3+COLUMN()-13,ROW()-4)=0,"",2*INDEX(HHD!$C:$AX,Week!$J$3+COLUMN()-13,ROW()-4)) -> 49.2 | S5: =IF(INDEX(HHD!$C:$AX,Week!$J$3+COLUMN()-13,ROW()-4)=0,"",2*INDEX(HHD!$C:$AX,Week!$J$3+COLUMN()-13,ROW()-4)) -> 49.2 | T5: =IF(INDEX(HHD!$C:$AX,Week!$J$3+COLUMN()-13,ROW()-4)=0,"",2*INDEX(HHD!$C:$AX,Week!$J$3+COLUMN()-13,ROW()-4)) -> 57 | U5: =IF(INDEX(HHD!$C:$AX,Week!$J$3+COLUMN()-13,ROW()-4)=0,"",2*INDEX(HHD!$C:$AX,Week!$J$3+COLUMN()-13,ROW()-4)) -> 47.6 | V5: =IF(INDEX(HHD!$C:$AX,Week!$J$3+COLUMN()-13,ROW()-4)=0,"",2*INDEX(HHD!$C:$AX,Week!$J$3+COLUMN()-13,ROW()-4)) -> 51 | W5: =IF(INDEX(HHD!$C:$AX,Week!$J$3+COLUMN()-13,ROW()-4)=0,"",2*INDEX(HHD!$C:$AX,Week!$J$3+COLUMN()-13,ROW()-4)) -> 42.4 | X5: =IF(INDEX(HHD!$C:$AX,Week!$J$3+COLUMN()-13,ROW()-4)=0,"",2*INDEX(HHD!$C:$AX,Week!$J$3+COLUMN()-13,ROW()-4)) -> 44.8 | Y5: =IF(INDEX(HHD!$C:$AX,Week!$J$3+COLUMN()-13,ROW()-4)=0,"",2*INDEX(HHD!$C:$AX,Week!$J$3+COLUMN()-13,ROW()-4)) -> 44.8 | Z5: =IF(INDEX(HHD!$C:$AX,Week!$J$3+COLUMN()-13,ROW()-4)=0,"",2*INDEX(HHD!$C:$AX,Week!$J$3+COLUMN()-13,ROW()-4)) -> 53 | AA5: =IF(INDEX(HHD!$C:$AX,Week!$J$3+COLUMN()-13,ROW()-4)=0,"",2*INDEX(HHD!$C:$AX,Week!$J$3+COLUMN()-13,ROW()-4)) -> 51.8 | AB5: =IF(INDEX(HHD!$C:$AX,Week!$J$3+COLUMN()-13,ROW()-4)=0,"",2*INDEX(HHD!$C:$AX,Week!$J$3+COLUMN()-13,ROW()-4)) -> 49.6 | AC5: =IF(INDEX(HHD!$C:$AX,Week!$J$3+COLUMN()-13,ROW()-4)=0,"",2*INDEX(HHD!$C:$AX,Week!$J$3+COLUMN()-13,ROW()-4)) -> 48.4 | AD5: =IF(INDEX(HHD!$C:$AX,Week!$J$3+COLUMN()-13,ROW()-4)=0,"",2*INDEX(HHD!$C:$AX,Week!$J$3+COLUMN()-13,ROW()-4)) -> 55.6 | AE5: =IF(INDEX(HHD!$C:$AX,Week!$J$3+COLUMN()-13,ROW()-4)=0,"",2*INDEX(HHD!$C:$AX,Week!$J$3+COLUMN()-13,ROW()-4)) -> 56.2 | AF5: =IF(INDEX(HHD!$C:$AX,Week!$J$3+COLUMN()-13,ROW()-4)=0,"",2*INDEX(HHD!$C:$AX,Week!$J$3+COLUMN()-13,ROW()-4)) -> 50.4 | AG5: =IF(INDEX(HHD!$C:$AX,Week!$J$3+COLUMN()-13,ROW()-4)=0,"",2*INDEX(HHD!$C:$AX,Week!$J$3+COLUMN()-13,ROW()-4)) -> 54.4 | AH5: =IF(INDEX(HHD!$C:$AX,Week!$J$3+COLUMN()-13,ROW()-4)=0,"",2*INDEX(HHD!$C:$AX,Week!$J$3+COLUMN()-13,ROW()-4)) -> 54.6 | AI5: =IF(INDEX(HHD!$C:$AX,Week!$J$3+COLUMN()-13,ROW()-4)=0,"",2*INDEX(HHD!$C:$AX,Week!$J$3+COLUMN()-13,ROW()-4)) -> 47.2 | AJ5: =IF(INDEX(HHD!$C:$AX,Week!$J$3+COLUMN()-13,ROW()-4)=0,"",2*INDEX(HHD!$C:$AX,Week!$J$3+COLUMN()-13,ROW()-4)) -> 48 | AK5: =IF(INDEX(HHD!$C:$AX,Week!$J$3+COLUMN()-13,ROW()-4)=0,"",2*INDEX(HHD!$C:$AX,Week!$J$3+COLUMN()-13,ROW()-4)) -> 53.8 | AL5: =IF(INDEX(HHD!$C:$AX,Week!$J$3+COLUMN()-13,ROW()-4)=0,"",2*INDEX(HHD!$C:$AX,Week!$J$3+COLUMN()-13,ROW()-4)) -> 46.2 | AM5: =IF(INDEX(HHD!$C:$AX,Week!$J$3+COLUMN()-13,ROW()-4)=0,"",2*INDEX(HHD!$C:$AX,Week!$J$3+COLUMN()-13,ROW()-4)) -> 57.2 | AN5: =IF(INDEX(HHD!$C:$AX,Week!$J$3+COLUMN()-13,ROW()-4)=0,"",2*INDEX(HHD!$C:$AX,Week!$J$3+COLUMN()-13,ROW()-4)) -> 47.2 | AO5: =IF(INDEX(HHD!$C:$AX,Week!$J$3+COLUMN()-13,ROW()-4)=0,"",2*INDEX(HHD!$C:$AX,Week!$J$3+COLUMN()-13,ROW()-4)) -> 64 | AP5: =IF(INDEX(HHD!$C:$AX,Week!$J$3+COLUMN()-13,ROW()-4)=0,"",2*INDEX(HHD!$C:$AX,Week!$J$3+COLUMN()-13,ROW()-4)) -> 45.6 | AQ5: =IF(INDEX(HHD!$C:$AX,Week!$J$3+COLUMN()-13,ROW()-4)=0,"",2*INDEX(HHD!$C:$AX,Week!$J$3+COLUMN()-13,ROW()-4)) -> 55.4 | AR5: =IF(INDEX(HHD!$C:$AX,Week!$J$3+COLUMN()-13,ROW()-4)=0,"",2*INDEX(HHD!$C:$AX,Week!$J$3+COLUMN()-13,ROW()-4)) -> 56 | AS5: =IF(INDEX(HHD!$C:$AX,Week!$J$3+COLUMN()-13,ROW()-4)=0,"",2*INDEX(HHD!$C:$AX,Week!$J$3+COLUMN()-13,ROW()-4)) -> 48.4 | AT5: =IF(INDEX(HHD!$C:$AX,Week!$J$3+COLUMN()-13,ROW()-4)=0,"",2*INDEX(HHD!$C:$AX,Week!$J$3+COLUMN()-13,ROW()-4)) -> 52.6 | AU5: =IF(INDEX(HHD!$C:$AX,Week!$J$3+COLUMN()-13,ROW()-4)=0,"",2*INDEX(HHD!$C:$AX,Week!$J$3+COLUMN()-13,ROW()-4)) -> 49.8 | AV5: =IF(INDEX(HHD!$C:$AX,Week!$J$3+COLUMN()-13,ROW()-4)=0,"",2*INDEX(HHD!$C:$AX,Week!$J$3+COLUMN()-13,ROW()-4)) -> 55.2 | AW5: =IF(INDEX(HHD!$C:$AX,Week!$J$3+COLUMN()-13,ROW()-4)=0,"",2*INDEX(HHD!$C:$AX,Week!$J$3+COLUMN()-13,ROW()-4)) -> 47 | AX5: =IF(INDEX(HHD!$C:$AX,Week!$J$3+COLUMN()-13,ROW()-4)=0,"",2*INDEX(HHD!$C:$AX,Week!$J$3+COLUMN()-13,ROW()-4)) -> 50 | AY5: =IF(INDEX(HHD!$C:$AX,Week!$J$3+COLUMN()-13,ROW()-4)=0,"",2*INDEX(HHD!$C:$AX,Week!$J$3+COLUMN()-13,ROW()-4)) -> 47.6 | AZ5: =IF(INDEX(HHD!$C:$AX,Week!$J$3+COLUMN()-13,ROW()-4)=0,"",2*INDEX(HHD!$C:$AX,Week!$J$3+COLUMN()-13,ROW()-4)) -> 50.8 | BA5: =IF(INDEX(HHD!$C:$AX,Week!$J$3+COLUMN()-13,ROW()-4)=0,"",2*INDEX(HHD!$C:$AX,Week!$J$3+COLUMN()-13,ROW()-4)) -> 48.2 | BB5: =IF(INDEX(HHD!$C:$AX,Week!$J$3+COLUMN()-13,ROW()-4)=0,"",2*INDEX(HHD!$C:$AX,Week!$J$3+COLUMN()-13,ROW()-4)) -> 49.6 | BC5: =IF(INDEX(HHD!$C:$AX,Week!$J$3+COLUMN()-13,ROW()-4)=0,"",2*INDEX(HHD!$C:$AX,Week!$J$3+COLUMN()-13,ROW()-4)) -> 50.6 | BD5: =IF(INDEX(HHD!$C:$AX,Week!$J$3+COLUMN()-13,ROW()-4)=0,"",2*INDEX(HHD!$C:$AX,Week!$J$3+COLUMN()-13,ROW()-4)) -> 45.8 | BE5: =IF(INDEX(HHD!$C:$AX,Week!$J$3+COLUMN()-13,ROW()-4)=0,"",2*INDEX(HHD!$C:$AX,Week!$J$3+COLUMN()-13,ROW()-4)) -> 50.6 | BF5: =IF(INDEX(HHD!$C:$AX,Week!$J$3+COLUMN()-13,ROW()-4)=0,"",2*INDEX(HHD!$C:$AX,Week!$J$3+COLUMN()-13,ROW()-4)) -> 54 | BG5: =IF(INDEX(HHD!$C:$AX,Week!$J$3+COLUMN()-13,ROW()-4)=0,"",2*INDEX(HHD!$C:$AX,Week!$J$3+COLUMN()-13,ROW()-4)) -> 50.6 | BH5: =IF(INDEX(HHD!$C:$AX,Week!$J$3+COLUMN()-13,ROW()-4)=0,"",2*INDEX(HHD!$C:$AX,Week!$J$3+COLUMN()-13,ROW()-4)) -> 49.6 | BI5: =IF(INDEX(HHD!$C:$AX,Week!$J$3+COLUMN()-13,ROW()-4)=0,"",2*INDEX(HHD!$C:$AX,Week!$J$3+COLUMN()-13,ROW()-4)) -> 49 | BJ5: =IF(INDEX(HHD!$C:$AX,Week!$J$3+COLUMN()-13,ROW()-4)=0,"",2*INDEX(HHD!$C:$AX,Week!$J$3+COLUMN()-13,ROW()-4)) -> 49.2 | BK5: =IF(INDEX(HHD!$C:$AX,Week!$J$3+COLUMN()-13,ROW()-4)=0,"",2*INDEX(HHD!$C:$AX,Week!$J$3+COLUMN()-13,ROW()-4)) -> 57.8 | BL5: =IF(INDEX(HHD!$C:$AX,Week!$J$3+COLUMN()-13,ROW()-4)=0,"",2*INDEX(HHD!$C:$AX,Week!$J$3+COLUMN()-13,ROW()-4)) -> 59.2 | BM5: =IF(INDEX(HHD!$C:$AX,Week!$J$3+COLUMN()-13,ROW()-4)=0,"",2*INDEX(HHD!$C:$AX,Week!$J$3+COLUMN()-13,ROW()-4)) -> 48.8 | BN5: =IF(INDEX(HHD!$C:$AX,Week!$J$3+COLUMN()-13,ROW()-4)=0,"",2*INDEX(HHD!$C:$AX,Week!$J$3+COLUMN()-13,ROW()-4)) -> 48.2 | BO5: =IF(INDEX(HHD!$C:$AX,Week!$J$3+COLUMN()-13,ROW()-4)=0,"",2*INDEX(HHD!$C:$AX,Week!$J$3+COLUMN()-13,ROW()-4)) -> 49.8 | BP5: =IF(INDEX(HHD!$C:$AX,Week!$J$3+COLUMN()-13,ROW()-4)=0,"",2*INDEX(HHD!$C:$AX,Week!$J$3+COLUMN()-13,ROW()-4)) -> 59.8 | BQ5: =IF(INDEX(HHD!$C:$AX,Week!$J$3+COLUMN()-13,ROW()-4)=0,"",2*INDEX(HHD!$C:$AX,Week!$J$3+COLUMN()-13,ROW()-4)) -> 54.6 | BR5: =IF(INDEX(HHD!$C:$AX,Week!$J$3+COLUMN()-13,ROW()-4)=0,"",2*INDEX(HHD!$C:$AX,Week!$J$3+COLUMN()-13,ROW()-4)) -> 42.4 | BS5: =IF(INDEX(HHD!$C:$AX,Week!$J$3+COLUMN()-13,ROW()-4)=0,"",2*INDEX(HHD!$C:$AX,Week!$J$3+COLUMN()-13,ROW()-4)) -> 48.8 | BT5: =IF(INDEX(HHD!$C:$AX,Week!$J$3+COLUMN()-13,ROW()-4)=0,"",2*INDEX(HHD!$C:$AX,Week!$J$3+COLUMN()-13,ROW()-4)) -> 46 | BU5: =IF(INDEX(HHD!$C:$AX,Week!$J$3+COLUMN()-13,ROW()-4)=0,"",2*INDEX(HHD!$C:$AX,Week!$J$3+COLUMN()-13,ROW()-4)) -> 48.8 | BV5: =IF(INDEX(HHD!$C:$AX,Week!$J$3+COLUMN()-13,ROW()-4)=0,"",2*INDEX(HHD!$C:$AX,Week!$J$3+COLUMN()-13,ROW()-4)) -> 55.4 | BW5: =IF(INDEX(HHD!$C:$AX,Week!$J$3+COLUMN()-13,ROW()-4)=0,"",2*INDEX(HHD!$C:$AX,Week!$J$3+COLUMN()-13,ROW()-4)) -> 52 | BX5: =IF(INDEX(HHD!$C:$AX,Week!$J$3+COLUMN()-13,ROW()-4)=0,"",2*INDEX(HHD!$C:$AX,Week!$J$3+COLUMN()-13,ROW()-4)) -> 58.2 | BY5: =IF(INDEX(HHD!$C:$AX,Week!$J$3+COLUMN()-13,ROW()-4)=0,"",2*INDEX(HHD!$C:$AX,Week!$J$3+COLUMN()-13,ROW()-4)) -> 47.8 | BZ5: =IF(INDEX(HHD!$C:$AX,Week!$J$3+COLUMN()-13,ROW()-4)=0,"",2*INDEX(HHD!$C:$AX,Week!$J$3+COLUMN()-13,ROW()-4)) -> 55 | CA5: =IF(INDEX(HHD!$C:$AX,Week!$J$3+COLUMN()-13,ROW()-4)=0,"",2*INDEX(HHD!$C:$AX,Week!$J$3+COLUMN()-13,ROW()-4)) -> 44.4 | CB5: =IF(INDEX(HHD!$C:$AX,Week!$J$3+COLUMN()-13,ROW()-4)=0,"",2*INDEX(HHD!$C:$AX,Week!$J$3+COLUMN()-13,ROW()-4)) -> 53.8 | CC5: =IF(INDEX(HHD!$C:$AX,Week!$J$3+COLUMN()-13,ROW()-4)=0,"",2*INDEX(HHD!$C:$AX,Week!$J$3+COLUMN()-13,ROW()-4)) -> 46.8 | CD5: =IF(INDEX(HHD!$C:$AX,Week!$J$3+COLUMN()-13,ROW()-4)=0,"",2*INDEX(HHD!$C:$AX,Week!$J$3+COLUMN()-13,ROW()-4)) -> 57.4 | CE5: =IF(INDEX(HHD!$C:$AX,Week!$J$3+COLUMN()-13,ROW()-4)=0,"",2*INDEX(HHD!$C:$AX,Week!$J$3+COLUMN()-13,ROW()-4)) -> 48.6 | CF5: =IF(INDEX(HHD!$C:$AX,Week!$J$3+COLUMN()-13,ROW()-4)=0,"",2*INDEX(HHD!$C:$AX,Week!$J$3+COLUMN()-13,ROW()-4)) -> 48.8 | CG5: =IF(INDEX(HHD!$C:$AX,Week!$J$3+COLUMN()-13,ROW()-4)=0,"",2*INDEX(HHD!$C:$AX,Week!$J$3+COLUMN()-13,ROW()-4)) -> 46 | CH5: =IF(INDEX(HHD!$C:$AX,Week!$J$3+COLUMN()-13,ROW()-4)=0,"",2*INDEX(HHD!$C:$AX,Week!$J$3+COLUMN()-13,ROW()-4)) -> 50.2 | CI5: =IF(INDEX(HHD!$C:$AX,Week!$J$3+COLUMN()-13,ROW()-4)=0,"",2*INDEX(HHD!$C:$AX,Week!$J$3+COLUMN()-13,ROW()-4)) -> 45.6 | CJ5: =IF(INDEX(HHD!$C:$AX,Week!$J$3+COLUMN()-13,ROW()-4)=0,"",2*INDEX(HHD!$C:$AX,Week!$J$3+COLUMN()-13,ROW()-4)) -> 53.6 | CK5: =IF(INDEX(HHD!$C:$AX,Week!$J$3+COLUMN()-13,ROW()-4)=0,"",2*INDEX(HHD!$C:$AX,Week!$J$3+COLUMN()-13,ROW()-4)) -> 46.8 | CL5: =IF(INDEX(HHD!$C:$AX,Week!$J$3+COLUMN()-13,ROW()-4)=0,"",2*INDEX(HHD!$C:$AX,Week!$J$3+COLUMN()-13,ROW()-4)) -> 48 | CM5: =IF(INDEX(HHD!$C:$AX,Week!$J$3+COLUMN()-13,ROW()-4)=0,"",2*INDEX(HHD!$C:$AX,Week!$J$3+COLUMN()-13,ROW()-4)) -> 53 | CN5: =IF(INDEX(HHD!$C:$AX,Week!$J$3+COLUMN()-13,ROW()-4)=0,"",2*INDEX(HHD!$C:$AX,Week!$J$3+COLUMN()-13,ROW()-4)) -> 49.2 | CO5: =IF(INDEX(HHD!$C:$AX,Week!$J$3+COLUMN()-13,ROW()-4)=0,"",2*INDEX(HHD!$C:$AX,Week!$J$3+COLUMN()-13,ROW()-4)) -> 50.6 | CP5: =IF(INDEX(HHD!$C:$AX,Week!$J$3+COLUMN()-13,ROW()-4)=0,"",2*INDEX(HHD!$C:$AX,Week!$J$3+COLUMN()-13,ROW()-4)) -> 49.4 | CQ5: =IF(INDEX(HHD!$C:$AX,Week!$J$3+COLUMN()-13,ROW()-4)=0,"",2*INDEX(HHD!$C:$AX,Week!$J$3+COLUMN()-13,ROW()-4)) -> 49 | CR5: =IF(INDEX(HHD!$C:$AX,Week!$J$3+COLUMN()-13,ROW()-4)=0,"",2*INDEX(HHD!$C:$AX,Week!$J$3+COLUMN()-13,ROW()-4)) -> 43.8 | CS5: =IF(INDEX(HHD!$C:$AX,Week!$J$3+COLUMN()-13,ROW()-4)=0,"",2*INDEX(HHD!$C:$AX,Week!$J$3+COLUMN()-13,ROW()-4)) -> 49.4 | CT5: =IF(INDEX(HHD!$C:$AX,Week!$J$3+COLUMN()-13,ROW()-4)=0,"",2*INDEX(HHD!$C:$AX,Week!$J$3+COLUMN()-13,ROW()-4)) -> 51.2 | CU5: =IF(INDEX(HHD!$C:$AX,Week!$J$3+COLUMN()-13,ROW()-4)=0,"",2*INDEX(HHD!$C:$AX,Week!$J$3+COLUMN()-13,ROW()-4)) -> 55.6 | CV5: =IF(INDEX(HHD!$C:$AX,Week!$J$3+COLUMN()-13,ROW()-4)=0,"",2*INDEX(HHD!$C:$AX,Week!$J$3+COLUMN()-13,ROW()-4)) -> 53.2 | CW5: =IF(INDEX(HHD!$C:$AX,Week!$J$3+COLUMN()-13,ROW()-4)=0,"",2*INDEX(HHD!$C:$AX,Week!$J$3+COLUMN()-13,ROW()-4)) -> 53.6 | CX5: =IF(INDEX(HHD!$C:$AX,Week!$J$3+COLUMN()-13,ROW()-4)=0,"",2*INDEX(HHD!$C:$AX,Week!$J$3+COLUMN()-13,ROW()-4)) -> 52.8 | CY5: =IF(INDEX(HHD!$C:$AX,Week!$J$3+COLUMN()-13,ROW()-4)=0,"",2*INDEX(HHD!$C:$AX,Week!$J$3+COLUMN()-13,ROW()-4)) -> 54.6 | CZ5: =IF(INDEX(HHD!$C:$AX,Week!$J$3+COLUMN()-13,ROW()-4)=0,"",2*INDEX(HHD!$C:$AX,Week!$J$3+COLUMN()-13,ROW()-4)) -> 51.4 | DA5: =IF(INDEX(HHD!$C:$AX,Week!$J$3+COLUMN()-13,ROW()-4)=0,"",2*INDEX(HHD!$C:$AX,Week!$J$3+COLUMN()-13,ROW()-4)) -> 54.2 | DB5: =IF(INDEX(HHD!$C:$AX,Week!$J$3+COLUMN()-13,ROW()-4)=0,"",2*INDEX(HHD!$C:$AX,Week!$J$3+COLUMN()-13,ROW()-4)) -> 55.2 | DC5: =IF(INDEX(HHD!$C:$AX,Week!$J$3+COLUMN()-13,ROW()-4)=0,"",2*INDEX(HHD!$C:$AX,Week!$J$3+COLUMN()-13,ROW()-4)) -> 56 | DD5: =IF(INDEX(HHD!$C:$AX,Week!$J$3+COLUMN()-13,ROW()-4)=0,"",2*INDEX(HHD!$C:$AX,Week!$J$3+COLUMN()-13,ROW()-4)) -> 47.8 | DE5: =IF(INDEX(HHD!$C:$AX,Week!$J$3+COLUMN()-13,ROW()-4)=0,"",2*INDEX(HHD!$C:$AX,Week!$J$3+COLUMN()-13,ROW()-4)) -> 57.2 | DF5: =IF(INDEX(HHD!$C:$AX,Week!$J$3+COLUMN()-13,ROW()-4)=0,"",2*INDEX(HHD!$C:$AX,Week!$J$3+COLUMN()-13,ROW()-4)) -> 55.2 | DG5: =IF(INDEX(HHD!$C:$AX,Week!$J$3+COLUMN()-13,ROW()-4)=0,"",2*INDEX(HHD!$C:$AX,Week!$J$3+COLUMN()-13,ROW()-4)) -> 58.2 | DH5: =IF(INDEX(HHD!$C:$AX,Week!$J$3+COLUMN()-13,ROW()-4)=0,"",2*INDEX(HHD!$C:$AX,Week!$J$3+COLUMN()-13,ROW()-4)) -> 57.6 | DI5: =IF(INDEX(HHD!$C:$AX,Week!$J$3+COLUMN()-13,ROW()-4)=0,"",2*INDEX(HHD!$C:$AX,Week!$J$3+COLUMN()-13,ROW()-4)) -> 55 | DJ5: =IF(INDEX(HHD!$C:$AX,Week!$J$3+COLUMN()-13,ROW()-4)=0,"",2*INDEX(HHD!$C:$AX,Week!$J$3+COLUMN()-13,ROW()-4)) -> 46.8 | DK5: =IF(INDEX(HHD!$C:$AX,Week!$J$3+COLUMN()-13,ROW()-4)=0,"",2*INDEX(HHD!$C:$AX,Week!$J$3+COLUMN()-13,ROW()-4)) -> 51.6 | DL5: =IF(INDEX(HHD!$C:$AX,Week!$J$3+COLUMN()-13,ROW()-4)=0,"",2*INDEX(HHD!$C:$AX,Week!$J$3+COLUMN()-13,ROW()-4)) -> 49.4 | DM5: =IF(INDEX(HHD!$C:$AX,Week!$J$3+COLUMN()-13,ROW()-4)=0,"",2*INDEX(HHD!$C:$AX,Week!$J$3+COLUMN()-13,ROW()-4)) -> 49.8 | DN5: =IF(INDEX(HHD!$C:$AX,Week!$J$3+COLUMN()-13,ROW()-4)=0,"",2*INDEX(HHD!$C:$AX,Week!$J$3+COLUMN()-13,ROW()-4)) -> 53.6 | DO5: =IF(INDEX(HHD!$C:$AX,Week!$J$3+COLUMN()-13,ROW()-4)=0,"",2*INDEX(HHD!$C:$AX,Week!$J$3+COLUMN()-13,ROW()-4)) -> 57.8 | DP5: =IF(INDEX(HHD!$C:$AX,Week!$J$3+COLUMN()-13,ROW()-4)=0,"",2*INDEX(HHD!$C:$AX,Week!$J$3+COLUMN()-13,ROW()-4)) -> 50 | DQ5: =IF(INDEX(HHD!$C:$AX,Week!$J$3+COLUMN()-13,ROW()-4)=0,"",2*INDEX(HHD!$C:$AX,Week!$J$3+COLUMN()-13,ROW()-4)) -> 51.2 | DR5: =IF(INDEX(HHD!$C:$AX,Week!$J$3+COLUMN()-13,ROW()-4)=0,"",2*INDEX(HHD!$C:$AX,Week!$J$3+COLUMN()-13,ROW()-4)) -> 51.6 | DS5: =IF(INDEX(HHD!$C:$AX,Week!$J$3+COLUMN()-13,ROW()-4)=0,"",2*INDEX(HHD!$C:$AX,Week!$J$3+COLUMN()-13,ROW()-4)) -> 47.6 | DT5: =IF(INDEX(HHD!$C:$AX,Week!$J$3+COLUMN()-13,ROW()-4)=0,"",2*INDEX(HHD!$C:$AX,Week!$J$3+COLUMN()-13,ROW()-4)) -> 50.8 | DU5: =IF(INDEX(HHD!$C:$AX,Week!$J$3+COLUMN()-13,ROW()-4)=0,"",2*INDEX(HHD!$C:$AX,Week!$J$3+COLUMN()-13,ROW()-4)) -> 58.8 | DV5: =IF(INDEX(HHD!$C:$AX,Week!$J$3+COLUMN()-13,ROW()-4)=0,"",2*INDEX(HHD!$C:$AX,Week!$J$3+COLUMN()-13,ROW()-4)) -> 55.2 | DW5: =IF(INDEX(HHD!$C:$AX,Week!$J$3+COLUMN()-13,ROW()-4)=0,"",2*INDEX(HHD!$C:$AX,Week!$J$3+COLUMN()-13,ROW()-4)) -> 48.6 | DX5: =IF(INDEX(HHD!$C:$AX,Week!$J$3+COLUMN()-13,ROW()-4)=0,"",2*INDEX(HHD!$C:$AX,Week!$J$3+COLUMN()-13,ROW()-4)) -> 51.4 | DY5: =IF(INDEX(HHD!$C:$AX,Week!$J$3+COLUMN()-13,ROW()-4)=0,"",2*INDEX(HHD!$C:$AX,Week!$J$3+COLUMN()-13,ROW()-4)) -> 55.6 | DZ5: =IF(INDEX(HHD!$C:$AX,Week!$J$3+COLUMN()-13,ROW()-4)=0,"",2*INDEX(HHD!$C:$AX,Week!$J$3+COLUMN()-13,ROW()-4)) -> 61.6 | EA5: =IF(INDEX(HHD!$C:$AX,Week!$J$3+COLUMN()-13,ROW()-4)=0,"",2*INDEX(HHD!$C:$AX,Week!$J$3+COLUMN()-13,ROW()-4)) -> 51.6 | EB5: =IF(INDEX(HHD!$C:$AX,Week!$J$3+COLUMN()-13,ROW()-4)=0,"",2*INDEX(HHD!$C:$AX,Week!$J$3+COLUMN()-13,ROW()-4)) -> 62.2 | EC5: =IF(INDEX(HHD!$C:$AX,Week!$J$3+COLUMN()-13,ROW()-4)=0,"",2*INDEX(HHD!$C:$AX,Week!$J$3+COLUMN()-13,ROW()-4)) -> 55 | ED5: =IF(INDEX(HHD!$C:$AX,Week!$J$3+COLUMN()-13,ROW()-4)=0,"",2*INDEX(HHD!$C:$AX,Week!$J$3+COLUMN()-13,ROW()-4)) -> 60.6 | EE5: =IF(INDEX(HHD!$C:$AX,Week!$J$3+COLUMN()-13,ROW()-4)=0,"",2*INDEX(HHD!$C:$AX,Week!$J$3+COLUMN()-13,ROW()-4)) -> 56.6 | EF5: =IF(INDEX(HHD!$C:$AX,Week!$J$3+COLUMN()-13,ROW()-4)=0,"",2*INDEX(HHD!$C:$AX,Week!$J$3+COLUMN()-13,ROW()-4)) -> 58 | EG5: =IF(INDEX(HHD!$C:$AX,Week!$J$3+COLUMN()-13,ROW()-4)=0,"",2*INDEX(HHD!$C:$AX,Week!$J$3+COLUMN()-13,ROW()-4)) -> 66.8 | EH5: =IF(INDEX(HHD!$C:$AX,Week!$J$3+COLUMN()-13,ROW()-4)=0,"",2*INDEX(HHD!$C:$AX,Week!$J$3+COLUMN()-13,ROW()-4)) -> 78.6 | EI5: =IF(INDEX(HHD!$C:$AX,Week!$J$3+COLUMN()-13,ROW()-4)=0,"",2*INDEX(HHD!$C:$AX,Week!$J$3+COLUMN()-13,ROW()-4)) -> 69.2 | EJ5: =IF(INDEX(HHD!$C:$AX,Week!$J$3+COLUMN()-13,ROW()-4)=0,"",2*INDEX(HHD!$C:$AX,Week!$J$3+COLUMN()-13,ROW()-4)) -> 66.2 | EK5: =IF(INDEX(HHD!$C:$AX,Week!$J$3+COLUMN()-13,ROW()-4)=0,"",2*INDEX(HHD!$C:$AX,Week!$J$3+COLUMN()-13,ROW()-4)) -> 61.2 | EL5: =IF(INDEX(HHD!$C:$AX,Week!$J$3+COLUMN()-13,ROW()-4)=0,"",2*INDEX(HHD!$C:$AX,Week!$J$3+COLUMN()-13,ROW()-4)) -> 64.6 | EM5: =IF(INDEX(HHD!$C:$AX,Week!$J$3+COLUMN()-13,ROW()-4)=0,"",2*INDEX(HHD!$C:$AX,Week!$J$3+COLUMN()-13,ROW()-4)) -> 68.2 | EN5: =IF(INDEX(HHD!$C:$AX,Week!$J$3+COLUMN()-13,ROW()-4)=0,"",2*INDEX(HHD!$C:$AX,Week!$J$3+COLUMN()-13,ROW()-4)) -> 70 | EO5: =IF(INDEX(HHD!$C:$AX,Week!$J$3+COLUMN()-13,ROW()-4)=0,"",2*INDEX(HHD!$C:$AX,Week!$J$3+COLUMN()-13,ROW()-4)) -> 65.4 | EP5: =IF(INDEX(HHD!$C:$AX,Week!$J$3+COLUMN()-13,ROW()-4)=0,"",2*INDEX(HHD!$C:$AX,Week!$J$3+COLUMN()-13,ROW()-4)) -> 69 | EQ5: =IF(INDEX(HHD!$C:$AX,Week!$J$3+COLUMN()-13,ROW()-4)=0,"",2*INDEX(HHD!$C:$AX,Week!$J$3+COLUMN()-13,ROW()-4)) -> 68 | ER5: =IF(INDEX(HHD!$C:$AX,Week!$J$3+COLUMN()-13,ROW()-4)=0,"",2*INDEX(HHD!$C:$AX,Week!$J$3+COLUMN()-13,ROW()-4)) -> 70.8 | ES5: =IF(INDEX(HHD!$C:$AX,Week!$J$3+COLUMN()-13,ROW()-4)=0,"",2*INDEX(HHD!$C:$AX,Week!$J$3+COLUMN()-13,ROW()-4)) -> 75.4 | ET5: =IF(INDEX(HHD!$C:$AX,Week!$J$3+COLUMN()-13,ROW()-4)=0,"",2*INDEX(HHD!$C:$AX,Week!$J$3+COLUMN()-13,ROW()-4)) -> 70 | EU5: =IF(INDEX(HHD!$C:$AX,Week!$J$3+COLUMN()-13,ROW()-4)=0,"",2*INDEX(HHD!$C:$AX,Week!$J$3+COLUMN()-13,ROW()-4)) -> 80.8 | EV5: =IF(INDEX(HHD!$C:$AX,Week!$J$3+COLUMN()-13,ROW()-4)=0,"",2*INDEX(HHD!$C:$AX,Week!$J$3+COLUMN()-13,ROW()-4)) -> 74 | EW5: =IF(INDEX(HHD!$C:$AX,Week!$J$3+COLUMN()-13,ROW()-4)=0,"",2*INDEX(HHD!$C:$AX,Week!$J$3+COLUMN()-13,ROW()-4)) -> 79.4 | EX5: =IF(INDEX(HHD!$C:$AX,Week!$J$3+COLUMN()-13,ROW()-4)=0,"",2*INDEX(HHD!$C:$AX,Week!$J$3+COLUMN()-13,ROW()-4)) -> 63.2 | EY5: =IF(INDEX(HHD!$C:$AX,Week!$J$3+COLUMN()-13,ROW()-4)=0,"",2*INDEX(HHD!$C:$AX,Week!$J$3+COLUMN()-13,ROW()-4)) -> 67.4 | EZ5: =IF(INDEX(HHD!$C:$AX,Week!$J$3+COLUMN()-13,ROW()-4)=0,"",2*INDEX(HHD!$C:$AX,Week!$J$3+COLUMN()-13,ROW()-4)) -> 81 | FA5: =IF(INDEX(HHD!$C:$AX,Week!$J$3+COLUMN()-13,ROW()-4)=0,"",2*INDEX(HHD!$C:$AX,Week!$J$3+COLUMN()-13,ROW()-4)) -> 69.4 | FB5: =IF(INDEX(HHD!$C:$AX,Week!$J$3+COLUMN()-13,ROW()-4)=0,"",2*INDEX(HHD!$C:$AX,Week!$J$3+COLUMN()-13,ROW()-4)) -> 65.4 | FC5: =IF(INDEX(HHD!$C:$AX,Week!$J$3+COLUMN()-13,ROW()-4)=0,"",2*INDEX(HHD!$C:$AX,Week!$J$3+COLUMN()-13,ROW()-4)) -> 57.8 | FD5: =IF(INDEX(HHD!$C:$AX,Week!$J$3+COLUMN()-13,ROW()-4)=0,"",2*INDEX(HHD!$C:$AX,Week!$J$3+COLUMN()-13,ROW()-4)) -> 62.8 | FE5: =IF(INDEX(HHD!$C:$AX,Week!$J$3+COLUMN()-13,ROW()-4)=0,"",2*INDEX(HHD!$C:$AX,Week!$J$3+COLUMN()-13,ROW()-4)) -> 50.2 | FF5: =IF(INDEX(HHD!$C:$AX,Week!$J$3+COLUMN()-13,ROW()-4)=0,"",2*INDEX(HHD!$C:$AX,Week!$J$3+COLUMN()-13,ROW()-4)) -> 50.6 | FG5: =IF(INDEX(HHD!$C:$AX,Week!$J$3+COLUMN()-13,ROW()-4)=0,"",2*INDEX(HHD!$C:$AX,Week!$J$3+COLUMN()-13,ROW()-4)) -> 60.2 | FH5: =IF(INDEX(HHD!$C:$AX,Week!$J$3+COLUMN()-13,ROW()-4)=0,"",2*INDEX(HHD!$C:$AX,Week!$J$3+COLUMN()-13,ROW()-4)) -> 57.8 | FI5: =IF(INDEX(HHD!$C:$AX,Week!$J$3+COLUMN()-13,ROW()-4)=0,"",2*INDEX(HHD!$C:$AX,Week!$J$3+COLUMN()-13,ROW()-4)) -> 75.4 | FJ5: =IF(INDEX(HHD!$C:$AX,Week!$J$3+COLUMN()-13,ROW()-4)=0,"",2*INDEX(HHD!$C:$AX,Week!$J$3+COLUMN()-13,ROW()-4)) -> 71.6 | FK5: =IF(INDEX(HHD!$C:$AX,Week!$J$3+COLUMN()-13,ROW()-4)=0,"",2*INDEX(HHD!$C:$AX,Week!$J$3+COLUMN()-13,ROW()-4)) -> 59.4 | FL5: =IF(INDEX(HHD!$C:$AX,Week!$J$3+COLUMN()-13,ROW()-4)=0,"",2*INDEX(HHD!$C:$AX,Week!$J$3+COLUMN()-13,ROW()-4)) -> 64.8 | FM5: =IF(INDEX(HHD!$C:$AX,Week!$J$3+COLUMN()-13,ROW()-4)=0,"",2*INDEX(HHD!$C:$AX,Week!$J$3+COLUMN()-13,ROW()-4)) -> 61.8 | FN5: =IF(INDEX(HHD!$C:$AX,Week!$J$3+COLUMN()-13,ROW()-4)=0,"",2*INDEX(HHD!$C:$AX,Week!$J$3+COLUMN()-13,ROW()-4)) -> 51.8 | FO5: =IF(INDEX(HHD!$C:$AX,Week!$J$3+COLUMN()-13,ROW()-4)=0,"",2*INDEX(HHD!$C:$AX,Week!$J$3+COLUMN()-13,ROW()-4)) -> 47.2 | FP5: =IF(INDEX(HHD!$C:$AX,Week!$J$3+COLUMN()-13,ROW()-4)=0,"",2*INDEX(HHD!$C:$AX,Week!$J$3+COLUMN()-13,ROW()-4)) -> 60.2 | FQ5: =IF(INDEX(HHD!$C:$AX,Week!$J$3+COLUMN()-13,ROW()-4)=0,"",2*INDEX(HHD!$C:$AX,Week!$J$3+COLUMN()-13,ROW()-4)) -> 49.4 | FR5: =IF(INDEX(HHD!$C:$AX,Week!$J$3+COLUMN()-13,ROW()-4)=0,"",2*INDEX(HHD!$C:$AX,Week!$J$3+COLUMN()-13,ROW()-4)) -> 49.4 | FS5: =IF(INDEX(HHD!$C:$AX,Week!$J$3+COLUMN()-13,ROW()-4)=0,"",2*INDEX(HHD!$C:$AX,Week!$J$3+COLUMN()-13,ROW()-4)) -> 61.2 | FT5: =IF(INDEX(HHD!$C:$AX,Week!$J$3+COLUMN()-13,ROW()-4)=0,"",2*INDEX(HHD!$C:$AX,Week!$J$3+COLUMN()-13,ROW()-4)) -> 49.8 | FU5: =IF(INDEX(HHD!$C:$AX,Week!$J$3+COLUMN()-13,ROW()-4)=0,"",2*INDEX(HHD!$C:$AX,Week!$J$3+COLUMN()-13,ROW()-4)) -> 55.2 | FV5: =IF(INDEX(HHD!$C:$AX,Week!$J$3+COLUMN()-13,ROW()-4)=0,"",2*INDEX(HHD!$C:$AX,Week!$J$3+COLUMN()-13,ROW()-4)) -> 51.2 | FW5: =IF(INDEX(HHD!$C:$AX,Week!$J$3+COLUMN()-13,ROW()-4)=0,"",2*INDEX(HHD!$C:$AX,Week!$J$3+COLUMN()-13,ROW()-4)) -> 47.6 | FX5: =IF(INDEX(HHD!$C:$AX,Week!$J$3+COLUMN()-13,ROW()-4)=0,"",2*INDEX(HHD!$C:$AX,Week!$J$3+COLUMN()-13,ROW()-4)) -> 56.2 | FY5: =IF(INDEX(HHD!$C:$AX,Week!$J$3+COLUMN()-13,ROW()-4)=0,"",2*INDEX(HHD!$C:$AX,Week!$J$3+COLUMN()-13,ROW()-4)) -> 54.6 | FZ5: =IF(INDEX(HHD!$C:$AX,Week!$J$3+COLUMN()-13,ROW()-4)=0,"",2*INDEX(HHD!$C:$AX,Week!$J$3+COLUMN()-13,ROW()-4)) -> 53.8 | GA5: =IF(INDEX(HHD!$C:$AX,Week!$J$3+COLUMN()-13,ROW()-4)=0,"",2*INDEX(HHD!$C:$AX,Week!$J$3+COLUMN()-13,ROW()-4)) -> 48.6 | GB5: =IF(INDEX(HHD!$C:$AX,Week!$J$3+COLUMN()-13,ROW()-4)=0,"",2*INDEX(HHD!$C:$AX,Week!$J$3+COLUMN()-13,ROW()-4)) -> 49.4 | GC5: =IF(INDEX(HHD!$C:$AX,Week!$J$3+COLUMN()-13,ROW()-4)=0,"",2*INDEX(HHD!$C:$AX,Week!$J$3+COLUMN()-13,ROW()-4)) -> 60.4 | GD5: =IF(INDEX(HHD!$C:$AX,Week!$J$3+COLUMN()-13,ROW()-4)=0,"",2*INDEX(HHD!$C:$AX,Week!$J$3+COLUMN()-13,ROW()-4)) -> 54.4 | GE5: =IF(INDEX(HHD!$C:$AX,Week!$J$3+COLUMN()-13,ROW()-4)=0,"",2*INDEX(HHD!$C:$AX,Week!$J$3+COLUMN()-13,ROW()-4)) -> 48.6 | GF5: =IF(INDEX(HHD!$C:$AX,Week!$J$3+COLUMN()-13,ROW()-4)=0,"",2*INDEX(HHD!$C:$AX,Week!$J$3+COLUMN()-13,ROW()-4)) -> 46 | GG5: =IF(INDEX(HHD!$C:$AX,Week!$J$3+COLUMN()-13,ROW()-4)=0,"",2*INDEX(HHD!$C:$AX,Week!$J$3+COLUMN()-13,ROW()-4)) -> 47 | GH5: =IF(INDEX(HHD!$C:$AX,Week!$J$3+COLUMN()-13,ROW()-4)=0,"",2*INDEX(HHD!$C:$AX,Week!$J$3+COLUMN()-13,ROW()-4)) -> 55.8 | GI5: =IF(INDEX(HHD!$C:$AX,Week!$J$3+COLUMN()-13,ROW()-4)=0,"",2*INDEX(HHD!$C:$AX,Week!$J$3+COLUMN()-13,ROW()-4)) -> 51.6 | GJ5: =IF(INDEX(HHD!$C:$AX,Week!$J$3+COLUMN()-13,ROW()-4)=0,"",2*INDEX(HHD!$C:$AX,Week!$J$3+COLUMN()-13,ROW()-4)) -> 55.2 | GK5: =IF(INDEX(HHD!$C:$AX,Week!$J$3+COLUMN()-13,ROW()-4)=0,"",2*INDEX(HHD!$C:$AX,Week!$J$3+COLUMN()-13,ROW()-4)) -> 54.4 | GL5: =IF(INDEX(HHD!$C:$AX,Week!$J$3+COLUMN()-13,ROW()-4)=0,"",2*INDEX(HHD!$C:$AX,Week!$J$3+COLUMN()-13,ROW()-4)) -> 49.8 | GM5: =IF(INDEX(HHD!$C:$AX,Week!$J$3+COLUMN()-13,ROW()-4)=0,"",2*INDEX(HHD!$C:$AX,Week!$J$3+COLUMN()-13,ROW()-4)) -> 44.6 | GN5: =IF(INDEX(HHD!$C:$AX,Week!$J$3+COLUMN()-13,ROW()-4)=0,"",2*INDEX(HHD!$C:$AX,Week!$J$3+COLUMN()-13,ROW()-4)) -> 48.6 | GO5: =IF(INDEX(HHD!$C:$AX,Week!$J$3+COLUMN()-13,ROW()-4)=0,"",2*INDEX(HHD!$C:$AX,Week!$J$3+COLUMN()-13,ROW()-4)) -> 48.6 | GP5: =IF(INDEX(HHD!$C:$AX,Week!$J$3+COLUMN()-13,ROW()-4)=0,"",2*INDEX(HHD!$C:$AX,Week!$J$3+COLUMN()-13,ROW()-4)) -> 63.4 | GQ5: =IF(INDEX(HHD!$C:$AX,Week!$J$3+COLUMN()-13,ROW()-4)=0,"",2*INDEX(HHD!$C:$AX,Week!$J$3+COLUMN()-13,ROW()-4)) -> 57.4 | GR5: =IF(INDEX(HHD!$C:$AX,Week!$J$3+COLUMN()-13,ROW()-4)=0,"",2*INDEX(HHD!$C:$AX,Week!$J$3+COLUMN()-13,ROW()-4)) -> 58.2 | GS5: =IF(INDEX(HHD!$C:$AX,Week!$J$3+COLUMN()-13,ROW()-4)=0,"",2*INDEX(HHD!$C:$AX,Week!$J$3+COLUMN()-13,ROW()-4)) -> 59.6 | GT5: =IF(INDEX(HHD!$C:$AX,Week!$J$3+COLUMN()-13,ROW()-4)=0,"",2*INDEX(HHD!$C:$AX,Week!$J$3+COLUMN()-13,ROW()-4)) -> 51.8 | GU5: =IF(INDEX(HHD!$C:$AX,Week!$J$3+COLUMN()-13,ROW()-4)=0,"",2*INDEX(HHD!$C:$AX,Week!$J$3+COLUMN()-13,ROW()-4)) -> 51.8 | GV5: =IF(INDEX(HHD!$C:$AX,Week!$J$3+COLUMN()-13,ROW()-4)=0,"",2*INDEX(HHD!$C:$AX,Week!$J$3+COLUMN()-13,ROW()-4)) -> 54 | GW5: =IF(INDEX(HHD!$C:$AX,Week!$J$3+COLUMN()-13,ROW()-4)=0,"",2*INDEX(HHD!$C:$AX,Week!$J$3+COLUMN()-13,ROW()-4)) -> 61.4 | GX5: =IF(INDEX(HHD!$C:$AX,Week!$J$3+COLUMN()-13,ROW()-4)=0,"",2*INDEX(HHD!$C:$AX,Week!$J$3+COLUMN()-13,ROW()-4)) -> 55.6 | GY5: =IF(INDEX(HHD!$C:$AX,Week!$J$3+COLUMN()-13,ROW()-4)=0,"",2*INDEX(HHD!$C:$AX,Week!$J$3+COLUMN()-13,ROW()-4)) -> 61 | GZ5: =IF(INDEX(HHD!$C:$AX,Week!$J$3+COLUMN()-13,ROW()-4)=0,"",2*INDEX(HHD!$C:$AX,Week!$J$3+COLUMN()-13,ROW()-4)) -> 56.2 | HA5: =IF(INDEX(HHD!$C:$AX,Week!$J$3+COLUMN()-13,ROW()-4)=0,"",2*INDEX(HHD!$C:$AX,Week!$J$3+COLUMN()-13,ROW()-4)) -> 56.8 | HB5: =IF(INDEX(HHD!$C:$AX,Week!$J$3+COLUMN()-13,ROW()-4)=0,"",2*INDEX(HHD!$C:$AX,Week!$J$3+COLUMN()-13,ROW()-4)) -> 50.8 | HC5: =IF(INDEX(HHD!$C:$AX,Week!$J$3+COLUMN()-13,ROW()-4)=0,"",2*INDEX(HHD!$C:$AX,Week!$J$3+COLUMN()-13,ROW()-4)) -> 54.2 | HD5: =IF(INDEX(HHD!$C:$AX,Week!$J$3+COLUMN()-13,ROW()-4)=0,"",2*INDEX(HHD!$C:$AX,Week!$J$3+COLUMN()-13,ROW()-4)) -> 56.8 | HE5: =IF(INDEX(HHD!$C:$AX,Week!$J$3+COLUMN()-13,ROW()-4)=0,"",2*INDEX(HHD!$C:$AX,Week!$J$3+COLUMN()-13,ROW()-4)) -> 57.8 | HF5: =IF(INDEX(HHD!$C:$AX,Week!$J$3+COLUMN()-13,ROW()-4)=0,"",2*INDEX(HHD!$C:$AX,Week!$J$3+COLUMN()-13,ROW()-4)) -> 53.2 | HG5: =IF(INDEX(HHD!$C:$AX,Week!$J$3+COLUMN()-13,ROW()-4)=0,"",2*INDEX(HHD!$C:$AX,Week!$J$3+COLUMN()-13,ROW()-4)) -> 41 | HH5: =IF(INDEX(HHD!$C:$AX,Week!$J$3+COLUMN()-13,ROW()-4)=0,"",2*INDEX(HHD!$C:$AX,Week!$J$3+COLUMN()-13,ROW()-4)) -> 50.6 | HI5: =IF(INDEX(HHD!$C:$AX,Week!$J$3+COLUMN()-13,ROW()-4)=0,"",2*INDEX(HHD!$C:$AX,Week!$J$3+COLUMN()-13,ROW()-4)) -> 49 | HJ5: =IF(INDEX(HHD!$C:$AX,Week!$J$3+COLUMN()-13,ROW()-4)=0,"",2*INDEX(HHD!$C:$AX,Week!$J$3+COLUMN()-13,ROW()-4)) -> 49 | HK5: =IF(INDEX(HHD!$C:$AX,Week!$J$3+COLUMN()-13,ROW()-4)=0,"",2*INDEX(HHD!$C:$AX,Week!$J$3+COLUMN()-13,ROW()-4)) -> 48.2 | HL5: =IF(INDEX(HHD!$C:$AX,Week!$J$3+COLUMN()-13,ROW()-4)=0,"",2*INDEX(HHD!$C:$AX,Week!$J$3+COLUMN()-13,ROW()-4)) -> 47.2 | HM5: =IF(INDEX(HHD!$C:$AX,Week!$J$3+COLUMN()-13,ROW()-4)=0,"",2*INDEX(HHD!$C:$AX,Week!$J$3+COLUMN()-13,ROW()-4)) -> 54.8 | HN5: =IF(INDEX(HHD!$C:$AX,Week!$J$3+COLUMN()-13,ROW()-4)=0,"",2*INDEX(HHD!$C:$AX,Week!$J$3+COLUMN()-13,ROW()-4)) -> 53.4 | HO5: =IF(INDEX(HHD!$C:$AX,Week!$J$3+COLUMN()-13,ROW()-4)=0,"",2*INDEX(HHD!$C:$AX,Week!$J$3+COLUMN()-13,ROW()-4)) -> 63 | HP5: =IF(INDEX(HHD!$C:$AX,Week!$J$3+COLUMN()-13,ROW()-4)=0,"",2*INDEX(HHD!$C:$AX,Week!$J$3+COLUMN()-13,ROW()-4)) -> 50.8 | HQ5: =IF(INDEX(HHD!$C:$AX,Week!$J$3+COLUMN()-13,ROW()-4)=0,"",2*INDEX(HHD!$C:$AX,Week!$J$3+COLUMN()-13,ROW()-4)) -> 52.8 | HR5: =IF(INDEX(HHD!$C:$AX,Week!$J$3+COLUMN()-13,ROW()-4)=0,"",2*INDEX(HHD!$C:$AX,Week!$J$3+COLUMN()-13,ROW()-4)) -> 57.4 | HS5: =IF(INDEX(HHD!$C:$AX,Week!$J$3+COLUMN()-13,ROW()-4)=0,"",2*INDEX(HHD!$C:$AX,Week!$J$3+COLUMN()-13,ROW()-4)) -> 56.8 | HT5: =IF(INDEX(HHD!$C:$AX,Week!$J$3+COLUMN()-13,ROW()-4)=0,"",2*INDEX(HHD!$C:$AX,Week!$J$3+COLUMN()-13,ROW()-4)) -> 60 | HU5: =IF(INDEX(HHD!$C:$AX,Week!$J$3+COLUMN()-13,ROW()-4)=0,"",2*INDEX(HHD!$C:$AX,Week!$J$3+COLUMN()-13,ROW()-4)) -> 70 | HV5: =IF(INDEX(HHD!$C:$AX,Week!$J$3+COLUMN()-13,ROW()-4)=0,"",2*INDEX(HHD!$C:$AX,Week!$J$3+COLUMN()-13,ROW()-4)) -> 58 | HW5: =IF(INDEX(HHD!$C:$AX,Week!$J$3+COLUMN()-13,ROW()-4)=0,"",2*INDEX(HHD!$C:$AX,Week!$J$3+COLUMN()-13,ROW()-4)) -> 53.2 | HX5: =IF(INDEX(HHD!$C:$AX,Week!$J$3+COLUMN()-13,ROW()-4)=0,"",2*INDEX(HHD!$C:$AX,Week!$J$3+COLUMN()-13,ROW()-4)) -> 60.8 | HY5: =IF(INDEX(HHD!$C:$AX,Week!$J$3+COLUMN()-13,ROW()-4)=0,"",2*INDEX(HHD!$C:$AX,Week!$J$3+COLUMN()-13,ROW()-4)) -> 41.2 | HZ5: =IF(INDEX(HHD!$C:$AX,Week!$J$3+COLUMN()-13,ROW()-4)=0,"",2*INDEX(HHD!$C:$AX,Week!$J$3+COLUMN()-13,ROW()-4)) -> 53.8 | IA5: =IF(INDEX(HHD!$C:$AX,Week!$J$3+COLUMN()-13,ROW()-4)=0,"",2*INDEX(HHD!$C:$AX,Week!$J$3+COLUMN()-13,ROW()-4)) -> 48.8 | IB5: =IF(INDEX(HHD!$C:$AX,Week!$J$3+COLUMN()-13,ROW()-4)=0,"",2*INDEX(HHD!$C:$AX,Week!$J$3+COLUMN()-13,ROW()-4)) -> 56.4 | IC5: =IF(INDEX(HHD!$C:$AX,Week!$J$3+COLUMN()-13,ROW()-4)=0,"",2*INDEX(HHD!$C:$AX,Week!$J$3+COLUMN()-13,ROW()-4)) -> 54.2 | ID5: =IF(INDEX(HHD!$C:$AX,Week!$J$3+COLUMN()-13,ROW()-4)=0,"",2*INDEX(HHD!$C:$AX,Week!$J$3+COLUMN()-13,ROW()-4)) -> 53 | IE5: =IF(INDEX(HHD!$C:$AX,Week!$J$3+COLUMN()-13,ROW()-4)=0,"",2*INDEX(HHD!$C:$AX,Week!$J$3+COLUMN()-13,ROW()-4)) -> 49 | IF5: =IF(INDEX(HHD!$C:$AX,Week!$J$3+COLUMN()-13,ROW()-4)=0,"",2*INDEX(HHD!$C:$AX,Week!$J$3+COLUMN()-13,ROW()-4)) -> 56.4 | IG5: =IF(INDEX(HHD!$C:$AX,Week!$J$3+COLUMN()-13,ROW()-4)=0,"",2*INDEX(HHD!$C:$AX,Week!$J$3+COLUMN()-13,ROW()-4)) -> 45 | IH5: =IF(INDEX(HHD!$C:$AX,Week!$J$3+COLUMN()-13,ROW()-4)=0,"",2*INDEX(HHD!$C:$AX,Week!$J$3+COLUMN()-13,ROW()-4)) -> 53.6 | II5: =IF(INDEX(HHD!$C:$AX,Week!$J$3+COLUMN()-13,ROW()-4)=0,"",2*INDEX(HHD!$C:$AX,Week!$J$3+COLUMN()-13,ROW()-4)) -> 52.4 | IJ5: =IF(INDEX(HHD!$C:$AX,Week!$J$3+COLUMN()-13,ROW()-4)=0,"",2*INDEX(HHD!$C:$AX,Week!$J$3+COLUMN()-13,ROW()-4)) -> 54.6 | IK5: =IF(INDEX(HHD!$C:$AX,Week!$J$3+COLUMN()-13,ROW()-4)=0,"",2*INDEX(HHD!$C:$AX,Week!$J$3+COLUMN()-13,ROW()-4)) -> 49.2 | IL5: =IF(INDEX(HHD!$C:$AX,Week!$J$3+COLUMN()-13,ROW()-4)=0,"",2*INDEX(HHD!$C:$AX,Week!$J$3+COLUMN()-13,ROW()-4)) -> 57 | IM5: =IF(INDEX(HHD!$C:$AX,Week!$J$3+COLUMN()-13,ROW()-4)=0,"",2*INDEX(HHD!$C:$AX,Week!$J$3+COLUMN()-13,ROW()-4)) -> 46.4 | IN5: =IF(INDEX(HHD!$C:$AX,Week!$J$3+COLUMN()-13,ROW()-4)=0,"",2*INDEX(HHD!$C:$AX,Week!$J$3+COLUMN()-13,ROW()-4)) -> 54 | IO5: =IF(INDEX(HHD!$C:$AX,Week!$J$3+COLUMN()-13,ROW()-4)=0,"",2*INDEX(HHD!$C:$AX,Week!$J$3+COLUMN()-13,ROW()-4)) -> 44 | IP5: =IF(INDEX(HHD!$C:$AX,Week!$J$3+COLUMN()-13,ROW()-4)=0,"",2*INDEX(HHD!$C:$AX,Week!$J$3+COLUMN()-13,ROW()-4)) -> 49.4 | IQ5: =IF(INDEX(HHD!$C:$AX,Week!$J$3+COLUMN()-13,ROW()-4)=0,"",2*INDEX(HHD!$C:$AX,Week!$J$3+COLUMN()-13,ROW()-4)) -> 53.6 | IR5: =IF(INDEX(HHD!$C:$AX,Week!$J$3+COLUMN()-13,ROW()-4)=0,"",2*INDEX(HHD!$C:$AX,Week!$J$3+COLUMN()-13,ROW()-4)) -> 54.6 | IS5: =IF(INDEX(HHD!$C:$AX,Week!$J$3+COLUMN()-13,ROW()-4)=0,"",2*INDEX(HHD!$C:$AX,Week!$J$3+COLUMN()-13,ROW()-4)) -> 43.6 | IT5: =IF(INDEX(HHD!$C:$AX,Week!$J$3+COLUMN()-13,ROW()-4)=0,"",2*INDEX(HHD!$C:$AX,Week!$J$3+COLUMN()-13,ROW()-4)) -> 45.8 | IU5: =IF(INDEX(HHD!$C:$AX,Week!$J$3+COLUMN()-13,ROW()-4)=0,"",2*INDEX(HHD!$C:$AX,Week!$J$3+COLUMN()-13,ROW()-4)) -> 51 | IV5: =IF(INDEX(HHD!$C:$AX,Week!$J$3+COLUMN()-13,ROW()-4)=0,"",2*INDEX(HHD!$C:$AX,Week!$J$3+COLUMN()-13,ROW()-4)) -> 42.8 | IW5: =IF(INDEX(HHD!$C:$AX,Week!$J$3+COLUMN()-13,ROW()-4)=0,"",2*INDEX(HHD!$C:$AX,Week!$J$3+COLUMN()-13,ROW()-4)) -> 49.2 | IX5: =IF(INDEX(HHD!$C:$AX,Week!$J$3+COLUMN()-13,ROW()-4)=0,"",2*INDEX(HHD!$C:$AX,Week!$J$3+COLUMN()-13,ROW()-4)) -> 49 | IY5: =IF(INDEX(HHD!$C:$AX,Week!$J$3+COLUMN()-13,ROW()-4)=0,"",2*INDEX(HHD!$C:$AX,Week!$J$3+COLUMN()-13,ROW()-4)) -> 45.6 | IZ5: =IF(INDEX(HHD!$C:$AX,Week!$J$3+COLUMN()-13,ROW()-4)=0,"",2*INDEX(HHD!$C:$AX,Week!$J$3+COLUMN()-13,ROW()-4)) -> 52.8 | JA5: =IF(INDEX(HHD!$C:$AX,Week!$J$3+COLUMN()-13,ROW()-4)=0,"",2*INDEX(HHD!$C:$AX,Week!$J$3+COLUMN()-13,ROW()-4)) -> 42.4 | JB5: =IF(INDEX(HHD!$C:$AX,Week!$J$3+COLUMN()-13,ROW()-4)=0,"",2*INDEX(HHD!$C:$AX,Week!$J$3+COLUMN()-13,ROW()-4)) -> 48.6 | JC5: =IF(INDEX(HHD!$C:$AX,Week!$J$3+COLUMN()-13,ROW()-4)=0,"",2*INDEX(HHD!$C:$AX,Week!$J$3+COLUMN()-13,ROW()-4)) -> 40.6 | JD5: =IF(INDEX(HHD!$C:$AX,Week!$J$3+COLUMN()-13,ROW()-4)=0,"",2*INDEX(HHD!$C:$AX,Week!$J$3+COLUMN()-13,ROW()-4)) -> 44.2 | JE5: =IF(INDEX(HHD!$C:$AX,Week!$J$3+COLUMN()-13,ROW()-4)=0,"",2*INDEX(HHD!$C:$AX,Week!$J$3+COLUMN()-13,ROW()-4)) -> 47.4 | JF5: =IF(INDEX(HHD!$C:$AX,Week!$J$3+COLUMN()-13,ROW()-4)=0,"",2*INDEX(HHD!$C:$AX,Week!$J$3+COLUMN()-13,ROW()-4)) -> 50.4 | JG5: =IF(INDEX(HHD!$C:$AX,Week!$J$3+COLUMN()-13,ROW()-4)=0,"",2*INDEX(HHD!$C:$AX,Week!$J$3+COLUMN()-13,ROW()-4)) -> 47 | JH5: =IF(INDEX(HHD!$C:$AX,Week!$J$3+COLUMN()-13,ROW()-4)=0,"",2*INDEX(HHD!$C:$AX,Week!$J$3+COLUMN()-13,ROW()-4)) -> 48.4 | JI5: =IF(INDEX(HHD!$C:$AX,Week!$J$3+COLUMN()-13,ROW()-4)=0,"",2*INDEX(HHD!$C:$AX,Week!$J$3+COLUMN()-13,ROW()-4)) -> 48.2 | JJ5: =IF(INDEX(HHD!$C:$AX,Week!$J$3+COLUMN()-13,ROW()-4)=0,"",2*INDEX(HHD!$C:$AX,Week!$J$3+COLUMN()-13,ROW()-4)) -> 47.6 | JK5: =IF(INDEX(HHD!$C:$AX,Week!$J$3+COLUMN()-13,ROW()-4)=0,"",2*INDEX(HHD!$C:$AX,Week!$J$3+COLUMN()-13,ROW()-4)) -> 41.4 | JL5: =IF(INDEX(HHD!$C:$AX,Week!$J$3+COLUMN()-13,ROW()-4)=0,"",2*INDEX(HHD!$C:$AX,Week!$J$3+COLUMN()-13,ROW()-4)) -> 49.4 | JM5: =IF(INDEX(HHD!$C:$AX,Week!$J$3+COLUMN()-13,ROW()-4)=0,"",2*INDEX(HHD!$C:$AX,Week!$J$3+COLUMN()-13,ROW()-4)) -> 52.4 | JN5: =IF(INDEX(HHD!$C:$AX,Week!$J$3+COLUMN()-13,ROW()-4)=0,"",2*INDEX(HHD!$C:$AX,Week!$J$3+COLUMN()-13,ROW()-4)) -> 52.2 | JO5: =IF(INDEX(HHD!$C:$AX,Week!$J$3+COLUMN()-13,ROW()-4)=0,"",2*INDEX(HHD!$C:$AX,Week!$J$3+COLUMN()-13,ROW()-4)) -> 47.4 | JP5: =IF(INDEX(HHD!$C:$AX,Week!$J$3+COLUMN()-13,ROW()-4)=0,"",2*INDEX(HHD!$C:$AX,Week!$J$3+COLUMN()-13,ROW()-4)) -> 48.2 | JQ5: =IF(INDEX(HHD!$C:$AX,Week!$J$3+COLUMN()-13,ROW()-4)=0,"",2*INDEX(HHD!$C:$AX,Week!$J$3+COLUMN()-13,ROW()-4)) -> 48.6 | JR5: =IF(INDEX(HHD!$C:$AX,Week!$J$3+COLUMN()-13,ROW()-4)=0,"",2*INDEX(HHD!$C:$AX,Week!$J$3+COLUMN()-13,ROW()-4)) -> 49.2 | JS5: =IF(INDEX(HHD!$C:$AX,Week!$J$3+COLUMN()-13,ROW()-4)=0,"",2*INDEX(HHD!$C:$AX,Week!$J$3+COLUMN()-13,ROW()-4)) -> 50.8 | JT5: =IF(INDEX(HHD!$C:$AX,Week!$J$3+COLUMN()-13,ROW()-4)=0,"",2*INDEX(HHD!$C:$AX,Week!$J$3+COLUMN()-13,ROW()-4)) -> 56.2 | JU5: =IF(INDEX(HHD!$C:$AX,Week!$J$3+COLUMN()-13,ROW()-4)=0,"",2*INDEX(HHD!$C:$AX,Week!$J$3+COLUMN()-13,ROW()-4)) -> 56.6 | JV5: =IF(INDEX(HHD!$C:$AX,Week!$J$3+COLUMN()-13,ROW()-4)=0,"",2*INDEX(HHD!$C:$AX,Week!$J$3+COLUMN()-13,ROW()-4)) -> 49 | JW5: =IF(INDEX(HHD!$C:$AX,Week!$J$3+COLUMN()-13,ROW()-4)=0,"",2*INDEX(HHD!$C:$AX,Week!$J$3+COLUMN()-13,ROW()-4)) -> 52.2 | JX5: =IF(INDEX(HHD!$C:$AX,Week!$J$3+COLUMN()-13,ROW()-4)=0,"",2*INDEX(HHD!$C:$AX,Week!$J$3+COLUMN()-13,ROW()-4)) -> 46.8 | JY5: =IF(INDEX(HHD!$C:$AX,Week!$J$3+COLUMN()-13,ROW()-4)=0,"",2*INDEX(HHD!$C:$AX,Week!$J$3+COLUMN()-13,ROW()-4)) -> 45 | JZ5: =IF(INDEX(HHD!$C:$AX,Week!$J$3+COLUMN()-13,ROW()-4)=0,"",2*INDEX(HHD!$C:$AX,Week!$J$3+COLUMN()-13,ROW()-4)) -> 41 | KA5: =IF(INDEX(HHD!$C:$AX,Week!$J$3+COLUMN()-13,ROW()-4)=0,"",2*INDEX(HHD!$C:$AX,Week!$J$3+COLUMN()-13,ROW()-4)) -> 51 | KB5: =IF(INDEX(HHD!$C:$AX,Week!$J$3+COLUMN()-13,ROW()-4)=0,"",2*INDEX(HHD!$C:$AX,Week!$J$3+COLUMN()-13,ROW()-4)) -> 56.6 | KC5: =IF(INDEX(HHD!$C:$AX,Week!$J$3+COLUMN()-13,ROW()-4)=0,"",2*INDEX(HHD!$C:$AX,Week!$J$3+COLUMN()-13,ROW()-4)) -> 50.4 | KD5: =IF(INDEX(HHD!$C:$AX,Week!$J$3+COLUMN()-13,ROW()-4)=0,"",2*INDEX(HHD!$C:$AX,Week!$J$3+COLUMN()-13,ROW()-4)) -> 58.6 | KE5: =IF(INDEX(HHD!$C:$AX,Week!$J$3+COLUMN()-13,ROW()-4)=0,"",2*INDEX(HHD!$C:$AX,Week!$J$3+COLUMN()-13,ROW()-4)) -> 53.6 | KF5: =IF(INDEX(HHD!$C:$AX,Week!$J$3+COLUMN()-13,ROW()-4)=0,"",2*INDEX(HHD!$C:$AX,Week!$J$3+COLUMN()-13,ROW()-4)) -> 47.4 | KG5: =IF(INDEX(HHD!$C:$AX,Week!$J$3+COLUMN()-13,ROW()-4)=0,"",2*INDEX(HHD!$C:$AX,Week!$J$3+COLUMN()-13,ROW()-4)) -> 49.6 | KH5: =IF(INDEX(HHD!$C:$AX,Week!$J$3+COLUMN()-13,ROW()-4)=0,"",2*INDEX(HHD!$C:$AX,Week!$J$3+COLUMN()-13,ROW()-4)) -> 53.4 | KI5: =IF(INDEX(HHD!$C:$AX,Week!$J$3+COLUMN()-13,ROW()-4)=0,"",2*INDEX(HHD!$C:$AX,Week!$J$3+COLUMN()-13,ROW()-4)) -> 55 | KJ5: =IF(INDEX(HHD!$C:$AX,Week!$J$3+COLUMN()-13,ROW()-4)=0,"",2*INDEX(HHD!$C:$AX,Week!$J$3+COLUMN()-13,ROW()-4)) -> 58.4 | KK5: =IF(INDEX(HHD!$C:$AX,Week!$J$3+COLUMN()-13,ROW()-4)=0,"",2*INDEX(HHD!$C:$AX,Week!$J$3+COLUMN()-13,ROW()-4)) -> 61 | KL5: =IF(INDEX(HHD!$C:$AX,Week!$J$3+COLUMN()-13,ROW()-4)=0,"",2*INDEX(HHD!$C:$AX,Week!$J$3+COLUMN()-13,ROW()-4)) -> 69.2 | KM5: =IF(INDEX(HHD!$C:$AX,Week!$J$3+COLUMN()-13,ROW()-4)=0,"",2*INDEX(HHD!$C:$AX,Week!$J$3+COLUMN()-13,ROW()-4)) -> 58 | KN5: =IF(INDEX(HHD!$C:$AX,Week!$J$3+COLUMN()-13,ROW()-4)=0,"",2*INDEX(HHD!$C:$AX,Week!$J$3+COLUMN()-13,ROW()-4)) -> 51.8 | KO5: =IF(INDEX(HHD!$C:$AX,Week!$J$3+COLUMN()-13,ROW()-4)=0,"",2*INDEX(HHD!$C:$AX,Week!$J$3+COLUMN()-13,ROW()-4)) -> 48 | KP5: =IF(INDEX(HHD!$C:$AX,Week!$J$3+COLUMN()-13,ROW()-4)=0,"",2*INDEX(HHD!$C:$AX,Week!$J$3+COLUMN()-13,ROW()-4)) -> 55.6 | KQ5: =IF(INDEX(HHD!$C:$AX,Week!$J$3+COLUMN()-13,ROW()-4)=0,"",2*INDEX(HHD!$C:$AX,Week!$J$3+COLUMN()-13,ROW()-4)) -> 58.2 | KR5: =IF(INDEX(HHD!$C:$AX,Week!$J$3+COLUMN()-13,ROW()-4)=0,"",2*INDEX(HHD!$C:$AX,Week!$J$3+COLUMN()-13,ROW()-4)) -> 42.2 | KS5: =IF(INDEX(HHD!$C:$AX,Week!$J$3+COLUMN()-13,ROW()-4)=0,"",2*INDEX(HHD!$C:$AX,Week!$J$3+COLUMN()-13,ROW()-4)) -> 62.6 | KT5: =IF(INDEX(HHD!$C:$AX,Week!$J$3+COLUMN()-13,ROW()-4)=0,"",2*INDEX(HHD!$C:$AX,Week!$J$3+COLUMN()-13,ROW()-4)) -> 60.2 | KU5: =IF(INDEX(HHD!$C:$AX,Week!$J$3+COLUMN()-13,ROW()-4)=0,"",2*INDEX(HHD!$C:$AX,Week!$J$3+COLUMN()-13,ROW()-4)) -> 54.8 | KV5: =IF(INDEX(HHD!$C:$AX,Week!$J$3+COLUMN()-13,ROW()-4)=0,"",2*INDEX(HHD!$C:$AX,Week!$J$3+COLUMN()-13,ROW()-4)) -> 50.8 | KW5: =IF(INDEX(HHD!$C:$AX,Week!$J$3+COLUMN()-13,ROW()-4)=0,"",2*INDEX(HHD!$C:$AX,Week!$J$3+COLUMN()-13,ROW()-4)) -> 52.2 | KX5: =IF(INDEX(HHD!$C:$AX,Week!$J$3+COLUMN()-13,ROW()-4)=0,"",2*INDEX(HHD!$C:$AX,Week!$J$3+COLUMN()-13,ROW()-4)) -> 53.8 | KY5: =IF(INDEX(HHD!$C:$AX,Week!$J$3+COLUMN()-13,ROW()-4)=0,"",2*INDEX(HHD!$C:$AX,Week!$J$3+COLUMN()-13,ROW()-4)) -> 65.2 | KZ5: =IF(INDEX(HHD!$C:$AX,Week!$J$3+COLUMN()-13,ROW()-4)=0,"",2*INDEX(HHD!$C:$AX,Week!$J$3+COLUMN()-13,ROW()-4)) -> 54.2 | LA5: =IF(INDEX(HHD!$C:$AX,Week!$J$3+COLUMN()-13,ROW()-4)=0,"",2*INDEX(HHD!$C:$AX,Week!$J$3+COLUMN()-13,ROW()-4)) -> 59 | LB5: =IF(INDEX(HHD!$C:$AX,Week!$J$3+COLUMN()-13,ROW()-4)=0,"",2*INDEX(HHD!$C:$AX,Week!$J$3+COLUMN()-13,ROW()-4)) -> 51.2 | LC5: =IF(INDEX(HHD!$C:$AX,Week!$J$3+COLUMN()-13,ROW()-4)=0,"",2*INDEX(HHD!$C:$AX,Week!$J$3+COLUMN()-13,ROW()-4)) -> 46.6 | LD5: =IF(INDEX(HHD!$C:$AX,Week!$J$3+COLUMN()-13,ROW()-4)=0,"",2*INDEX(HHD!$C:$AX,Week!$J$3+COLUMN()-13,ROW()-4)) -> 55.4 | LE5: =IF(INDEX(HHD!$C:$AX,Week!$J$3+COLUMN()-13,ROW()-4)=0,"",2*INDEX(HHD!$C:$AX,Week!$J$3+COLUMN()-13,ROW()-4)) -> 64.2 | LF5: =IF(INDEX(HHD!$C:$AX,Week!$J$3+COLUMN()-13,ROW()-4)=0,"",2*INDEX(HHD!$C:$AX,Week!$J$3+COLUMN()-13,ROW()-4)) -> 62.2 | LG5: =IF(INDEX(HHD!$C:$AX,Week!$J$3+COLUMN()-13,ROW()-4)=0,"",2*INDEX(HHD!$C:$AX,Week!$J$3+COLUMN()-13,ROW()-4)) -> 48.4 | LH5: =IF(INDEX(HHD!$C:$AX,Week!$J$3+COLUMN()-13,ROW()-4)=0,"",2*INDEX(HHD!$C:$AX,Week!$J$3+COLUMN()-13,ROW()-4)) -> 47.6 | LI5: =IF(INDEX(HHD!$C:$AX,Week!$J$3+COLUMN()-13,ROW()-4)=0,"",2*INDEX(HHD!$C:$AX,Week!$J$3+COLUMN()-13,ROW()-4)) -> 46.4 | LJ5: =IF(INDEX(HHD!$C:$AX,Week!$J$3+COLUMN()-13,ROW()-4)=0,"",2*INDEX(HHD!$C:$AX,Week!$J$3+COLUMN()-13,ROW()-4)) -> 42.4 | LK5: =IF(INDEX(HHD!$C:$AX,Week!$J$3+COLUMN()-13,ROW()-4)=0,"",2*INDEX(HHD!$C:$AX,Week!$J$3+COLUMN()-13,ROW()-4)) -> 47.2 | LL5: =IF(INDEX(HHD!$C:$AX,Week!$J$3+COLUMN()-13,ROW()-4)=0,"",2*INDEX(HHD!$C:$AX,Week!$J$3+COLUMN()-13,ROW()-4)) -> 45.8 | LM5: =IF(INDEX(HHD!$C:$AX,Week!$J$3+COLUMN()-13,ROW()-4)=0,"",2*INDEX(HHD!$C:$AX,Week!$J$3+COLUMN()-13,ROW()-4)) -> 48.2 | LN5: =IF(INDEX(HHD!$C:$AX,Week!$J$3+COLUMN()-13,ROW()-4)=0,"",2*INDEX(HHD!$C:$AX,Week!$J$3+COLUMN()-13,ROW()-4)) -> 51.8 | LO5: =IF(INDEX(HHD!$C:$AX,Week!$J$3+COLUMN()-13,ROW()-4)=0,"",2*INDEX(HHD!$C:$AX,Week!$J$3+COLUMN()-13,ROW()-4)) -> 53.4 | LP5: =IF(INDEX(HHD!$C:$AX,Week!$J$3+COLUMN()-13,ROW()-4)=0,"",2*INDEX(HHD!$C:$AX,Week!$J$3+COLUMN()-13,ROW()-4)) -> 49 | LQ5: =IF(INDEX(HHD!$C:$AX,Week!$J$3+COLUMN()-13,ROW()-4)=0,"",2*INDEX(HHD!$C:$AX,Week!$J$3+COLUMN()-13,ROW()-4)) -> 43.8 | LR5: =IF(INDEX(HHD!$C:$AX,Week!$J$3+COLUMN()-13,ROW()-4)=0,"",2*INDEX(HHD!$C:$AX,Week!$J$3+COLUMN()-13,ROW()-4)) -> 59.8 | LS5: =IF(INDEX(HHD!$C:$AX,Week!$J$3+COLUMN()-13,ROW()-4)=0,"",2*INDEX(HHD!$C:$AX,Week!$J$3+COLUMN()-13,ROW()-4)) -> 48.8 | LT5: =IF(INDEX(HHD!$C:$AX,Week!$J$3+COLUMN()-13,ROW()-4)=0,"",2*INDEX(HHD!$C:$AX,Week!$J$3+COLUMN()-13,ROW()-4)) -> 63.2 | LU5: =IF(INDEX(HHD!$C:$AX,Week!$J$3+COLUMN()-13,ROW()-4)=0,"",2*INDEX(HHD!$C:$AX,Week!$J$3+COLUMN()-13,ROW()-4)) -> 52 | LV5: =IF(INDEX(HHD!$C:$AX,Week!$J$3+COLUMN()-13,ROW()-4)=0,"",2*INDEX(HHD!$C:$AX,Week!$J$3+COLUMN()-13,ROW()-4)) -> 42.8 | LW5: =IF(INDEX(HHD!$C:$AX,Week!$J$3+COLUMN()-13,ROW()-4)=0,"",2*INDEX(HHD!$C:$AX,Week!$J$3+COLUMN()-13,ROW()-4)) -> 43.8 | LX5: =IF(INDEX(HHD!$C:$AX,Week!$J$3+COLUMN()-13,ROW()-4)=0,"",2*INDEX(HHD!$C:$AX,Week!$J$3+COLUMN()-13,ROW()-4)) -> 41.4 | LY5: =IF(INDEX(HHD!$C:$AX,Week!$J$3+COLUMN()-13,ROW()-4)=0,"",2*INDEX(HHD!$C:$AX,Week!$J$3+COLUMN()-13,ROW()-4)) -> 45 | LZ5: =IF(INDEX(HHD!$C:$AX,Week!$J$3+COLUMN()-13,ROW()-4)=0,"",2*INDEX(HHD!$C:$AX,Week!$J$3+COLUMN()-13,ROW()-4)) -> 48 | MA5: =IF(INDEX(HHD!$C:$AX,Week!$J$3+COLUMN()-13,ROW()-4)=0,"",2*INDEX(HHD!$C:$AX,Week!$J$3+COLUMN()-13,ROW()-4)) -> 45 | MB5: =IF(INDEX(HHD!$C:$AX,Week!$J$3+COLUMN()-13,ROW()-4)=0,"",2*INDEX(HHD!$C:$AX,Week!$J$3+COLUMN()-13,ROW()-4)) -> 49.2 | MC5: =IF(INDEX(HHD!$C:$AX,Week!$J$3+COLUMN()-13,ROW()-4)=0,"",2*INDEX(HHD!$C:$AX,Week!$J$3+COLUMN()-13,ROW()-4)) -> 49.2 | MD5: =IF(INDEX(HHD!$C:$AX,Week!$J$3+COLUMN()-13,ROW()-4)=0,"",2*INDEX(HHD!$C:$AX,Week!$J$3+COLUMN()-13,ROW()-4)) -> 50.2 | ME5: =IF(INDEX(HHD!$C:$AX,Week!$J$3+COLUMN()-13,ROW()-4)=0,"",2*INDEX(HHD!$C:$AX,Week!$J$3+COLUMN()-13,ROW()-4)) -> 52.6 | MF5: =IF(INDEX(HHD!$C:$AX,Week!$J$3+COLUMN()-13,ROW()-4)=0,"",2*INDEX(HHD!$C:$AX,Week!$J$3+COLUMN()-13,ROW()-4)) -> 44.4 | MG5: =IF(INDEX(HHD!$C:$AX,Week!$J$3+COLUMN()-13,ROW()-4)=0,"",2*INDEX(HHD!$C:$AX,Week!$J$3+COLUMN()-13,ROW()-4)) -> 51.2 | MH5: =IF(INDEX(HHD!$C:$AX,Week!$J$3+COLUMN()-13,ROW()-4)=0,"",2*INDEX(HHD!$C:$AX,Week!$J$3+COLUMN()-13,ROW()-4)) -> 56 | MI5: =IF(INDEX(HHD!$C:$AX,Week!$J$3+COLUMN()-13,ROW()-4)=0,"",2*INDEX(HHD!$C:$AX,Week!$J$3+COLUMN()-13,ROW()-4)) -> 43.4 | MJ5: =IF(INDEX(HHD!$C:$AX,Week!$J$3+COLUMN()-13,ROW()-4)=0,"",2*INDEX(HHD!$C:$AX,Week!$J$3+COLUMN()-13,ROW()-4)) -> 48 | MK5: =IF(INDEX(HHD!$C:$AX,Week!$J$3+COLUMN()-13,ROW()-4)=0,"",2*INDEX(HHD!$C:$AX,Week!$J$3+COLUMN()-13,ROW()-4)) -> 51.4 | ML5: =IF(INDEX(HHD!$C:$AX,Week!$J$3+COLUMN()-13,ROW()-4)=0,"",2*INDEX(HHD!$C:$AX,Week!$J$3+COLUMN()-13,ROW()-4)) -> 46.6 | MM5: =IF(INDEX(HHD!$C:$AX,Week!$J$3+COLUMN()-13,ROW()-4)=0,"",2*INDEX(HHD!$C:$AX,Week!$J$3+COLUMN()-13,ROW()-4)) -> 56.8 | MN5: =IF(INDEX(HHD!$C:$AX,Week!$J$3+COLUMN()-13,ROW()-4)=0,"",2*INDEX(HHD!$C:$AX,Week!$J$3+COLUMN()-13,ROW()-4)) -> 48.8 | MO5: =IF(INDEX(HHD!$C:$AX,Week!$J$3+COLUMN()-13,ROW()-4)=0,"",2*INDEX(HHD!$C:$AX,Week!$J$3+COLUMN()-13,ROW()-4)) -> 46.4 | MP5: =IF(INDEX(HHD!$C:$AX,Week!$J$3+COLUMN()-13,ROW()-4)=0,"",2*INDEX(HHD!$C:$AX,Week!$J$3+COLUMN()-13,ROW()-4)) -> 52 | MQ5: =IF(INDEX(HHD!$C:$AX,Week!$J$3+COLUMN()-13,ROW()-4)=0,"",2*INDEX(HHD!$C:$AX,Week!$J$3+COLUMN()-13,ROW()-4)) -> 48.4 | MR5: =IF(INDEX(HHD!$C:$AX,Week!$J$3+COLUMN()-13,ROW()-4)=0,"",2*INDEX(HHD!$C:$AX,Week!$J$3+COLUMN()-13,ROW()-4)) -> 52.2 | MS5: =IF(INDEX(HHD!$C:$AX,Week!$J$3+COLUMN()-13,ROW()-4)=0,"",2*INDEX(HHD!$C:$AX,Week!$J$3+COLUMN()-13,ROW()-4)) -> 53.2 | MT5: =IF(INDEX(HHD!$C:$AX,Week!$J$3+COLUMN()-13,ROW()-4)=0,"",2*INDEX(HHD!$C:$AX,Week!$J$3+COLUMN()-13,ROW()-4)) -> 47.2 | MU5: =IF(INDEX(HHD!$C:$AX,Week!$J$3+COLUMN()-13,ROW()-4)=0,"",2*INDEX(HHD!$C:$AX,Week!$J$3+COLUMN()-13,ROW()-4)) -> 44.4 | MV5: =IF(INDEX(HHD!$C:$AX,Week!$J$3+COLUMN()-13,ROW()-4)=0,"",2*INDEX(HHD!$C:$AX,Week!$J$3+COLUMN()-13,ROW()-4)) -> 43 | MW5: =IF(INDEX(HHD!$C:$AX,Week!$J$3+COLUMN()-13,ROW()-4)=0,"",2*INDEX(HHD!$C:$AX,Week!$J$3+COLUMN()-13,ROW()-4)) -> 62.2 | MX5: =IF(INDEX(HHD!$C:$AX,Week!$J$3+COLUMN()-13,ROW()-4)=0,"",2*INDEX(HHD!$C:$AX,Week!$J$3+COLUMN()-13,ROW()-4)) -> 48.2 | MY5: =IF(INDEX(HHD!$C:$AX,Week!$J$3+COLUMN()-13,ROW()-4)=0,"",2*INDEX(HHD!$C:$AX,Week!$J$3+COLUMN()-13,ROW()-4)) -> 47 | MZ5: =IF(INDEX(HHD!$C:$AX,Week!$J$3+COLUMN()-13,ROW()-4)=0,"",2*INDEX(HHD!$C:$AX,Week!$J$3+COLUMN()-13,ROW()-4)) -> 51.4 | NA5: =IF(INDEX(HHD!$C:$AX,Week!$J$3+COLUMN()-13,ROW()-4)=0,"",2*INDEX(HHD!$C:$AX,Week!$J$3+COLUMN()-13,ROW()-4)) -> 48.2 | NB5: =IF(INDEX(HHD!$C:$AX,Week!$J$3+COLUMN()-13,ROW()-4)=0,"",2*INDEX(HHD!$C:$AX,Week!$J$3+COLUMN()-13,ROW()-4)) -> 48.6 | NC5: =IF(INDEX(HHD!$C:$AX,Week!$J$3+COLUMN()-13,ROW()-4)=0,"",2*INDEX(HHD!$C:$AX,Week!$J$3+COLUMN()-13,ROW()-4)) -> 49.4 | ND5: =IF(INDEX(HHD!$C:$AX,Week!$J$3+COLUMN()-13,ROW()-4)=0,"",2*INDEX(HHD!$C:$AX,Week!$J$3+COLUMN()-13,ROW()-4)) -> 45.6 | NE5: =IF(INDEX(HHD!$C:$AX,Week!$J$3+COLUMN()-13,ROW()-4)=0,"",2*INDEX(HHD!$C:$AX,Week!$J$3+COLUMN()-13,ROW()-4)) -> 43.2 | NF5: =IF(INDEX(HHD!$C:$AX,Week!$J$3+COLUMN()-13,ROW()-4)=0,"",2*INDEX(HHD!$C:$AX,Week!$J$3+COLUMN()-13,ROW()-4)) -> 46.2 | NG5: =IF(INDEX(HHD!$C:$AX,Week!$J$3+COLUMN()-13,ROW()-4)=0,"",2*INDEX(HHD!$C:$AX,Week!$J$3+COLUMN()-13,ROW()-4)) -> 41.2 | NH5: =IF(INDEX(HHD!$C:$AX,Week!$J$3+COLUMN()-13,ROW()-4)=0,"",2*INDEX(HHD!$C:$AX,Week!$J$3+COLUMN()-13,ROW()-4)) -> 44.2 | NI5: =IF(INDEX(HHD!$C:$AX,Week!$J$3+COLUMN()-13,ROW()-4)=0,"",2*INDEX(HHD!$C:$AX,Week!$J$3+COLUMN()-13,ROW()-4)) -> 44 | NJ5: =IF(INDEX(HHD!$C:$AX,Week!$J$3+COLUMN()-13,ROW()-4)=0,"",2*INDEX(HHD!$C:$AX,Week!$J$3+COLUMN()-13,ROW()-4)) -> 52.4 | NK5: =IF(INDEX(HHD!$C:$AX,Week!$J$3+COLUMN()-13,ROW()-4)=0,"",2*INDEX(HHD!$C:$AX,Week!$J$3+COLUMN()-13,ROW()-4)) -> 47.6 | NL5: =IF(INDEX(HHD!$C:$AX,Week!$J$3+COLUMN()-13,ROW()-4)=0,"",2*INDEX(HHD!$C:$AX,Week!$J$3+COLUMN()-13,ROW()-4)) -> 43.6 | NM5: =IF(INDEX(HHD!$C:$AX,Week!$J$3+COLUMN()-13,ROW()-4)=0,"",2*INDEX(HHD!$C:$AX,Week!$J$3+COLUMN()-13,ROW()-4)) -> 50.4 | NN5: =IF(INDEX(HHD!$C:$AX,Week!$J$3+COLUMN()-13,ROW()-4)=0,"",2*INDEX(HHD!$C:$AX,Week!$J$3+COLUMN()-13,ROW()-4)) -> 48.6 | NO5: =IF(INDEX(HHD!$C:$AX,Week!$J$3+COLUMN()-13,ROW()-4)=0,"",2*INDEX(HHD!$C:$AX,Week!$J$3+COLUMN()-13,ROW()-4)) -> 43.6 | NP5: =IF(INDEX(HHD!$C:$AX,Week!$J$3+COLUMN()-13,ROW()-4)=0,"",2*INDEX(HHD!$C:$AX,Week!$J$3+COLUMN()-13,ROW()-4)) -> 52.2 | NQ5: =IF(INDEX(HHD!$C:$AX,Week!$J$3+COLUMN()-13,ROW()-4)=0,"",2*INDEX(HHD!$C:$AX,Week!$J$3+COLUMN()-13,ROW()-4)) -> 42.4 | NR5: =IF(INDEX(HHD!$C:$AX,Week!$J$3+COLUMN()-13,ROW()-4)=0,"",2*INDEX(HHD!$C:$AX,Week!$J$3+COLUMN()-13,ROW()-4)) -> 44.4 | NS5: =IF(INDEX(HHD!$C:$AX,Week!$J$3+COLUMN()-13,ROW()-4)=0,"",2*INDEX(HHD!$C:$AX,Week!$J$3+COLUMN()-13,ROW()-4)) -> 43.6 | NT5: =IF(INDEX(HHD!$C:$AX,Week!$J$3+COLUMN()-13,ROW()-4)=0,"",2*INDEX(HHD!$C:$AX,Week!$J$3+COLUMN()-13,ROW()-4)) -> 47.6 | NU5: =IF(INDEX(HHD!$C:$AX,Week!$J$3+COLUMN()-13,ROW()-4)=0,"",2*INDEX(HHD!$C:$AX,Week!$J$3+COLUMN()-13,ROW()-4)) -> 49 | NV5: =IF(INDEX(HHD!$C:$AX,Week!$J$3+COLUMN()-13,ROW()-4)=0,"",2*INDEX(HHD!$C:$AX,Week!$J$3+COLUMN()-13,ROW()-4)) -> 45 | NW5: =IF(INDEX(HHD!$C:$AX,Week!$J$3+COLUMN()-13,ROW()-4)=0,"",2*INDEX(HHD!$C:$AX,Week!$J$3+COLUMN()-13,ROW()-4)) -> 42.6 | NX5: =IF(INDEX(HHD!$C:$AX,Week!$J$3+COLUMN()-13,ROW()-4)=0,"",2*INDEX(HHD!$C:$AX,Week!$J$3+COLUMN()-13,ROW()-4)) -> 44.2 | NY5: =IF(INDEX(HHD!$C:$AX,Week!$J$3+COLUMN()-13,ROW()-4)=0,"",2*INDEX(HHD!$C:$AX,Week!$J$3+COLUMN()-13,ROW()-4)) -> 40.2 | NZ5: =IF(INDEX(HHD!$C:$AX,Week!$J$3+COLUMN()-13,ROW()-4)=0,"",2*INDEX(HHD!$C:$AX,Week!$J$3+COLUMN()-13,ROW()-4)) -> 42.6 | OA5: =IF(INDEX(HHD!$C:$AX,Week!$J$3+COLUMN()-13,ROW()-4)=0,"",2*INDEX(HHD!$C:$AX,Week!$J$3+COLUMN()-13,ROW()-4)) -> 47.2
